Workbook

Sheet START

Sheet Instructions
D2: 2020
X4: Yes
X5: No
W7: Type of Entities Range:
X8: Parent Municipality
X9: Consolidated Information
W17: MTREF Range: | X17: 2008
X18: 2009
X19: 2010
X20: 2011
X21: 2012
X22: 2013
X23: 2014
X24: 2015
X25: 2016
X26: 2017
X27: 2018
X28: 2019
X29: 2020
X30: 2021
X31: 2022
W33: MTREF Linked: | X33: 10
W34: MTREF: | X34: =INDEX(X17:X31,X33,1) -> 2017
W36: Fin Year: | X36: =MTREF&"/"&RIGHT(MTREF,2)+1 -> 2017/18

Sheet Template names (hidden)
A1: Common sheet headings
A2: Head1 | B2: =HLOOKUP(MTREF,Headings,2) -> 2015/16 | C2: Prior year -1
A3: Head1A | B3: =HLOOKUP(MTREF,Headings,3) -> 2014/15 | C3: Prior year -2
A4: Head1B | B4: =HLOOKUP(MTREF,Headings,4) -> 2013/14 | C4: Prior year -3
A5: Head2 | B5: =HLOOKUP(MTREF,Headings,5) -> Current Year 2016/17 | C5: Year in which budget is being prepared
A6: Head2A | B6: =HLOOKUP(MTREF,Headings,6) -> 2016/17 | C6: Year in which budget is being prepared
A7: Head3 | B7: =HLOOKUP(MTREF,Headings,7) -> 2017/18 Medium Term Revenue & Expenditure Framework | C7: MTREF name
A8: Head4 | B8: LTFS | C8: Long term financial strategy
A9: Head5 | B9: Audited Outcome
A10: Head5A | B10: Outcome
A11: Head5B | B11: Pre-audit outcome
A12: Head6 | B12: Original Budget
A13: Head7 | B13: Adjusted Budget
A14: Head8 | B14: Full Year Forecast
A15: Head9 | B15: =HLOOKUP(MTREF,Headings,8) -> Budget Year 2017/18 | C15: 1st year of MTREF | D15: Year1
A16: Head10 | B16: =HLOOKUP(MTREF,Headings,9) -> Budget Year +1 2018/19 | C16: 2nd year of MTREF | D16: Year2
A17: Head11 | B17: =HLOOKUP(MTREF,Headings,10) -> Budget Year +2 2019/20 | C17: 3rd year of MTREF | D17: Year3
A18: Head12 | B18: =HLOOKUP(MTREF,Headings,11) -> Forecast 2020/21 | C18: 1st yr of long term forecast | D18: Year4
A19: Head13 | B19: =HLOOKUP(MTREF,Headings,12) -> Forecast 2021/22 | C19: Next yr of long term forecast | D19: Year5
A20: Head14 | B20: =HLOOKUP(MTREF,Headings,13) -> Forecast 2022/23 | C20: Next yr of long term forecast | D20: Year6
A21: Head15 | B21: =HLOOKUP(MTREF,Headings,14) -> Forecast 2023/24 | C21: Next yr of long term forecast | D21: Year7
A22: Head16 | B22: =HLOOKUP(MTREF,Headings,15) -> Forecast 2024/25 | C22: Next yr of long term forecast | D22: Year8
A23: Head17 | B23: =HLOOKUP(MTREF,Headings,16) -> Forecast 2025/26 | C23: Next yr of long term forecast | D23: Year9
A24: Head18 | B24: =HLOOKUP(MTREF,Headings,17) -> Forecast 2026/27 | C24: Next yr of long term forecast | D24: Year10
A25: Head19 | B25: =HLOOKUP(MTREF,Headings,18) -> Forecast 2027/28 | C25: Next yr of long term forecast | D25: Year11
A26: Head20 | B26: =HLOOKUP(MTREF,Headings,19) -> Forecast 2028/29 | C26: Next yr of long term forecast | D26: Year12
A27: Head21 | B27: =HLOOKUP(MTREF,Headings,20) -> Forecast 2029/30 | C27: Next yr of long term forecast | D27: Year13
A28: Head22 | B28: =HLOOKUP(MTREF,Headings,21) -> Forecast 2030/31 | C28: Next yr of long term forecast | D28: Year14
A29: Head23 | B29: =HLOOKUP(MTREF,Headings,22) -> Forecast 2031/32 | C29: Next yr of long term forecast | D29: Year15
A30: Head24 | B30: Description
A31: Head25
A32: Head26 | B32: Vote Description
A33: Head27 | B33: Ref
A34: Head27a | B34: References
A35: Head28 | B35: Surplus/(Deficit) for the year | D35: Result
A36: Head29 | B36: =HLOOKUP(MTREF,Headings,23) -> Annual target 2017/18
A37: Head30 | B37: =HLOOKUP(MTREF,Headings,24) -> Revised target 2017/18
A38: Head31 | B38: Quarter ended 30 September
A39: Head32 | B39: Quarter ended 31 December
A40: Head33 | B40: Quarter ended 31 March
A41: Head34 | B41: Quarter ended 30 June
A42: Head35 | B42: Variance explanation
A43: Head36 | B43: YTD Actual 31 Dec
A44: Head37 | B44: YTD Budget 31 Dec
A45: Head38 | B45: Monthly actual
A46: Head39 | B46: YTD actual
A47: Head40 | B47: YTD budget
A48: Head41 | B48: YTD variance
A49: Head42 | B49: Surplus/ (Deficit) for the yr/period
A50: Head43 | B50: =Head3&" Summary" -> 2017/18 Medium Term Revenue & Expenditure Framework Summary
A51: Head44 | B51: 2001 Census
A52: Head45 | B52: 2011 Census
A53: Head46 | B53: - Adjustments Budget - January 2007
A54: Head47 | B54: Previous target year to complete
A55: Head48 | B55: Present value
A56: Head49
A57: Head50 | B57: Other Adjusts.
A58: Head51 | B58: Accum. Funds
A59: Head52 | B59: Multi-year capital
A60: Head53 | B60: Unfore. Unavoid.
A61: Head54 | B61: Prior Adjusted
A62: Head55 | B62: Nat. or Prov. Govt
A63: Head56 | B63: Total Adjusts.
A64: SFPerf1 | B64: Budgeted Financial Performance
A65: SFPerf2 | B65: Forecast Financial Performance
A66: SFPos1 | B66: Budgeted Financial Position
A67: SFPos2 | B67: Forecast Financial Position
A68: Cash1 | B68: Budget Cash Flow
A69: Cash2 | B69: Forecast Cash Flow
A70: RandM | B70: Expenditure includes repairs & maintenance of R'000
A71: Depart1 | B71: Department 1 - | D71: DEP1
A72: Depart2 | B72: Department 2 - | D72: DEP2
A73: Depart3 | B73: Department 3 - | D73: DEP3
A74: Depart4 | B74: Department 4 - | D74: DEP4
A75: Depart5 | B75: Department 5 - | D75: DEP5
A76: Depart6 | B76: Department 6 - | D76: DEP6
A77: Depart7 | B77: Department 7 - | D77: DEP7
A78: Depart8 | B78: Department 8 - | D78: DEP8
A79: Depart9 | B79: Department 9 - | D79: DEP9
A80: Depart10 | B80: Department 10 - | D80: DEP10
A81: Depart11 | B81: Department 11 - | D81: DEP11
A82: Depart12 | B82: Department 12 - | D82: DEP12
A83: Depart13 | B83: Department 13 - | D83: DEP13
A84: Depart14 | B84: Department 14 - | D84: DEP14
A87: Base year of forecast column selection names
A88: Choose | B88: ACT
B89: APP
B90: ADJ
A92: Standard nomenclature
A93: Muni | B93: ='Lookup and lists'!B28 -> FS205 Mafube
A94: Municipal Entities | B94: 2 | C94: Type of report: | D94: 1
A95: =IF((MuniEntities=1)*(MuniType=2),"YES","NO") -> NO | B95: Does this municipality have entities (consolidated budget and entity budgets required)? YES/NO
A96: Entity 1 | B96: (Pty) Ltd Example 1 - Municipal entity - | D96: Ent1
A97: Entity 2 | B97: (Pty) Ltd Example 2 - Municipal entity - | D97: Ent2
A98: Entity 3 | B98: Municipal Entity Example 3 | D98: Ent3
A99: Budget approval tables | C99: Chart x-ref | D99: Sch/Tab/Ch | E99: Alternative for municipalities without entities | F99: Alternative for municipalities without entities
B100: =IF(Consolques="YES",E100,F100) -> Table A1 Budget Summary | D100: Table A1 | E100: =D100&"Consolidated Budget Summary" -> Table A1 Consolidated Budget Summary | F100: =D100&"Budget Summary" -> Table A1 Budget Summary
B101: Table A2 Budgeted Financial Performance (revenue and expenditure by standard classification) | C101: Charts 5, 6 | D101: Table A2 | E101: =D101&"Consolidated Budgeted Financial Performance (revenue and expenditure by standard classification)" -> Table A2 Consolidated Budgeted Financial Performance (revenue and expenditure by standard classification) | F101: =D101&"Budgeted Financial Performance (revenue and expenditure by standard classification)" -> Table A2 Budgeted Financial Performance (revenue and expenditure by standard classification)
B102: Table A3 Budgeted Financial Performance (revenue and expenditure by municipal vote) | D102: Table A3 | E102: =D102&"Consolidated Budgeted Financial Performance (revenue and expenditure by municipal vote)" -> Table A3 Consolidated Budgeted Financial Performance (revenue and expenditure by municipal vote) | F102: =D102&"Budgeted Financial Performance (revenue and expenditure by municipal vote)" -> Table A3 Budgeted Financial Performance (revenue and expenditure by municipal vote)
B103: Table A4 Budgeted Financial Performance (revenue and expenditure) | C103: Charts 1, 2, 3, 4 | D103: Table A4 | E103: =D103&"Consolidated Budgeted Financial Performance (revenue and expenditure)" -> Table A4 Consolidated Budgeted Financial Performance (revenue and expenditure) | F103: =D103&"Budgeted Financial Performance (revenue and expenditure)" -> Table A4 Budgeted Financial Performance (revenue and expenditure)
B104: Table A5 Budgeted Capital Expenditure by vote, standard classification and funding | C104: Charts 7, 8, 9, 10, 20 | D104: Table A5 | E104: =D104&"Consolidated Budgeted Capital Expenditure by vote, standard classification and funding" -> Table A5 Consolidated Budgeted Capital Expenditure by vote, standard classification and funding | F104: =D104&"Budgeted Capital Expenditure by vote, standard classification and funding" -> Table A5 Budgeted Capital Expenditure by vote, standard classification and funding
B105: Table A6 Budgeted Financial Position | D105: Table A6 | E105: =D105&"Consolidated Budgeted Financial Position" -> Table A6 Consolidated Budgeted Financial Position | F105: =D105&"Budgeted Financial Position" -> Table A6 Budgeted Financial Position
B106: Table A7 Budgeted Cash Flows | D106: Table A7 | E106: =D106&"Consolidated Budgeted Cash Flows" -> Table A7 Consolidated Budgeted Cash Flows | F106: =D106&"Budgeted Cash Flows" -> Table A7 Budgeted Cash Flows
B107: Table A8 Cash backed reserves/accumulated surplus reconciliation | D107: Table A8 | E107: =D107&"Consolidated Cash backed reserves/accumulated surplus reconciliation" -> Table A8 Consolidated Cash backed reserves/accumulated surplus reconciliation | F107: =D107&"Cash backed reserves/accumulated surplus reconciliation" -> Table A8 Cash backed reserves/accumulated surplus reconciliation
B108: Table A9 Asset Management | D108: Table A9 | E108: =D108&"Consolidated Asset Management" -> Table A9 Consolidated Asset Management | F108: =D108&"Asset Management" -> Table A9 Asset Management
B109: Table A10 Basic service delivery measurement | D109: Table A10 | E109: =D109&"Consolidated basic service delivery measurement" -> Table A10 Consolidated basic service delivery measurement | F109: =D109&"Basic service delivery measurement" -> Table A10 Basic service delivery measurement
A110: Supportinging Tables to the Budget Approval Tables | C110: =$C$99 -> Chart x-ref | D110: =$D$99 -> Sch/Tab/Ch
A111: Supporting Table SA1 | B111: =A111&" Supportinging detail to 'Budgeted Financial Performance'" -> Supporting Table SA1 Supportinging detail to 'Budgeted Financial Performance'
A112: Supporting Table SA2 | B112: =IF(Consolques="YES",E112,F112) -> Supporting Table SA2 Matrix Financial Performance Budget (revenue source/expenditure type and dept.) | E112: =A112&"Consolidated Matrix Financial Performance Budget (revenue source/expenditure type & dept.)" -> Supporting Table SA2 Consolidated Matrix Financial Performance Budget (revenue source/expenditure type & dept.) | F112: =A112&"Matrix Financial Performance Budget (revenue source/expenditure type and dept.)" -> Supporting Table SA2 Matrix Financial Performance Budget (revenue source/expenditure type and dept.)
A113: Supporting Table SA3 | B113: =A113&"Supportinging detail to 'Budgeted Financial Position'" -> Supporting Table SA3 Supportinging detail to 'Budgeted Financial Position'
A114: Supporting Table SA4 | B114: =A114&"Reconciliation of IDP strategic objectives and budget (revenue)" -> Supporting Table SA4 Reconciliation of IDP strategic objectives and budget (revenue) | C114: Chart 11
A115: Supporting Table SA5 | B115: =A115&"Reconciliation of IDP strategic objectives and budget (operating expenditure)" -> Supporting Table SA5 Reconciliation of IDP strategic objectives and budget (operating expenditure) | C115: Chart 12
A116: Supporting Table SA6 | B116: =A116&"Reconciliation of IDP strategic objectives and budget (capital expenditure)" -> Supporting Table SA6 Reconciliation of IDP strategic objectives and budget (capital expenditure) | C116: Chart 13
A117: Supporting Table SA7 | B117: =A117&" Measureable performance objectives" -> Supporting Table SA7 Measureable performance objectives
A118: Supporting Table SA8 | B118: =A118&" Performance indicators and benchmarks" -> Supporting Table SA8 Performance indicators and benchmarks | C118: Chts 15-19
A119: Supporting Table SA9 | B119: =A119&" Social, economic and demographic statistics and assumptions" -> Supporting Table SA9 Social, economic and demographic statistics and assumptions
A120: Supporting Table SA10 | B120: =A120&" Funding measurement" -> Supporting Table SA10 Funding measurement | C120: Chart 14
A121: Supporting Table SA11 | B121: =A121&" Property rates summary" -> Supporting Table SA11 Property rates summary
A122: Supporting Table SA12a | B122: =A122&" Property rates by category (current year)" -> Supporting Table SA12a Property rates by category (current year)
A123: Supporting Table SA12b | B123: =A123&" Property rates by category (budget year)" -> Supporting Table SA12b Property rates by category (budget year)
A124: Supporting Table SA13a | B124: =A124&" Service Tariffs by category" -> Supporting Table SA13a Service Tariffs by category
A125: Supporting Table SA13b | B125: =A125&" Service Tariffs by category - explanatory" -> Supporting Table SA13b Service Tariffs by category - explanatory
A126: Supporting Table SA14 | B126: =A126&" Household bills" -> Supporting Table SA14 Household bills
A127: Supporting Table SA15 | B127: =A127&" Investment particulars by type" -> Supporting Table SA15 Investment particulars by type
A128: Supporting Table SA16 | B128: =A128&" Investment particulars by maturity" -> Supporting Table SA16 Investment particulars by maturity
A129: Supporting Table SA17 | B129: =A129&" Borrowing" -> Supporting Table SA17 Borrowing
A130: Supporting Table SA18 | B130: =A130&" Transfers and grant receipts" -> Supporting Table SA18 Transfers and grant receipts
A131: Supporting Table SA19 | B131: =A131&" Expenditure on transfers and grant programme" -> Supporting Table SA19 Expenditure on transfers and grant programme
A132: Supporting Table SA20 | B132: =A132&" Reconciliation of transfers, grant receipts and unspent funds" -> Supporting Table SA20 Reconciliation of transfers, grant receipts and unspent funds
A133: Supporting Table SA21 | B133: =A133&" Transfers and grants made by the municipality" -> Supporting Table SA21 Transfers and grants made by the municipality
A134: Supporting Table SA22 | B134: =A134&" Summary councillor and staff benefits" -> Supporting Table SA22 Summary councillor and staff benefits
A135: Supporting Table SA23 | B135: =A135&" Salaries, allowances & benefits (political office bearers/councillors/senior managers)" -> Supporting Table SA23 Salaries, allowances & benefits (political office bearers/councillors/senior managers)
A136: Supporting Table SA24 | B136: =A136&" Summary of personnel numbers" -> Supporting Table SA24 Summary of personnel numbers
A137: Supporting Table SA25 | B137: =IF(Consolques="YES",E137,F137) -> Supporting Table SA25 Budgeted monthly revenue and expenditure | E137: =A137&" Consolidated budgeted monthly revenue and expenditure" -> Supporting Table SA25 Consolidated budgeted monthly revenue and expenditure | F137: =A137&" Budgeted monthly revenue and expenditure" -> Supporting Table SA25 Budgeted monthly revenue and expenditure
A138: Supporting Table SA26 | B138: Supporting Table SA26 Budgeted monthly revenue and expenditure (municipal vote) | E138: =A138&" Consolidated budgeted monthly revenue and expenditure (municipal vote)" -> Supporting Table SA26 Consolidated budgeted monthly revenue and expenditure (municipal vote) | F138: =A138&" Budgeted monthly revenue and expenditure (municipal vote)" -> Supporting Table SA26 Budgeted monthly revenue and expenditure (municipal vote)
A139: Supporting Table SA27 | B139: Supporting Table SA27 Budgeted monthly revenue and expenditure (standard classification) | E139: =A139&" Consolidated budgeted monthly revenue and expenditure (standard classification)" -> Supporting Table SA27 Consolidated budgeted monthly revenue and expenditure (standard classification) | F139: =A139&" Budgeted monthly revenue and expenditure (standard classification)" -> Supporting Table SA27 Budgeted monthly revenue and expenditure (standard classification)
A140: Supporting Table SA28 | B140: Supporting Table SA28 Budgeted monthly capital expenditure (municipal vote) | E140: =A140&" Consolidated budgeted monthly capital expenditure (municipal vote)" -> Supporting Table SA28 Consolidated budgeted monthly capital expenditure (municipal vote) | F140: =A140&" Budgeted monthly capital expenditure (municipal vote)" -> Supporting Table SA28 Budgeted monthly capital expenditure (municipal vote)
A141: Supporting Table SA29 | B141: Supporting Table SA29 Budgeted monthly capital expenditure (standard classification) | E141: =A141&" Consolidated budgeted monthly capital expenditure (standard classification)" -> Supporting Table SA29 Consolidated budgeted monthly capital expenditure (standard classification) | F141: =A141&" Budgeted monthly capital expenditure (standard classification)" -> Supporting Table SA29 Budgeted monthly capital expenditure (standard classification)
A142: Supporting Table SA30 | B142: Supporting Table SA30 Budgeted monthly cash flow | E142: =A142&" Consolidated budgeted monthly cash flow" -> Supporting Table SA30 Consolidated budgeted monthly cash flow | F142: =A142&" Budgeted monthly cash flow" -> Supporting Table SA30 Budgeted monthly cash flow
A143: Supporting Table SA31 | B143: NOT REQUIRED - municipality does not have entities | E143: =A143&" Aggregated entity budget" -> Supporting Table SA31 Aggregated entity budget | F143: NOT REQUIRED - municipality does not have entities
A144: Supporting Table SA32 | B144: =A144&" List of external mechanisms" -> Supporting Table SA32 List of external mechanisms
A145: Supporting Table SA33 | B145: =A145&" Contracts having future budgetary implications" -> Supporting Table SA33 Contracts having future budgetary implications
A146: Supporting Table SA34a | B146: =IF(Consolques="YES",E146,F146) -> Supporting Table SA34a Capital expenditure on new assets by asset class | E146: =A146&" Consolidated capital expenditure on new assets by asset class" -> Supporting Table SA34a Consolidated capital expenditure on new assets by asset class | F146: =A146&" Capital expenditure on new assets by asset class" -> Supporting Table SA34a Capital expenditure on new assets by asset class
A147: Supporting Table SA34b | B147: Supporting Table SA34b Capital expenditure on the renewal of existing assets by asset class | E147: =A147&" Consolidated capital expenditure on existing assets by asset class" -> Supporting Table SA34b Consolidated capital expenditure on existing assets by asset class | F147: =A147&" Capital expenditure on the renewal of existing assets by asset class" -> Supporting Table SA34b Capital expenditure on the renewal of existing assets by asset class
A148: Supporting Table SA34c | B148: Supporting Table SA34c Repairs and maintenance expenditure by asset class | E148: =A148&" Consolidated repairs and maintenance by asset class" -> Supporting Table SA34c Consolidated repairs and maintenance by asset class | F148: =A148&" Repairs and maintenance expenditure by asset class" -> Supporting Table SA34c Repairs and maintenance expenditure by asset class
A149: Supporting Table SA34d | B149: =IF(Consolques="YES",E149,F149) -> Supporting Table SA34d Depreciation by asset class | E149: =A149&" Consolidated Depreciation by asset class" -> Supporting Table SA34d Consolidated Depreciation by asset class | F149: =A149&" Depreciation by asset class" -> Supporting Table SA34d Depreciation by asset class
A150: Supporting Table SA35 | B150: Supporting Table SA35 Future financial implications of the capital budget | E150: =A150&" Consolidated future financial implications of the capital budget" -> Supporting Table SA35 Consolidated future financial implications of the capital budget | F150: =A150& " Future financial implications of the capital budget" -> Supporting Table SA35 Future financial implications of the capital budget
A151: Supporting Table SA36 | B151: Supporting Table SA36 Detailed capital budget | E151: =A151&" Consolidated detailed capital budget" -> Supporting Table SA36 Consolidated detailed capital budget | F151: =A151& " Detailed capital budget" -> Supporting Table SA36 Detailed capital budget
A152: Supporting Table SA37 | B152: Supporting Table SA37 Projects delayed from previous financial year/s | E152: =A152&" Consolidated projects delayed from previous financial year/s" -> Supporting Table SA37 Consolidated projects delayed from previous financial year/s | F152: =A152& " Projects delayed from previous financial year/s" -> Supporting Table SA37 Projects delayed from previous financial year/s
A154: Budget Charts | B154: Charts | C154: Cross reference
A155: Chart A1 | B155: =A155&"Revenue by Municipal Vote" -> Chart A1 Revenue by Municipal Vote
A156: Chart A2 | B156: =A156&"Expenditure by Municipal Vote" -> Chart A2 Expenditure by Municipal Vote
A157: Chart A3 | B157: =A157&"Revenue by Standard Classification" -> Chart A3 Revenue by Standard Classification | C157: A2
A158: Chart A4 | B158: =A158&"Expenditure by Standard Classification" -> Chart A4 Expenditure by Standard Classification | C158: A2
A159: Chart A5 | B159: =A159&"Revenue by Major Source (refer 'Minor' source for 'Other Revenue' allocation" -> Chart A5 Revenue by Major Source (refer 'Minor' source for 'Other Revenue' allocation | C159: A3
A160: Chart A6 | B160: =A160&"Revenue by Minor Source (Other)" -> Chart A6 Revenue by Minor Source (Other) | C160: A3
A161: Chart A7 | B161: =A161&"Expenditure by Major Type" -> Chart A7 Expenditure by Major Type | C161: A3
A162: Chart A8 | B162: =A162&"Expenditure by Minor Type (Other)" -> Chart A8 Expenditure by Minor Type (Other) | C162: A3
A163: Chart A9 | B163: =A163&"Capital Expenditure by Municipal Vote/Appropriation (Major)" -> Chart A9 Capital Expenditure by Municipal Vote/Appropriation (Major) | C163: A5
A164: Chart A10 | B164: =A164&"Capital Expenditure by Municipal Vote/Appropriation (Minor)" -> Chart A10 Capital Expenditure by Municipal Vote/Appropriation (Minor) | C164: A5
A165: Chart A11 | B165: =A164&"Capital Expenditure by Standard Classification" -> Chart A10 Capital Expenditure by Standard Classification | C165: A5
A166: Chart A12 | B166: =A166&"Capital expenditure performance trend" -> Chart A12 Capital expenditure performance trend | C166: A5
A167: Chart A13 | B167: =A167&"Capital funding by Source" -> Chart A13 Capital funding by Source | C167: A5
A168: Chart A14 | B168: =A168&"Cash flow trend" -> Chart A14 Cash flow trend | C168: A7
A169: Chart A15 | B169: =A169&"IDP Strategic Objective - Revenue" -> Chart A15 IDP Strategic Objective - Revenue | C169: Table A4
A170: Chart A16 | B170: =A170&"IDP Strategic Objective - Expenditure" -> Chart A16 IDP Strategic Objective - Expenditure | C170: Table A5
A171: Chart A17 | B171: =A171&"IDP Strategic Objective - Capital Expenditure" -> Chart A17 IDP Strategic Objective - Capital Expenditure | C171: Table A6
A172: Chart A18 | B172: =A172&"Debt (borrowing to Total Revenue)" -> Chart A18 Debt (borrowing to Total Revenue) | C172: Table A8
A173: Chart A19 | B173: =A173&"Debtors' trend analysis" -> Chart A19 Debtors' trend analysis | C173: Table A8
A174: Chart A20 | B174: =A174&"Distribution losses" -> Chart A20 Distribution losses | C174: Table A8
A175: Chart A21 | B175: =A175&"Borrowed funding of capital expenditure" -> Chart A21 Borrowed funding of capital expenditure | C175: Table A8
A176: Chart A22 | B176: =A176&"Expenditure analysis (% of Revenue)" -> Chart A22 Expenditure analysis (% of Revenue) | C176: Table A8
A177: Chart A23 | B177: =A177&"Increases in service charges" -> Chart A23 Increases in service charges | C177: Table A10

Sheet Lookup and lists (hidden)
A1: Description | B1: 2007 | C1: 2008 | D1: 2009 | E1: 2010 | F1: 2011 | G1: 2012 | H1: 2013 | I1: 2014 | J1: 2015 | K1: 2016 | L1: 2017 | M1: 2018 | N1: 2019 | O1: 2020 | Q1: Lists | Y1: Grants: | Z1: National - opex | AA1: Provincial - opex | AB1: National - capex | AC1: Provincial - capex
A2: ='Template names'!C2 -> Prior year -1 | B2: 2005/06 | C2: 2006/07 | D2: 2007/08 | E2: =E1-2&"/"&RIGHT(E1,2)-1 -> 2008/9 | F2: 2009/10 | G2: 2010/11 | H2: 2011/12 | I2: 2012/13 | J2: 2013/14 | K2: 2014/15 | L2: 2015/16 | M2: 2016/17 | N2: 2017/18 | O2: 2018/19 | Q2: Yes | R2: <1 | S2: <4 | T2: Market | U2: Land & impr. | V2: Yes | W2: Uniform | X2: Yrs | Z2: Local Government Equitable Share | AA2: Health subsidy | AB2: Municipal Infrastructure Grant (MIG) | AC2: Agriculture
A3: ='Template names'!C3 -> Prior year -2 | B3: 2004/05 | C3: 2005/06 | D3: 2006/07 | E3: =E1-3&"/"&RIGHT(E1,2)-2 -> 2007/8 | F3: 2008/9 | G3: 2009/10 | H3: 2010/11 | I3: 2011/12 | J3: 2012/13 | K3: 2013/14 | L3: 2014/15 | M3: 2015/16 | N3: 2016/17 | O3: 2017/18 | Q3: No | R3: 1 | S3: 4 | T3: Dep.Replace | U3: Land only | V3: No | W3: Variable | X3: Mths | Z3: RSC Levy Replacement | AA3: Ambulance subsidy | AB3: Public Transport and Systems | AC3: Education
A4: ='Template names'!C4 -> Prior year -3 | B4: 2003/04 | C4: 2004/05 | D4: 2005/06 | E4: =E1-4&"/"&RIGHT(E1,2)-3 -> 2006/7 | F4: 2007/8 | G4: 2008/9 | H4: 2009/10 | I4: 2010/11 | J4: 2011/12 | K4: 2012/13 | L4: 2013/14 | M4: 2014/15 | N4: 2015/16 | O4: 2016/17 | R4: 2 | S4: 5 | T4: Other | U4: Other | Z4: Finance Management | AA4: Housing | AB4: Rural Transport Services and Infrastructure | AC4: Health
A5: ='Template names'!C5 -> Year in which budget is being prepared | B5: Current Year 2006/07 | C5: Current Year 2007/08 | D5: Current Year 2008/09 | E5: ="Current Year "& E1-1&"/"&RIGHT(E1,2) -> Current Year 2009/10 | F5: Current Year 2010/11 | G5: Current Year 2011/12 | H5: Current Year 2012/13 | I5: Current Year 2013/14 | J5: Current Year 2014/15 | K5: Current Year 2015/16 | L5: Current Year 2016/17 | M5: Current Year 2017/18 | N5: Current Year 2018/19 | O5: Current Year 2019/20 | R5: 3 | S5: 6 | Z5: Municipal Systems Improvement | AA5: Sport and Recreation | AB5: Regional Bulk Infrastructure | AC5: Housing and Local Government
A6: ='Template names'!C6 -> Year in which budget is being prepared | B6: 2006/07 | C6: 2007/08 | D6: 2008/09 | E6: =E1-1&"/"&RIGHT(E1,2) -> 2009/10 | F6: 2010/11 | G6: 2011/12 | H6: 2012/13 | I6: 2013/14 | J6: 2014/15 | K6: 2015/16 | L6: 2016/17 | M6: 2017/18 | N6: 2018/19 | O6: 2019/20 | R6: 4 | S6: 6-10 | Z6: Water Services Operating Subsidy | AB6: Rural Households Infrastructure | AC6: Other Departments
A7: ='Template names'!C7 -> MTREF name | B7: 2007/08 Medium Term Revenue & Expenditure Framework | C7: 2008/09 Medium Term Revenue & Expenditure Framework | D7: 2009/10 Medium Term Revenue & Expenditure Framework | E7: =E1&"/"&RIGHT(E1,2)+1&" Medium Term Revenue & Expenditure Framework" -> 2010/11 Medium Term Revenue & Expenditure Framework | F7: 2011/12 Medium Term Revenue & Expenditure Framework | G7: 2012/13 Medium Term Revenue & Expenditure Framework | H7: 2013/14 Medium Term Revenue & Expenditure Framework | I7: 2014/15 Medium Term Revenue & Expenditure Framework | J7: 2015/16 Medium Term Revenue & Expenditure Framework | K7: 2016/17 Medium Term Revenue & Expenditure Framework | L7: 2017/18 Medium Term Revenue & Expenditure Framework | M7: 2018/19 Medium Term Revenue & Expenditure Framework | N7: 2019/20 Medium Term Revenue & Expenditure Framework | O7: 2020/21 Medium Term Revenue & Expenditure Framework | R7: 5 | S7: >10 | Z7: Energy Efficiency and Demand Management | AB7: Neighbourhood Development Partnership | AC7: Public Works, Roads, Transport
A8: ='Template names'!C15 -> 1st year of MTREF | B8: Budget Year 2007/08 | C8: Budget Year 2008/09 | D8: Budget Year 2009/10 | E8: ="Budget Year "&E1&"/"&RIGHT(E1,2)+1 -> Budget Year 2010/11 | F8: Budget Year 2011/12 | G8: Budget Year 2012/13 | H8: Budget Year 2013/14 | I8: Budget Year 2014/15 | J8: Budget Year 2015/16 | K8: Budget Year 2016/17 | L8: Budget Year 2017/18 | M8: Budget Year 2018/19 | N8: Budget Year 2019/20 | O8: Budget Year 2020/21 | R8: >5 | Z8: Integrated National Electrification Programme | AB8: 2010 FIFA World Cup Stadiums Development | AC8: Sport and Recreation
A9: ='Template names'!C16 -> 2nd year of MTREF | B9: Budget Year +1 2008/09 | C9: Budget Year +1 2009/10 | D9: Budget Year +1 2010/11 | E9: ="Budget Year +1 "&E1+1&"/"&RIGHT(E1,2)+2 -> Budget Year +1 2011/12 | F9: Budget Year +1 2012/13 | G9: Budget Year +1 2013/14 | H9: Budget Year +1 2014/15 | I9: Budget Year +1 2015/16 | J9: Budget Year +1 2016/17 | K9: Budget Year +1 2017/18 | L9: Budget Year +1 2018/19 | M9: Budget Year +1 2019/20 | N9: Budget Year +1 2020/21 | O9: Budget Year +1 2021/22 | Z9: Municipal Drought Relief
A10: ='Template names'!C17 -> 3rd year of MTREF | B10: Budget Year +2 2009/10 | C10: Budget Year +2 2010/11 | D10: Budget Year +2 2011/12 | E10: ="Budget Year +2 "&E1+2&"/"&RIGHT(E1,2)+3 -> Budget Year +2 2012/13 | F10: Budget Year +2 2013/14 | G10: Budget Year +2 2014/15 | H10: Budget Year +2 2015/16 | I10: Budget Year +2 2016/17 | J10: Budget Year +2 2017/18 | K10: Budget Year +2 2018/19 | L10: Budget Year +2 2019/20 | M10: Budget Year +2 2020/21 | N10: Budget Year +2 2021/22 | O10: Budget Year +2 2022/23 | Z10: 2010 FIFA World Cup Operating
A11: ='Template names'!C18 -> 1st yr of long term forecast | B11: Forecast 2010/11 | C11: Forecast 2011/12 | D11: Forecast 2012/13 | E11: ="Forecast "&E1+3&"/"&RIGHT(E1,2)+4 -> Forecast 2013/14 | F11: Forecast 2014/15 | G11: Forecast 2015/16 | H11: Forecast 2016/17 | I11: Forecast 2017/18 | J11: Forecast 2018/19 | K11: Forecast 2019/20 | L11: Forecast 2020/21 | M11: Forecast 2021/22 | N11: Forecast 2022/23 | O11: Forecast 2023/24 | Z11: Electricity Demand Side Management
A12: ='Template names'!C19 -> Next yr of long term forecast | B12: Forecast 2011/12 | C12: Forecast 2012/13 | D12: Forecast 2013/14 | E12: ="Forecast "&E1+4&"/"&RIGHT(E1,2)+5 -> Forecast 2014/15 | F12: Forecast 2015/16 | G12: Forecast 2016/17 | H12: Forecast 2017/18 | I12: Forecast 2018/19 | J12: Forecast 2019/20 | K12: Forecast 2020/21 | L12: Forecast 2021/22 | M12: Forecast 2022/23 | N12: Forecast 2023/24 | O12: Forecast 2024/25 | Z12: EPWP Incentive
A13: ='Template names'!C20 -> Next yr of long term forecast | B13: Forecast 2012/13 | C13: Forecast 2013/14 | D13: Forecast 2014/15 | E13: ="Forecast "&E1+5&"/"&RIGHT(E1,2)+6 -> Forecast 2015/16 | F13: Forecast 2016/17 | G13: Forecast 2017/18 | H13: Forecast 2018/19 | I13: Forecast 2019/20 | J13: Forecast 2020/21 | K13: Forecast 2021/22 | L13: Forecast 2022/23 | M13: Forecast 2023/24 | N13: Forecast 2024/25 | O13: Forecast 2025/26
A14: ='Template names'!C21 -> Next yr of long term forecast | B14: Forecast 2013/14 | C14: Forecast 2014/15 | D14: Forecast 2015/16 | E14: ="Forecast "&E1+6&"/"&RIGHT(E1,2)+7 -> Forecast 2016/17 | F14: Forecast 2017/18 | G14: Forecast 2018/19 | H14: Forecast 2019/20 | I14: Forecast 2020/21 | J14: Forecast 2021/22 | K14: Forecast 2022/23 | L14: Forecast 2023/24 | M14: Forecast 2024/25 | N14: Forecast 2025/26 | O14: Forecast 2026/27 | Z14: Asset Class | AA14: Asset sub-class
A15: ='Template names'!C22 -> Next yr of long term forecast | B15: Forecast 2014/15 | C15: Forecast 2015/16 | D15: Forecast 2016/17 | E15: ="Forecast "&E1+7&"/"&RIGHT(E1,2)+8 -> Forecast 2017/18 | F15: Forecast 2018/19 | G15: Forecast 2019/20 | H15: Forecast 2020/21 | I15: Forecast 2021/22 | J15: Forecast 2022/23 | K15: Forecast 2023/24 | L15: Forecast 2024/25 | M15: Forecast 2025/26 | N15: Forecast 2026/27 | O15: Forecast 2027/28
A16: ='Template names'!C23 -> Next yr of long term forecast | B16: Forecast 2015/16 | C16: Forecast 2016/17 | D16: Forecast 2017/18 | E16: ="Forecast "&E1+8&"/"&RIGHT(E1,2)+9 -> Forecast 2018/19 | F16: Forecast 2019/20 | G16: Forecast 2020/21 | H16: Forecast 2021/22 | I16: Forecast 2022/23 | J16: Forecast 2023/24 | K16: Forecast 2024/25 | L16: Forecast 2025/26 | M16: Forecast 2026/27 | N16: Forecast 2027/28 | O16: Forecast 2028/29 | Z16: Infrastructure - Road transport | AA16: Roads, Pavements & Bridges
A17: ='Template names'!C24 -> Next yr of long term forecast | B17: Forecast 2016/17 | C17: Forecast 2017/18 | D17: Forecast 2018/19 | E17: ="Forecast "&E1+9&"/"&RIGHT(E1,2)+10 -> Forecast 2019/20 | F17: Forecast 2020/21 | G17: Forecast 2021/22 | H17: Forecast 2022/23 | I17: Forecast 2023/24 | J17: Forecast 2024/25 | K17: Forecast 2025/26 | L17: Forecast 2026/27 | M17: Forecast 2027/28 | N17: Forecast 2028/29 | O17: Forecast 2029/30 | Z17: Infrastructure - Electricity | AA17: Storm water
A18: ='Template names'!C25 -> Next yr of long term forecast | B18: Forecast 2017/18 | C18: Forecast 2018/19 | D18: Forecast 2019/20 | E18: ="Forecast "&E1+10&"/"&RIGHT(E1,2)+11 -> Forecast 2020/21 | F18: Forecast 2021/22 | G18: Forecast 2022/23 | H18: Forecast 2023/24 | I18: Forecast 2024/25 | J18: Forecast 2025/26 | K18: Forecast 2026/27 | L18: Forecast 2027/28 | M18: Forecast 2028/29 | N18: Forecast 2029/30 | O18: Forecast 2030/31 | Z18: Infrastructure - Water | AA18: Generation
A19: ='Template names'!C26 -> Next yr of long term forecast | B19: Forecast 2018/19 | C19: Forecast 2019/20 | D19: Forecast 2020/21 | E19: ="Forecast "&E1+11&"/"&RIGHT(E1,2)+12 -> Forecast 2021/22 | F19: Forecast 2022/23 | G19: Forecast 2023/24 | H19: Forecast 2024/25 | I19: Forecast 2025/26 | J19: Forecast 2026/27 | K19: Forecast 2027/28 | L19: Forecast 2028/29 | M19: Forecast 2029/30 | N19: Forecast 2030/31 | O19: Forecast 2031/32 | Z19: Infrastructure - Sanitation | AA19: Transmission & Reticulation
A20: ='Template names'!C27 -> Next yr of long term forecast | B20: Forecast 2019/20 | C20: Forecast 2020/21 | D20: Forecast 2021/22 | E20: ="Forecast "&E1+12&"/"&RIGHT(E1,2)+13 -> Forecast 2022/23 | F20: Forecast 2023/24 | G20: Forecast 2024/25 | H20: Forecast 2025/26 | I20: Forecast 2026/27 | J20: Forecast 2027/28 | K20: Forecast 2028/29 | L20: Forecast 2029/30 | M20: Forecast 2030/31 | N20: Forecast 2031/32 | O20: Forecast 2032/33 | Z20: Infrastructure - Other | AA20: Street Lighting
A21: ='Template names'!C28 -> Next yr of long term forecast | B21: Forecast 2020/21 | C21: Forecast 2021/22 | D21: Forecast 2022/23 | E21: ="Forecast "&E1+13&"/"&RIGHT(E1,2)+14 -> Forecast 2023/24 | F21: Forecast 2024/25 | G21: Forecast 2025/26 | H21: Forecast 2026/27 | I21: Forecast 2027/28 | J21: Forecast 2028/29 | K21: Forecast 2029/30 | L21: Forecast 2030/31 | M21: Forecast 2031/32 | N21: Forecast 2032/33 | O21: Forecast 2033/34 | Z21: Community | AA21: Dams & Reservoirs
A22: ='Template names'!C29 -> Next yr of long term forecast | B22: Forecast 2021/22 | C22: Forecast 2022/23 | D22: Forecast 2023/24 | E22: ="Forecast "&E1+14&"/"&RIGHT(E1,2)+15 -> Forecast 2024/25 | F22: Forecast 2025/26 | G22: Forecast 2026/27 | H22: Forecast 2027/28 | I22: Forecast 2028/29 | J22: Forecast 2029/30 | K22: Forecast 2030/31 | L22: Forecast 2031/32 | M22: Forecast 2032/33 | N22: Forecast 2033/34 | O22: Forecast 2034/35 | Z22: Heritage Assets | AA22: Water purification
A23: Adjustments Budget | B23: Annual target 2007/08 | C23: Annual target 2008/09 | D23: Annual target 2009/10 | E23: ="Annual target " & E1&"/"&RIGHT(E1,2)+1 -> Annual target 2010/11 | F23: Annual target 2011/12 | G23: Annual target 2012/13 | H23: Annual target 2013/14 | I23: Annual target 2014/15 | J23: Annual target 2015/16 | K23: Annual target 2016/17 | L23: Annual target 2017/18 | M23: Annual target 2018/19 | N23: Annual target 2019/20 | O23: Annual target 2020/21 | Z23: Investment Properties | AA23: Reticulation
A24: =A23 -> Adjustments Budget | B24: Revised target 2007/08 | C24: Revised target 2008/09 | D24: Revised target 2009/10 | E24: ="Revised target "& E1&"/"&RIGHT(E1,2)+1 -> Revised target 2010/11 | F24: Revised target 2011/12 | G24: Revised target 2012/13 | H24: Revised target 2013/14 | I24: Revised target 2014/15 | J24: Revised target 2015/16 | K24: Revised target 2016/17 | L24: Revised target 2017/18 | M24: Revised target 2018/19 | N24: Revised target 2019/20 | O24: Revised target 2020/21 | Z24: Other Assets | AA24: Sewerage purification
A25: NOTE: This sheet should not be directly amended - select headings from sheet 'S' | Z25: Agricultural assets | AA25: Waste Management
Z26: Biological assets | AA26: Transportation
A27: Name link | B27: 62 | Z27: Intangibles | AA27: Gas
A28: Name of Muni | B28: =INDEX(B29:B307,B27,1) -> FS205 Mafube | Z28: Other | AA28: Parks & gardens
B29: Choose name from list | C29: Set name on 'Instructions' sheet | AA29: Sportsfields & stadia
B30: BUF Buffalo City | C30: EC EASTERN CAPE | AA30: Swimming pools
B31: NMA Nelson Mandela Bay | C31: EC EASTERN CAPE | AA31: Community halls
B32: EC101 Dr. Beyers Naude | C32: EC EASTERN CAPE | AA32: Libraries
B33: EC102 Blue Crane Route | C33: EC EASTERN CAPE | AA33: Recreational facilities
B34: EC104 Makana | C34: EC EASTERN CAPE | AA34: Fire, safety & emergency
B35: EC105 Ndlambe | C35: EC EASTERN CAPE | AA35: Security and policing
B36: EC106 Sundays River Valley | C36: EC EASTERN CAPE | AA36: Buses
B37: EC108 Kouga | C37: EC EASTERN CAPE | AA37: Clinics
B38: EC109 Kou-Kamma | C38: EC EASTERN CAPE | AA38: Museums & Art Galleries
B39: DC10 Sarah Baartman | C39: EC EASTERN CAPE | AA39: Cemeteries
B40: EC121 Mbhashe | C40: EC EASTERN CAPE | AA40: Social rental housing
B41: EC122 Mnquma | C41: EC EASTERN CAPE | AA41: Buildings
B42: EC123 Great Kei | C42: EC EASTERN CAPE | AA42: Housing development
B43: EC124 Amahlathi | C43: EC EASTERN CAPE | AA43: General vehicles
B44: EC126 Ngqushwa | C44: EC EASTERN CAPE | AA44: Specialised vehicles - Refuse
B45: EC129 Raymond Mhlaba | C45: EC EASTERN CAPE | AA45: Specialised vehicles - Fire
B46: DC12 Amathole | C46: EC EASTERN CAPE | AA46: Specialised vehicles - Conservancy
B47: EC131 Inxuba Yethemba | C47: EC EASTERN CAPE | AA47: Specialised vehicles - Ambulances
B48: EC135 Intsika Yethu | C48: EC EASTERN CAPE | AA48: Plant & equipment
B49: EC136 Emalahleni (Ec) | C49: EC EASTERN CAPE | AA49: Computers - hardware/equipment
B50: EC137 Engcobo | C50: EC EASTERN CAPE | AA50: Furniture and other office equipment
B51: EC138 Sakhisizwe | C51: EC EASTERN CAPE | AA51: Abattoirs
B52: EC139 Enoch Mgijima | C52: EC EASTERN CAPE | AA52: Markets
B53: DC13 Chris Hani | C53: EC EASTERN CAPE | AA53: Civic Land and Buildings
B54: EC141 Elundini | C54: EC EASTERN CAPE | AA54: Other Buildings
B55: EC142 Senqu | C55: EC EASTERN CAPE | AA55: Other Land
B56: EC145 Walter Sisulu | C56: EC EASTERN CAPE | AA56: Surplus Assets - (Investment or Inventory)
B57: DC14 Joe Gqabi | C57: EC EASTERN CAPE | AA57: Computers - software & programming
B58: EC153 Ngquza Hills | C58: EC EASTERN CAPE | AA58: Other
B59: EC154 Port St Johns | C59: EC EASTERN CAPE
B60: EC155 Nyandeni | C60: EC EASTERN CAPE | Z60: SA16 - Investments
B61: EC156 Mhlontlo | C61: EC EASTERN CAPE | Z61: Security | AA61: Interest rate
B62: EC157 King Sabata Dalindyebo | C62: EC EASTERN CAPE | Z62: Yes | AA62: Fixed
B63: DC15 O .R. Tambo | C63: EC EASTERN CAPE | Z63: No | AA63: Variable
B64: EC441 Matatiele | C64: EC EASTERN CAPE
B65: EC442 Umzimvubu | C65: EC EASTERN CAPE
B66: EC443 Mbizana | C66: EC EASTERN CAPE | Z66: SA36, SA37 - Capital projects
B67: EC444 Ntabankulu | C67: EC EASTERN CAPE | Z67: Yes
B68: DC44 Alfred Nzo | C68: EC EASTERN CAPE | Z68: No
B69: MAN Mangaung | C69: FS FREE STATE
B70: FS161 Letsemeng | C70: FS FREE STATE
B71: FS162 Kopanong | C71: FS FREE STATE
B72: FS163 Mohokare | C72: FS FREE STATE
B73: DC16 Xhariep | C73: FS FREE STATE
B74: FS181 Masilonyana | C74: FS FREE STATE
B75: FS182 Tokologo | C75: FS FREE STATE
B76: FS183 Tswelopele | C76: FS FREE STATE
B77: FS184 Matjhabeng | C77: FS FREE STATE
B78: FS185 Nala | C78: FS FREE STATE
B79: DC18 Lejweleputswa | C79: FS FREE STATE
B80: FS191 Setsoto | C80: FS FREE STATE
B81: FS192 Dihlabeng | C81: FS FREE STATE
B82: FS193 Nketoana | C82: FS FREE STATE
B83: FS194 Maluti-a-Phofung | C83: FS FREE STATE
B84: FS195 Phumelela | C84: FS FREE STATE
B85: FS196 Mantsopa | C85: FS FREE STATE
B86: DC19 Thabo Mofutsanyana | C86: FS FREE STATE
B87: FS201 Moqhaka | C87: FS FREE STATE
B88: FS203 Ngwathe | C88: FS FREE STATE
B89: FS204 Metsimaholo | C89: FS FREE STATE
B90: FS205 Mafube | C90: FS FREE STATE
B91: DC20 Fezile Dabi | C91: FS FREE STATE
B92: EKU Ekurhuleni Metro | C92: GT GAUTENG
B93: JHB City Of Johannesburg | C93: GT GAUTENG
B94: TSH City Of Tshwane | C94: GT GAUTENG
B95: GT421 Emfuleni | C95: GT GAUTENG
B96: GT422 Midvaal | C96: GT GAUTENG
B97: GT423 Lesedi | C97: GT GAUTENG
B98: DC42 Sedibeng | C98: GT GAUTENG
B99: GT481 Mogale City | C99: GT GAUTENG
B100: GT484 Merafong City | C100: GT GAUTENG
B101: GT485 GT485 | C101: GT GAUTENG
B102: DC48 West Rand | C102: GT GAUTENG
B103: ETH eThekwini | C103: KZN KWAZULU-NATAL
B104: KZN212 Umdoni | C104: KZN KWAZULU-NATAL
B105: KZN213 Umzumbe | C105: KZN KWAZULU-NATAL
B106: KZN214 uMuziwabantu | C106: KZN KWAZULU-NATAL
B107: KZN216 Ray Nkonyeni | C107: KZN KWAZULU-NATAL
B108: DC21 Ugu | C108: KZN KWAZULU-NATAL
B109: KZN221 uMshwathi | C109: KZN KWAZULU-NATAL
B110: KZN222 uMngeni | C110: KZN KWAZULU-NATAL
B111: KZN223 Mpofana | C111: KZN KWAZULU-NATAL
B112: KZN224 Impendle | C112: KZN KWAZULU-NATAL
B113: KZN225 Msunduzi | C113: KZN KWAZULU-NATAL
B114: KZN226 Mkhambathini | C114: KZN KWAZULU-NATAL
B115: KZN227 Richmond | C115: KZN KWAZULU-NATAL
B116: DC22 uMgungundlovu | C116: KZN KWAZULU-NATAL
B117: KZN235 Okhahlamba | C117: KZN KWAZULU-NATAL
B118: KZN237 Inkosi Langalibalele | C118: KZN KWAZULU-NATAL
B119: KZN238 Alfred Duma | C119: KZN KWAZULU-NATAL
B120: DC23 Uthukela | C120: KZN KWAZULU-NATAL
B121: KZN241 Endumeni | C121: KZN KWAZULU-NATAL
B122: KZN242 Nquthu | C122: KZN KWAZULU-NATAL
B123: KZN244 Msinga | C123: KZN KWAZULU-NATAL
B124: KZN245 Umvoti | C124: KZN KWAZULU-NATAL
B125: DC24 Umzinyathi | C125: KZN KWAZULU-NATAL
B126: KZN252 Newcastle | C126: KZN KWAZULU-NATAL
B127: KZN253 eMadlangeni | C127: KZN KWAZULU-NATAL
B128: KZN254 Dannhauser | C128: KZN KWAZULU-NATAL
B129: DC25 Amajuba | C129: KZN KWAZULU-NATAL
B130: KZN261 eDumbe | C130: KZN KWAZULU-NATAL
B131: KZN262 uPhongolo | C131: KZN KWAZULU-NATAL
B132: KZN263 Abaqulusi | C132: KZN KWAZULU-NATAL
B133: KZN265 Nongoma | C133: KZN KWAZULU-NATAL
B134: KZN266 Ulundi | C134: KZN KWAZULU-NATAL
B135: DC26 Zululand | C135: KZN KWAZULU-NATAL
B136: KZN271 Umhlabuyalingana | C136: KZN KWAZULU-NATAL
B137: KZN272 Jozini | C137: KZN KWAZULU-NATAL
B138: KZN275 Mtubatuba | C138: KZN KWAZULU-NATAL
B139: KZN276 The New Big 5 False Bay | C139: KZN KWAZULU-NATAL
B140: DC27 Umkhanyakude | C140: KZN KWAZULU-NATAL
B141: KZN281 Mfolozi | C141: KZN KWAZULU-NATAL
B142: KZN282 uMhlathuze | C142: KZN KWAZULU-NATAL
B143: KZN284 uMlalazi | C143: KZN KWAZULU-NATAL
B144: KZN285 Mthonjaneni | C144: KZN KWAZULU-NATAL
B145: KZN286 Nkandla | C145: KZN KWAZULU-NATAL
B146: DC28 King Cetshwayo | C146: KZN KWAZULU-NATAL
B147: KZN291 Mandeni | C147: KZN KWAZULU-NATAL
B148: KZN292 KwaDukuza | C148: KZN KWAZULU-NATAL
B149: KZN293 Ndwedwe | C149: KZN KWAZULU-NATAL
B150: KZN294 Maphumulo | C150: KZN KWAZULU-NATAL
B151: DC29 iLembe | C151: KZN KWAZULU-NATAL
B152: KZN433 Greater Kokstad | C152: KZN KWAZULU-NATAL
B153: KZN434 Ubuhlebezwe | C153: KZN KWAZULU-NATAL
B154: KZN435 Umzimkhulu | C154: KZN KWAZULU-NATAL
B155: KZN436 Dr Nkosazana Dlamini Zuma | C155: KZN KWAZULU-NATAL
B156: DC43 Harry Gwala | C156: KZN KWAZULU-NATAL
B157: LIM331 Greater Giyani | C157: LIM LIMPOPO
B158: LIM332 Greater Letaba | C158: LIM LIMPOPO
B159: LIM333 Greater Tzaneen | C159: LIM LIMPOPO
B160: LIM334 Ba-Phalaborwa | C160: LIM LIMPOPO
B161: LIM335 Maruleng | C161: LIM LIMPOPO
B162: DC33 Mopani | C162: LIM LIMPOPO
B163: LIM341 Musina | C163: LIM LIMPOPO
B164: LIM343 Thulamela | C164: LIM LIMPOPO
B165: LIM344 Makhado | C165: LIM LIMPOPO
B166: LIM345 LIM345 | C166: LIM LIMPOPO
B167: DC34 Vhembe | C167: LIM LIMPOPO
B168: LIM351 Blouberg | C168: LIM LIMPOPO
B169: LIM353 Molemole | C169: LIM LIMPOPO
B170: LIM354 Polokwane | C170: LIM LIMPOPO
B171: LIM355 Lepelle-Nkumpi | C171: LIM LIMPOPO
B172: DC35 Capricorn | C172: LIM LIMPOPO
B173: LIM361 Thabazimbi | C173: LIM LIMPOPO
B174: LIM362 Lephalale | C174: LIM LIMPOPO
B175: LIM366 Bela Bela | C175: LIM LIMPOPO
B176: LIM367 Mogalakwena | C176: LIM LIMPOPO
B177: LIM368 LIM368 | C177: LIM LIMPOPO
B178: DC36 Waterberg | C178: LIM LIMPOPO
B179: LIM471 Ephraim Mogale | C179: LIM LIMPOPO
B180: LIM472 Elias Motsoaledi | C180: LIM LIMPOPO
B181: LIM473 Makhuduthamaga | C181: LIM LIMPOPO
B182: LIM476 LIM476 | C182: LIM LIMPOPO
B183: DC47 Sekhukhune | C183: LIM LIMPOPO
B184: MP301 Albert Luthuli | C184: MP MPUMALANGA
B185: MP302 Msukaligwa | C185: MP MPUMALANGA
B186: MP303 Mkhondo | C186: MP MPUMALANGA
B187: MP304 Pixley Ka Seme (MP) | C187: MP MPUMALANGA
B188: MP305 Lekwa | C188: MP MPUMALANGA
B189: MP306 Dipaleseng | C189: MP MPUMALANGA
B190: MP307 Govan Mbeki | C190: MP MPUMALANGA
B191: DC30 Gert Sibande | C191: MP MPUMALANGA
B192: MP311 Victor Khanye | C192: MP MPUMALANGA
B193: MP312 Emalahleni (Mp) | C193: MP MPUMALANGA
B194: MP313 Steve Tshwete | C194: MP MPUMALANGA
B195: MP314 Emakhazeni | C195: MP MPUMALANGA
B196: MP315 Thembisile Hani | C196: MP MPUMALANGA
B197: MP316 Dr J.S. Moroka | C197: MP MPUMALANGA
B198: DC31 Nkangala | C198: MP MPUMALANGA
B199: MP321 Thaba Chweu | C199: MP MPUMALANGA
B200: MP324 Nkomazi | C200: MP MPUMALANGA
... 87 more rows

Sheet Org structure
A1: Organisational Structure Votes | C1: Organisational Structure Sub-Votes | E1: Display Sub-Votes
A2: =B2&" - "&C2 -> Vote 1 - OFFICE OF THE MAYOR | B2: Vote 1 | C2: OFFICE OF THE MAYOR
A3: =B13&" - "& C13 -> Vote 2 - OFFICE OF THE SPEAKER | B3: 1.1 | C3: Office of the mayor | D3: =CONCATENATE(B3, " - ", C3) -> 1.1 - Office of the mayor | E3: 1,1 - Office of the mayor
A4: =B24&" - "&C24 -> Vote 3 - OFFICE OF THE MUNICIPAL MANAGER | B4: 1.2 | C4: [Name of sub-vote] | D4: 1.2 - [Name of sub-vote]
A5: =B35&" - "&C35 -> Vote 4 - COMMUNITY SERVICES | B5: 1.3 | C5: [Name of sub-vote] | D5: 1.3 - [Name of sub-vote]
A6: =B46&" - "&C46 -> Vote 5 - CORPORATE SERVICES | B6: 1.4 | C6: [Name of sub-vote] | D6: 1.4 - [Name of sub-vote]
A7: =B57&" - "&C57 -> Vote 6 - FINANCIAL SERVICES | B7: 1.5 | C7: [Name of sub-vote] | D7: 1.5 - [Name of sub-vote]
A8: =B68&" - "&C68 -> Vote 7 - INFRASTRUCTURE SERVICES | B8: 1.6 | C8: [Name of sub-vote] | D8: 1.6 - [Name of sub-vote]
A9: =B79&" - "&C79 -> Vote 8 - SERVICE DELIVERY AND PUBLIC SAFETY | B9: 1.7 | C9: [Name of sub-vote] | D9: 1.7 - [Name of sub-vote]
A10: =B90&" - "&C90 -> Vote 9 - [NAME OF VOTE 9] | B10: 1.8 | C10: [Name of sub-vote] | D10: 1.8 - [Name of sub-vote]
A11: =B101&" - "&C101 -> Vote 10 - [NAME OF VOTE 10] | B11: 1.9 | C11: [Name of sub-vote] | D11: 1.9 - [Name of sub-vote]
A12: =B112&" - "&C112 -> Vote 11 - [NAME OF VOTE 11] | B12: 1.10 | C12: [Name of sub-vote] | D12: 1.10 - [Name of sub-vote]
A13: =B123&" - "&C123 -> Vote 12 - [NAME OF VOTE 12] | B13: Vote 2 | C13: OFFICE OF THE SPEAKER
A14: =B134&" - "&C134 -> Vote 13 - [NAME OF VOTE 13] | B14: 2.1 | C14: Office of the speaker | D14: =CONCATENATE(B14, " - ", C14) -> 2.1 - Office of the speaker | E14: 2,1 - Office of the speaker
A15: =B145&" - "&C145 -> Vote 14 - [NAME OF VOTE 14] | B15: 2.2 | C15: [Name of sub-vote] | D15: 2.2 - [Name of sub-vote]
A16: =B156&" - "&C156 -> Vote 15 - [NAME OF VOTE 15] | B16: 2.3 | C16: [Name of sub-vote] | D16: 2.3 - [Name of sub-vote]
B17: 2.4 | C17: [Name of sub-vote] | D17: 2.4 - [Name of sub-vote]
B18: 2.5 | C18: [Name of sub-vote] | D18: 2.5 - [Name of sub-vote]
B19: 2.6 | C19: [Name of sub-vote] | D19: 2.6 - [Name of sub-vote]
B20: 2.7 | C20: [Name of sub-vote] | D20: 2.7 - [Name of sub-vote]
B21: 2.8 | C21: [Name of sub-vote] | D21: 2.8 - [Name of sub-vote]
B22: 2.9 | C22: [Name of sub-vote] | D22: 2.9 - [Name of sub-vote]
B23: 2.10 | C23: [Name of sub-vote] | D23: 2.10 - [Name of sub-vote]
B24: Vote 3 | C24: OFFICE OF THE MUNICIPAL MANAGER
B25: 3.1 | C25: Municipal Manager Administration | D25: =CONCATENATE(B25, " - ", C25) -> 3.1 - Municipal Manager Administration | E25: 3,1 - Municipal Manager Administration
B26: 3.2 | C26: Internal Audit | D26: 3.2 - Internal Audit | E26: 3,2 - Internal Audit
B27: 3.3 | C27: PMS/IDP | D27: 3.3 - PMS/IDP | E27: 3,3 - PMS/IDP
B28: 3.4 | C28: Information Technology | D28: 3.4 - Information Technology | E28: 3,4 - Information Technology
B29: 3.5 | C29: Villiers | D29: 3.5 - Villiers | E29: 3,5 - Villiers
B30: 3.6 | C30: Tweeling | D30: 3.6 - Tweeling | E30: 3,6 - Tweeling
B31: 3.7 | C31: Cornelia | D31: 3.7 - Cornelia | E31: 3,7 - Cornelia
B32: 3.8 | C32: Local Economic Development | D32: 3.8 - Local Economic Development | E32: 3,8 - Local Economic Development
B33: 3.9 | C33: Town Planning | D33: 3.9 - Town Planning | E33: 3,9 - Town Planning
B34: 3.10 | C34: [Name of sub-vote] | D34: 3.10 - [Name of sub-vote]
B35: Vote 4 | C35: COMMUNITY SERVICES
B36: 4.1 | C36: Enviromental Management | D36: =CONCATENATE(B36, " - ", C36) -> 4.1 - Enviromental Management | E36: 4,1 - Enviromental Management
B37: 4.2 | C37: Social Development | D37: 4.2 - Social Development | E37: 4,2 - Social Development
B38: 4.3 | C38: Local Economic Development | D38: 4.3 - Local Economic Development | E38: 4,3 - Local Economic Development
B39: 4.4 | C39: [Name of sub-vote] | D39: 4.4 - [Name of sub-vote]
B40: 4.5 | C40: [Name of sub-vote] | D40: 4.5 - [Name of sub-vote]
B41: 4.6 | C41: [Name of sub-vote] | D41: 4.6 - [Name of sub-vote]
B42: 4.7 | C42: [Name of sub-vote] | D42: 4.7 - [Name of sub-vote]
B43: 4.8 | C43: [Name of sub-vote] | D43: 4.8 - [Name of sub-vote]
B44: 4.9 | C44: [Name of sub-vote] | D44: 4.9 - [Name of sub-vote]
B45: 4.10 | C45: [Name of sub-vote] | D45: 4.10 - [Name of sub-vote]
B46: Vote 5 | C46: CORPORATE SERVICES
B47: 5.1 | C47: Administration and Legal | D47: =CONCATENATE(B47, " - ", C47) -> 5.1 - Administration and Legal | E47: 5,1 - Administration and Legal
B48: 5.2 | C48: Human Resources | D48: 5.2 - Human Resources | E48: 5,2 - Human Resources
B49: 5.3 | C49: Property and Ground Management | D49: 5.3 - Property and Ground Management | E49: 5,3 - Property and Ground Management
B50: 5.4 | C50: Security Services | D50: 5.4 - Security Services | E50: 5,4 - Security Services
B51: 5.5 | C51: [Name of sub-vote] | D51: 5.5 - [Name of sub-vote]
B52: 5.6 | C52: [Name of sub-vote] | D52: 5.6 - [Name of sub-vote]
B53: 5.7 | C53: [Name of sub-vote] | D53: 5.7 - [Name of sub-vote]
B54: 5.8 | C54: [Name of sub-vote] | D54: 5.8 - [Name of sub-vote]
B55: 5.9 | C55: [Name of sub-vote] | D55: 5.9 - [Name of sub-vote]
B56: 5.10 | C56: [Name of sub-vote] | D56: 5.10 - [Name of sub-vote]
B57: Vote 6 | C57: FINANCIAL SERVICES
B58: 6.1 | C58: Revenue and Budget Management | D58: =CONCATENATE(B58, " - ", C58) -> 6.1 - Revenue and Budget Management | E58: 6,1 - Revenue and Budget Management
B59: 6.2 | C59: Budget Management | D59: 6.2 - Budget Management | E59: 6,2 - Budget Management
B60: 6.3 | C60: Expenditure Management | D60: 6.3 - Expenditure Management | E60: 6,3 - Expenditure Management
B61: 6.4 | C61: Supply Chain Management | D61: 6.4 - Supply Chain Management | E61: 6,4 - Supply Chain Management
B62: 6.5 | C62: Financial Accounting | D62: 6.5 - Financial Accounting | E62: 6,5 - Financial Accounting
B63: 6.6 | C63: Revenue & Budget | D63: 6.6 - Revenue & Budget | E63: 6,6 - Revenue & Budget
B64: 6.7 | C64: SCM & Expenditure | D64: 6.7 - SCM & Expenditure | E64: 6,7 - SCM & Expenditure
B65: 6.8 | C65: [Name of sub-vote] | D65: 6.8 - [Name of sub-vote]
B66: 6.9 | C66: [Name of sub-vote] | D66: 6.9 - [Name of sub-vote]
B67: 6.10 | C67: [Name of sub-vote] | D67: 6.10 - [Name of sub-vote]
B68: Vote 7 | C68: INFRASTRUCTURE SERVICES
B69: 7.1 | C69: Town Planning | D69: =CONCATENATE(B69, " - ", C69) -> 7.1 - Town Planning | E69: 7,1 - Town Planning
B70: 7.2 | C70: Project Management Unit | D70: 7.2 - Project Management Unit | E70: 7,2 - Project Management Unit
B71: 7.3 | C71: Roads and Stormwater | D71: 7.3 - Roads and Stormwater | E71: 7,3 - Roads and Stormwater
B72: 7.4 | C72: Electricity and Mechanical | D72: 7.4 - Electricity and Mechanical | E72: 7,4 - Electricity and Mechanical
B73: 7.5 | C73: Water and Sanitation | D73: 7.5 - Water and Sanitation | E73: 7,5 - Water and Sanitation
B74: 7.6 | C74: Water testing | D74: 7.6 - Water testing | E74: 7,6 - Water testing
B75: 7.7 | C75: Pump and Electrical Maintenance | D75: 7.7 - Pump and Electrical Maintenance | E75: 7,7 - Pump and Electrical Maintenance
B76: 7.8 | C76: Other | D76: 7.8 - Other
B77: 7.9 | C77: [Name of sub-vote] | D77: 7.9 - [Name of sub-vote]
B78: 7.10 | C78: [Name of sub-vote] | D78: 7.10 - [Name of sub-vote]
B79: Vote 8 | C79: SERVICE DELIVERY AND PUBLIC SAFETY
B80: 8.1 | C80: Villiers | D80: =CONCATENATE(B80, " - ", C80) -> 8.1 - Villiers | E80: 8,1 - Villiers
B81: 8.2 | C81: Tweeling | D81: 8.2 - Tweeling | E81: 8,2 - Tweeling
B82: 8.3 | C82: Cornelia | D82: 8.3 - Cornelia | E82: 8,3 - Cornelia
B83: 8.4 | C83: Public Safety | D83: 8.4 - Public Safety | E83: 8,4 - Public Safety
B84: 8.5 | C84: [Name of sub-vote] | D84: 8.5 - [Name of sub-vote]
B85: 8.6 | C85: [Name of sub-vote] | D85: 8.6 - [Name of sub-vote]
B86: 8.7 | C86: [Name of sub-vote] | D86: 8.7 - [Name of sub-vote]
B87: 8.8 | C87: [Name of sub-vote] | D87: 8.8 - [Name of sub-vote]
B88: 8.9 | C88: [Name of sub-vote] | D88: 8.9 - [Name of sub-vote]
B89: 8.10 | C89: [Name of sub-vote] | D89: 8.10 - [Name of sub-vote]
B90: Vote 9 | C90: [NAME OF VOTE 9]
B91: 9.1 | C91: [Name of sub-vote] | D91: =CONCATENATE(B91, " - ", C91) -> 9.1 - [Name of sub-vote] | E91: 9.1 - [Name of sub-vote]
B92: 9.2 | C92: [Name of sub-vote] | D92: 9.2 - [Name of sub-vote]
B93: 9.3 | C93: [Name of sub-vote] | D93: 9.3 - [Name of sub-vote]
B94: 9.4 | C94: [Name of sub-vote] | D94: 9.4 - [Name of sub-vote]
B95: 9.5 | C95: [Name of sub-vote] | D95: 9.5 - [Name of sub-vote]
B96: 9.6 | C96: [Name of sub-vote] | D96: 9.6 - [Name of sub-vote]
B97: 9.7 | C97: [Name of sub-vote] | D97: 9.7 - [Name of sub-vote]
B98: 9.8 | C98: [Name of sub-vote] | D98: 9.8 - [Name of sub-vote]
B99: 9.9 | C99: [Name of sub-vote] | D99: 9.9 - [Name of sub-vote]
B100: 9.10 | C100: [Name of sub-vote] | D100: 9.10 - [Name of sub-vote]
B101: Vote 10 | C101: [NAME OF VOTE 10]
B102: 10.1 | C102: [Name of sub-vote] | D102: =CONCATENATE(B102, " - ", C102) -> 10.1 - [Name of sub-vote] | E102: 10.1 - [Name of sub-vote]
B103: 10.2 | C103: [Name of sub-vote] | D103: 10.2 - [Name of sub-vote]
B104: 10.3 | C104: [Name of sub-vote] | D104: 10.3 - [Name of sub-vote]
B105: 10.4 | C105: [Name of sub-vote] | D105: 10.4 - [Name of sub-vote]
B106: 10.5 | C106: [Name of sub-vote] | D106: 10.5 - [Name of sub-vote]
B107: 10.6 | C107: [Name of sub-vote] | D107: 10.6 - [Name of sub-vote]
B108: 10.7 | C108: [Name of sub-vote] | D108: 10.7 - [Name of sub-vote]
B109: 10.8 | C109: [Name of sub-vote] | D109: 10.8 - [Name of sub-vote]
B110: 10.9 | C110: [Name of sub-vote] | D110: 10.9 - [Name of sub-vote]
B111: 10.10 | C111: [Name of sub-vote] | D111: 10.10 - [Name of sub-vote]
B112: Vote 11 | C112: [NAME OF VOTE 11]
B113: 11.1 | C113: [Name of sub-vote] | D113: =CONCATENATE(B113, " - ", C113) -> 11.1 - [Name of sub-vote] | E113: 11.1 - [Name of sub-vote]
B114: 11.2 | C114: [Name of sub-vote] | D114: 11.2 - [Name of sub-vote]
B115: 11.3 | C115: [Name of sub-vote] | D115: 11.3 - [Name of sub-vote]
B116: 11.4 | C116: [Name of sub-vote] | D116: 11.4 - [Name of sub-vote]
B117: 11.5 | C117: [Name of sub-vote] | D117: 11.5 - [Name of sub-vote]
B118: 11.6 | C118: [Name of sub-vote] | D118: 11.6 - [Name of sub-vote]
B119: 11.7 | C119: [Name of sub-vote] | D119: 11.7 - [Name of sub-vote]
B120: 11.8 | C120: [Name of sub-vote] | D120: 11.8 - [Name of sub-vote]
B121: 11.9 | C121: [Name of sub-vote] | D121: 11.9 - [Name of sub-vote]
B122: 11.10 | C122: [Name of sub-vote] | D122: 11.10 - [Name of sub-vote]
B123: Vote 12 | C123: [NAME OF VOTE 12]
B124: 12.1 | C124: [Name of sub-vote] | D124: =CONCATENATE(B124, " - ", C124) -> 12.1 - [Name of sub-vote] | E124: 12.1 - [Name of sub-vote]
B125: 12.2 | C125: [Name of sub-vote] | D125: 12.2 - [Name of sub-vote]
B126: 12.3 | C126: [Name of sub-vote] | D126: 12.3 - [Name of sub-vote]
B127: 12.4 | C127: [Name of sub-vote] | D127: 12.4 - [Name of sub-vote]
B128: 12.5 | C128: [Name of sub-vote] | D128: 12.5 - [Name of sub-vote]
B129: 12.6 | C129: [Name of sub-vote] | D129: 12.6 - [Name of sub-vote]
B130: 12.7 | C130: [Name of sub-vote] | D130: 12.7 - [Name of sub-vote]
B131: 12.8 | C131: [Name of sub-vote] | D131: 12.8 - [Name of sub-vote]
B132: 12.9 | C132: [Name of sub-vote] | D132: 12.9 - [Name of sub-vote]
B133: 12.10 | C133: [Name of sub-vote] | D133: 12.10 - [Name of sub-vote]
B134: Vote 13 | C134: [NAME OF VOTE 13]
B135: 13.1 | C135: [Name of sub-vote] | D135: =CONCATENATE(B135, " - ", C135) -> 13.1 - [Name of sub-vote] | E135: 13.1 - [Name of sub-vote]
B136: 13.2 | C136: [Name of sub-vote] | D136: 13.2 - [Name of sub-vote]
B137: 13.3 | C137: [Name of sub-vote] | D137: 13.3 - [Name of sub-vote]
B138: 13.4 | C138: [Name of sub-vote] | D138: 13.4 - [Name of sub-vote]
B139: 13.5 | C139: [Name of sub-vote] | D139: 13.5 - [Name of sub-vote]
B140: 13.6 | C140: [Name of sub-vote] | D140: 13.6 - [Name of sub-vote]
B141: 13.7 | C141: [Name of sub-vote] | D141: 13.7 - [Name of sub-vote]
B142: 13.8 | C142: [Name of sub-vote] | D142: 13.8 - [Name of sub-vote]
B143: 13.9 | C143: [Name of sub-vote] | D143: 13.9 - [Name of sub-vote]
B144: 13.10 | C144: [Name of sub-vote] | D144: 13.10 - [Name of sub-vote]
B145: Vote 14 | C145: [NAME OF VOTE 14]
B146: 14.1 | C146: [Name of sub-vote] | D146: =CONCATENATE(B146, " - ", C146) -> 14.1 - [Name of sub-vote] | E146: 14.1 - [Name of sub-vote]
B147: 14.2 | C147: [Name of sub-vote] | D147: 14.2 - [Name of sub-vote]
B148: 14.3 | C148: [Name of sub-vote] | D148: 14.3 - [Name of sub-vote]
B149: 14.4 | C149: [Name of sub-vote] | D149: 14.4 - [Name of sub-vote]
B150: 14.5 | C150: [Name of sub-vote] | D150: 14.5 - [Name of sub-vote]
B151: 14.6 | C151: [Name of sub-vote] | D151: 14.6 - [Name of sub-vote]
B152: 14.7 | C152: [Name of sub-vote] | D152: 14.7 - [Name of sub-vote]
B153: 14.8 | C153: [Name of sub-vote] | D153: 14.8 - [Name of sub-vote]
B154: 14.9 | C154: [Name of sub-vote] | D154: 14.9 - [Name of sub-vote]
B155: 14.10 | C155: [Name of sub-vote] | D155: 14.10 - [Name of sub-vote]
B156: Vote 15 | C156: [NAME OF VOTE 15]
B157: 15.1 | C157: [Name of sub-vote] | D157: =CONCATENATE(B157, " - ", C157) -> 15.1 - [Name of sub-vote] | E157: 15.1 - [Name of sub-vote]
B158: 15.2 | C158: [Name of sub-vote] | D158: 15.2 - [Name of sub-vote]
B159: 15.3 | C159: [Name of sub-vote] | D159: 15.3 - [Name of sub-vote]
B160: 15.4 | C160: [Name of sub-vote] | D160: 15.4 - [Name of sub-vote]
B161: 15.5 | C161: [Name of sub-vote] | D161: 15.5 - [Name of sub-vote]
B162: 15.6 | C162: [Name of sub-vote] | D162: 15.6 - [Name of sub-vote]
B163: 15.7 | C163: [Name of sub-vote] | D163: 15.7 - [Name of sub-vote]
B164: 15.8 | C164: [Name of sub-vote] | D164: 15.8 - [Name of sub-vote]
B165: 15.9 | C165: [Name of sub-vote] | D165: 15.9 - [Name of sub-vote]
B166: 15.10 | C166: [Name of sub-vote] | D166: 15.10 - [Name of sub-vote]

Sheet Contacts
A1: =muni&" - "&" Contact Information" -> FS205 Mafube - Contact Information
A3: A. GENERAL INFORMATION
A4: Municipality | B4: =muni -> FS205 Mafube | C4: =IF(B4="Choose name from List","Set name on 'Instructions' sheet", "") -> 
A6: Grade | C6: 1 Grade in terms of the Remuneration of Public Office Bearers Act.
A8: Province | B8: =IF(B4>" ",VLOOKUP(B4,'Lookup and lists'!B29:C307,2, FALSE)," ") -> FS FREE STATE
A10: Web Address
A12: e-mail Address | B12: info@mafube.org.za
A14: B. CONTACT INFORMATION
A15: Postal address:
A16: P.O. Box | B16: P.O. BOX 2
A17: City / Town | B17: FRANKFORT
A18: Postal Code | B18: 9830
A20: Street address
A21: Building | B21: 64
A22: Street No. & Name | B22: JJ HADEBE STREET
A23: City / Town | B23: FRANKFORT
A24: Postal Code | B24: 9830
A26: General Contacts
A27: Telephone number | B27: 0588139700
A28: Fax number | B28: 0588133072
A30: C. POLITICAL LEADERSHIP
A31: Speaker: | C31: Secretary/PA to the Speaker:
A32: Name | B32: Mrs. Nomasonto Motaung | C32: Name | D32: Ms. Cathrine Kok
A33: Telephone number | B33: 0588139717 | C33: Telephone number | D33: 0588139717
A34: Cell number | B34: 0826407029 | C34: Cell number
A35: Fax number | B35: 0588133072 | C35: Fax number | D35: 0588133072
A36: E-mail address | B36: sonto.malindi@webmail.co.za | C36: E-mail address
A38: Mayor/Executive Mayor: | C38: Secretary/PA to the Mayor/Executive Mayor:
A39: Name | B39: Cllr. J.E. Sigasa | C39: Name | D39: Ms. Nhlapo Lindiwe
A40: Telephone number | B40: 0588139715 | C40: Telephone number | D40: 0588139715
A41: Cell number | B41: 0827875112 | C41: Cell number | D41: 0737070553
A42: Fax number | B42: 0588139715 | C42: Fax number | D42: 0588133072
A43: E-mail address | B43: sigasaj@webmail.co.za | C43: E-mail address | D43: litsoako@mafubemunicipality.gov.za
A45: Deputy Mayor/Executive Mayor: | C45: Secretary/PA to the Deputy Mayor/Executive Mayor:
A46: Name | C46: Name
A47: Telephone number | C47: Telephone number
A48: Cell number | C48: Cell number
A49: Fax number | C49: Fax number
A50: E-mail address | C50: E-mail address
A52: D. MANAGEMENT LEADERSHIP
A53: Municipal Manager: | C53: Secretary/PA to the Municipal Manager:
A54: Name | B54: Mr. N.A. Hlubi (Acting) | C54: Name | D54: Ms. Mando Mahloane
A55: Telephone number | B55: 0588139702 | C55: Telephone number | D55: 0588139702
A56: Cell number | B56: 0824967615 | C56: Cell number | D56: 0837251873
A57: Fax number | B57: 0588133072 | C57: Fax number | D57: 0588133072
A58: E-mail address | B58: andrewh@mafubemunicipality.gov.za | C58: E-mail address | D58: lindiwe@mafube.gov.za
A60: Chief Financial Officer | C60: Secretary/PA to the Chief Financial Officer
A61: Name | B61: Mrs. Pinky Rametse (Acting) | C61: Name
A62: Telephone number | B62: 0588139703 | C62: Telephone number
A63: Cell number | C63: Cell number
A64: Fax number | B64: 0588133072 | C64: Fax number
A65: E-mail address | B65: pinkynthuping@gmail.com | C65: E-mail address
A67: Official responsible for submitting financial information
A68: Name | B68: Mrs.Pinky Rametse (Acting)
A69: Telephone number | B69: 0588139700
A70: Cell number | B70: 0827591229
A71: Fax number | B71: 0588133072
A72: E-mail address | B72: Pinkynthuping@gmail.com
A73: Official responsible for submitting financial information
A74: Name | B74: Ms. Mokoena Mananky
A75: Telephone number | B75: 058 813 9700
A76: Cell number | B76: 082 431 9637
A77: Fax number | B77: 058 813 3072
A78: E-mail address | B78: mananky@webmail.co.za
A79: Official responsible for submitting financial information
A80: Name
A81: Telephone number
A82: Cell number
A83: Fax number
A84: E-mail address

Sheet A1-Sum
A1: =muni&" - "&Approve1 -> FS205 Mafube - Table A1 Budget Summary
A2: =desc -> Description | B2: =head1b -> 2013/14 | C2: =head1A -> 2014/15 | D2: =Head1 -> 2015/16 | E2: =Head2 -> Current Year 2016/17 | I2: =Head3 -> 2017/18 Medium Term Revenue & Expenditure Framework
A3: R thousands | B3: =Head5 -> Audited Outcome | C3: =Head5 -> Audited Outcome | D3: =Head5 -> Audited Outcome | E3: =Head6 -> Original Budget | F3: =Head7 -> Adjusted Budget | G3: =Head8 -> Full Year Forecast | H3: =Head5b -> Pre-audit outcome | I3: =Head9 -> Budget Year 2017/18 | J3: =Head10 -> Budget Year +1 2018/19 | K3: =Head11 -> Budget Year +2 2019/20
A4: Financial Performance
A5: Property rates | B5: ='A4-FinPerf RE'!C5+'A4-FinPerf RE'!C6 -> 19474278 | C5: ='A4-FinPerf RE'!D5+'A4-FinPerf RE'!D6 -> 21152561 | D5: ='A4-FinPerf RE'!E5+'A4-FinPerf RE'!E6 -> 22693193 | E5: ='A4-FinPerf RE'!F5+'A4-FinPerf RE'!F6 -> 27148891 | F5: ='A4-FinPerf RE'!G5+'A4-FinPerf RE'!G6 -> 27148891 | G5: ='A4-FinPerf RE'!H5+'A4-FinPerf RE'!H6 -> 27148891 | H5: ='A4-FinPerf RE'!I5+'A4-FinPerf RE'!I6 -> 0 | I5: ='A4-FinPerf RE'!J5+'A4-FinPerf RE'!J6 -> 28804972.99 | J5: ='A4-FinPerf RE'!K5+'A4-FinPerf RE'!K6 -> 30562076.34 | K5: ='A4-FinPerf RE'!L5+'A4-FinPerf RE'!L6 -> 32426363
A6: Service charges | B6: =SUM('A4-FinPerf RE'!C7:C11) -> 48865840 | C6: =SUM('A4-FinPerf RE'!D7:D11) -> 61461665 | D6: =SUM('A4-FinPerf RE'!E7:E11) -> 65138739 | E6: =SUM('A4-FinPerf RE'!F7:F11) -> 53781740 | F6: =SUM('A4-FinPerf RE'!G7:G11) -> 53781740 | G6: =SUM('A4-FinPerf RE'!H7:H11) -> 53781740 | H6: =SUM('A4-FinPerf RE'!I7:I11) -> 0 | I6: =SUM('A4-FinPerf RE'!J7:J11) -> 57062426.63 | J6: =SUM('A4-FinPerf RE'!K7:K11) -> 60543234.65 | K6: =SUM('A4-FinPerf RE'!L7:L11) -> 64236371.97
A7: Investment revenue | B7: ='A4-FinPerf RE'!C13 -> 187804 | C7: ='A4-FinPerf RE'!D13 -> 91143 | D7: ='A4-FinPerf RE'!E13 -> 236187 | E7: ='A4-FinPerf RE'!F13 -> 613295 | F7: ='A4-FinPerf RE'!G13 -> 613295 | G7: ='A4-FinPerf RE'!H13 -> 613295 | H7: ='A4-FinPerf RE'!I13 -> 0 | I7: ='A4-FinPerf RE'!J13 -> 214242.9628 | J7: ='A4-FinPerf RE'!K13 -> 227311.7835 | K7: ='A4-FinPerf RE'!L13 -> 241177.8023
A8: Transfers recognised - operational | B8: ='A4-FinPerf RE'!C19 -> 75524459 | C8: ='A4-FinPerf RE'!D19 -> 83705052 | D8: ='A4-FinPerf RE'!E19 -> 86948674 | E8: ='A4-FinPerf RE'!F19 -> 81524000 | F8: ='A4-FinPerf RE'!G19 -> 87524000 | G8: ='A4-FinPerf RE'!H19 -> 81524000 | H8: ='A4-FinPerf RE'!I19 -> 0 | I8: ='A4-FinPerf RE'!J19 -> 83172000 | J8: ='A4-FinPerf RE'!K19 -> 90157000 | K8: ='A4-FinPerf RE'!L19 -> 95121000
A9: Other own revenue | B9: ='A4-FinPerf RE'!C12+'A4-FinPerf RE'!C14+'A4-FinPerf RE'!C15+'A4-FinPerf RE'!C16+'A4-FinPerf RE'!C17+'A4-FinPerf RE'!C18+'A4-FinPerf RE'!C20+'A4-FinPerf RE'!C21 -> 13705174 | C9: ='A4-FinPerf RE'!D12+'A4-FinPerf RE'!D14+'A4-FinPerf RE'!D15+'A4-FinPerf RE'!D16+'A4-FinPerf RE'!D17+'A4-FinPerf RE'!D18+'A4-FinPerf RE'!D20+'A4-FinPerf RE'!D21 -> 24322373 | D9: ='A4-FinPerf RE'!E12+'A4-FinPerf RE'!E14+'A4-FinPerf RE'!E15+'A4-FinPerf RE'!E16+'A4-FinPerf RE'!E17+'A4-FinPerf RE'!E18+'A4-FinPerf RE'!E20+'A4-FinPerf RE'!E21 -> 30157974 | E9: ='A4-FinPerf RE'!F12+'A4-FinPerf RE'!F14+'A4-FinPerf RE'!F15+'A4-FinPerf RE'!F16+'A4-FinPerf RE'!F17+'A4-FinPerf RE'!F18+'A4-FinPerf RE'!F20+'A4-FinPerf RE'!F21 -> 32725070 | F9: ='A4-FinPerf RE'!G12+'A4-FinPerf RE'!G14+'A4-FinPerf RE'!G15+'A4-FinPerf RE'!G16+'A4-FinPerf RE'!G17+'A4-FinPerf RE'!G18+'A4-FinPerf RE'!G20+'A4-FinPerf RE'!G21 -> 32125070 | G9: ='A4-FinPerf RE'!H12+'A4-FinPerf RE'!H14+'A4-FinPerf RE'!H15+'A4-FinPerf RE'!H16+'A4-FinPerf RE'!H17+'A4-FinPerf RE'!H18+'A4-FinPerf RE'!H20+'A4-FinPerf RE'!H21 -> 32725070 | H9: ='A4-FinPerf RE'!I12+'A4-FinPerf RE'!I14+'A4-FinPerf RE'!I15+'A4-FinPerf RE'!I16+'A4-FinPerf RE'!I17+'A4-FinPerf RE'!I18+'A4-FinPerf RE'!I20+'A4-FinPerf RE'!I21 -> 0 | I9: ='A4-FinPerf RE'!J12+'A4-FinPerf RE'!J14+'A4-FinPerf RE'!J15+'A4-FinPerf RE'!J16+'A4-FinPerf RE'!J17+'A4-FinPerf RE'!J18+'A4-FinPerf RE'!J20+'A4-FinPerf RE'!J21 -> 33875662.33 | J9: ='A4-FinPerf RE'!K12+'A4-FinPerf RE'!K14+'A4-FinPerf RE'!K15+'A4-FinPerf RE'!K16+'A4-FinPerf RE'!K17+'A4-FinPerf RE'!K18+'A4-FinPerf RE'!K20+'A4-FinPerf RE'!K21 -> 35835089.85 | K9: ='A4-FinPerf RE'!L12+'A4-FinPerf RE'!L14+'A4-FinPerf RE'!L15+'A4-FinPerf RE'!L16+'A4-FinPerf RE'!L17+'A4-FinPerf RE'!L18+'A4-FinPerf RE'!L20+'A4-FinPerf RE'!L21 -> 37991972.68
A10: ='A4-FinPerf RE'!A22 -> Total Revenue (excluding capital transfers and contributions) | B10: =SUM(B5:B9) -> 157757555 | C10: 190732794 | D10: 205174767 | E10: 195792996 | F10: 201192996 | G10: 195792996 | H10: 0 | I10: 203129304.9 | J10: 217324712.6 | K10: 230016885.4
A11: Employee costs | B11: ='A4-FinPerf RE'!C25 -> 77962771 | C11: ='A4-FinPerf RE'!D25 -> 73311313 | D11: ='A4-FinPerf RE'!E25 -> 77102233 | E11: ='A4-FinPerf RE'!F25 -> 87529880.38 | F11: ='A4-FinPerf RE'!G25 -> 88725940.28 | G11: ='A4-FinPerf RE'!H25 -> 87529880.38 | H11: ='A4-FinPerf RE'!I25 -> 0 | I11: ='A4-FinPerf RE'!J25 -> 85790600.52 | J11: ='A4-FinPerf RE'!K25 -> 86648508.04 | K11: ='A4-FinPerf RE'!L25 -> 87514993.51
A12: Remuneration of councillors | B12: ='A4-FinPerf RE'!C26 -> 5235182 | C12: ='A4-FinPerf RE'!D26 -> 4946053 | D12: ='A4-FinPerf RE'!E26 -> 5613522 | E12: ='A4-FinPerf RE'!F26 -> 5926016 | F12: ='A4-FinPerf RE'!G26 -> 5926016 | G12: ='A4-FinPerf RE'!H26 -> 5926016 | H12: ='A4-FinPerf RE'!I26 -> 0 | I12: ='A4-FinPerf RE'!J26 -> 5985276.604 | J12: ='A4-FinPerf RE'!K26 -> 6045129.37 | K12: ='A4-FinPerf RE'!L26 -> 6105580.664
A13: Depreciation & asset impairment | B13: ='A4-FinPerf RE'!C28 -> 137283347 | C13: ='A4-FinPerf RE'!D28 -> 37286363 | D13: ='A4-FinPerf RE'!E28 -> 38259177 | E13: ='A4-FinPerf RE'!F28 -> 1500000 | F13: ='A4-FinPerf RE'!G28 -> 1500000 | G13: ='A4-FinPerf RE'!H28 -> 1500000 | H13: ='A4-FinPerf RE'!I28 -> 0 | I13: ='A4-FinPerf RE'!J28 -> 38259177 | J13: ='A4-FinPerf RE'!K28 -> 38259177 | K13: ='A4-FinPerf RE'!L28 -> 38259177
A14: Finance charges | B14: ='A4-FinPerf RE'!C29 -> 7849642 | C14: ='A4-FinPerf RE'!D29 -> 12101882 | D14: ='A4-FinPerf RE'!E29 -> 21271001 | E14: ='A4-FinPerf RE'!F29 -> 3211126 | F14: ='A4-FinPerf RE'!G29 -> 3211126 | G14: ='A4-FinPerf RE'!H29 -> 3211126 | H14: ='A4-FinPerf RE'!I29 -> 0 | I14: ='A4-FinPerf RE'!J29 -> 3298072 | J14: ='A4-FinPerf RE'!K29 -> 3499254.39 | K14: ='A4-FinPerf RE'!L29 -> 3712708.91
A15: Materials and bulk purchases | B15: ='A4-FinPerf RE'!C30+'A4-FinPerf RE'!C31 -> 27714956 | C15: ='A4-FinPerf RE'!D30+'A4-FinPerf RE'!D31 -> 23768637 | D15: ='A4-FinPerf RE'!E30+'A4-FinPerf RE'!E31 -> 45946294 | E15: ='A4-FinPerf RE'!F30+'A4-FinPerf RE'!F31 -> 6000000 | F15: ='A4-FinPerf RE'!G30+'A4-FinPerf RE'!G31 -> 6000000 | G15: ='A4-FinPerf RE'!H30+'A4-FinPerf RE'!H31 -> 6000000 | H15: ='A4-FinPerf RE'!I30+'A4-FinPerf RE'!I31 -> 0 | I15: ='A4-FinPerf RE'!J30+'A4-FinPerf RE'!J31 -> 6000000 | J15: ='A4-FinPerf RE'!K30+'A4-FinPerf RE'!K31 -> 8122000 | K15: ='A4-FinPerf RE'!L30+'A4-FinPerf RE'!L31 -> 11416420
A16: Transfers and grants | B16: ='A4-FinPerf RE'!C33 -> 6746501 | C16: ='A4-FinPerf RE'!D33 -> 3547907 | D16: ='A4-FinPerf RE'!E33 -> 9595124 | E16: ='A4-FinPerf RE'!F33 -> 5252545 | F16: ='A4-FinPerf RE'!G33 -> 5252545 | G16: ='A4-FinPerf RE'!H33 -> 5252545 | H16: ='A4-FinPerf RE'!I33 -> 0 | I16: ='A4-FinPerf RE'!J33 -> 10000000 | J16: ='A4-FinPerf RE'!K33 -> 10610000 | K16: ='A4-FinPerf RE'!L33 -> 11257210
A17: Other expenditure | B17: ='A4-FinPerf RE'!C27+'A4-FinPerf RE'!C32+'A4-FinPerf RE'!C34+'A4-FinPerf RE'!C35 -> 75126205 | C17: ='A4-FinPerf RE'!D27+'A4-FinPerf RE'!D32+'A4-FinPerf RE'!D34+'A4-FinPerf RE'!D35 -> 109240045 | D17: ='A4-FinPerf RE'!E27+'A4-FinPerf RE'!E32+'A4-FinPerf RE'!E34+'A4-FinPerf RE'!E35 -> 70103677 | E17: ='A4-FinPerf RE'!F27+'A4-FinPerf RE'!F32+'A4-FinPerf RE'!F34+'A4-FinPerf RE'!F35 -> 76839664 | F17: ='A4-FinPerf RE'!G27+'A4-FinPerf RE'!G32+'A4-FinPerf RE'!G34+'A4-FinPerf RE'!G35 -> 80867000 | G17: ='A4-FinPerf RE'!H27+'A4-FinPerf RE'!H32+'A4-FinPerf RE'!H34+'A4-FinPerf RE'!H35 -> 76839664 | H17: ='A4-FinPerf RE'!I27+'A4-FinPerf RE'!I32+'A4-FinPerf RE'!I34+'A4-FinPerf RE'!I35 -> 0 | I17: ='A4-FinPerf RE'!J27+'A4-FinPerf RE'!J32+'A4-FinPerf RE'!J34+'A4-FinPerf RE'!J35 -> 64197882.8 | J17: ='A4-FinPerf RE'!K27+'A4-FinPerf RE'!K32+'A4-FinPerf RE'!K34+'A4-FinPerf RE'!K35 -> 69946784.53 | K17: ='A4-FinPerf RE'!L27+'A4-FinPerf RE'!L32+'A4-FinPerf RE'!L34+'A4-FinPerf RE'!L35 -> 76141835.76
A18: ='A4-FinPerf RE'!A36 -> Total Expenditure | B18: =SUM(B11:B17) -> 337918604 | C18: =SUM(C11:C17) -> 264202200 | D18: 267891028 | E18: 186259231.4 | F18: 191482627.3 | G18: 186259231.4 | H18: 0 | I18: 213531008.9 | J18: 223130853.3 | K18: 234407925.8
A19: ='A4-FinPerf RE'!A38 -> Surplus/(Deficit) | B19: =B10-B18 -> -180161049 | C19: -73469406 | D19: -62716261 | E19: 9533764.619 | F19: 9710368.719 | G19: 9533764.619 | H19: 0 | I19: -10401704.01 | J19: -5806140.707 | K19: -4391040.401
A20: ='A4-FinPerf RE'!A39 -> Transfers recognised - capital | B20: ='A4-FinPerf RE'!C39 -> 21319360 | C20: ='A4-FinPerf RE'!D39 -> 18508416 | D20: ='A4-FinPerf RE'!E39 -> 12635910 | E20: ='A4-FinPerf RE'!F39 -> 32422000 | F20: ='A4-FinPerf RE'!G39 -> 32422000 | G20: ='A4-FinPerf RE'!H39 -> 32422000 | H20: ='A4-FinPerf RE'!I39 -> 0 | I20: ='A4-FinPerf RE'!J39 -> 32080000 | J20: ='A4-FinPerf RE'!K39 -> 30874000 | K20: ='A4-FinPerf RE'!L39 -> 37037000
A21: Contributions recognised - capital & contributed assets | B21: ='A4-FinPerf RE'!C40+'A4-FinPerf RE'!C41 -> 0 | C21: ='A4-FinPerf RE'!D40+'A4-FinPerf RE'!D41 -> 0 | D21: ='A4-FinPerf RE'!E40+'A4-FinPerf RE'!E41 -> 0 | E21: ='A4-FinPerf RE'!F40+'A4-FinPerf RE'!F41 -> 0 | F21: ='A4-FinPerf RE'!G40+'A4-FinPerf RE'!G41 -> 0 | G21: ='A4-FinPerf RE'!H40+'A4-FinPerf RE'!H41 -> 0 | H21: ='A4-FinPerf RE'!I40+'A4-FinPerf RE'!I41 -> 0 | I21: ='A4-FinPerf RE'!J40+'A4-FinPerf RE'!J41 -> 0 | J21: ='A4-FinPerf RE'!K40+'A4-FinPerf RE'!K41 -> 0 | K21: ='A4-FinPerf RE'!L40+'A4-FinPerf RE'!L41 -> 0
A22: ='A4-FinPerf RE'!A42 -> Surplus/(Deficit) after capital transfers & contributions | B22: =B19+SUM(B20:B21) -> -158841689 | C22: =C19+SUM(C20:C21) -> -54960990 | D22: -50080351 | E22: 41955764.62 | F22: 42132368.72 | G22: 41955764.62 | H22: 0 | I22: 21678295.99 | J22: 25067859.29 | K22: 32645959.6
A23: ='A4-FinPerf RE'!A47 -> Share of surplus/ (deficit) of associate | B23: ='A4-FinPerf RE'!C47 -> 0 | C23: ='A4-FinPerf RE'!D47 -> 0 | D23: ='A4-FinPerf RE'!E47 -> 0 | E23: ='A4-FinPerf RE'!F47 -> 0 | F23: ='A4-FinPerf RE'!G47 -> 0 | G23: ='A4-FinPerf RE'!H47 -> 0 | H23: ='A4-FinPerf RE'!I47 -> 0 | I23: ='A4-FinPerf RE'!J47 -> 0 | J23: ='A4-FinPerf RE'!K47 -> 0 | K23: ='A4-FinPerf RE'!L47 -> 0
A24: ='A4-FinPerf RE'!A48 -> Surplus/(Deficit) for the year | B24: =B22+B23 -> -158841689 | C24: =C22+C23 -> -54960990 | D24: -50080351 | E24: 41955764.62 | F24: 42132368.72 | G24: 41955764.62 | H24: 0 | I24: 21678295.99 | J24: 25067859.29 | K24: 32645959.6
A26: Capital expenditure & funds sources
A27: Capital expenditure | B27: ='A5-Capex'!C63 -> 25642024 | C27: ='A5-Capex'!D63 -> 14082654 | D27: ='A5-Capex'!E63 -> 9031915 | E27: ='A5-Capex'!F63 -> 41931635 | F27: ='A5-Capex'!G63 -> 41931635 | G27: ='A5-Capex'!H63 -> 41931635 | H27: ='A5-Capex'!I63 -> 0 | I27: ='A5-Capex'!J63 -> 33091912.76 | J27: ='A5-Capex'!K63 -> 31995991.89 | K27: ='A5-Capex'!L63 -> 38276269.36
A28: Transfers recognised - capital | B28: ='A5-Capex'!C70 -> 23341792 | C28: ='A5-Capex'!D70 -> 12656687 | D28: ='A5-Capex'!E70 -> 8051791 | E28: ='A5-Capex'!F70 -> 31941635 | F28: ='A5-Capex'!G70 -> 31941635 | G28: ='A5-Capex'!H70 -> 31941635 | H28: ='A5-Capex'!I70 -> 0 | I28: ='A5-Capex'!J70 -> 31091912.76 | J28: ='A5-Capex'!K70 -> 29873991.89 | K28: ='A5-Capex'!L70 -> 36024827.36
A29: ='A5-Capex'!A71 -> Public contributions & donations | B29: ='A5-Capex'!C71 -> 0 | C29: ='A5-Capex'!D71 -> 0 | D29: ='A5-Capex'!E71 -> 0 | E29: ='A5-Capex'!F71 -> 0 | F29: ='A5-Capex'!G71 -> 0 | G29: ='A5-Capex'!H71 -> 0 | H29: ='A5-Capex'!I71 -> 0 | I29: ='A5-Capex'!J71 -> 0 | J29: ='A5-Capex'!K71 -> 0 | K29: ='A5-Capex'!L71 -> 0
A30: ='A5-Capex'!A72 -> Borrowing | B30: ='A5-Capex'!C72 -> 0 | C30: ='A5-Capex'!D72 -> 0 | D30: ='A5-Capex'!E72 -> 0 | E30: ='A5-Capex'!F72 -> 0 | F30: ='A5-Capex'!G72 -> 0 | G30: ='A5-Capex'!H72 -> 0 | H30: ='A5-Capex'!I72 -> 0 | I30: ='A5-Capex'!J72 -> 0 | J30: ='A5-Capex'!K72 -> 0 | K30: ='A5-Capex'!L72 -> 0
A31: ='A5-Capex'!A73 -> Internally generated funds | B31: ='A5-Capex'!C73 -> 2300232 | C31: ='A5-Capex'!D73 -> 1425967 | D31: ='A5-Capex'!E73 -> 980124 | E31: ='A5-Capex'!F73 -> 9990000 | F31: ='A5-Capex'!G73 -> 9990000 | G31: ='A5-Capex'!H73 -> 9990000 | H31: ='A5-Capex'!I73 -> 0 | I31: ='A5-Capex'!J73 -> 2000000 | J31: ='A5-Capex'!K73 -> 2122000 | K31: ='A5-Capex'!L73 -> 2251442
A32: Total sources of capital funds | B32: =SUM(B28:B31) -> 25642024 | C32: 14082654 | D32: 9031915 | E32: 41931635 | F32: 41931635 | G32: 41931635 | H32: 0 | I32: 33091912.76 | J32: 31995991.89 | K32: 38276269.36
A34: Financial position
A35: ='A6-FinPos'!A12 -> Total current assets | B35: ='A6-FinPos'!C12 -> 43748068 | C35: ='A6-FinPos'!D12 -> 76348630 | D35: ='A6-FinPos'!E12 -> 144434319 | E35: ='A6-FinPos'!F12 -> 76348630 | F35: ='A6-FinPos'!G12 -> 74315630 | G35: ='A6-FinPos'!H12 -> 74315630 | H35: ='A6-FinPos'!I12 -> 11438686 | I35: ='A6-FinPos'!J12 -> 75615630 | J35: ='A6-FinPos'!K12 -> 75615630 | K35: ='A6-FinPos'!L12 -> 75615630
A36: ='A6-FinPos'!A24 -> Total non current assets | B36: ='A6-FinPos'!C24 -> 1207542736 | C36: ='A6-FinPos'!D24 -> 776827116 | D36: ='A6-FinPos'!E24 -> 747598426 | E36: ='A6-FinPos'!F24 -> 1099119093 | F36: ='A6-FinPos'!G24 -> 1099119093 | G36: ='A6-FinPos'!H24 -> 1099118824 | H36: ='A6-FinPos'!I24 -> -50000 | I36: ='A6-FinPos'!J24 -> 1099118824 | J36: ='A6-FinPos'!K24 -> 1099118824 | K36: ='A6-FinPos'!L24 -> 1099118824
A37: ='A6-FinPos'!A34 -> Total current liabilities | B37: ='A6-FinPos'!C34 -> 218512581 | C37: ='A6-FinPos'!D34 -> 295214101 | D37: ='A6-FinPos'!E34 -> 376464599 | E37: ='A6-FinPos'!F34 -> 60347381 | F37: ='A6-FinPos'!G34 -> 60347381 | G37: ='A6-FinPos'!H34 -> 60347381 | H37: ='A6-FinPos'!I34 -> -10712082 | I37: ='A6-FinPos'!J34 -> 60347381 | J37: ='A6-FinPos'!K34 -> 60347381 | K37: ='A6-FinPos'!L34 -> 60347381
A38: ='A6-FinPos'!A39 -> Total non current liabilities | B38: ='A6-FinPos'!C39 -> 25835744 | C38: ='A6-FinPos'!D39 -> 25534352 | D38: ='A6-FinPos'!E39 -> 24896943 | E38: ='A6-FinPos'!F39 -> 16192432 | F38: ='A6-FinPos'!G39 -> 16192432 | G38: ='A6-FinPos'!H39 -> 16192432 | H38: ='A6-FinPos'!I39 -> 152986 | I38: ='A6-FinPos'!J39 -> 16192432 | J38: ='A6-FinPos'!K39 -> 16192432 | K38: ='A6-FinPos'!L39 -> 16192432
A39: Community wealth/Equity | B39: ='A6-FinPos'!C48 -> 1006942479 | C39: ='A6-FinPos'!D48 -> 532426863 | D39: ='A6-FinPos'!E48 -> 490671094 | E39: ='A6-FinPos'!F48 -> 1098927641 | F39: ='A6-FinPos'!G48 -> 1096894641 | G39: ='A6-FinPos'!H48 -> 1096894641 | H39: ='A6-FinPos'!I48 -> 21947782 | I39: ='A6-FinPos'!J48 -> 1098194641 | J39: ='A6-FinPos'!K48 -> 1098194641 | K39: ='A6-FinPos'!L48 -> 1098194641
A41: Cash flows
A42: Net cash from (used) operating | B42: ='A7-CFlow'!C17 -> 35847119 | C42: ='A7-CFlow'!D17 -> 28436976 | D42: ='A7-CFlow'!E17 -> 188197 | E42: ='A7-CFlow'!F17 -> 12375662 | F42: ='A7-CFlow'!G17 -> 41833305 | G42: ='A7-CFlow'!H17 -> 41833305 | H42: ='A7-CFlow'!I17 -> -96232939 | I42: ='A7-CFlow'!J17 -> 26669466.6 | J42: ='A7-CFlow'!K17 -> 28188832.06 | K42: ='A7-CFlow'!L17 -> 33623502.37
A43: Net cash from (used) investing | B43: ='A7-CFlow'!C27 -> -29396503 | C43: ='A7-CFlow'!D27 -> -23343427 | D43: ='A7-CFlow'!E27 -> -87182 | E43: ='A7-CFlow'!F27 -> -41931635 | F43: ='A7-CFlow'!G27 -> -41931635 | G43: ='A7-CFlow'!H27 -> -41931635 | H43: ='A7-CFlow'!I27 -> 96534307 | I43: ='A7-CFlow'!J27 -> -33091912.76 | J43: ='A7-CFlow'!K27 -> -31995991.89 | K43: ='A7-CFlow'!L27 -> -38276269.36
A44: Net cash from (used) financing | B44: ='A7-CFlow'!C36 -> -5569111 | C44: ='A7-CFlow'!D36 -> -3145152 | D44: ='A7-CFlow'!E36 -> -529097 | E44: ='A7-CFlow'!F36 -> 0 | F44: ='A7-CFlow'!G36 -> 300000 | G44: ='A7-CFlow'!H36 -> 300000 | H44: ='A7-CFlow'!I36 -> -150000 | I44: ='A7-CFlow'!J36 -> 0 | J44: ='A7-CFlow'!K36 -> 0 | K44: ='A7-CFlow'!L36 -> 0
A45: =LEFT('A7-CFlow'!A40,37) -> Cash/cash equivalents at the year end | B45: ='A7-CFlow'!C40 -> 3580602 | C45: ='A7-CFlow'!D40 -> 2012764 | D45: ='A7-CFlow'!E40 -> 191846 | E45: ='A7-CFlow'!F40 -> -29555973 | F45: ='A7-CFlow'!G40 -> 201670 | G45: ='A7-CFlow'!H40 -> 201670 | H45: ='A7-CFlow'!I40 -> 240445 | I45: ='A7-CFlow'!J40 -> -6422446.157 | J45: ='A7-CFlow'!K40 -> -10229605.99 | K45: ='A7-CFlow'!L40 -> -14882372.98
A47: Cash backing/surplus reconciliation
A48: ='A8-ResRecon'!A4 -> Cash and investments available | B48: ='A8-ResRecon'!C8 -> 95782 | C48: ='A8-ResRecon'!D8 -> 619928 | D48: ='A8-ResRecon'!E8 -> 635344 | E48: ='A8-ResRecon'!F8 -> 619928 | F48: ='A8-ResRecon'!G8 -> 619928 | G48: ='A8-ResRecon'!H8 -> 619928 | H48: ='A8-ResRecon'!I8 -> 4506044 | I48: ='A8-ResRecon'!J8 -> -149858 | J48: ='A8-ResRecon'!K8 -> -149858 | K48: ='A8-ResRecon'!L8 -> -149858
A49: ='A8-ResRecon'!A10 -> Application of cash and investments | B49: ='A8-ResRecon'!C18 -> 199925494 | C49: ='A8-ResRecon'!D18 -> 263458456 | D49: ='A8-ResRecon'!E18 -> 264827982 | E49: ='A8-ResRecon'!F18 -> 21343059 | F49: ='A8-ResRecon'!G18 -> 2819059 | G49: ='A8-ResRecon'!H18 -> 3123059 | H49: ='A8-ResRecon'!I18 -> -10640943 | I49: ='A8-ResRecon'!J18 -> 29756059 | J49: ='A8-ResRecon'!K18 -> 29779059 | K49: ='A8-ResRecon'!L18 -> 29773059
A50: Balance - surplus (shortfall) | B50: =B48-B49 -> -199829712 | C50: =C48-C49 -> -262838528 | D50: -264192638 | E50: -20723131 | F50: -2199131 | G50: -2503131 | H50: 15146987 | I50: -29905917 | J50: -29928917 | K50: -29922917
A52: Asset management
A53: Asset register summary (WDV) | B53: ='A9-Asset'!C65 -> 1202238828 | C53: ='A9-Asset'!D65 -> 88435862 | D53: ='A9-Asset'!E65 -> 82635039 | E53: ='A9-Asset'!F65 -> 1151955255 | F53: ='A9-Asset'!G65 -> 1151955072 | G53: ='A9-Asset'!H65 -> 54662391 | H53: ='A9-Asset'!I65 -> 1151955072 | I53: ='A9-Asset'!I65 -> 1151955072 | J53: ='A9-Asset'!J65 -> 1151955072 | K53: ='A9-Asset'!K65 -> 1151955072
A54: ='A9-Asset'!A68 -> Depreciation & asset impairment | B54: ='A9-Asset'!C68 -> 137283347 | C54: ='A9-Asset'!D68 -> 37286363 | D54: ='A9-Asset'!E68 -> 38259177 | E54: ='A9-Asset'!F68 -> 1500000 | F54: ='A9-Asset'!G68 -> 1500000 | G54: ='A9-Asset'!H68 -> 1500000 | H54: ='A9-Asset'!I68 -> 38259177 | I54: ='A9-Asset'!I68 -> 38259177 | J54: ='A9-Asset'!J68 -> 38259177 | K54: ='A9-Asset'!K68 -> 38259177
A55: Renewal of Existing Assets | B55: ='A9-Asset'!C20 -> 0 | C55: ='A9-Asset'!D20 -> 0 | D55: ='A9-Asset'!E20 -> 0 | E55: ='A9-Asset'!F20 -> 2326909 | F55: ='A9-Asset'!G20 -> 2326909 | G55: ='A9-Asset'!H20 -> 2326909 | H55: ='A9-Asset'!H20 -> 2326909 | I55: ='A9-Asset'!I20 -> 7224070.72 | J55: ='A9-Asset'!J20 -> 1074330 | K55: ='A9-Asset'!K20 -> 1126665
A56: Repairs and Maintenance | B56: ='A9-Asset'!C69 -> 11206908 | C56: ='A9-Asset'!D69 -> 32876183 | D56: ='A9-Asset'!E69 -> 0 | E56: ='A9-Asset'!F69 -> 13885000 | F56: ='A9-Asset'!G69 -> 13885000 | G56: ='A9-Asset'!H69 -> 13885000 | H56: ='A9-Asset'!I69 -> 18240509.91 | I56: ='A9-Asset'!I69 -> 18240509.91 | J56: ='A9-Asset'!J69 -> 20718382.46 | K56: ='A9-Asset'!K69 -> 23950789.12
A58: Free services
A59: Cost of Free Basic Services provided | B59: ='A10-SerDel'!C60 -> 0 | C59: ='A10-SerDel'!D60 -> 0 | D59: ='A10-SerDel'!E60 -> 0 | E59: ='A10-SerDel'!F60 -> 17200 | F59: ='A10-SerDel'!G60 -> 17200 | G59: ='A10-SerDel'!H60 -> 17200 | H59: ='A10-SerDel'!I60 -> 19200 | I59: ='A10-SerDel'!I60 -> 19200 | J59: ='A10-SerDel'!J60 -> 19600 | K59: ='A10-SerDel'!K60 -> 19600
A60: Revenue cost of free services provided | B60: ='A10-SerDel'!C79 -> 0 | C60: ='A10-SerDel'!D79 -> 0 | D60: ='A10-SerDel'!E79 -> 0 | E60: ='A10-SerDel'!F79 -> 0 | F60: ='A10-SerDel'!G79 -> 0 | G60: ='A10-SerDel'!H79 -> 0 | H60: ='A10-SerDel'!I79 -> 0 | I60: ='A10-SerDel'!I79 -> 0 | J60: ='A10-SerDel'!J79 -> 0 | K60: ='A10-SerDel'!K79 -> 0
A61: Households below minimum service level
A62: ='A10-SerDel'!A5 -> Water: | B62: ='A10-SerDel'!C14 -> 0 | C62: ='A10-SerDel'!D14 -> 0 | D62: ='A10-SerDel'!E14 -> 1300 | E62: ='A10-SerDel'!F14 -> 600 | F62: ='A10-SerDel'!G14 -> 1300 | G62: ='A10-SerDel'!H14 -> 1300 | H62: ='A10-SerDel'!I14 -> 600 | I62: ='A10-SerDel'!I14 -> 600 | J62: ='A10-SerDel'!J14 -> 600 | K62: ='A10-SerDel'!K14 -> 600
A63: ='A10-SerDel'!A16 -> Sanitation/sewerage: | B63: ='A10-SerDel'!C26 -> 0 | C63: ='A10-SerDel'!D26 -> 0 | D63: ='A10-SerDel'!E26 -> 0 | E63: ='A10-SerDel'!F26 -> 0 | F63: ='A10-SerDel'!G26 -> 0 | G63: ='A10-SerDel'!H26 -> 0 | H63: ='A10-SerDel'!I26 -> 0 | I63: ='A10-SerDel'!I26 -> 0 | J63: ='A10-SerDel'!J26 -> 0 | K63: ='A10-SerDel'!K26 -> 0
A64: ='A10-SerDel'!A28 -> Energy: | B64: ='A10-SerDel'!C35 -> 0 | C64: ='A10-SerDel'!D35 -> 0 | D64: ='A10-SerDel'!E35 -> 2860 | E64: ='A10-SerDel'!F35 -> 1430 | F64: ='A10-SerDel'!G35 -> 1430 | G64: ='A10-SerDel'!H35 -> 1430 | H64: ='A10-SerDel'!I35 -> 2000 | I64: ='A10-SerDel'!I35 -> 2000 | J64: ='A10-SerDel'!J35 -> 2000 | K64: ='A10-SerDel'!K35 -> 2000
A65: ='A10-SerDel'!A37 -> Refuse: | B65: ='A10-SerDel'!C45 -> 0 | C65: ='A10-SerDel'!D45 -> 0 | D65: ='A10-SerDel'!E45 -> 4000 | E65: ='A10-SerDel'!F45 -> 6000 | F65: ='A10-SerDel'!G45 -> 4000 | G65: ='A10-SerDel'!H45 -> 4000 | H65: ='A10-SerDel'!I45 -> 4500 | I65: ='A10-SerDel'!I45 -> 4500 | J65: ='A10-SerDel'!J45 -> 4500 | K65: ='A10-SerDel'!K45 -> 5000

Sheet A2-FinPerf SC
A1: =muni&" - "&Approve3 -> FS205 Mafube - Table A2 Budgeted Financial Performance (revenue and expenditure by standard classification)
A2: ="Standard Classification "&desc -> Standard Classification Description | B2: =head27 -> Ref | C2: =head1b -> 2013/14 | D2: =head1A -> 2014/15 | E2: =Head1 -> 2015/16 | F2: =Head2 -> Current Year 2016/17 | I2: =Head3 -> 2017/18 Medium Term Revenue & Expenditure Framework
A3: R thousand | B3: 1 | C3: =Head5 -> Audited Outcome | D3: =Head5 -> Audited Outcome | E3: =Head5 -> Audited Outcome | F3: =Head6 -> Original Budget | G3: =Head7 -> Adjusted Budget | H3: =Head8 -> Full Year Forecast | I3: =Head9 -> Budget Year 2017/18 | J3: =Head10 -> Budget Year +1 2018/19 | K3: =Head11 -> Budget Year +2 2019/20
A4: Revenue - Standard
A5: Governance and administration | C5: =SUM(C6:C8) -> 110166887 | D5: =SUM(D6:D8) -> 128964469 | E5: 141428114 | F5: 142011255.6 | G5: 147411255.6 | H5: 0 | I5: 146066878.3 | J5: 156781478 | K5: 165780513
A6: Executive and council | C6: =A2A!C6 -> 0 | D6: =A2A!D6 -> 0 | E6: =A2A!E6 -> 0 | F6: =A2A!F6 -> 0 | G6: =A2A!G6 -> 0 | H6: =A2A!H6 -> 0 | I6: =A2A!I6 -> 0 | J6: =A2A!J6 -> 0 | K6: =A2A!K6 -> 0
A7: Budget and treasury office | C7: =A2A!C9 -> 110166887 | D7: =A2A!D9 -> 128964469 | E7: =A2A!E9 -> 141428114 | F7: =A2A!F9 -> 142011255.6 | G7: =A2A!G9 -> 147411255.6 | H7: =A2A!H9 -> 0 | I7: =A2A!I9 -> 146066878.3 | J7: =A2A!J9 -> 156781478 | K7: =A2A!K9 -> 165780513
A8: Corporate services | C8: =A2A!C10 -> 0 | D8: =A2A!D10 -> 0 | E8: =A2A!E10 -> 0 | F8: =A2A!F10 -> 0 | G8: =A2A!G10 -> 0 | H8: =A2A!H10 -> 0 | I8: =A2A!I10 -> 0 | J8: =A2A!J10 -> 0 | K8: =A2A!K10 -> 0
A9: Community and public safety | C9: =SUM(C10:C14) -> 0 | D9: =SUM(D10:D14) -> 688651 | E9: 0 | F9: 0 | G9: 0 | H9: 0 | I9: 0 | J9: 0 | K9: 0
A10: Community and social services | C10: =A2A!C16 -> 0 | D10: =A2A!D16 -> 688651 | E10: =A2A!E16 -> 0 | F10: =A2A!F16 -> 0 | G10: =A2A!G16 -> 0 | H10: =A2A!H16 -> 0 | I10: =A2A!I16 -> 0 | J10: =A2A!J16 -> 0 | K10: =A2A!K16 -> 0
A11: Sport and recreation | C11: =A2A!C25 -> 0 | D11: =A2A!D25 -> 0 | E11: =A2A!E25 -> 0 | F11: =A2A!F25 -> 0 | G11: =A2A!G25 -> 0 | H11: =A2A!H25 -> 0 | I11: =A2A!I25 -> 0 | J11: =A2A!J25 -> 0 | K11: =A2A!K25 -> 0
A12: Public safety | C12: =A2A!C26 -> 0 | D12: =A2A!D26 -> 0 | E12: =A2A!E26 -> 0 | F12: =A2A!F26 -> 0 | G12: =A2A!G26 -> 0 | H12: =A2A!H26 -> 0 | I12: =A2A!I26 -> 0 | J12: =A2A!J26 -> 0 | K12: =A2A!K26 -> 0
A13: Housing | C13: =A2A!C32 -> 0 | D13: =A2A!D32 -> 0 | E13: =A2A!E32 -> 0 | F13: =A2A!F32 -> 0 | G13: =A2A!G32 -> 0 | H13: =A2A!H32 -> 0 | I13: =A2A!I32 -> 0 | J13: =A2A!J32 -> 0 | K13: =A2A!K32 -> 0
A14: Health | C14: =A2A!C33 -> 0 | D14: =A2A!D33 -> 0 | E14: =A2A!E33 -> 0 | F14: =A2A!F33 -> 0 | G14: =A2A!G33 -> 0 | H14: =A2A!H33 -> 0 | I14: =A2A!I33 -> 0 | J14: =A2A!J33 -> 0 | K14: =A2A!K33 -> 0
A15: Economic and environmental services | C15: =SUM(C16:C18) -> 0 | D15: =SUM(D16:D18) -> 144746 | E15: 0 | F15: 0 | G15: 0 | H15: 0 | I15: 0 | J15: 0 | K15: 0
A16: Planning and development | C16: =A2A!C38 -> 0 | D16: =A2A!D38 -> 134610 | E16: =A2A!E38 -> 0 | F16: =A2A!F38 -> 0 | G16: =A2A!G38 -> 0 | H16: =A2A!H38 -> 0 | I16: =A2A!I38 -> 0 | J16: =A2A!J38 -> 0 | K16: =A2A!K38 -> 0
A17: Road transport | C17: =A2A!C42 -> 0 | D17: =A2A!D42 -> 10136 | E17: =A2A!E42 -> 0 | F17: =A2A!F42 -> 0 | G17: =A2A!G42 -> 0 | H17: =A2A!H42 -> 0 | I17: =A2A!I42 -> 0 | J17: =A2A!J42 -> 0 | K17: =A2A!K42 -> 0
A18: Environmental protection | C18: =A2A!C48 -> 0 | D18: =A2A!D48 -> 0 | E18: =A2A!E48 -> 0 | F18: =A2A!F48 -> 0 | G18: =A2A!G48 -> 0 | H18: =A2A!H48 -> 0 | I18: =A2A!I48 -> 0 | J18: =A2A!J48 -> 0 | K18: =A2A!K48 -> 0
A19: Trading services | C19: =SUM(C20:C23) -> 53962745 | D19: =SUM(D20:D23) -> 79443344 | E19: 76382563 | F19: 64781739 | G19: 64781739 | H19: 0 | I19: 62062426.63 | J19: =SUM(J20:J23) -> 67543234.65 | K19: 76236371.97
A20: Electricity | C20: =A2A!C53 -> 6269791 | D20: =A2A!D53 -> 7404258 | E20: =A2A!E53 -> 9367654 | F20: =A2A!F53 -> 11000000 | G20: =A2A!G53 -> 11000000 | H20: =A2A!H53 -> 0 | I20: =A2A!I53 -> 5000000 | J20: =A2A!J53 -> 7000000 | K20: =A2A!K53 -> 12000000
A21: Water | C21: =A2A!C56 -> 18518134 | D21: =A2A!D56 -> 43217236 | E21: =A2A!E56 -> 37125741 | F21: =A2A!F56 -> 23098759 | G21: =A2A!G56 -> 23098759 | H21: =A2A!H56 -> 0 | I21: =A2A!I56 -> 24507784.34 | J21: =A2A!J56 -> 26002759.18 | K21: =A2A!K56 -> 27588927.49
A22: Waste water management | C22: =A2A!C59 -> 15312749 | D22: =A2A!D59 -> 16696403 | E22: =A2A!E59 -> 17305717 | F22: =A2A!F59 -> 17776153 | G22: =A2A!G59 -> 17776153 | H22: =A2A!H59 -> 0 | I22: =A2A!I59 -> 18860498.71 | J22: =A2A!J59 -> 20010989.14 | K22: =A2A!K59 -> 21231659.47
A23: Waste management | C23: =A2A!C63 -> 13862071 | D23: =A2A!D63 -> 12125447 | E23: =A2A!E63 -> 12583451 | F23: =A2A!F63 -> 12906827 | G23: =A2A!G63 -> 12906827 | H23: =A2A!H63 -> 0 | I23: =A2A!I63 -> 13694143.57 | J23: =A2A!J63 -> 14529486.33 | K23: =A2A!K63 -> 15415785
A24: Other | B24: 4 | C24: =A2A!C65 -> 14947283 | D24: =A2A!D65 -> 0 | E24: =A2A!E65 -> 0 | F24: =A2A!F65 -> 21422000 | G24: =A2A!G65 -> 21422000 | H24: =A2A!H65 -> 0 | I24: =A2A!I65 -> 27080000 | J24: =A2A!J65 -> 23874000 | K24: =A2A!K65 -> 25037000
A25: ="Total "&A4 -> Total Revenue - Standard | B25: 2 | C25: =C5+C9+C15+C19+C24 -> 179076915 | D25: =D5+D9+D15+D19+D24 -> 209241210 | E25: =E5+E9+E15+E19+E24 -> 217810677 | F25: 228214994.6 | G25: 233614994.6 | H25: 0 | I25: =I5+I9+I15+I19+I24 -> 235209304.9 | J25: 248198712.7 | K25: 267053885
A27: Expenditure - Standard
A28: =A5 -> Governance and administration | C28: =SUM(C29:C31) -> 292257265 | D28: =SUM(D29:D31) -> 236363150 | E28: 212236111 | F28: 134780028.3 | G28: 133316000 | H28: 0 | I28: 164340703.6 | J28: 168604972 | K28: 172885119.5
A29: =A6 -> Executive and council | C29: =A2A!C76 -> 8533570 | D29: =A2A!D76 -> 58411424 | E29: =A2A!E76 -> 44320779 | F29: =A2A!F76 -> 72115662.64 | G29: =A2A!G76 -> 66775000 | H29: =A2A!H76 -> 0 | I29: =A2A!I76 -> 62755315.96 | J29: =A2A!J76 -> 64128644.12 | K29: =A2A!K76 -> 65351223.63
A30: Budget and treasury office | C30: =A2A!C79 -> 198189107 | D30: =A2A!D79 -> 99589241 | E30: =A2A!E79 -> 82117563 | F30: =A2A!F79 -> 29195828.35 | G30: =A2A!G79 -> 27946000 | H30: =A2A!H79 -> 0 | I30: =A2A!I79 -> 70477220.99 | J30: =A2A!J79 -> 72022034.53 | K30: =A2A!K79 -> 73656876.82
A31: Corporate services | C31: =A2A!C80 -> 85534588 | D31: =A2A!D80 -> 78362485 | E31: =A2A!E80 -> 85797769 | F31: =A2A!F80 -> 33468537.33 | G31: =A2A!G80 -> 38595000 | H31: =A2A!H80 -> 0 | I31: =A2A!I80 -> 31108166.7 | J31: =A2A!J80 -> 32454293.36 | K31: =A2A!K80 -> 33877019.04
A32: Community and public safety | C32: =SUM(C33:C37) -> 17326 | D32: =SUM(D33:D37) -> 756369 | E32: 6818067 | F32: 13853133.96 | G32: 12588000 | H32: 0 | I32: 11232600.15 | J32: 11503281.15 | K32: 11786328.62
A33: Community and social services | C33: =A2A!C86 -> 0 | D33: =A2A!D86 -> 734536 | E33: =A2A!E86 -> 6818067 | F33: =A2A!F86 -> 13853133.96 | G33: =A2A!G86 -> 12588000 | H33: =A2A!H86 -> 0 | I33: =A2A!I86 -> 11232600.15 | J33: =A2A!J86 -> 11503281.15 | K33: =A2A!K86 -> 11786328.62
A34: Sport and recreation | C34: =A2A!C95 -> 0 | D34: =A2A!D95 -> 0 | E34: =A2A!E95 -> 0 | F34: =A2A!F95 -> 0 | G34: =A2A!G95 -> 0 | H34: =A2A!H95 -> 0 | I34: =A2A!I95 -> 0 | J34: =A2A!J95 -> 0 | K34: =A2A!K95 -> 0
A35: Public safety | C35: =A2A!C96 -> 17326 | D35: =A2A!D96 -> 21833 | E35: =A2A!E96 -> 0 | F35: =A2A!F96 -> 0 | G35: =A2A!G96 -> 0 | H35: =A2A!H96 -> 0 | I35: =A2A!I96 -> 0 | J35: =A2A!J96 -> 0 | K35: =A2A!K96 -> 0
A36: Housing | C36: =A2A!C102 -> 0 | D36: =A2A!D102 -> 0 | E36: =A2A!E102 -> 0 | F36: =A2A!F102 -> 0 | G36: =A2A!G102 -> 0 | H36: =A2A!H102 -> 0 | I36: =A2A!I102 -> 0 | J36: =A2A!J102 -> 0 | K36: =A2A!K102 -> 0
A37: Health | C37: =A2A!C103 -> 0 | D37: =A2A!D103 -> 0 | E37: =A2A!E103 -> 0 | F37: =A2A!F103 -> 0 | G37: =A2A!G103 -> 0 | H37: =A2A!H103 -> 0 | I37: =A2A!I103 -> 0 | J37: =A2A!J103 -> 0 | K37: =A2A!K103 -> 0
A38: Economic and environmental services | C38: =SUM(C39:C41) -> 0 | D38: =SUM(D39:D41) -> 0 | E38: 0 | F38: 4635533.98 | G38: 4724000 | H38: 0 | I38: 4911988.82 | J38: 6671108.708 | K38: 8984366.465
A39: Planning and development | C39: =A2A!C108 -> 0 | D39: =A2A!D108 -> 0 | E39: =A2A!E108 -> 0 | F39: =A2A!F108 -> 0 | G39: =A2A!G108 -> 0 | H39: =A2A!H108 -> 0 | I39: =A2A!I108 -> 0 | J39: =A2A!J108 -> 0 | K39: =A2A!K108 -> 0
A40: Road transport | C40: =A2A!C112 -> 0 | D40: =A2A!D112 -> 0 | E40: =A2A!E112 -> 0 | F40: =A2A!F112 -> 4635533.98 | G40: =A2A!G112 -> 4724000 | H40: =A2A!H112 -> 0 | I40: =A2A!I112 -> 4911988.82 | J40: =A2A!J112 -> 6671108.708 | K40: =A2A!K112 -> 8984366.465
A41: Environmental protection | C41: =A2A!C118 -> 0 | D41: =A2A!D118 -> 0 | E41: =A2A!E118 -> 0 | F41: =A2A!F118 -> 0 | G41: =A2A!G118 -> 0 | H41: =A2A!H118 -> 0 | I41: =A2A!I118 -> 0 | J41: =A2A!J118 -> 0 | K41: =A2A!K118 -> 0
A42: Trading services | C42: =SUM(C43:C46) -> 29906165 | D42: =SUM(D43:D46) -> 27082681 | E42: 48836895 | F42: =SUM(F43:F46) -> 32010169.03 | G42: 39854000 | H42: 0 | I42: 31807629.06 | J42: 35101483.35 | K42: =SUM(K43:K46) -> 39474688.64
A43: Electricity | C43: =A2A!C123 -> 17199992 | D43: =A2A!D123 -> 6729008 | E43: =A2A!E123 -> 10962325 | F43: =A2A!F123 -> 7494938.24 | G43: =A2A!G123 -> 7724000 | H43: =A2A!H123 -> 0 | I43: =A2A!I123 -> 7685341.081 | J43: =A2A!J123 -> 9885494.491 | K43: =A2A!K123 -> 11937082.74
A44: Water | C44: =A2A!C126 -> 12706173 | D44: =A2A!D126 -> 20353673 | E44: =A2A!E126 -> 37874570 | F44: =A2A!F126 -> 24515230.79 | G44: =A2A!G126 -> 32130000 | H44: =A2A!H126 -> 0 | I44: =A2A!I126 -> 24122287.98 | J44: =A2A!J126 -> 25215988.86 | K44: =A2A!K126 -> 27537605.91
A45: Waste water management | C45: =A2A!C129 -> 0 | D45: =A2A!D129 -> 0 | E45: =A2A!E129 -> 0 | F45: =A2A!F129 -> 0 | G45: =A2A!G129 -> 0 | H45: =A2A!H129 -> 0 | I45: =A2A!I129 -> 0 | J45: =A2A!J129 -> 0 | K45: =A2A!K129 -> 0
A46: Waste management | C46: =A2A!C133 -> 0 | D46: =A2A!D133 -> 0 | E46: =A2A!E133 -> 0 | F46: =A2A!F133 -> 0 | G46: =A2A!G133 -> 0 | H46: =A2A!H133 -> 0 | I46: =A2A!I133 -> 0 | J46: =A2A!J133 -> 0 | K46: =A2A!K133 -> 0
A47: Other | B47: 4 | C47: =A2A!C135 -> 15737848 | D47: =A2A!D135 -> 0 | E47: =A2A!E135 -> 0 | F47: =A2A!F135 -> 980365.2 | G47: =A2A!G135 -> 999000 | H47: =A2A!H135 -> 0 | I47: =A2A!I135 -> 1238087.242 | J47: =A2A!J135 -> 1250008.115 | K47: =A2A!K135 -> 1277422.636
A48: ="Total "&A27 -> Total Expenditure - Standard | B48: 3 | C48: =C28+C32+C38+C42+C47 -> 337918604 | D48: =D28+D32+D38+D42+D47 -> 264202200 | E48: =E28+E32+E38+E42+E47 -> 267891073 | F48: =F28+F32+F38+F42+F47 -> 186259230.5 | G48: 191481000 | H48: 0 | I48: 213531008.9 | J48: 223130853.3 | K48: 234407925.8
A49: =result -> Surplus/(Deficit) for the year | C49: =C25-C48 -> -158841689 | D49: =D25-D48 -> -54960990 | E49: -50080396 | F49: 41955764.11 | G49: 42133994.6 | H49: 0 | I49: 21678295.99 | J49: 25067859.32 | K49: 32645959.12
A50: =head27a -> References
A51: 1. Government Finance Statistics Functions and Sub-functions are standardised to assist the compilation of national and international accounts for comparison purposes
A52: 2. Total Revenue by standard classification must reconcile to Total Operating Revenue shown in Budgeted Financial Performance (revenue and expenditure)
A53: 3. Total Expenditure by Standard Classification must reconcile to Total Operating Expenditure shown in Budgeted Financial Performance (revenue and expenditure)
A54: 4. All amounts must be classified under a standard classification (modified GFS). The GFS function 'Other' is only for Abbatoirs, Air Transport, Markets and Tourism - and if used must be supported by footnotes. Nothing else may be placed under 'Other'. Assign associate share to relevant classification
A57: check oprev balance | C57: =C25-'A4-FinPerf RE'!C60 -> 0 | D57: =D25-'A4-FinPerf RE'!D60 -> 0 | E57: =E25-'A4-FinPerf RE'!E60 -> 0 | F57: =F25-'A4-FinPerf RE'!F60 -> -1.400000006 | G57: =G25-'A4-FinPerf RE'!G60 -> -1.400000006 | H57: =H25-'A4-FinPerf RE'!H60 -> -228214996 | I57: =I25-'A4-FinPerf RE'!J60 -> -0.0002327859402 | J57: =J25-'A4-FinPerf RE'!K60 -> 0.02295321226 | K57: =K25-'A4-FinPerf RE'!L60 -> -0.4826694727
A58: check opexp balance | C58: =C48-'A4-FinPerf RE'!C36 -> 0 | D58: =D48-'A4-FinPerf RE'!D36 -> 0 | E58: =E48-'A4-FinPerf RE'!E36 -> 45 | F58: =F48-'A4-FinPerf RE'!F36 -> -0.8914015889 | G58: =G48-'A4-FinPerf RE'!G36 -> -1627.281402 | H58: =H48-'A4-FinPerf RE'!H36 -> -186259231.4 | I58: =I48-'A4-FinPerf RE'!J36 -> 0 | J58: =J48-'A4-FinPerf RE'!K36 -> 0 | K58: =K48-'A4-FinPerf RE'!L36 -> 0

Sheet A2A
A1: =muni&" - "&Approve3 -> FS205 Mafube - Table A2 Budgeted Financial Performance (revenue and expenditure by standard classification)
A2: ="Standard Classification "&desc -> Standard Classification Description | B2: =head27 -> Ref | C2: =head1b -> 2013/14 | D2: =head1A -> 2014/15 | E2: =Head1 -> 2015/16 | F2: =Head2 -> Current Year 2016/17 | I2: =Head3 -> 2017/18 Medium Term Revenue & Expenditure Framework
A3: R thousand | B3: 1 | C3: =Head5 -> Audited Outcome | D3: =Head5 -> Audited Outcome | E3: =Head5 -> Audited Outcome | F3: =Head6 -> Original Budget | G3: =Head7 -> Adjusted Budget | H3: =Head8 -> Full Year Forecast | I3: =Head9 -> Budget Year 2017/18 | J3: =Head10 -> Budget Year +1 2018/19 | K3: =Head11 -> Budget Year +2 2019/20
A4: Revenue - Standard
A5: Municipal governance and administration | C5: =C6+C9+C10 -> 110166887 | D5: =D6+D9+D10 -> 128964469 | E5: 141428114 | F5: 142011255.6 | G5: 147411255.6 | H5: 0 | I5: 146066878.3 | J5: 156781478 | K5: 165780513
A6: Executive and council | C6: =SUM(C7:C8) -> 0 | D6: =SUM(D7:D8) -> 0 | E6: 0 | F6: 0 | G6: 0 | H6: 0 | I6: 0 | J6: 0 | K6: 0
A7: Mayor and Council
A8: Municipal Manager
A9: Budget and treasury office | C9: 110166887 | D9: 128964469 | E9: 141428114 | F9: 142011255.6 | G9: 147411255.6 | I9: 146066878.3 | J9: 156781478 | K9: 165780513
A10: Corporate services | C10: =SUM(C11:C14) -> 0 | D10: =SUM(D11:D14) -> 0 | E10: 0 | F10: 0 | G10: 0 | H10: 0 | I10: 0 | J10: 0 | K10: 0
A11: Human Resources
A12: Information Technology
A13: Property Services
A14: Other Admin
A15: Community and public safety | C15: =C16+C25+C26+C32+C33 -> 0 | D15: =D16+D25+D26+D32+D33 -> 688651 | E15: 0 | F15: 0 | G15: 0 | H15: 0 | I15: 0 | J15: 0 | K15: 0
A16: Community and social services | C16: =SUM(C17:C24) -> 0 | D16: =SUM(D17:D24) -> 688651 | E16: 0 | F16: 0 | G16: 0 | H16: 0 | I16: 0 | J16: 0 | K16: 0
A17: Libraries and Archives
A18: Museums & Art Galleries etc
A19: Community halls and Facilities
A20: Cemeteries & Crematoriums
A21: Child Care
A22: Aged Care
A23: Other Community | D23: 688651
A24: Other Social
A25: Sport and recreation
A26: Public safety | C26: =SUM(C27:C31) -> 0 | D26: =SUM(D27:D31) -> 0 | E26: 0 | F26: 0 | G26: 0 | H26: 0 | I26: 0 | J26: 0 | K26: 0
A27: Police
A28: Fire
A29: Civil Defence
A30: Street Lighting
A31: Other
A32: Housing
A33: Health | C33: =SUM(C34:C36) -> 0 | D33: =SUM(D34:D36) -> 0 | E33: 0 | F33: 0 | G33: 0 | H33: 0 | I33: 0 | J33: 0 | K33: 0
A34: Clinics
A35: Ambulance
A36: Other
A37: Economic and environmental services | C37: =C38+C42+C48 -> 0 | D37: =D38+D42+D48 -> 144746 | E37: 0 | F37: 0 | G37: 0 | H37: 0 | I37: 0 | J37: 0 | K37: 0
A38: Planning and development | C38: =SUM(C39:C41) -> 0 | D38: =SUM(D39:D41) -> 134610 | E38: 0 | F38: 0 | G38: 0 | H38: 0 | I38: 0 | J38: 0 | K38: 0
A39: Economic Development/Planning
A40: Town Planning/Building enforcement | D40: 134610
A41: Licensing & Regulation
A42: Road transport | C42: =SUM(C43:C47) -> 0 | D42: =SUM(D43:D47) -> 10136 | E42: 0 | F42: 0 | G42: 0 | H42: 0 | I42: 0 | J42: 0 | K42: 0
A43: Roads | D43: 10136
A44: Public Buses
A45: Parking Garages
A46: Vehicle Licensing and Testing
A47: Other
A48: Environmental protection | C48: =SUM(C49:C51) -> 0 | D48: =SUM(D49:D51) -> 0 | E48: 0 | F48: 0 | G48: 0 | H48: 0 | I48: 0 | J48: 0 | K48: 0
A49: Pollution Control
A50: Biodiversity & Landscape
A51: Other
A52: Trading services | C52: =C53+C56+C59+C63 -> 53962745 | D52: =D53+D56+D59+D63 -> 79443344 | E52: 76382563 | F52: 64781739 | G52: 64781739 | H52: 0 | I52: 62062426.63 | J52: 67543234.65 | K52: =K53+K56+K59+K63 -> 76236371.97
A53: Electricity | C53: =SUM(C54:C55) -> 6269791 | D53: =SUM(D54:D55) -> 7404258 | E53: 9367654 | F53: 11000000 | G53: 11000000 | H53: 0 | I53: 5000000 | J53: 7000000 | K53: 12000000
A54: Electricity Distribution | C54: 6269791 | D54: 7404258 | E54: 9367654 | F54: 11000000 | G54: 11000000 | I54: 5000000 | J54: 7000000 | K54: 12000000
A55: Electricity Generation
A56: Water | C56: =SUM(C57:C58) -> 18518134 | D56: =SUM(D57:D58) -> 43217236 | E56: 37125741 | F56: 23098759 | G56: 23098759 | H56: 0 | I56: 24507784.34 | J56: 26002759.18 | K56: 27588927.49
A57: Water Distribution | C57: 18518134 | D57: 43217236 | E57: 37125741 | F57: 23098759 | G57: 23098759 | I57: 24507784.34 | J57: 26002759.18 | K57: 27588927.49
A58: Water Storage
A59: Waste water management | C59: =SUM(C60:C62) -> 15312749 | D59: =SUM(D60:D62) -> 16696403 | E59: 17305717 | F59: 17776153 | G59: 17776153 | H59: 0 | I59: 18860498.71 | J59: 20010989.14 | K59: 21231659.47
A60: Sewerage | C60: 15312749 | D60: 16696403 | E60: 17305717 | F60: 17776153 | G60: 17776153 | I60: 18860498.71 | J60: 20010989.14 | K60: 21231659.47
A61: Storm Water Management
A62: Public Toilets
A63: Waste management | C63: =SUM(C64) -> 13862071 | D63: =SUM(D64) -> 12125447 | E63: 12583451 | F63: 12906827 | G63: 12906827 | H63: 0 | I63: 13694143.57 | J63: 14529486.33 | K63: 15415785
A64: Solid Waste | C64: 13862071 | D64: 12125447 | E64: 12583451 | F64: 12906827 | G64: 12906827 | I64: 13694143.57 | J64: 14529486.33 | K64: 15415785
A65: Other | C65: =SUM(C66:C71) -> 14947283 | D65: =SUM(D66:D71) -> 0 | E65: 0 | F65: 21422000 | G65: 21422000 | H65: 0 | I65: 27080000 | J65: 23874000 | K65: 25037000
A66: Air Transport
A67: Abattoirs
A68: Tourism
A69: Forestry
A70: Markets
A71: Other | C71: 14947283 | F71: 21422000 | G71: 21422000 | I71: 27080000 | J71: 23874000 | K71: 25037000
A72: ="Total "&A4 -> Total Revenue - Standard | B72: 2 | C72: =C5+C15+C37+C52+C65 -> 179076915 | D72: =D5+D15+D37+D52+D65 -> 209241210 | E72: =E5+E15+E37+E52+E65 -> 217810677 | F72: 228214994.6 | G72: 233614994.6 | H72: 0 | I72: 235209304.9 | J72: 248198712.7 | K72: =K5+K15+K37+K52+K65 -> 267053885
A74: Expenditure - Standard
A75: =A5 -> Municipal governance and administration | C75: =C76+C79+C80 -> 292257265 | D75: 236363150 | E75: 212236111 | F75: 134780028.3 | G75: 133316000 | H75: 0 | I75: 164340703.6 | J75: 168604972 | K75: 172885119.5
A76: Executive and council | C76: =SUM(C77:C78) -> 8533570 | D76: 58411424 | E76: 44320779 | F76: 72115662.64 | G76: 66775000 | H76: 0 | I76: 62755315.96 | J76: 64128644.12 | K76: 65351223.63
A77: Mayor and Council | C77: 8533570 | D77: 7339277 | E77: 9852522 | F77: 22163675.87 | G77: 18134000 | I77: 17154173.54 | J77: 17658490.28 | K77: 18188149.46
A78: Municipal Manager | D78: 51072147 | E78: 34468257 | F78: 49951986.77 | G78: 48641000 | I78: 45601142.42 | J78: 46470153.84 | K78: 47163074.17
A79: Budget and treasury office | C79: 198189107 | D79: 99589241 | E79: 82117563 | F79: 29195828.35 | G79: 27946000 | I79: 70477220.99 | J79: 72022034.53 | K79: 73656876.82
A80: Corporate services | C80: =SUM(C81:C84) -> 85534588 | D80: 78362485 | E80: 85797769 | F80: 33468537.33 | G80: 38595000 | H80: 0 | I80: 31108166.7 | J80: 32454293.36 | K80: 33877019.04
A81: Human Resources | C81: 85534588 | D81: 73859689 | E81: 79197234 | F81: 7310691.19 | G81: 6939000 | I81: 6401040.354 | J81: 6682055.758 | K81: 6979118.62
A82: Information Technology
A83: Property Services
A84: Other Admin | D84: 4502796 | E84: 6600535 | F84: 26157846.14 | G84: 31656000 | I84: 24707126.34 | J84: 25772237.61 | K84: 26897900.42
A85: Community and public safety | C85: =C86+C95+C96+C102+C103 -> 17326 | D85: 756369 | E85: 6818067 | F85: 13853133.96 | G85: 12588000 | H85: 0 | I85: 11232600.15 | J85: 11503281.15 | K85: 11786328.62
A86: Community and social services | C86: =SUM(C87:C94) -> 0 | D86: 734536 | E86: 6818067 | F86: 13853133.96 | G86: 12588000 | H86: 0 | I86: 11232600.15 | J86: 11503281.15 | K86: 11786328.62
A87: Libraries and Archives
A88: Museums & Art Galleries etc
A89: Community halls and Facilities
A90: Cemeteries & Crematoriums
A91: Child Care
A92: Aged Care
A93: Other Community | D93: 734536 | E93: 6818067 | F93: 13853133.96 | G93: 12588000 | I93: 11232600.15 | J93: 11503281.15 | K93: 11786328.62
A94: Other Social
A95: Sport and recreation
A96: Public safety | C96: =SUM(C97:C101) -> 17326 | D96: 21833 | E96: 0 | F96: 0 | G96: 0 | H96: 0 | I96: 0 | J96: 0 | K96: 0
A97: Police
A98: Fire
A99: Civil Defence
A100: Street Lighting
A101: Other | C101: 17326 | D101: 21833
A102: Housing
A103: Health | C103: =SUM(C104:C106) -> 0 | D103: 0 | E103: 0 | F103: 0 | G103: 0 | H103: 0 | I103: 0 | J103: 0 | K103: 0
A104: Clinics
A105: Ambulance
A106: Other
A107: =A37 -> Economic and environmental services | C107: =C108+C112+C118 -> 0 | D107: 0 | E107: 0 | F107: 4635533.98 | G107: 4724000 | H107: 0 | I107: 4911988.82 | J107: 6671108.708 | K107: 8984366.465
A108: Planning and development | C108: =SUM(C109:C111) -> 0 | D108: 0 | E108: 0 | F108: 0 | G108: 0 | H108: 0 | I108: 0 | J108: 0 | K108: 0
A109: Economic Development/Planning
A110: Town Planning/Building enforcement
A111: Licensing & Regulation
A112: Road transport | C112: =SUM(C113:C117) -> 0 | D112: 0 | E112: 0 | F112: 4635533.98 | G112: 4724000 | H112: 0 | I112: 4911988.82 | J112: 6671108.708 | K112: 8984366.465
A113: Roads | F113: 4635533.98 | G113: 4724000 | I113: 4911988.82 | J113: 6671108.708 | K113: 8984366.465
A114: Public Buses
A115: Parking Garages
A116: Vehicle Licensing and Testing
A117: Other
A118: Environmental protection | C118: =SUM(C119:C121) -> 0 | D118: 0 | E118: 0 | F118: 0 | G118: 0 | H118: 0 | I118: 0 | J118: 0 | K118: 0
A119: Pollution Control
A120: Biodiversity & Landscape
A121: Other
A122: Trading services | C122: =C123+C126+C129+C133 -> 29906165 | D122: =D123+D126+D129+D133 -> 27082681 | E122: 48836895 | F122: 32010169.03 | G122: 39854000 | H122: 0 | I122: 31807629.06 | J122: 35101483.35 | K122: 39474688.64
A123: Electricity | C123: =SUM(C124:C125) -> 17199992 | D123: 6729008 | E123: 10962325 | F123: 7494938.24 | G123: 7724000 | H123: 0 | I123: 7685341.081 | J123: 9885494.491 | K123: 11937082.74
A124: Electricity Distribution | C124: 17199992 | D124: 6729008 | E124: 10962325 | F124: 7494938.24 | G124: 7724000 | I124: 7685341.081 | J124: 9885494.491 | K124: 11937082.74
A125: Electricity Generation
A126: Water | C126: =SUM(C127:C128) -> 12706173 | D126: 20353673 | E126: 37874570 | F126: 24515230.79 | G126: 32130000 | H126: 0 | I126: 24122287.98 | J126: 25215988.86 | K126: 27537605.91
A127: Water Distribution | C127: 12706173 | D127: 20353673 | E127: 37874570 | F127: 24515230.79 | G127: 32130000 | I127: 24122287.98 | J127: 25215988.86 | K127: 27537605.91
A128: Water Storage
A129: Waste water management | C129: =SUM(C130:C132) -> 0 | D129: 0 | E129: 0 | F129: 0 | G129: 0 | H129: 0 | I129: 0 | J129: 0 | K129: 0
A130: Sewerage
A131: Storm Water Management
A132: Public Toilets
A133: Waste management | C133: =SUM(C134) -> 0 | D133: 0 | E133: 0 | F133: 0 | G133: 0 | H133: 0 | I133: 0 | J133: 0 | K133: 0
A134: Solid Waste
A135: Other | C135: =SUM(C136:C141) -> 15737848 | D135: =SUM(D136:D141) -> 0 | E135: 0 | F135: 980365.2 | G135: 999000 | H135: 0 | I135: 1238087.242 | J135: 1250008.115 | K135: 1277422.636
A136: Air Transport
A137: Abattoirs
A138: Tourism
A139: =A69 -> Forestry
A140: =A70 -> Markets
A141: Other | C141: 15737848 | F141: 980365.2 | G141: 999000 | I141: 1238087.242 | J141: 1250008.115 | K141: 1277422.636
A142: ="Total "&A74 -> Total Expenditure - Standard | B142: 3 | C142: =C75+C85+C107+C122+C135 -> 337918604 | D142: =D75+D85+D107+D122+D135 -> 264202200 | E142: =E75+E85+E107+E122+E135 -> 267891073 | F142: 186259230.5 | G142: 191481000 | H142: 0 | I142: 213531008.9 | J142: 223130853.3 | K142: =K75+K85+K107+K122+K135 -> 234407925.8
A143: =result -> Surplus/(Deficit) for the year | C143: =C72-C142 -> -158841689 | D143: -54960990 | E143: -50080396 | F143: 41955764.11 | G143: 42133994.6 | H143: 0 | I143: 21678295.99 | J143: 25067859.32 | K143: 32645959.12
A144: =head27a -> References
A145: 1. Government Finance Statistics Functions and Sub-functions are standardised to assist national and international accounts and comparison
A146: 2. Total Revenue by Standard Classification must reconcile to total operating revenue shown in Financial Performance (revenue and expenditure)
A147: 3. Total Expenditure by Standard Classification must reconcile to total operating expenditure shown in Financial Performance (revenue and expenditure)
A148: 4. All amounts must be classified under a Standard (modified GFS) classification. The GFS function 'Other' is only for Abbatoirs, Air Transport, Markets and Tourism - and if used must be supported by footnotes. Nothing else may be placed under 'Other'. Assign associate share to relevant classification
A151: check oprev balance | C151: =C72-'A4-FinPerf RE'!C60 -> 0 | D151: =D72-'A4-FinPerf RE'!D60 -> 0 | E151: =E72-'A4-FinPerf RE'!E60 -> 0 | F151: =F72-'A4-FinPerf RE'!F60 -> -1.400000006 | G151: =G72-'A4-FinPerf RE'!G60 -> -1.400000006 | H151: =H72-'A4-FinPerf RE'!H60 -> -228214996 | I151: =I72-'A4-FinPerf RE'!J60 -> -0.0002327859402 | J151: =J72-'A4-FinPerf RE'!K60 -> 0.02295321226 | K151: =K72-'A4-FinPerf RE'!L60 -> -0.4826694727
A152: check opexp balance | C152: =C142-'A4-FinPerf RE'!C36 -> 0 | D152: =D142-'A4-FinPerf RE'!D36 -> 0 | E152: =E142-'A4-FinPerf RE'!E36 -> 45 | F152: =F142-'A4-FinPerf RE'!F36 -> -0.8914015889 | G152: =G142-'A4-FinPerf RE'!G36 -> -1627.281402 | H152: =H142-'A4-FinPerf RE'!H36 -> -186259231.4 | I152: =I142-'A4-FinPerf RE'!J36 -> 0 | J152: =J142-'A4-FinPerf RE'!K36 -> 0 | K152: =K142-'A4-FinPerf RE'!L36 -> 0

Sheet A3-FinPerf V
A1: =muni&" - "&Approve2 -> FS205 Mafube - Table A3 Budgeted Financial Performance (revenue and expenditure by municipal vote)
A2: =Vdesc -> Vote Description | B2: =head27 -> Ref | C2: =head1b -> 2013/14 | D2: =head1A -> 2014/15 | E2: =Head1 -> 2015/16 | F2: =Head2 -> Current Year 2016/17 | I2: =Head3 -> 2017/18 Medium Term Revenue & Expenditure Framework | L2: =Head4 -> LTFS
A3: R thousand | C3: =Head5 -> Audited Outcome | D3: =Head5 -> Audited Outcome | E3: =Head5 -> Audited Outcome | F3: =Head6 -> Original Budget | G3: =Head7 -> Adjusted Budget | H3: =Head8 -> Full Year Forecast | I3: =Head9 -> Budget Year 2017/18 | J3: =Head10 -> Budget Year +1 2018/19 | K3: =Head11 -> Budget Year +2 2019/20 | L3: =Head12 -> Forecast 2020/21 | M3: =Head13 -> Forecast 2021/22 | N3: =Head14 -> Forecast 2022/23 | O3: =Head15 -> Forecast 2023/24 | P3: =Head16 -> Forecast 2024/25 | Q3: =Head17 -> Forecast 2025/26 | R3: =Head18 -> Forecast 2026/27 | S3: =Head19 -> Forecast 2027/28 | T3: =Head20 -> Forecast 2028/29 | U3: =Head21 -> Forecast 2029/30 | V3: =Head22 -> Forecast 2030/31 | W3: =Head23 -> Forecast 2031/32
A4: Revenue by Vote | B4: 1
A5: =A3A!A5 -> Vote 1 - OFFICE OF THE MAYOR | C5: =A3A!C5 -> 0 | D5: =A3A!D5 -> 0 | E5: =A3A!E5 -> 0 | F5: =A3A!F5 -> 0 | G5: =A3A!G5 -> 0 | H5: =A3A!H5 -> 0 | I5: =A3A!I5 -> 0 | J5: =A3A!J5 -> 0 | K5: =A3A!K5 -> 0
A6: =A3A!A16 -> Vote 2 - OFFICE OF THE SPEAKER | C6: =A3A!C16 -> 0 | D6: =A3A!D16 -> 0 | E6: =A3A!E16 -> 0 | F6: =A3A!F16 -> 0 | G6: =A3A!G16 -> 0 | H6: =A3A!H16 -> 0 | I6: =A3A!I16 -> 0 | J6: =A3A!J16 -> 0 | K6: =A3A!K16 -> 0
A7: =A3A!A27 -> Vote 3 - OFFICE OF THE MUNICIPAL MANAGER | C7: =A3A!C27 -> 0 | D7: =A3A!D27 -> 134610 | E7: =A3A!E27 -> 0 | F7: =A3A!F27 -> 0 | G7: =A3A!G27 -> 0 | H7: =A3A!H27 -> 0 | I7: =A3A!I27 -> 0 | J7: =A3A!J27 -> 0 | K7: =A3A!K27 -> 0
A8: =A3A!A38 -> Vote 4 - COMMUNITY SERVICES | C8: =A3A!C38 -> 13862071 | D8: =A3A!D38 -> 12814098 | E8: =A3A!E38 -> 12583451 | F8: =A3A!F38 -> 12906827.12 | G8: =A3A!G38 -> 12906827.12 | H8: =A3A!H38 -> 0 | I8: =A3A!I38 -> 13694144 | J8: =A3A!J38 -> 14529486 | K8: =A3A!K38 -> 15415785
A9: =A3A!A49 -> Vote 5 - CORPORATE SERVICES | C9: =A3A!C49 -> 0 | D9: =A3A!D49 -> 0 | E9: =A3A!E49 -> 0 | F9: =A3A!F49 -> 0 | G9: =A3A!G49 -> 0 | H9: =A3A!H49 -> 0 | I9: =A3A!I49 -> 0 | J9: =A3A!J49 -> 0 | K9: =A3A!K49 -> 0
A10: =A3A!A60 -> Vote 6 - FINANCIAL SERVICES | C10: =A3A!C60 -> 110166887 | D10: =A3A!D60 -> 128964469 | E10: =A3A!E60 -> 141428114 | F10: =A3A!F60 -> 142011255.6 | G10: =A3A!G60 -> 147411255.6 | H10: =A3A!H60 -> 0 | I10: =A3A!I60 -> 146066877.9 | J10: =A3A!J60 -> 156781478.6 | K10: =A3A!K60 -> 165780514.4
A11: =A3A!A71 -> Vote 7 - INFRASTRUCTURE SERVICES | C11: =A3A!C71 -> 55047957 | D11: =A3A!D71 -> 67328033 | E11: =A3A!E71 -> 63799112 | F11: =A3A!F71 -> 73296913.34 | G11: =A3A!G71 -> 73296913.34 | H11: =A3A!H71 -> 0 | I11: =A3A!I71 -> 75448283 | J11: =A3A!J71 -> 76887748 | K11: =A3A!K71 -> 85857586
A12: =A3A!A82 -> Vote 8 - SERVICE DELIVERY AND PUBLIC SAFETY | C12: =A3A!C82 -> 0 | D12: =A3A!D82 -> 0 | E12: =A3A!E82 -> 0 | F12: =A3A!F82 -> 0 | G12: =A3A!G82 -> 0 | H12: =A3A!H82 -> 0 | I12: =A3A!I82 -> 0 | J12: =A3A!J82 -> 0 | K12: =A3A!K82 -> 0
A13: =A3A!A93 -> Vote 9 - [NAME OF VOTE 9] | C13: =A3A!C93 -> 0 | D13: =A3A!D93 -> 0 | E13: =A3A!E93 -> 0 | F13: =A3A!F93 -> 0 | G13: =A3A!G93 -> 0 | H13: =A3A!H93 -> 0 | I13: =A3A!I93 -> 0 | J13: =A3A!J93 -> 0 | K13: =A3A!K93 -> 0
A14: =A3A!A104 -> Vote 10 - [NAME OF VOTE 10] | C14: =A3A!C104 -> 0 | D14: =A3A!D104 -> 0 | E14: =A3A!E104 -> 0 | F14: =A3A!F104 -> 0 | G14: =A3A!G104 -> 0 | H14: =A3A!H104 -> 0 | I14: =A3A!I104 -> 0 | J14: =A3A!J104 -> 0 | K14: =A3A!K104 -> 0
A15: =A3A!A115 -> Vote 11 - [NAME OF VOTE 11] | C15: =A3A!C115 -> 0 | D15: =A3A!D115 -> 0 | E15: =A3A!E115 -> 0 | F15: =A3A!F115 -> 0 | G15: =A3A!G115 -> 0 | H15: =A3A!H115 -> 0 | I15: =A3A!I115 -> 0 | J15: =A3A!J115 -> 0 | K15: =A3A!K115 -> 0 | L15: =A5A!L115 -> 0
A16: =A3A!A126 -> Vote 12 - [NAME OF VOTE 12] | C16: =A3A!C126 -> 0 | D16: =A3A!D126 -> 0 | E16: =A3A!E126 -> 0 | F16: =A3A!F126 -> 0 | G16: =A3A!G126 -> 0 | H16: =A3A!H126 -> 0 | I16: =A3A!I126 -> 0 | J16: =A3A!J126 -> 0 | K16: =A3A!K126 -> 0 | L16: =A5A!L126 -> 0
A17: =A3A!A137 -> Vote 13 - [NAME OF VOTE 13] | C17: =A3A!C137 -> 0 | D17: =A3A!D137 -> 0 | E17: =A3A!E137 -> 0 | F17: =A3A!F137 -> 0 | G17: =A3A!G137 -> 0 | H17: =A3A!H137 -> 0 | I17: =A3A!I137 -> 0 | J17: =A3A!J137 -> 0 | K17: =A3A!K137 -> 0 | L17: =A5A!L137 -> 0
A18: =A3A!A148 -> Vote 14 - [NAME OF VOTE 14] | C18: =A3A!C148 -> 0 | D18: =A3A!D148 -> 0 | E18: =A3A!E148 -> 0 | F18: =A3A!F148 -> 0 | G18: =A3A!G148 -> 0 | H18: =A3A!H148 -> 0 | I18: =A3A!I148 -> 0 | J18: =A3A!J148 -> 0 | K18: =A3A!K148 -> 0 | L18: =A5A!L148 -> 0
A19: =A3A!A159 -> Vote 15 - [NAME OF VOTE 15] | C19: =A3A!C159 -> 0 | D19: =A3A!D159 -> 0 | E19: =A3A!E159 -> 0 | F19: =A3A!F159 -> 0 | G19: =A3A!G159 -> 0 | H19: =A3A!H159 -> 0 | I19: =A3A!I159 -> 0 | J19: =A3A!J159 -> 0 | K19: =A3A!K159 -> 0 | L19: =A5A!L159 -> 0
A20: Total Revenue by Vote | B20: 2 | C20: =SUM(C5:C19) -> 179076915 | D20: =SUM(D5:D19) -> 209241210 | E20: 217810677 | F20: 228214996.1 | G20: 233614996.1 | H20: 0 | I20: 235209304.9 | J20: 248198712.6 | K20: 267053885.4
A22: Expenditure by Vote to be appropriated | B22: 1
A23: =A3A!A173 -> Vote 1 - OFFICE OF THE MAYOR | C23: =A3A!C173 -> 8850580 | D23: =A3A!D173 -> 7339277 | E23: =A3A!E173 -> 9852522 | F23: =A3A!F173 -> 10955747.87 | G23: =A3A!G173 -> 7665110.22 | H23: =A3A!H173 -> 0 | I23: =A3A!I173 -> 7134761.716 | J23: =A3A!J173 -> 7468759.333 | K23: =A3A!K173 -> 7822118.577
A24: =A3A!A184 -> Vote 2 - OFFICE OF THE SPEAKER | C24: =A3A!C184 -> 0 | D24: =A3A!D184 -> 0 | E24: =A3A!E184 -> 0 | F24: =A3A!F184 -> 11207928.35 | G24: =A3A!G184 -> 10468823.59 | H24: =A3A!H184 -> 0 | I24: =A3A!I184 -> 10019411.83 | J24: =A3A!J184 -> 10189730.94 | K24: =A3A!K184 -> 10366030.88
A25: =A3A!A195 -> Vote 3 - OFFICE OF THE MUNICIPAL MANAGER | C25: =A3A!C195 -> 2836462 | D25: =A3A!D195 -> 51072147 | E25: =A3A!E195 -> 34468257 | F25: =A3A!F195 -> 49951986.77 | G25: =A3A!G195 -> 48391417.08 | H25: =A3A!H195 -> 0 | I25: =A3A!I195 -> 45601142.42 | J25: =A3A!J195 -> 46470153.84 | K25: =A3A!K195 -> 47163074.17
A26: =A3A!A206 -> Vote 4 - COMMUNITY SERVICES | C26: =A3A!C206 -> 13862071 | D26: =A3A!D206 -> 734536 | E26: =A3A!E206 -> 6818067 | F26: =A3A!F206 -> 13853133.96 | G26: =A3A!G206 -> 12587923.66 | H26: =A3A!H206 -> 0 | I26: =A3A!I206 -> 11232600.15 | J26: =A3A!J206 -> 11503281.15 | K26: =A3A!K206 -> 11786328.62
A27: =A3A!A217 -> Vote 5 - CORPORATE SERVICES | C27: =A3A!C217 -> 77187777 | D27: =A3A!D217 -> 78362485 | E27: =A3A!E217 -> 85797769 | F27: =A3A!F217 -> 33468537.32 | G27: =A3A!G217 -> 38595767.77 | H27: =A3A!H217 -> 0 | I27: =A3A!I217 -> 31108166.7 | J27: =A3A!J217 -> 32454293.36 | K27: =A3A!K217 -> 33877019.04
A28: =A3A!A228 -> Vote 6 - FINANCIAL SERVICES | C28: =A3A!C228 -> 181113830 | D28: =A3A!D228 -> 99589241 | E28: =A3A!E228 -> 82117563 | F28: =A3A!F228 -> 29195828.36 | G28: =A3A!G228 -> 27445885.05 | H28: =A3A!H228 -> 0 | I28: =A3A!I228 -> 70477220.99 | J28: =A3A!J228 -> 72022034.53 | K28: =A3A!K228 -> 73656876.82
A29: =A3A!A239 -> Vote 7 - INFRASTRUCTURE SERVICES | C29: =A3A!C239 -> 45644013 | D29: =A3A!D239 -> 27082681 | E29: =A3A!E239 -> 48836895 | F29: =A3A!F239 -> 37626068.21 | G29: =A3A!G239 -> 46326763.6 | H29: =A3A!H239 -> 0 | I29: =A3A!I239 -> 37957705.12 | J29: =A3A!J239 -> 43022600.18 | K29: =A3A!K239 -> 49736477.75
A30: =A3A!A250 -> Vote 8 - SERVICE DELIVERY AND PUBLIC SAFETY | C30: =A3A!C250 -> 17326 | D30: =A3A!D250 -> 21833 | E30: =A3A!E250 -> 0 | F30: =A3A!F250 -> 0 | G30: =A3A!G250 -> 0 | H30: =A3A!H250 -> 0 | I30: =A3A!I250 -> 0 | J30: =A3A!J250 -> 0 | K30: =A3A!K250 -> 0
A31: =A3A!A261 -> Vote 9 - [NAME OF VOTE 9] | C31: =A3A!C261 -> 0 | D31: =A3A!D261 -> 0 | E31: =A3A!E261 -> 0 | F31: =A3A!F261 -> 0 | G31: =A3A!G261 -> 0 | H31: =A3A!H261 -> 0 | I31: =A3A!I261 -> 0 | J31: =A3A!J261 -> 0 | K31: =A3A!K261 -> 0
A32: =A3A!A272 -> Vote 10 - [NAME OF VOTE 10] | C32: =A3A!C272 -> 0 | D32: =A3A!D272 -> 0 | E32: =A3A!E272 -> 0 | F32: =A3A!F272 -> 0 | G32: =A3A!G272 -> 0 | H32: =A3A!H272 -> 0 | I32: =A3A!I272 -> 0 | J32: =A3A!J272 -> 0 | K32: =A3A!K272 -> 0
A33: =A3A!A283 -> Vote 11 - [NAME OF VOTE 11] | C33: =A3A!C283 -> 0 | D33: =A3A!D283 -> 0 | E33: =A3A!E283 -> 0 | F33: =A3A!F283 -> 0 | G33: =A3A!G283 -> 0 | H33: =A3A!H283 -> 0 | I33: =A3A!I283 -> 0 | J33: =A3A!J283 -> 0 | K33: =A3A!K283 -> 0 | L33: =A3A!L284 -> 0
A34: =A3A!A294 -> Vote 12 - [NAME OF VOTE 12] | C34: =A3A!C294 -> 0 | D34: =A3A!D294 -> 0 | E34: =A3A!E294 -> 0 | F34: =A3A!F294 -> 0 | G34: =A3A!G294 -> 0 | H34: =A3A!H294 -> 0 | I34: =A3A!I294 -> 0 | J34: =A3A!J294 -> 0 | K34: =A3A!K294 -> 0 | L34: =A3A!L295 -> 0
A35: =A3A!A305 -> Vote 13 - [NAME OF VOTE 13] | C35: =A3A!C305 -> 0 | D35: =A3A!D305 -> 0 | E35: =A3A!E305 -> 0 | F35: =A3A!F305 -> 0 | G35: =A3A!G305 -> 0 | H35: =A3A!H305 -> 0 | I35: =A3A!I305 -> 0 | J35: =A3A!J305 -> 0 | K35: =A3A!K305 -> 0 | L35: =A3A!L306 -> 0
A36: =A3A!A316 -> Vote 14 - [NAME OF VOTE 14] | C36: =A3A!C316 -> 0 | D36: =A3A!D316 -> 0 | E36: =A3A!E316 -> 0 | F36: =A3A!F316 -> 0 | G36: =A3A!G316 -> 0 | H36: =A3A!H316 -> 0 | I36: =A3A!I316 -> 0 | J36: =A3A!J316 -> 0 | K36: =A3A!K316 -> 0 | L36: =A3A!L317 -> 0
A37: =A3A!A327 -> Vote 15 - [NAME OF VOTE 15] | C37: =A3A!C327 -> 0 | D37: =A3A!D327 -> 0 | E37: =A3A!E327 -> 0 | F37: =A3A!F327 -> 0 | G37: =A3A!G327 -> 0 | H37: =A3A!H327 -> 0 | I37: =A3A!I327 -> 0 | J37: =A3A!J327 -> 0 | K37: =A3A!K327 -> 0 | L37: =A3A!L328 -> 0
A38: Total Expenditure by Vote | B38: 2 | C38: =SUM(C23:C37) -> 329512059 | D38: =SUM(D23:D37) -> 264202200 | E38: 267891073 | F38: 186259230.8 | G38: 191481691 | H38: 0 | I38: 213531008.9 | J38: 223130853.3 | K38: 234407925.8 | L38: =SUM(L23:L29) -> 0 | M38: 0 | N38: 0 | O38: 0 | P38: 0 | Q38: 0 | R38: 0 | S38: 0 | T38: 0 | U38: 0 | V38: 0 | W38: 0
A39: =result -> Surplus/(Deficit) for the year | B39: 2 | C39: =C20-C38 -> -150435144 | D39: -54960990 | E39: -50080396 | F39: 41955765.22 | G39: 42133305.09 | H39: 0 | I39: 21678295.99 | J39: 25067859.29 | K39: 32645959.6 | L39: 0 | M39: 0 | N39: 0 | O39: 0 | P39: 0 | Q39: 0 | R39: 0 | S39: 0 | T39: 0 | U39: 0 | V39: 0 | W39: 0
A40: =head27a -> References
A41: 1. Insert 'Vote'; e.g. department, if different to standard classification structure
A42: 2. Must reconcile to Budgeted Financial Performance (revenue and expenditure)
A43: 3. Assign share in 'associate' to relevant Vote
A45: ="check "&A39 -> check Surplus/(Deficit) for the year | C45: =C39-A3A!C340 -> 0 | D45: =D39-A3A!D340 -> 0 | E45: =E39-A3A!E340 -> 0 | F45: =F39-A3A!F340 -> 0 | G45: =G39-A3A!G340 -> 0 | H45: =H39-A3A!H340 -> 0 | I45: =I39-A3A!I340 -> 0 | J45: =J39-A3A!J340 -> 0 | K45: =K39-A3A!K340 -> 0

Sheet A3A
A1: =muni&" - "&Approve2&"A" -> FS205 Mafube - Table A3 Budgeted Financial Performance (revenue and expenditure by municipal vote)A
A2: =Vdesc -> Vote Description | B2: =head27 -> Ref | C2: =head1b -> 2013/14 | D2: =head1A -> 2014/15 | E2: =Head1 -> 2015/16 | F2: =Head2 -> Current Year 2016/17 | I2: =Head3 -> 2017/18 Medium Term Revenue & Expenditure Framework | L2: =Head4 -> LTFS
A3: R thousand | C3: =Head5 -> Audited Outcome | D3: =Head5 -> Audited Outcome | E3: =Head5 -> Audited Outcome | F3: =Head6 -> Original Budget | G3: =Head7 -> Adjusted Budget | H3: =Head8 -> Full Year Forecast | I3: =Head9 -> Budget Year 2017/18 | J3: =Head10 -> Budget Year +1 2018/19 | K3: =Head11 -> Budget Year +2 2019/20 | L3: =Head12 -> Forecast 2020/21 | M3: =Head13 -> Forecast 2021/22 | N3: =Head14 -> Forecast 2022/23 | O3: =Head15 -> Forecast 2023/24 | P3: =Head16 -> Forecast 2024/25 | Q3: =Head17 -> Forecast 2025/26 | R3: =Head18 -> Forecast 2026/27 | S3: =Head19 -> Forecast 2027/28 | T3: =Head20 -> Forecast 2028/29 | U3: =Head21 -> Forecast 2029/30 | V3: =Head22 -> Forecast 2030/31 | W3: =Head23 -> Forecast 2031/32
A4: Revenue by Vote | B4: 1
A5: ='Org structure'!A2 -> Vote 1 - OFFICE OF THE MAYOR | C5: =SUM(C6:C15) -> 0 | D5: =SUM(D6:D15) -> 0 | E5: 0 | F5: 0 | G5: 0 | H5: 0 | I5: 0 | J5: 0 | K5: 0
A6: ='Org structure'!E3 -> 1,1 - Office of the mayor
A7: ='Org structure'!E4 -> 0
A8: ='Org structure'!E5 -> 0
A9: ='Org structure'!E6 -> 0
A10: ='Org structure'!E7 -> 0
A11: ='Org structure'!E8 -> 0
A12: ='Org structure'!E9 -> 0
A13: ='Org structure'!E10 -> 0
A14: ='Org structure'!E11 -> 0
A15: ='Org structure'!E12 -> 0
A16: ='Org structure'!A3 -> Vote 2 - OFFICE OF THE SPEAKER | C16: =SUM(C17:C26) -> 0 | D16: =SUM(D17:D26) -> 0 | E16: 0 | F16: 0 | G16: 0 | H16: 0 | I16: 0 | J16: 0 | K16: 0
A17: ='Org structure'!E14 -> 2,1 - Office of the speaker
A18: ='Org structure'!E15 -> 0
A19: ='Org structure'!E16 -> 0
A20: ='Org structure'!E17 -> 0
A21: ='Org structure'!E18 -> 0
A22: ='Org structure'!E19 -> 0
A23: ='Org structure'!E20 -> 0
A24: ='Org structure'!E21 -> 0
A25: ='Org structure'!E22 -> 0
A26: ='Org structure'!E23 -> 0
A27: ='Org structure'!A4 -> Vote 3 - OFFICE OF THE MUNICIPAL MANAGER | C27: =SUM(C28:C37) -> 0 | D27: 134610 | E27: 0 | F27: 0 | G27: 0 | H27: 0 | I27: 0 | J27: 0 | K27: 0
A28: ='Org structure'!E25 -> 3,1 - Municipal Manager Administration
A29: ='Org structure'!E26 -> 3,2 - Internal Audit
A30: ='Org structure'!E27 -> 3,3 - PMS/IDP
A31: ='Org structure'!E28 -> 3,4 - Information Technology
A32: ='Org structure'!E29 -> 3,5 - Villiers
A33: ='Org structure'!E30 -> 3,6 - Tweeling
A34: ='Org structure'!E31 -> 3,7 - Cornelia
A35: ='Org structure'!E32 -> 3,8 - Local Economic Development
A36: ='Org structure'!E33 -> 3,9 - Town Planning | D36: 134610
A37: ='Org structure'!E34 -> 0
A38: ='Org structure'!A5 -> Vote 4 - COMMUNITY SERVICES | C38: =SUM(C39:C48) -> 13862071 | D38: 12814098 | E38: 12583451 | F38: 12906827.12 | G38: 12906827.12 | H38: 0 | I38: 13694144 | J38: 14529486 | K38: 15415785
A39: ='Org structure'!E36 -> 4,1 - Enviromental Management | C39: 13862071 | D39: 12814098 | E39: 12583451 | F39: 12906827.12 | G39: 12906827.12 | I39: 13694144 | J39: =14529486 -> 14529486 | K39: =15415785 -> 15415785
A40: ='Org structure'!E37 -> 4,2 - Social Development
A41: ='Org structure'!E38 -> 4,3 - Local Economic Development
A42: ='Org structure'!E39 -> 0
A43: ='Org structure'!E40 -> 0
A44: ='Org structure'!E41 -> 0
A45: ='Org structure'!E42 -> 0
A46: ='Org structure'!E43 -> 0
A47: ='Org structure'!E44 -> 0
A48: ='Org structure'!E45 -> 0
A49: ='Org structure'!A6 -> Vote 5 - CORPORATE SERVICES | C49: =SUM(C50:C59) -> 0 | D49: =SUM(D50:D59) -> 0 | E49: 0 | F49: 0 | G49: 0 | H49: 0 | I49: 0 | J49: 0 | K49: 0
A50: ='Org structure'!E47 -> 5,1 - Administration and Legal
A51: ='Org structure'!E48 -> 5,2 - Human Resources
A52: ='Org structure'!E49 -> 5,3 - Property and Ground Management
A53: ='Org structure'!E50 -> 5,4 - Security Services
A54: ='Org structure'!E51 -> 0
A55: ='Org structure'!E52 -> 0
A56: ='Org structure'!E53 -> 0
A57: ='Org structure'!E54 -> 0
A58: ='Org structure'!E55 -> 0
A59: ='Org structure'!E56 -> 0
A60: ='Org structure'!A7 -> Vote 6 - FINANCIAL SERVICES | C60: =SUM(C61:C70) -> 110166887 | D60: =SUM(D61:D70) -> 128964469 | E60: 141428114 | F60: 142011255.6 | G60: 147411255.6 | H60: 0 | I60: 146066877.9 | J60: 156781478.6 | K60: 165780514.4
A61: ='Org structure'!E58 -> 6,1 - Revenue and Budget Management | C61: 110166887 | D61: 128964469 | E61: 141428114 | F61: 142011255.6 | G61: 147411255.6 | I61: 146066877.9 | J61: 156781478.6 | K61: 165780514.4
A62: ='Org structure'!E59 -> 6,2 - Budget Management
A63: ='Org structure'!E60 -> 6,3 - Expenditure Management
A64: ='Org structure'!E61 -> 6,4 - Supply Chain Management
A65: ='Org structure'!E62 -> 6,5 - Financial Accounting
A66: ='Org structure'!E63 -> 6,6 - Revenue & Budget
A67: ='Org structure'!E64 -> 6,7 - SCM & Expenditure
A68: ='Org structure'!E65 -> 0
A69: ='Org structure'!E66 -> 0
A70: ='Org structure'!E67 -> 0
A71: ='Org structure'!A8 -> Vote 7 - INFRASTRUCTURE SERVICES | C71: =SUM(C72:C81) -> 55047957 | D71: 67328033 | E71: 63799112 | F71: 73296913.34 | G71: 73296913.34 | H71: 0 | I71: 75448283 | J71: 76887748 | K71: 85857586
A72: ='Org structure'!E69 -> 7,1 - Town Planning
A73: ='Org structure'!E70 -> 7,2 - Project Management Unit
A74: ='Org structure'!E71 -> 7,3 - Roads and Stormwater | D74: 10136
A75: ='Org structure'!E72 -> 7,4 - Electricity and Mechanical | C75: 6269791 | D75: 7404258 | E75: 9367654 | F75: 11000000 | G75: 11000000 | I75: 5000000 | J75: 7000000 | K75: 12000000
A76: ='Org structure'!E73 -> 7,5 - Water and Sanitation | C76: 33830883 | D76: 59913639 | E76: 54431458 | F76: 17776153.36 | G76: 17776153.36 | I76: 43368283 | J76: 46013748 | K76: 48820586
A77: ='Org structure'!E74 -> 7,6 - Water testing | F77: 23098759.98 | G77: 23098759.98
A78: ='Org structure'!E75 -> 7,7 - Pump and Electrical Maintenance
A79: ='Org structure'!E76 -> 0 | C79: 14947283 | F79: 21422000 | G79: 21422000 | I79: 27080000 | J79: 23874000 | K79: 25037000
A80: ='Org structure'!E77 -> 0
A81: ='Org structure'!E78 -> 0
A82: ='Org structure'!A9 -> Vote 8 - SERVICE DELIVERY AND PUBLIC SAFETY | C82: =SUM(C83:C92) -> 0 | D82: =SUM(D83:D92) -> 0 | E82: 0 | F82: 0 | G82: 0 | H82: 0 | I82: 0 | J82: 0 | K82: 0
A83: ='Org structure'!E80 -> 8,1 - Villiers
A84: ='Org structure'!E81 -> 8,2 - Tweeling
A85: ='Org structure'!E82 -> 8,3 - Cornelia
A86: ='Org structure'!E83 -> 8,4 - Public Safety
A87: ='Org structure'!E84 -> 0
A88: ='Org structure'!E85 -> 0
A89: ='Org structure'!E86 -> 0
A90: ='Org structure'!E87 -> 0
A91: ='Org structure'!E88 -> 0
A92: ='Org structure'!E89 -> 0
A93: ='Org structure'!A10 -> Vote 9 - [NAME OF VOTE 9] | C93: =SUM(C94:C103) -> 0 | D93: =SUM(D94:D103) -> 0 | E93: 0 | F93: 0 | G93: 0 | H93: 0 | I93: 0 | J93: 0 | K93: 0
A94: ='Org structure'!E91 -> 9.1 - [Name of sub-vote]
A95: ='Org structure'!E92 -> 0
A96: ='Org structure'!E93 -> 0
A97: ='Org structure'!E94 -> 0
A98: ='Org structure'!E95 -> 0
A99: ='Org structure'!E96 -> 0
A100: ='Org structure'!E97 -> 0
A101: ='Org structure'!E98 -> 0
A102: ='Org structure'!E99 -> 0
A103: ='Org structure'!E100 -> 0
A104: ='Org structure'!A11 -> Vote 10 - [NAME OF VOTE 10] | C104: =SUM(C105:C114) -> 0 | D104: =SUM(D105:D114) -> 0 | E104: 0 | F104: 0 | G104: 0 | H104: 0 | I104: 0 | J104: 0 | K104: 0
A105: ='Org structure'!E102 -> 10.1 - [Name of sub-vote]
A106: ='Org structure'!E103 -> 0
A107: ='Org structure'!E104 -> 0
A108: ='Org structure'!E105 -> 0
A109: ='Org structure'!E106 -> 0
A110: ='Org structure'!E107 -> 0
A111: ='Org structure'!E108 -> 0
A112: ='Org structure'!E109 -> 0
A113: ='Org structure'!E110 -> 0
A114: ='Org structure'!E111 -> 0
A115: ='Org structure'!A12 -> Vote 11 - [NAME OF VOTE 11] | C115: =SUM(C116:C125) -> 0 | D115: =SUM(D116:D125) -> 0 | E115: 0 | F115: 0 | G115: 0 | H115: 0 | I115: 0 | J115: 0 | K115: 0
A116: ='Org structure'!E113 -> 11.1 - [Name of sub-vote]
A117: ='Org structure'!E114 -> 0
A118: ='Org structure'!E115 -> 0
A119: ='Org structure'!E116 -> 0
A120: ='Org structure'!E117 -> 0
A121: ='Org structure'!E118 -> 0
A122: ='Org structure'!E119 -> 0
A123: ='Org structure'!E120 -> 0
A124: ='Org structure'!E121 -> 0
A125: ='Org structure'!E122 -> 0
A126: ='Org structure'!A13 -> Vote 12 - [NAME OF VOTE 12] | C126: =SUM(C127:C136) -> 0 | D126: =SUM(D127:D136) -> 0 | E126: 0 | F126: 0 | G126: 0 | H126: 0 | I126: 0 | J126: 0 | K126: 0
A127: ='Org structure'!E124 -> 12.1 - [Name of sub-vote]
A128: ='Org structure'!E125 -> 0
A129: ='Org structure'!E126 -> 0
A130: ='Org structure'!E127 -> 0
A131: ='Org structure'!E128 -> 0
A132: ='Org structure'!E129 -> 0
A133: ='Org structure'!E130 -> 0
A134: ='Org structure'!E131 -> 0
A135: ='Org structure'!E132 -> 0
A136: ='Org structure'!E133 -> 0
A137: ='Org structure'!A14 -> Vote 13 - [NAME OF VOTE 13] | C137: =SUM(C138:C147) -> 0 | D137: =SUM(D138:D147) -> 0 | E137: 0 | F137: 0 | G137: 0 | H137: 0 | I137: 0 | J137: 0 | K137: 0
A138: ='Org structure'!E135 -> 13.1 - [Name of sub-vote]
A139: ='Org structure'!E136 -> 0
A140: ='Org structure'!E137 -> 0
A141: ='Org structure'!E138 -> 0
A142: ='Org structure'!E139 -> 0
A143: ='Org structure'!E140 -> 0
A144: ='Org structure'!E141 -> 0
A145: ='Org structure'!E142 -> 0
A146: ='Org structure'!E143 -> 0
A147: ='Org structure'!E144 -> 0
A148: ='Org structure'!A15 -> Vote 14 - [NAME OF VOTE 14] | C148: =SUM(C149:C158) -> 0 | D148: =SUM(D149:D158) -> 0 | E148: 0 | F148: 0 | G148: 0 | H148: 0 | I148: 0 | J148: 0 | K148: 0
A149: ='Org structure'!E146 -> 14.1 - [Name of sub-vote]
A150: ='Org structure'!E147 -> 0
A151: ='Org structure'!E148 -> 0
A152: ='Org structure'!E149 -> 0
A153: ='Org structure'!E150 -> 0
A154: ='Org structure'!E151 -> 0
A155: ='Org structure'!E152 -> 0
A156: ='Org structure'!E153 -> 0
A157: ='Org structure'!E154 -> 0
A158: ='Org structure'!E155 -> 0
A159: ='Org structure'!A16 -> Vote 15 - [NAME OF VOTE 15] | C159: =SUM(C160:C169) -> 0 | D159: =SUM(D160:D169) -> 0 | E159: 0 | F159: 0 | G159: 0 | H159: 0 | I159: 0 | J159: 0 | K159: 0
A160: ='Org structure'!E157 -> 15.1 - [Name of sub-vote]
A161: ='Org structure'!E158 -> 0
A162: ='Org structure'!E159 -> 0
A163: ='Org structure'!E160 -> 0
A164: ='Org structure'!E161 -> 0
A165: ='Org structure'!E162 -> 0
A166: ='Org structure'!E163 -> 0
A167: ='Org structure'!E164 -> 0
A168: ='Org structure'!E165 -> 0
A169: ='Org structure'!E166 -> 0
A170: Total Revenue by Vote | B170: 2 | C170: =C5+C16+C27+C38+C49+C60+C71+C82+C93+C104+C115+C126+C137+C148+C159 -> 179076915 | D170: =D5+D16+D27+D38+D49+D60+D71+D82+D93+D104+D115+D126+D137+D148+D159 -> 209241210 | E170: =E5+E16+E27+E38+E49+E60+E71+E82+E93+E104+E115+E126+E137+E148+E159 -> 217810677 | F170: 228214996.1 | G170: 233614996.1 | H170: 0 | I170: =I5+I16+I27+I38+I49+I60+I71+I82+I93+I104+I115+I126+I137+I148+I159 -> 235209304.9 | J170: 248198712.6 | K170: 267053885.4 | L170: =SUM(L78:L81) -> 0 | M170: 0 | N170: 0 | O170: 0 | P170: 0 | Q170: 0 | R170: 0 | S170: 0 | T170: 0 | U170: 0 | V170: 0 | W170: 0
A172: Expenditure by Vote | B172: 1
A173: =A5 -> Vote 1 - OFFICE OF THE MAYOR | C173: =SUM(C174:C183) -> 8850580 | D173: 7339277 | E173: 9852522 | F173: 10955747.87 | G173: 7665110.22 | H173: 0 | I173: 7134761.716 | J173: 7468759.333 | K173: 7822118.577
A174: =A6 -> 1,1 - Office of the mayor | C174: 8850580 | D174: 7339277 | E174: 9852522 | F174: 10955747.87 | G174: 7665110.22 | I174: 7134761.716 | J174: 7468759.333 | K174: 7822118.577
A175: 0
A176: 0
A177: 0
A178: 0
A179: 0
A180: 0
A181: 0
A182: 0
A183: 0
A184: =A16 -> Vote 2 - OFFICE OF THE SPEAKER | C184: =SUM(C185:C194) -> 0 | D184: =SUM(D185:D194) -> 0 | E184: =SUM(E185:E194) -> 0 | F184: 11207928.35 | G184: 10468823.59 | H184: 0 | I184: 10019411.83 | J184: 10189730.94 | K184: 10366030.88
A185: =A17 -> 2,1 - Office of the speaker | F185: 11207928.35 | G185: 10468823.59 | I185: 10019411.83 | J185: 10189730.94 | K185: 10366030.88
A186: 0
A187: 0
A188: 0
A189: 0
A190: 0
A191: 0
A192: 0
A193: 0
A194: 0
A195: =A27 -> Vote 3 - OFFICE OF THE MUNICIPAL MANAGER | C195: =SUM(C196:C205) -> 2836462 | D195: 51072147 | E195: 34468257 | F195: 49951986.77 | G195: 48391417.08 | H195: 0 | I195: 45601142.42 | J195: 46470153.84 | K195: 47163074.17
A196: 3,1 - Municipal Manager Administration | C196: 2836462 | D196: 51072147 | E196: 34468257 | G196: 636.86
A197: 3,2 - Internal Audit | F197: 970017.81 | G197: 330000 | I197: 956317.9893 | J197: 982201.1692 | K197: 1009338.701
A198: 3,3 - PMS/IDP | F198: 9830256.47 | G198: 11101554.39 | I198: 9761869.934 | J198: 9917883.633 | K198: 10079019.56
A199: 3,4 - Information Technology | F199: 3882705.74 | G199: 4605085.21 | I199: 3137936.062 | J199: 3314665.423 | K199: 3502028.427
A200: 3,5 - Villiers | F200: 13503259.66 | G200: 12831755.54 | I200: 13008923.1 | J200: 13173182.33 | K200: 13341168.52
A201: 3,6 - Tweeling | F201: 9033138.22 | G201: 8071005.5 | I201: 8198615.555 | J201: 8298961.711 | K201: 8400784.078
... 144 more rows

Sheet A4-FinPerf RE
A1: =muni&" - "&Approve4 -> FS205 Mafube - Table A4 Budgeted Financial Performance (revenue and expenditure)
A2: =desc -> Description | B2: =head27 -> Ref | C2: =head1b -> 2013/14 | D2: =head1A -> 2014/15 | E2: =Head1 -> 2015/16 | F2: =Head2 -> Current Year 2016/17 | J2: =Head3 -> 2017/18 Medium Term Revenue & Expenditure Framework | M2: =Head4 -> LTFS
A3: R thousand | B3: 1 | C3: =Head5 -> Audited Outcome | D3: =Head5 -> Audited Outcome | E3: =Head5 -> Audited Outcome | F3: =Head6 -> Original Budget | G3: =Head7 -> Adjusted Budget | H3: =Head8 -> Full Year Forecast | I3: =Head5b -> Pre-audit outcome | J3: =Head9 -> Budget Year 2017/18 | K3: =Head10 -> Budget Year +1 2018/19 | L3: =Head11 -> Budget Year +2 2019/20 | M3: =Head12 -> Forecast 2020/21 | N3: =Head13 -> Forecast 2021/22 | O3: =Head14 -> Forecast 2022/23 | P3: =Head15 -> Forecast 2023/24 | Q3: =Head16 -> Forecast 2024/25 | R3: =Head17 -> Forecast 2025/26 | S3: =Head18 -> Forecast 2026/27 | T3: =Head19 -> Forecast 2027/28 | U3: =Head20 -> Forecast 2028/29 | V3: =Head21 -> Forecast 2029/30 | W3: =Head22 -> Forecast 2030/31 | X3: =Head23 -> Forecast 2031/32
A4: Revenue By Source
A5: Property rates | B5: 2 | C5: ='SA1'!C9 -> 19474278 | D5: ='SA1'!D9 -> 21152561 | E5: ='SA1'!E9 -> 22693193 | F5: ='SA1'!F9 -> 27148891 | G5: ='SA1'!G9 -> 27148891 | H5: ='SA1'!H9 -> 27148891 | I5: ='SA1'!I9 -> 0 | J5: ='SA1'!J9 -> 28804972.99 | K5: ='SA1'!K9 -> 30562076.34 | L5: ='SA1'!L9 -> 32426363
A6: Property rates - penalties & collection charges
A7: Service charges - electricity revenue | B7: 2 | C7: ='SA1'!C15 -> -102286 | D7: ='SA1'!D15 -> -414 | E7: ='SA1'!E15 -> -1376 | F7: ='SA1'!F15 -> 0 | G7: ='SA1'!G15 -> 0 | H7: ='SA1'!H15 -> 0 | I7: ='SA1'!I15 -> 0 | J7: ='SA1'!J15 -> 0 | K7: ='SA1'!K15 -> 0 | L7: ='SA1'!L15 -> 0
A8: Service charges - water revenue | B8: 2 | C8: ='SA1'!C21 -> 18518134 | D8: ='SA1'!D21 -> 31294060 | E8: ='SA1'!E21 -> 33858861 | F8: ='SA1'!F21 -> 23098760 | G8: ='SA1'!G21 -> 23098760 | H8: ='SA1'!H21 -> 23098760 | I8: ='SA1'!I21 -> 0 | J8: ='SA1'!J21 -> 24507784.34 | K8: ='SA1'!K21 -> 26002759.18 | L8: ='SA1'!L21 -> 27588927.49
A9: Service charges - sanitation revenue | B9: 2 | C9: ='SA1'!C27 -> 15312749 | D9: ='SA1'!D27 -> 16696403 | E9: ='SA1'!E27 -> 17305717 | F9: ='SA1'!F27 -> 17776153 | G9: ='SA1'!G27 -> 17776153 | H9: ='SA1'!H27 -> 17776153 | I9: ='SA1'!I27 -> 0 | J9: ='SA1'!J27 -> 18860498.71 | K9: ='SA1'!K27 -> 20010989.14 | L9: ='SA1'!L27 -> 21231659.47
A10: Service charges - refuse revenue | B10: 2 | C10: ='SA1'!C34 -> 13862071 | D10: ='SA1'!D34 -> 12125447 | E10: ='SA1'!E34 -> 12583451 | F10: ='SA1'!F34 -> 12906827 | G10: ='SA1'!G34 -> 12906827 | H10: ='SA1'!H34 -> 12906827 | I10: ='SA1'!I34 -> 0 | J10: ='SA1'!J34 -> 13694143.57 | K10: ='SA1'!K34 -> 14529486.33 | L10: ='SA1'!L34 -> 15415785
A11: Service charges - other | C11: 1275172 | D11: 1346169 | E11: 1392086 | G11: 0
A12: Rental of facilities and equipment | C12: 543056 | D12: 435122 | E12: 136418 | F12: 291440 | G12: 291440 | H12: 291440 | J12: 309217.3719 | K12: 328079.6316 | L12: 348092.4891
A13: Interest earned - external investments | C13: 187804 | D13: 91143 | E13: 236187 | F13: 613295 | G13: 613295 | H13: 613295 | J13: 214242.9628 | K13: 227311.7835 | L13: 241177.8023
A14: Interest earned - outstanding debtors | C14: 12875683 | D14: 19583954 | E14: 25817220 | F14: 25861206 | G14: 25861206 | H14: 25861206 | J14: 27412878.28 | K14: 29057650.98 | L14: 30801110.04
A15: Dividends received | C15: 0 | D15: 0 | E15: 0 | F15: 3342298 | G15: 3342298 | H15: 3342298 | J15: 3546177.817 | K15: 3762494.664 | L15: 3992006.839
A16: Fines | C16: 73870 | D16: 119791 | E16: 75970 | F16: 750000 | G16: 150000 | H16: 750000 | J16: 75000 | K16: 0 | L16: 0
A17: Licences and permits | D17: 0 | E17: 0 | G17: 0
A18: Agency services
A19: Transfers recognised - operational | C19: 75524459 | D19: 83705052 | E19: 86948674 | F19: 81524000 | G19: 87524000 | H19: 81524000 | J19: 83172000 | K19: 90157000 | L19: 95121000
A20: Other revenue | B20: 2 | C20: ='SA1'!C49 -> 212565 | D20: ='SA1'!D49 -> 2782506 | E20: ='SA1'!E49 -> 4148411 | F20: ='SA1'!F49 -> 2480126 | G20: ='SA1'!G49 -> 2480126 | H20: ='SA1'!H49 -> 2480126 | I20: ='SA1'!I49 -> 0 | J20: ='SA1'!J49 -> 2532388.858 | K20: ='SA1'!K49 -> 2686864.578 | L20: ='SA1'!L49 -> 2850763.317
A21: Gains on disposal of PPE | C21: 0 | D21: 1401000 | E21: -20045 | F21: 0 | G21: 0 | H21: 0
A22: Total Revenue (excluding capital transfers and contributions) | C22: =SUM(C5:C21) -> 157757555 | D22: 190732794 | E22: 205174767 | F22: 195792996 | G22: 201192996 | H22: 195792996 | I22: 0 | J22: 203129304.9 | K22: 217324712.6 | L22: 230016885.4 | M22: 0 | N22: 0 | O22: 0 | P22: 0 | Q22: 0 | R22: 0 | S22: 0 | T22: 0 | U22: 0 | V22: 0 | W22: 0 | X22: 0
A24: Expenditure By Type
A25: Employee related costs | B25: 2 | C25: ='SA1'!C67 -> 77962771 | D25: ='SA1'!D67 -> 73311313 | E25: ='SA1'!E67 -> 77102233 | F25: ='SA1'!F67 -> 87529880.38 | G25: ='SA1'!G67 -> 88725940.28 | H25: ='SA1'!H67 -> 87529880.38 | I25: ='SA1'!I67 -> 0 | J25: ='SA1'!J67 -> 85790600.52 | K25: ='SA1'!K67 -> 86648508.04 | L25: ='SA1'!L67 -> 87514993.51
A26: Remuneration of councillors | C26: 5235182 | D26: 4946053 | E26: 5613522 | F26: 5926016 | G26: 5926016 | H26: 5926016 | J26: 5985276.604 | K26: 6045129.37 | L26: 6105580.664
A27: Debt impairment | B27: 3 | C27: 37976426 | D27: 44882190 | E27: 6569356 | F27: 1900000 | G27: 1900000 | H27: 1900000 | J27: 6569356 | K27: 6970086.716 | L27: 7395262.006
A28: Depreciation & asset impairment | B28: 2 | C28: ='SA1'!C83 -> 137283347 | D28: ='SA1'!D83 -> 37286363 | E28: ='SA1'!E83 -> 38259177 | F28: ='SA1'!F83 -> 1500000 | G28: ='SA1'!G83 -> 1500000 | H28: ='SA1'!H83 -> 1500000 | I28: ='SA1'!I83 -> 0 | J28: ='SA1'!J83 -> 38259177 | K28: ='SA1'!K83 -> 38259177 | L28: ='SA1'!L83 -> 38259177
A29: Finance charges | C29: 7849642 | D29: 12101882 | E29: 21271001 | F29: 3211126 | G29: 3211126 | H29: 3211126 | J29: 3298072 | K29: 3499254.39 | L29: 3712708.91
A30: Bulk purchases | B30: 2 | C30: ='SA1'!C88 -> 27714956 | D30: ='SA1'!D88 -> 23768637 | E30: ='SA1'!E88 -> 45946294 | F30: ='SA1'!F88 -> 6000000 | G30: ='SA1'!G88 -> 6000000 | H30: ='SA1'!H88 -> 6000000 | I30: ='SA1'!I88 -> 0 | J30: ='SA1'!J88 -> 6000000 | K30: ='SA1'!K88 -> 8122000 | L30: ='SA1'!L88 -> 11416420
A31: Other materials | B31: 8
A32: Contracted services | C32: ='SA1'!C127 -> 0 | D32: ='SA1'!D127 -> 0 | E32: ='SA1'!E127 -> 0 | F32: ='SA1'!F127 -> 0 | G32: ='SA1'!G127 -> 0 | H32: ='SA1'!H127 -> 0 | I32: ='SA1'!I127 -> 0 | J32: ='SA1'!J127 -> 0 | K32: ='SA1'!K127 -> 0 | L32: ='SA1'!L127 -> 0
A33: Transfers and grants | C33: ='SA1'!C93 -> 6746501 | D33: ='SA1'!D93 -> 3547907 | E33: ='SA1'!E93 -> 9595124 | F33: ='SA1'!F93 -> 5252545 | G33: ='SA1'!G93 -> 5252545 | H33: ='SA1'!H93 -> 5252545 | I33: ='SA1'!I93 -> 0 | J33: ='SA1'!J93 -> 10000000 | K33: ='SA1'!K93 -> 10610000 | L33: ='SA1'!L93 -> 11257210
A34: Other expenditure | B34: 4, 5 | C34: ='SA1'!C157 -> 37149779 | D34: ='SA1'!D157 -> 64348647 | E34: ='SA1'!E157 -> 63534321 | F34: ='SA1'!F157 -> 74939664 | G34: ='SA1'!G157 -> 78967000 | H34: ='SA1'!H157 -> 74939664 | I34: ='SA1'!I157 -> 0 | J34: ='SA1'!J157 -> 57628526.8 | K34: ='SA1'!K157 -> 62976697.82 | L34: ='SA1'!L157 -> 68746573.76
A35: Loss on disposal of PPE | C35: 0 | D35: 9208 | E35: 0 | F35: 0 | G35: 0 | H35: 0
A36: Total Expenditure | C36: =SUM(C25:C35) -> 337918604 | D36: =SUM(D25:D35) -> 264202200 | E36: 267891028 | F36: 186259231.4 | G36: 191482627.3 | H36: 186259231.4 | I36: 0 | J36: 213531008.9 | K36: 223130853.3 | L36: 234407925.8 | M36: =SUM(M25:M35) -> 0 | N36: 0 | O36: 0 | P36: 0 | Q36: 0 | R36: 0 | S36: 0 | T36: 0 | U36: 0 | V36: 0 | W36: 0 | X36: 0
A38: Surplus/(Deficit) | C38: =C22-C36 -> -180161049 | D38: -73469406 | E38: -62716261 | F38: 9533764.619 | G38: 9710368.719 | H38: 9533764.619 | I38: 0 | J38: -10401704.01 | K38: -5806140.707 | L38: -4391040.401 | M38: =M22+M36 -> 0 | N38: 0 | O38: 0 | P38: 0 | Q38: 0 | R38: 0 | S38: 0 | T38: 0 | U38: 0 | V38: 0 | W38: 0 | X38: 0
A39: Transfers recognised - capital | C39: 21319360 | D39: 18508416 | E39: 12635910 | F39: 32422000 | G39: 32422000 | H39: 32422000 | J39: 32080000 | K39: 30874000 | L39: 37037000
A40: Contributions recognised - capital | B40: 6 | C40: ='SA1'!C76 -> 0 | D40: ='SA1'!D76 -> 0 | E40: ='SA1'!E76 -> 0 | F40: ='SA1'!F76 -> 0 | G40: ='SA1'!G76 -> 0 | H40: ='SA1'!H76 -> 0 | I40: ='SA1'!I76 -> 0 | J40: ='SA1'!J76 -> 0 | K40: ='SA1'!K76 -> 0 | L40: ='SA1'!L76 -> 0
A41: Contributed assets
A42: Surplus/(Deficit) after capital transfers & contributions | C42: =SUM(C38:C41) -> -158841689 | D42: -54960990 | E42: -50080351 | F42: 41955764.62 | G42: 42132368.72 | H42: 41955764.62 | I42: 0 | J42: 21678295.99 | K42: 25067859.29 | L42: 32645959.6
A43: Taxation
A44: Surplus/(Deficit) after taxation | C44: =C42-C43 -> -158841689 | D44: -54960990 | E44: -50080351 | F44: 41955764.62 | G44: 42132368.72 | H44: 41955764.62 | I44: 0 | J44: 21678295.99 | K44: 25067859.29 | L44: 32645959.6
A45: Attributable to minorities
A46: Surplus/(Deficit) attributable to municipality | C46: =SUM(C44:C45) -> -158841689 | D46: -54960990 | E46: -50080351 | F46: 41955764.62 | G46: 42132368.72 | H46: 41955764.62 | I46: 0 | J46: 21678295.99 | K46: 25067859.29 | L46: 32645959.6
A47: Share of surplus/ (deficit) of associate | B47: 7
A48: =result -> Surplus/(Deficit) for the year | C48: =SUM(C46:C47) -> -158841689 | D48: -54960990 | E48: -50080351 | F48: 41955764.62 | G48: 42132368.72 | H48: 41955764.62 | I48: 0 | J48: 21678295.99 | K48: 25067859.29 | L48: 32645959.6 | M48: =M26+M47 -> 0 | N48: 0 | O48: 0 | P48: 0 | Q48: 0 | R48: 0 | S48: 0 | T48: 0 | U48: 0 | V48: 0 | W48: 0 | X48: 0
A49: =head27a -> References
A50: 1. Classifications are revenue sources and expenditure type
A51: 2. Detail to be provided in Table SA1
A52: 3. Previously described as 'bad or doubtful debts' - amounts shown should reflect the change in the provision for debt impairment
A53: 4. Expenditure type components previously shown under repairs and maintenance should be allocated back to the originating expenditure group/item; e.g. employee costs
A54: 5. Repairs & maintenance detailed in Table A9 and Table SA34c
A55: 6. Contributions are funds provided by external organisations to assist with infrastructure development; e.g. developer contributions (detail to be provided in Table SA1)
A56: 7. Equity method
A57: 8. All materials not part of 'bulk' e.g road making materials, pipe, cable etc.
A58: check balance | C58: =C46-'A3-FinPerf V'!C39 -> -8406545 | D58: =D46-'A3-FinPerf V'!D39 -> 0 | E58: =E46-'A3-FinPerf V'!E39 -> 45 | F58: =F46-'A3-FinPerf V'!F39 -> -0.6014015973 | G58: =G46-'A3-FinPerf V'!G39 -> -936.3714015 | H58: =H46-'A3-FinPerf V'!H39 -> 41955764.62 | J58: =J46-'A3-FinPerf V'!I39 -> -2.086162567e-07 | K58: =K46-'A3-FinPerf V'!J39 -> 5.36441803e-07 | L58: =L46-'A3-FinPerf V'!K39 -> -1.192092896e-07
A60: Total revenue | C60: =C22+SUM(C39:C41) -> 179076915 | D60: 209241210 | E60: 217810677 | F60: 228214996 | G60: 233614996 | H60: 228214996 | I60: 0 | J60: 235209304.9 | K60: 248198712.6 | L60: 267053885.4

Sheet A5-Capex
A1: =muni&" - "&Approve5 -> FS205 Mafube - Table A5 Budgeted Capital Expenditure by vote, standard classification and funding
A2: =Vdesc -> Vote Description | B2: =head27 -> Ref | C2: =head1b -> 2013/14 | D2: =head1A -> 2014/15 | E2: =Head1 -> 2015/16 | F2: =Head2 -> Current Year 2016/17 | J2: =Head3 -> 2017/18 Medium Term Revenue & Expenditure Framework
A3: R thousand | B3: 1 | C3: =Head5 -> Audited Outcome | D3: =Head5 -> Audited Outcome | E3: =Head5 -> Audited Outcome | F3: =Head6 -> Original Budget | G3: =Head7 -> Adjusted Budget | H3: =Head8 -> Full Year Forecast | I3: =Head5b -> Pre-audit outcome | J3: =Head9 -> Budget Year 2017/18 | K3: =Head10 -> Budget Year +1 2018/19 | L3: =Head11 -> Budget Year +2 2019/20
A4: Capital expenditure - Vote
A5: Multi-year expenditure to be appropriated | B5: 2
A6: =A5A!A6 -> Vote 1 - OFFICE OF THE MAYOR | C6: =A5A!C6 -> 0 | D6: =A5A!D6 -> 0 | E6: =A5A!E6 -> 0 | F6: =A5A!F6 -> 0 | G6: =A5A!G6 -> 0 | H6: =A5A!H6 -> 0 | I6: =A5A!I6 -> 0 | J6: =A5A!J6 -> 0 | K6: =A5A!K6 -> 0 | L6: =A5A!L6 -> 0
A7: =A5A!A17 -> Vote 2 - OFFICE OF THE SPEAKER | C7: =A5A!C17 -> 0 | D7: =A5A!D17 -> 0 | E7: =A5A!E17 -> 0 | F7: =A5A!F17 -> 0 | G7: =A5A!G17 -> 0 | H7: =A5A!H17 -> 0 | I7: =A5A!I17 -> 0 | J7: =A5A!J17 -> 0 | K7: =A5A!K17 -> 0 | L7: =A5A!L17 -> 0
A8: =A5A!A28 -> Vote 3 - OFFICE OF THE MUNICIPAL MANAGER | C8: =A5A!C28 -> 0 | D8: =A5A!D28 -> 0 | E8: =A5A!E28 -> 0 | F8: =A5A!F28 -> 0 | G8: =A5A!G28 -> 0 | H8: =A5A!H28 -> 0 | I8: =A5A!I28 -> 0 | J8: =A5A!J28 -> 0 | K8: =A5A!K28 -> 0 | L8: =A5A!L28 -> 0
A9: =A5A!A39 -> Vote 4 - COMMUNITY SERVICES | C9: =A5A!C39 -> 0 | D9: =A5A!D39 -> 0 | E9: =A5A!E39 -> 0 | F9: =A5A!F39 -> 0 | G9: =A5A!G39 -> 0 | H9: =A5A!H39 -> 0 | I9: =A5A!I39 -> 0 | J9: =A5A!J39 -> 0 | K9: =A5A!K39 -> 0 | L9: =A5A!L39 -> 0
A10: =A5A!A50 -> Vote 5 - CORPORATE SERVICES | C10: =A5A!C50 -> 0 | D10: =A5A!D50 -> 0 | E10: =A5A!E50 -> 0 | F10: =A5A!F50 -> 0 | G10: =A5A!G50 -> 0 | H10: =A5A!H50 -> 0 | I10: =A5A!I50 -> 0 | J10: =A5A!J50 -> 0 | K10: =A5A!K50 -> 0 | L10: =A5A!L50 -> 0
A11: =A5A!A61 -> Vote 6 - FINANCIAL SERVICES | C11: =A5A!C61 -> 0 | D11: =A5A!D61 -> 0 | E11: =A5A!E61 -> 0 | F11: =A5A!F61 -> 0 | G11: =A5A!G61 -> 0 | H11: =A5A!H61 -> 0 | I11: =A5A!I61 -> 0 | J11: =A5A!J61 -> 0 | K11: =A5A!K61 -> 0 | L11: =A5A!L61 -> 0
A12: =A5A!A72 -> Vote 7 - INFRASTRUCTURE SERVICES | C12: =A5A!C72 -> 0 | D12: =A5A!D72 -> 0 | E12: =A5A!E72 -> 0 | F12: =A5A!F72 -> 0 | G12: =A5A!G72 -> 0 | H12: =A5A!H72 -> 0 | I12: =A5A!I72 -> 0 | J12: =A5A!J72 -> 0 | K12: =A5A!K72 -> 0 | L12: =A5A!L72 -> 0
A13: =A5A!A83 -> Vote 8 - SERVICE DELIVERY AND PUBLIC SAFETY | C13: =A5A!C83 -> 0 | D13: =A5A!D83 -> 0 | E13: =A5A!E83 -> 0 | F13: =A5A!F83 -> 0 | G13: =A5A!G83 -> 0 | H13: =A5A!H83 -> 0 | I13: =A5A!I83 -> 0 | J13: =A5A!J83 -> 0 | K13: =A5A!K83 -> 0 | L13: =A5A!L83 -> 0
A14: =A5A!A94 -> Vote 9 - [NAME OF VOTE 9] | C14: =A5A!C94 -> 0 | D14: =A5A!D94 -> 0 | E14: =A5A!E94 -> 0 | F14: =A5A!F94 -> 0 | G14: =A5A!G94 -> 0 | H14: =A5A!H94 -> 0 | I14: =A5A!I94 -> 0 | J14: =A5A!J94 -> 0 | K14: =A5A!K94 -> 0 | L14: =A5A!L94 -> 0
A15: =A5A!A105 -> Vote 10 - [NAME OF VOTE 10] | C15: =A5A!C105 -> 0 | D15: =A5A!D105 -> 0 | E15: =A5A!E105 -> 0 | F15: =A5A!F105 -> 0 | G15: =A5A!G105 -> 0 | H15: =A5A!H105 -> 0 | I15: =A5A!I105 -> 0 | J15: =A5A!J105 -> 0 | K15: =A5A!K105 -> 0 | L15: =A5A!L105 -> 0
A16: =A5A!A116 -> Vote 11 - [NAME OF VOTE 11] | C16: =A5A!C116 -> 0 | D16: =A5A!D116 -> 0 | E16: =A5A!E116 -> 0 | F16: =A5A!F116 -> 0 | G16: =A5A!G116 -> 0 | H16: =A5A!H116 -> 0 | I16: =A5A!I116 -> 0 | J16: =A5A!J116 -> 0 | K16: =A5A!K116 -> 0 | L16: =A5A!L116 -> 0
A17: =A5A!A127 -> Vote 12 - [NAME OF VOTE 12] | C17: =A5A!C127 -> 0 | D17: =A5A!D127 -> 0 | E17: =A5A!E127 -> 0 | F17: =A5A!F127 -> 0 | G17: =A5A!G127 -> 0 | H17: =A5A!H127 -> 0 | I17: =A5A!I127 -> 0 | J17: =A5A!J127 -> 0 | K17: =A5A!K127 -> 0 | L17: =A5A!L127 -> 0
A18: =A5A!A138 -> Vote 13 - [NAME OF VOTE 13] | C18: =A5A!C138 -> 0 | D18: =A5A!D138 -> 0 | E18: =A5A!E138 -> 0 | F18: =A5A!F138 -> 0 | G18: =A5A!G138 -> 0 | H18: =A5A!H138 -> 0 | I18: =A5A!I138 -> 0 | J18: =A5A!J138 -> 0 | K18: =A5A!K138 -> 0 | L18: =A5A!L138 -> 0
A19: =A5A!A149 -> Vote 14 - [NAME OF VOTE 14] | C19: =A5A!C149 -> 0 | D19: =A5A!D149 -> 0 | E19: =A5A!E149 -> 0 | F19: =A5A!F149 -> 0 | G19: =A5A!G149 -> 0 | H19: =A5A!H149 -> 0 | I19: =A5A!I149 -> 0 | J19: =A5A!J149 -> 0 | K19: =A5A!K149 -> 0 | L19: =A5A!L149 -> 0
A20: =A5A!A160 -> Vote 15 - [NAME OF VOTE 15] | C20: =A5A!C160 -> 0 | D20: =A5A!D160 -> 0 | E20: =A5A!E160 -> 0 | F20: =A5A!F160 -> 0 | G20: =A5A!G160 -> 0 | H20: =A5A!H160 -> 0 | I20: =A5A!I160 -> 0 | J20: =A5A!J160 -> 0 | K20: =A5A!K160 -> 0 | L20: =A5A!L160 -> 0
A21: Capital multi-year expenditure sub-total | B21: 7 | C21: =SUM(C6:C20) -> 0 | D21: =SUM(D6:D20) -> 0 | E21: 0 | F21: 0 | G21: 0 | H21: =SUM(H6:H20) -> 0 | I21: 0 | J21: 0 | K21: 0 | L21: 0
A23: Single-year expenditure to be appropriated | B23: 2
A24: =A6 -> Vote 1 - OFFICE OF THE MAYOR | C24: =A5A!C175 -> 0 | D24: =A5A!D175 -> 0 | E24: =A5A!E175 -> 0 | F24: =A5A!F175 -> 0 | G24: =A5A!G175 -> 0 | H24: =A5A!H175 -> 0 | I24: =A5A!I175 -> 0 | J24: =A5A!J175 -> 0 | K24: =A5A!K175 -> 0 | L24: =A5A!L175 -> 0
A25: =A7 -> Vote 2 - OFFICE OF THE SPEAKER | C25: =A5A!C186 -> 0 | D25: =A5A!D186 -> 0 | E25: =A5A!E186 -> 0 | F25: =A5A!F186 -> 0 | G25: =A5A!G186 -> 0 | H25: =A5A!H186 -> 0 | I25: =A5A!I186 -> 0 | J25: =A5A!J186 -> 0 | K25: =A5A!K186 -> 0 | L25: =A5A!L186 -> 0
A26: Vote 3 - OFFICE OF THE MUNICIPAL MANAGER | C26: =A5A!C197 -> 0 | D26: =A5A!D197 -> 13293434 | E26: =A5A!E197 -> 8809515 | F26: =A5A!F197 -> 1700000 | G26: =A5A!G197 -> 3320000 | H26: =A5A!H197 -> 0 | I26: =A5A!I197 -> 0 | J26: =A5A!J197 -> 2000000 | K26: =A5A!K197 -> 2122000 | L26: =A5A!L197 -> 2251442
A27: Vote 4 - COMMUNITY SERVICES | C27: =A5A!C208 -> 1528209 | D27: =A5A!D208 -> 789220 | E27: =A5A!E208 -> 222400 | F27: =A5A!F208 -> 4526909 | G27: =A5A!G208 -> 5130854 | H27: =A5A!H208 -> 0 | I27: =A5A!I208 -> 0 | J27: =A5A!J208 -> 7224070.72 | K27: =A5A!K208 -> 1074330 | L27: =A5A!L208 -> 1126665
A28: Vote 5 - CORPORATE SERVICES | C28: =A5A!C219 -> 102885 | D28: =A5A!D219 -> 0 | E28: =A5A!E219 -> 0 | F28: =A5A!F219 -> 2390000 | G28: =A5A!G219 -> 1890000 | H28: =A5A!H219 -> 0 | I28: =A5A!I219 -> 0 | J28: =A5A!J219 -> 0 | K28: =A5A!K219 -> 0 | L28: =A5A!L219 -> 0
A29: Vote 6 - FINANCIAL SERVICES | C29: =A5A!C230 -> 0 | D29: =A5A!D230 -> 0 | E29: =A5A!E230 -> 0 | F29: =A5A!F230 -> 200000 | G29: =A5A!G230 -> 500000 | H29: =A5A!H230 -> 0 | I29: =A5A!I230 -> 0 | J29: =A5A!J230 -> 0 | K29: =A5A!K230 -> 0 | L29: =A5A!L230 -> 0
A30: Vote 7 - INFRASTRUCTURE SERVICES | C30: =A5A!C241 -> 24010930 | D30: =A5A!D241 -> 0 | E30: =A5A!E241 -> 0 | F30: =A5A!F241 -> 33114726 | G30: =A5A!G241 -> 31270781 | H30: =A5A!H241 -> 0 | I30: =A5A!I241 -> 0 | J30: =A5A!J241 -> 23867842.04 | K30: =A5A!K241 -> 28799661.89 | L30: =A5A!L241 -> 34898162.36
A31: Vote 8 - SERVICE DELIVERY AND PUBLIC SAFETY | C31: =A5A!C252 -> 0 | D31: =A5A!D252 -> 0 | E31: =A5A!E252 -> 0 | F31: =A5A!F252 -> 0 | G31: =A5A!G252 -> 0 | H31: =A5A!H252 -> 0 | I31: =A5A!I252 -> 0 | J31: =A5A!J252 -> 0 | K31: =A5A!K252 -> 0 | L31: =A5A!L252 -> 0
A32: Vote 9 - [NAME OF VOTE 9] | C32: =A5A!C263 -> 0 | D32: =A5A!D263 -> 0 | E32: =A5A!E263 -> 0 | F32: =A5A!F263 -> 0 | G32: =A5A!G263 -> 0 | H32: =A5A!H263 -> 0 | I32: =A5A!I263 -> 0 | J32: =A5A!J263 -> 0 | K32: =A5A!K263 -> 0 | L32: =A5A!L263 -> 0
A33: Vote 10 - [NAME OF VOTE 10] | C33: =A5A!C274 -> 0 | D33: =A5A!D274 -> 0 | E33: =A5A!E274 -> 0 | F33: =A5A!F274 -> 0 | G33: =A5A!G274 -> 0 | H33: =A5A!H274 -> 0 | I33: =A5A!I274 -> 0 | J33: =A5A!J274 -> 0 | K33: =A5A!K274 -> 0 | L33: =A5A!L274 -> 0
A34: Vote 11 - [NAME OF VOTE 11] | C34: =A5A!C285 -> 0 | D34: =A5A!D285 -> 0 | E34: =A5A!E285 -> 0 | F34: =A5A!F285 -> 0 | G34: =A5A!G285 -> 0 | H34: =A5A!H285 -> 0 | I34: =A5A!I285 -> 0 | J34: =A5A!J285 -> 0 | K34: =A5A!K285 -> 0 | L34: =A5A!L285 -> 0
A35: Vote 12 - [NAME OF VOTE 12] | C35: =A5A!C296 -> 0 | D35: =A5A!D296 -> 0 | E35: =A5A!E296 -> 0 | F35: =A5A!F296 -> 0 | G35: =A5A!G296 -> 0 | H35: =A5A!H296 -> 0 | I35: =A5A!I296 -> 0 | J35: =A5A!J296 -> 0 | K35: =A5A!K296 -> 0 | L35: =A5A!L296 -> 0
A36: Vote 13 - [NAME OF VOTE 13] | C36: =A5A!C307 -> 0 | D36: =A5A!D307 -> 0 | E36: =A5A!E307 -> 0 | F36: =A5A!F307 -> 0 | G36: =A5A!G307 -> 0 | H36: =A5A!H307 -> 0 | I36: =A5A!I307 -> 0 | J36: =A5A!J307 -> 0 | K36: =A5A!K307 -> 0 | L36: =A5A!L307 -> 0
A37: Vote 14 - [NAME OF VOTE 14] | C37: =A5A!C318 -> 0 | D37: =A5A!D318 -> 0 | E37: =A5A!E318 -> 0 | F37: =A5A!F318 -> 0 | G37: =A5A!G318 -> 0 | H37: =A5A!H318 -> 0 | I37: =A5A!I318 -> 0 | J37: =A5A!J318 -> 0 | K37: =A5A!K318 -> 0 | L37: =A5A!L318 -> 0
A38: =A20 -> Vote 15 - [NAME OF VOTE 15] | C38: =A5A!C329 -> 0 | D38: =A5A!D329 -> 0 | E38: =A5A!E329 -> 0 | F38: =A5A!F329 -> 0 | G38: =A5A!G329 -> 0 | H38: =A5A!H329 -> 0 | I38: =A5A!I329 -> 0 | J38: =A5A!J329 -> 0 | K38: =A5A!K329 -> 0 | L38: =A5A!L329 -> 0
A39: Capital single-year expenditure sub-total | C39: =SUM(C24:C38) -> 25642024 | D39: =SUM(D24:D38) -> 14082654 | E39: 9031915 | F39: 41931635 | G39: 42111635 | H39: 0 | I39: 0 | J39: 33091912.76 | K39: 31995991.89 | L39: 38276269.36
A40: Total Capital Expenditure - Vote | C40: =C39+C21 -> 25642024 | D40: =D39+D21 -> 14082654 | E40: 9031915 | F40: 41931635 | G40: 42111635 | H40: 0 | I40: 0 | J40: 33091912.76 | K40: 31995991.89 | L40: 38276269.36
A42: Capital Expenditure - Standard
A43: Governance and administration | C43: =SUM(C44:C46) -> 102885 | D43: =SUM(D44:D46) -> 13293434 | E43: 8809515 | F43: 4290000 | G43: 4290000 | H43: 4290000 | I43: 0 | J43: 2000000 | K43: 2122000 | L43: 2251442
A44: Executive and council | D44: 13293434 | E44: 8809515 | F44: 1700000 | G44: 1700000 | H44: 1700000 | J44: 2000000 | K44: 2122000 | L44: 2251442
A45: Budget and treasury office | F45: 200000 | G45: 200000 | H45: 200000
A46: Corporate services | C46: 102885 | F46: 2390000 | G46: 2390000 | H46: 2390000
A47: Community and public safety | C47: =SUM(C48:C52) -> 1528209 | D47: =SUM(D48:D52) -> 789220 | E47: 222400 | F47: 4526909 | G47: 4526909 | H47: 4526909 | I47: 0 | J47: 7224070.72 | K47: 1074330 | L47: 1126665
A48: Community and social services | C48: 1528209 | D48: 789220 | E48: 222400 | F48: 2200000 | G48: 2200000 | H48: 2200000
A49: Sport and recreation | F49: 2326909 | G49: 2326909 | H49: 2326909 | J49: 7224070.72 | K49: 1074330 | L49: 1126665
A50: Public safety
A51: Housing
A52: Health
A53: Economic and environmental services | C53: =SUM(C54:C56) -> 0 | D53: =SUM(D54:D56) -> 0 | E53: 0 | F53: 0 | G53: 0 | H53: 0 | I53: 0 | J53: 0 | K53: 2958082.85 | L53: 1456380
A54: Planning and development
A55: Road transport | K55: 2958082.85 | L55: 1456380
A56: Environmental protection
A57: Trading services | C57: =SUM(C58:C61) -> 0 | D57: =SUM(D58:D61) -> 0 | E57: 0 | F57: 33023991 | G57: 33023991 | H57: 33023991 | I57: 0 | J57: 23501929.28 | K57: 25647887.15 | L57: 33202105
A58: Electricity | F58: 14000000 | G58: 14000000 | H58: 14000000 | J58: 5000000 | K58: 7000000 | L58: 12000000
A59: Water | F59: 2251238 | G59: 2251238 | H59: 2251238 | J59: 992331.67 | K59: 10353897.86 | L59: 18580105
A60: Waste water management | F60: 16772753 | G60: 16772753 | H60: 16772753 | J60: 17509597.61 | K60: 8293989.29 | L60: 2622000
A61: Waste management | G61: 0
A62: Other | C62: 24010930 | F62: 90735 | G62: 90735 | H62: 90735 | J62: 365912.76 | K62: 193691.89 | L62: 239677.364
A63: Total Capital Expenditure - Standard | B63: 3 | C63: =C43+C47+C53+C57+C62 -> 25642024 | D63: =D43+D47+D53+D57+D62 -> 14082654 | E63: 9031915 | F63: 41931635 | G63: 41931635 | H63: 41931635 | I63: 0 | J63: 33091912.76 | K63: 31995991.89 | L63: =L43+L47+L53+L57+L62 -> 38276269.36
A65: Funded by:
A66: National Government | D66: 12656687 | E66: 8051791 | F66: 31941635 | G66: 31941635 | H66: 31941635 | J66: 31091912.76 | K66: 29873991.89 | L66: 36024827.36
A67: Provincial Government | C67: 23341792
A68: District Municipality
A69: Other transfers and grants
A70: Transfers recognised - capital | B70: 4 | C70: =SUM(C66:C69) -> 23341792 | D70: 12656687 | E70: 8051791 | F70: 31941635 | G70: 31941635 | H70: 31941635 | I70: 0 | J70: 31091912.76 | K70: 29873991.89 | L70: 36024827.36
A71: Public contributions & donations | B71: 5
A72: Borrowing | B72: 6
A73: Internally generated funds | C73: 2300232 | D73: 1425967 | E73: 980124 | F73: 9990000 | G73: 9990000 | H73: 9990000 | J73: 2000000 | K73: 2122000 | L73: 2251442
A74: Total Capital Funding | B74: 7 | C74: =SUM(C70:C73) -> 25642024 | D74: 14082654 | E74: 9031915 | F74: 41931635 | G74: 41931635 | H74: 41931635 | I74: 0 | J74: 33091912.76 | K74: 31995991.89 | L74: 38276269.36
A75: =head27a -> References
A76: 1. Municipalities may choose to appropriate for capital expenditure for three years or for one year (if one year appropriation projected expenditure required for yr2 and yr3).
A77: 2. Include capital component of PPP unitary payment. Note that capital transfers are only appropriated to municipalities for the budget year
A78: 3. Capital expenditure by standard classification must reconcile to the appropriations by vote
A79: 4. Must reconcile to supporting table SA20 and to Budgeted Financial Performance (revenue and expenditure)
A80: 5. Must reconcile to Budgeted Financial Performance (revenue and expenditure)
A81: 6. Include finance leases and PPP capital funding component of unitary payment - total borrowing/repayments to reconcile to changes in Table SA17
A82: 7. Total Capital Funding must balance with Total Capital Expenditure
A83: 8. Include any capitalised interest (MFMA section 46) as part of relevant capital budget
A85: check balance | C85: =IF((C63-C74)=0,0,"Unbalanced") -> 0 | D85: =IF((D63-D74)=0,0,"Unbalanced") -> 0 | E85: 0 | F85: 0 | G85: 0 | H85: 0 | I85: 0 | J85: 0 | K85: 0 | L85: 0

Sheet A5A
A1: =muni&" - "&Approve5 -> FS205 Mafube - Table A5 Budgeted Capital Expenditure by vote, standard classification and funding
A2: =Vdesc -> Vote Description | B2: =head27 -> Ref | C2: =head1b -> 2013/14 | D2: =head1A -> 2014/15 | E2: =Head1 -> 2015/16 | F2: =Head2 -> Current Year 2016/17 | J2: =Head3 -> 2017/18 Medium Term Revenue & Expenditure Framework | N2: ="Multi-year appropriation for "&Head9& " in the "&Head2A&" Annual Budget" -> Multi-year appropriation for Budget Year 2017/18 in the 2016/17 Annual Budget | R2: ="Multi-year appropriation for "&RIGHT(Head10,7)& " in the "&Head2A&" Annual Budget" -> Multi-year appropriation for 2018/19 in the 2016/17 Annual Budget | V2: New multi-year appropriations (funds for new and existing projects)
A3: R thousand | B3: 1 | C3: =Head5 -> Audited Outcome | D3: =Head5 -> Audited Outcome | E3: =Head5 -> Audited Outcome | F3: =Head6 -> Original Budget | G3: =Head7 -> Adjusted Budget | H3: =Head8 -> Full Year Forecast | I3: =Head5b -> Pre-audit outcome | J3: =Head9 -> Budget Year 2017/18 | K3: =Head10 -> Budget Year +1 2018/19 | L3: =Head11 -> Budget Year +2 2019/20 | N3: ="Appropriation for "&RIGHT(Head9,7) -> Appropriation for 2017/18 | O3: ="Adjustments in "&Head2A -> Adjustments in 2016/17 | P3: ="Downward adjustments for "&RIGHT(Head9,7) -> Downward adjustments for 2017/18 | Q3: Appropriation carried forward | R3: ="Appropriation for "&RIGHT(Head9,7) -> Appropriation for 2017/18 | S3: ="Adjustments in "&Head2A -> Adjustments in 2016/17 | T3: ="Downward adjustments for "&RIGHT(Head9,7) -> Downward adjustments for 2017/18 | U3: Appropriation carried forward | V3: =Head9 -> Budget Year 2017/18 | W3: =Head10 -> Budget Year +1 2018/19 | X3: =Head11 -> Budget Year +2 2019/20
A4: Capital expenditure - Municipal Vote
A5: Multi-year expenditure appropriation | B5: 2
A6: ='Org structure'!A2 -> Vote 1 - OFFICE OF THE MAYOR | C6: =SUM(C7:C16) -> 0 | D6: =SUM(D7:D16) -> 0 | E6: 0 | F6: 0 | G6: 0 | H6: 0 | I6: =SUM(I7:I16) -> 0 | J6: 0 | K6: 0 | L6: 0 | N6: =SUM(N7:N16) -> 0 | O6: 0 | P6: 0 | Q6: 0 | R6: 0 | S6: 0 | T6: 0 | U6: 0 | V6: =SUM(V7:V16) -> 0 | W6: =SUM(W7:W16) -> 0 | X6: =SUM(X7:X16) -> 0
A7: ='Org structure'!E3 -> 1,1 - Office of the mayor | J7: =Q7+V7 -> 0 | K7: =U7+W7 -> 0 | L7: =X7 -> 0 | Q7: =SUM(N7:P7) -> 0 | U7: =SUM(R7:T7) -> 0
A8: ='Org structure'!E4 -> 0 | J8: =Q8+V8 -> 0 | K8: =U8+W8 -> 0 | L8: =X8 -> 0 | Q8: =SUM(N8:P8) -> 0 | U8: =SUM(R8:T8) -> 0
A9: ='Org structure'!E5 -> 0 | J9: =Q9+V9 -> 0 | K9: =U9+W9 -> 0 | L9: 0 | Q9: 0 | U9: 0
A10: ='Org structure'!E6 -> 0 | J10: 0 | K10: 0 | L10: 0 | Q10: 0 | U10: 0
A11: ='Org structure'!E7 -> 0 | J11: 0 | K11: 0 | L11: =X11 -> 0 | Q11: 0 | U11: 0
A12: ='Org structure'!E8 -> 0 | J12: 0 | K12: 0 | L12: 0 | Q12: 0 | U12: 0
A13: ='Org structure'!E9 -> 0 | J13: 0 | K13: 0 | L13: 0 | Q13: 0 | U13: 0
A14: ='Org structure'!E10 -> 0 | J14: 0 | K14: 0 | L14: 0 | Q14: 0 | U14: 0
A15: ='Org structure'!E11 -> 0 | J15: 0 | K15: 0 | L15: 0 | Q15: 0 | U15: 0
A16: ='Org structure'!E12 -> 0 | J16: 0 | K16: 0 | L16: 0 | Q16: 0 | U16: 0
A17: ='Org structure'!A3 -> Vote 2 - OFFICE OF THE SPEAKER | C17: =SUM(C18:C27) -> 0 | D17: =SUM(D18:D27) -> 0 | E17: 0 | F17: 0 | G17: 0 | H17: 0 | I17: =SUM(I18:I27) -> 0 | J17: 0 | K17: 0 | L17: 0 | N17: =SUM(N18:N27) -> 0 | O17: 0 | P17: 0 | Q17: 0 | R17: 0 | S17: 0 | T17: 0 | U17: 0 | V17: 0 | W17: 0 | X17: 0
A18: ='Org structure'!E14 -> 2,1 - Office of the speaker | J18: =Q18+V18 -> 0 | K18: =U18+W18 -> 0 | L18: =X18 -> 0 | Q18: =SUM(N18:P18) -> 0 | U18: 0
A19: ='Org structure'!E15 -> 0 | J19: =Q19+V19 -> 0 | K19: =U19+W19 -> 0 | L19: 0 | Q19: 0 | U19: 0
A20: ='Org structure'!E16 -> 0 | J20: 0 | K20: 0 | L20: 0 | Q20: 0 | U20: 0
A21: ='Org structure'!E17 -> 0 | J21: 0 | K21: =U21+W21 -> 0 | L21: 0 | Q21: 0 | U21: 0
A22: ='Org structure'!E18 -> 0 | J22: 0 | K22: 0 | L22: 0 | Q22: 0 | U22: 0
A23: ='Org structure'!E19 -> 0 | J23: 0 | K23: 0 | L23: 0 | Q23: 0 | U23: 0
A24: ='Org structure'!E20 -> 0 | J24: 0 | K24: 0 | L24: 0 | Q24: 0 | U24: 0
A25: ='Org structure'!E21 -> 0 | J25: 0 | K25: 0 | L25: 0 | Q25: 0 | U25: 0
A26: ='Org structure'!E22 -> 0 | J26: 0 | K26: 0 | L26: 0 | Q26: 0 | U26: 0
A27: ='Org structure'!E23 -> 0 | J27: 0 | K27: 0 | L27: 0 | Q27: 0 | U27: 0
A28: ='Org structure'!A4 -> Vote 3 - OFFICE OF THE MUNICIPAL MANAGER | C28: =SUM(C29:C38) -> 0 | D28: =SUM(D29:D38) -> 0 | E28: 0 | F28: 0 | G28: 0 | H28: 0 | I28: =SUM(I29:I38) -> 0 | J28: 0 | K28: 0 | L28: 0 | N28: =SUM(N29:N38) -> 0 | O28: 0 | P28: 0 | Q28: 0 | R28: 0 | S28: 0 | T28: 0 | U28: 0 | V28: 0 | W28: 0 | X28: 0
A29: ='Org structure'!E25 -> 3,1 - Municipal Manager Administration | J29: =Q29+V29 -> 0 | K29: =U29+W29 -> 0 | L29: =X29 -> 0 | Q29: =SUM(N29:P29) -> 0 | U29: 0
A30: ='Org structure'!E26 -> 3,2 - Internal Audit | J30: 0 | K30: 0 | L30: 0 | Q30: 0 | U30: 0
A31: ='Org structure'!E27 -> 3,3 - PMS/IDP | J31: 0 | K31: 0 | L31: 0 | Q31: 0 | U31: =SUM(R31:T31) -> 0
A32: ='Org structure'!E28 -> 3,4 - Information Technology | J32: 0 | K32: =U32+W32 -> 0 | L32: 0 | Q32: 0 | U32: 0
A33: ='Org structure'!E29 -> 3,5 - Villiers | J33: =Q33+V33 -> 0 | K33: 0 | L33: 0 | Q33: 0 | U33: 0
A34: ='Org structure'!E30 -> 3,6 - Tweeling | J34: 0 | K34: 0 | L34: 0 | Q34: 0 | U34: 0
A35: ='Org structure'!E31 -> 3,7 - Cornelia | J35: 0 | K35: 0 | L35: 0 | Q35: 0 | U35: 0
A36: ='Org structure'!E32 -> 3,8 - Local Economic Development | J36: 0 | K36: 0 | L36: 0 | Q36: 0 | U36: 0
A37: ='Org structure'!E33 -> 3,9 - Town Planning | J37: 0 | K37: 0 | L37: 0 | Q37: 0 | U37: 0
A38: ='Org structure'!E34 -> 0 | J38: 0 | K38: 0 | L38: 0 | Q38: 0 | U38: 0
A39: ='Org structure'!A5 -> Vote 4 - COMMUNITY SERVICES | C39: =SUM(C40:C49) -> 0 | D39: =SUM(D40:D49) -> 0 | E39: 0 | F39: 0 | G39: 0 | H39: 0 | I39: =SUM(I40:I49) -> 0 | J39: 0 | K39: 0 | L39: 0 | N39: =SUM(N40:N49) -> 0 | O39: 0 | P39: 0 | Q39: 0 | R39: 0 | S39: 0 | T39: 0 | U39: 0 | V39: 0 | W39: 0 | X39: 0
A40: ='Org structure'!E36 -> 4,1 - Enviromental Management | J40: =Q40+V40 -> 0 | K40: =U40+W40 -> 0 | L40: =X40 -> 0 | Q40: =SUM(N40:P40) -> 0 | U40: 0
A41: ='Org structure'!E37 -> 4,2 - Social Development | J41: 0 | K41: 0 | L41: 0 | Q41: 0 | U41: 0
A42: ='Org structure'!E38 -> 4,3 - Local Economic Development | J42: 0 | K42: 0 | L42: 0 | Q42: 0 | U42: 0
A43: ='Org structure'!E39 -> 0 | J43: 0 | K43: 0 | L43: 0 | Q43: 0 | U43: 0
A44: ='Org structure'!E40 -> 0 | J44: 0 | K44: 0 | L44: 0 | Q44: 0 | U44: 0
A45: ='Org structure'!E41 -> 0 | J45: 0 | K45: 0 | L45: 0 | Q45: 0 | U45: 0
A46: ='Org structure'!E42 -> 0 | J46: 0 | K46: 0 | L46: 0 | Q46: 0 | U46: 0
A47: ='Org structure'!E43 -> 0 | J47: 0 | K47: 0 | L47: 0 | Q47: 0 | U47: 0
A48: ='Org structure'!E44 -> 0 | J48: 0 | K48: 0 | L48: 0 | Q48: 0 | U48: 0
A49: ='Org structure'!E45 -> 0 | J49: 0 | K49: 0 | L49: 0 | Q49: 0 | U49: 0
A50: ='Org structure'!A6 -> Vote 5 - CORPORATE SERVICES | C50: =SUM(C51:C60) -> 0 | D50: =SUM(D51:D60) -> 0 | E50: 0 | F50: 0 | G50: 0 | H50: 0 | I50: =SUM(I51:I60) -> 0 | J50: 0 | K50: 0 | L50: 0 | N50: =SUM(N51:N60) -> 0 | O50: 0 | P50: 0 | Q50: 0 | R50: 0 | S50: 0 | T50: 0 | U50: 0 | V50: 0 | W50: 0 | X50: 0
A51: ='Org structure'!E47 -> 5,1 - Administration and Legal | J51: =Q51+V51 -> 0 | K51: =U51+W51 -> 0 | L51: =X51 -> 0 | Q51: =SUM(N51:P51) -> 0 | U51: 0
A52: ='Org structure'!E48 -> 5,2 - Human Resources | J52: 0 | K52: 0 | L52: 0 | Q52: 0 | U52: 0
A53: ='Org structure'!E49 -> 5,3 - Property and Ground Management | J53: 0 | K53: 0 | L53: 0 | Q53: 0 | U53: 0
A54: ='Org structure'!E50 -> 5,4 - Security Services | J54: 0 | K54: 0 | L54: 0 | Q54: 0 | U54: 0
A55: ='Org structure'!E51 -> 0 | J55: 0 | K55: 0 | L55: 0 | Q55: 0 | U55: 0
A56: ='Org structure'!E52 -> 0 | J56: 0 | K56: 0 | L56: 0 | Q56: 0 | U56: 0
A57: ='Org structure'!E53 -> 0 | J57: 0 | K57: 0 | L57: 0 | Q57: 0 | U57: 0
A58: ='Org structure'!E54 -> 0 | J58: 0 | K58: 0 | L58: 0 | Q58: 0 | U58: 0
A59: ='Org structure'!E55 -> 0 | J59: 0 | K59: 0 | L59: 0 | Q59: 0 | U59: 0
A60: ='Org structure'!E56 -> 0 | J60: 0 | K60: 0 | L60: 0 | Q60: 0 | U60: 0
A61: ='Org structure'!A7 -> Vote 6 - FINANCIAL SERVICES | C61: =SUM(C62:C71) -> 0 | D61: =SUM(D62:D71) -> 0 | E61: 0 | F61: 0 | G61: 0 | H61: 0 | I61: =SUM(I62:I71) -> 0 | J61: 0 | K61: 0 | L61: 0 | N61: =SUM(N62:N71) -> 0 | O61: 0 | P61: 0 | Q61: 0 | R61: 0 | S61: 0 | T61: 0 | U61: 0 | V61: 0 | W61: 0 | X61: 0
A62: ='Org structure'!E58 -> 6,1 - Revenue and Budget Management | J62: =Q62+V62 -> 0 | K62: =U62+W62 -> 0 | L62: =X62 -> 0 | Q62: =SUM(N62:P62) -> 0 | U62: 0
A63: ='Org structure'!E59 -> 6,2 - Budget Management | J63: 0 | K63: 0 | L63: 0 | Q63: 0 | U63: 0
A64: ='Org structure'!E60 -> 6,3 - Expenditure Management | J64: 0 | K64: 0 | L64: 0 | Q64: 0 | U64: 0
A65: ='Org structure'!E61 -> 6,4 - Supply Chain Management | J65: 0 | K65: 0 | L65: 0 | Q65: 0 | U65: 0
A66: ='Org structure'!E62 -> 6,5 - Financial Accounting | J66: 0 | K66: 0 | L66: 0 | Q66: 0 | U66: 0
A67: ='Org structure'!E63 -> 6,6 - Revenue & Budget | J67: 0 | K67: 0 | L67: 0 | Q67: 0 | U67: 0
A68: ='Org structure'!E64 -> 6,7 - SCM & Expenditure | J68: 0 | K68: 0 | L68: 0 | Q68: 0 | U68: 0
A69: ='Org structure'!E65 -> 0 | J69: 0 | K69: 0 | L69: 0 | Q69: 0 | U69: 0
A70: ='Org structure'!E66 -> 0 | J70: 0 | K70: 0 | L70: 0 | Q70: 0 | U70: 0
A71: ='Org structure'!E67 -> 0 | J71: 0 | K71: 0 | L71: 0 | Q71: 0 | U71: 0
A72: ='Org structure'!A8 -> Vote 7 - INFRASTRUCTURE SERVICES | C72: =SUM(C73:C82) -> 0 | D72: 0 | E72: 0 | F72: 0 | G72: 0 | H72: 0 | I72: 0 | J72: 0 | K72: 0 | L72: 0 | N72: =SUM(N73:N82) -> 0 | O72: 0 | P72: 0 | Q72: 0 | R72: 0 | S72: 0 | T72: 0 | U72: 0 | V72: 0 | W72: 0 | X72: 0
A73: ='Org structure'!E69 -> 7,1 - Town Planning | J73: =Q73+V73 -> 0 | K73: =U73+W73 -> 0 | L73: =X73 -> 0 | Q73: =SUM(N73:P73) -> 0 | U73: =SUM(R73:T73) -> 0
A74: ='Org structure'!E70 -> 7,2 - Project Management Unit | J74: 0 | K74: 0 | L74: 0 | Q74: 0 | U74: 0
A75: ='Org structure'!E71 -> 7,3 - Roads and Stormwater | J75: 0 | K75: 0 | L75: 0 | Q75: 0 | U75: 0
A76: ='Org structure'!E72 -> 7,4 - Electricity and Mechanical | J76: 0 | K76: 0 | L76: 0 | Q76: 0 | U76: 0
A77: ='Org structure'!E73 -> 7,5 - Water and Sanitation | J77: 0 | K77: 0 | L77: 0 | Q77: 0 | U77: 0
A78: ='Org structure'!E74 -> 7,6 - Water testing | J78: 0 | K78: 0 | L78: 0 | Q78: 0 | U78: 0
A79: ='Org structure'!E75 -> 7,7 - Pump and Electrical Maintenance | J79: 0 | K79: 0 | L79: 0 | Q79: 0 | U79: 0
A80: ='Org structure'!E76 -> 0 | J80: 0 | K80: 0 | L80: 0 | Q80: 0 | U80: 0
A81: ='Org structure'!E77 -> 0 | J81: 0 | K81: 0 | L81: 0 | Q81: 0 | U81: 0
A82: ='Org structure'!E78 -> 0 | J82: 0 | K82: 0 | L82: 0 | Q82: 0 | U82: 0
A83: ='Org structure'!A9 -> Vote 8 - SERVICE DELIVERY AND PUBLIC SAFETY | C83: =SUM(C84:C93) -> 0 | D83: 0 | E83: 0 | F83: 0 | G83: 0 | H83: 0 | I83: 0 | J83: 0 | K83: 0 | L83: 0 | N83: =SUM(N84:N93) -> 0 | O83: 0 | P83: 0 | Q83: 0 | R83: 0 | S83: 0 | T83: 0 | U83: 0 | V83: 0 | W83: 0 | X83: 0
A84: ='Org structure'!E80 -> 8,1 - Villiers | J84: =Q84+V84 -> 0 | K84: =U84+W84 -> 0 | L84: =X84 -> 0 | Q84: =SUM(N84:P84) -> 0 | U84: 0
A85: ='Org structure'!E81 -> 8,2 - Tweeling | J85: 0 | K85: 0 | L85: 0 | Q85: 0 | U85: 0
A86: ='Org structure'!E82 -> 8,3 - Cornelia | J86: 0 | K86: 0 | L86: 0 | Q86: 0 | U86: 0
A87: ='Org structure'!E83 -> 8,4 - Public Safety | J87: 0 | K87: 0 | L87: 0 | Q87: 0 | U87: 0
A88: ='Org structure'!E84 -> 0 | J88: 0 | K88: 0 | L88: 0 | Q88: 0 | U88: 0
A89: ='Org structure'!E85 -> 0 | J89: 0 | K89: 0 | L89: 0 | Q89: 0 | U89: 0
A90: ='Org structure'!E86 -> 0 | J90: 0 | K90: 0 | L90: 0 | Q90: 0 | U90: 0
A91: ='Org structure'!E87 -> 0 | J91: 0 | K91: 0 | L91: 0 | Q91: 0 | U91: 0
A92: ='Org structure'!E88 -> 0 | J92: 0 | K92: 0 | L92: 0 | Q92: 0 | U92: 0
A93: ='Org structure'!E89 -> 0 | J93: 0 | K93: 0 | L93: 0 | Q93: 0 | U93: 0
A94: ='Org structure'!A10 -> Vote 9 - [NAME OF VOTE 9] | C94: =SUM(C95:C104) -> 0 | D94: =SUM(D95:D104) -> 0 | E94: 0 | F94: 0 | G94: 0 | H94: 0 | I94: 0 | J94: 0 | K94: 0 | L94: 0 | N94: =SUM(N95:N104) -> 0 | O94: 0 | P94: 0 | Q94: 0 | R94: 0 | S94: 0 | T94: 0 | U94: 0 | V94: 0 | W94: 0 | X94: 0
A95: ='Org structure'!E91 -> 9.1 - [Name of sub-vote] | J95: =Q95+V95 -> 0 | K95: =U95+W95 -> 0 | L95: =X95 -> 0 | Q95: =SUM(N95:P95) -> 0 | U95: 0
A96: ='Org structure'!E92 -> 0 | J96: 0 | K96: 0 | L96: 0 | Q96: 0 | U96: 0
A97: ='Org structure'!E93 -> 0 | J97: 0 | K97: 0 | L97: 0 | Q97: 0 | U97: 0
A98: ='Org structure'!E94 -> 0 | J98: 0 | K98: 0 | L98: 0 | Q98: 0 | U98: 0
A99: ='Org structure'!E95 -> 0 | J99: 0 | K99: 0 | L99: 0 | Q99: 0 | U99: 0
A100: ='Org structure'!E96 -> 0 | J100: 0 | K100: 0 | L100: 0 | Q100: 0 | U100: 0
A101: ='Org structure'!E97 -> 0 | J101: 0 | K101: 0 | L101: 0 | Q101: 0 | U101: 0
A102: ='Org structure'!E98 -> 0 | J102: 0 | K102: 0 | L102: 0 | Q102: 0 | U102: 0
A103: ='Org structure'!E99 -> 0 | J103: 0 | K103: 0 | L103: 0 | Q103: 0 | U103: 0
A104: ='Org structure'!E100 -> 0 | J104: 0 | K104: 0 | L104: 0 | Q104: 0 | U104: 0
A105: ='Org structure'!A11 -> Vote 10 - [NAME OF VOTE 10] | C105: =SUM(C106:C115) -> 0 | D105: =SUM(D106:D115) -> 0 | E105: 0 | F105: 0 | G105: 0 | H105: 0 | I105: 0 | J105: 0 | K105: 0 | L105: 0 | N105: =SUM(N106:N115) -> 0 | O105: 0 | P105: 0 | Q105: 0 | R105: 0 | S105: 0 | T105: 0 | U105: 0 | V105: 0 | W105: 0 | X105: 0
A106: ='Org structure'!E102 -> 10.1 - [Name of sub-vote] | J106: =Q106+V106 -> 0 | K106: =U106+W106 -> 0 | L106: =X106 -> 0 | Q106: =SUM(N106:P106) -> 0 | U106: 0
A107: ='Org structure'!E103 -> 0 | J107: 0 | K107: 0 | L107: 0 | Q107: 0 | U107: 0
A108: ='Org structure'!E104 -> 0 | J108: 0 | K108: 0 | L108: 0 | Q108: 0 | U108: 0
A109: ='Org structure'!E105 -> 0 | J109: 0 | K109: 0 | L109: 0 | Q109: 0 | U109: 0
A110: ='Org structure'!E106 -> 0 | J110: 0 | K110: 0 | L110: 0 | Q110: 0 | U110: 0
A111: ='Org structure'!E107 -> 0 | J111: 0 | K111: 0 | L111: 0 | Q111: 0 | U111: 0
A112: ='Org structure'!E108 -> 0 | J112: 0 | K112: 0 | L112: 0 | Q112: 0 | U112: 0
A113: ='Org structure'!E109 -> 0 | J113: 0 | K113: 0 | L113: 0 | Q113: 0 | U113: 0
A114: ='Org structure'!E110 -> 0 | J114: 0 | K114: 0 | L114: 0 | Q114: 0 | U114: 0
A115: ='Org structure'!E111 -> 0 | J115: 0 | K115: 0 | L115: 0 | Q115: 0 | U115: 0
A116: ='Org structure'!A12 -> Vote 11 - [NAME OF VOTE 11] | C116: =SUM(C117:C126) -> 0 | D116: 0 | E116: 0 | F116: 0 | G116: 0 | H116: 0 | I116: 0 | J116: 0 | K116: 0 | L116: 0 | N116: =SUM(N117:N126) -> 0 | O116: 0 | P116: 0 | Q116: 0 | R116: 0 | S116: 0 | T116: 0 | U116: 0 | V116: 0 | W116: 0 | X116: 0
A117: ='Org structure'!E113 -> 11.1 - [Name of sub-vote] | J117: =Q117+V117 -> 0 | K117: =U117+W117 -> 0 | L117: =X117 -> 0 | Q117: =SUM(N117:P117) -> 0 | U117: 0
A118: ='Org structure'!E114 -> 0 | J118: 0 | K118: 0 | L118: 0 | Q118: 0 | U118: 0
A119: ='Org structure'!E115 -> 0 | J119: 0 | K119: 0 | L119: 0 | Q119: 0 | U119: 0
A120: ='Org structure'!E116 -> 0 | J120: 0 | K120: 0 | L120: 0 | Q120: 0 | U120: 0
A121: ='Org structure'!E117 -> 0 | J121: 0 | K121: 0 | L121: 0 | Q121: 0 | U121: 0
A122: ='Org structure'!E118 -> 0 | J122: 0 | K122: 0 | L122: 0 | Q122: 0 | U122: 0
A123: ='Org structure'!E119 -> 0 | J123: 0 | K123: 0 | L123: 0 | Q123: 0 | U123: 0
A124: ='Org structure'!E120 -> 0 | J124: 0 | K124: 0 | L124: 0 | Q124: 0 | U124: 0
A125: ='Org structure'!E121 -> 0 | J125: 0 | K125: 0 | L125: 0 | Q125: 0 | U125: 0
A126: ='Org structure'!E122 -> 0 | J126: 0 | K126: 0 | L126: 0 | Q126: 0 | U126: 0
A127: ='Org structure'!A13 -> Vote 12 - [NAME OF VOTE 12] | C127: =SUM(C128:C137) -> 0 | D127: 0 | E127: 0 | F127: 0 | G127: 0 | H127: 0 | I127: 0 | J127: 0 | K127: 0 | L127: 0 | N127: =SUM(N128:N137) -> 0 | O127: 0 | P127: 0 | Q127: 0 | R127: 0 | S127: 0 | T127: 0 | U127: 0 | V127: 0 | W127: 0 | X127: 0
A128: ='Org structure'!E124 -> 12.1 - [Name of sub-vote] | J128: =Q128+V128 -> 0 | K128: =U128+W128 -> 0 | L128: =X128 -> 0 | Q128: =SUM(N128:P128) -> 0 | U128: 0
A129: ='Org structure'!E125 -> 0 | J129: 0 | K129: 0 | L129: 0 | Q129: 0 | U129: 0
A130: ='Org structure'!E126 -> 0 | J130: 0 | K130: 0 | L130: 0 | Q130: 0 | U130: 0
A131: ='Org structure'!E127 -> 0 | J131: 0 | K131: 0 | L131: 0 | Q131: 0 | U131: 0
A132: ='Org structure'!E128 -> 0 | J132: 0 | K132: 0 | L132: 0 | Q132: 0 | U132: 0
A133: ='Org structure'!E129 -> 0 | J133: =Q133+V133 -> 0 | K133: 0 | L133: 0 | Q133: 0 | U133: 0
A134: ='Org structure'!E130 -> 0 | J134: 0 | K134: 0 | L134: 0 | Q134: 0 | U134: 0
A135: ='Org structure'!E131 -> 0 | J135: 0 | K135: 0 | L135: 0 | Q135: 0 | U135: 0
A136: ='Org structure'!E132 -> 0 | J136: 0 | K136: 0 | L136: 0 | Q136: 0 | U136: =SUM(R136:T136) -> 0
A137: ='Org structure'!E133 -> 0 | J137: 0 | K137: 0 | L137: 0 | Q137: 0 | U137: 0
A138: ='Org structure'!A14 -> Vote 13 - [NAME OF VOTE 13] | C138: =SUM(C139:C148) -> 0 | D138: 0 | E138: 0 | F138: 0 | G138: 0 | H138: 0 | I138: 0 | J138: 0 | K138: 0 | L138: 0 | N138: =SUM(N139:N148) -> 0 | O138: 0 | P138: 0 | Q138: 0 | R138: 0 | S138: 0 | T138: 0 | U138: 0 | V138: 0 | W138: 0 | X138: 0
A139: ='Org structure'!E135 -> 13.1 - [Name of sub-vote] | J139: =Q139+V139 -> 0 | K139: =U139+W139 -> 0 | L139: =X139 -> 0 | Q139: =SUM(N139:P139) -> 0 | U139: 0
A140: ='Org structure'!E136 -> 0 | J140: 0 | K140: 0 | L140: 0 | Q140: 0 | U140: 0
A141: ='Org structure'!E137 -> 0 | J141: 0 | K141: 0 | L141: 0 | Q141: 0 | U141: 0
A142: ='Org structure'!E138 -> 0 | J142: 0 | K142: 0 | L142: 0 | Q142: 0 | U142: 0
A143: ='Org structure'!E139 -> 0 | J143: 0 | K143: 0 | L143: 0 | Q143: 0 | U143: 0
A144: ='Org structure'!E140 -> 0 | J144: 0 | K144: 0 | L144: 0 | Q144: 0 | U144: 0
A145: ='Org structure'!E141 -> 0 | J145: 0 | K145: 0 | L145: 0 | Q145: 0 | U145: 0
A146: ='Org structure'!E142 -> 0 | J146: 0 | K146: 0 | L146: 0 | Q146: 0 | U146: 0
A147: ='Org structure'!E143 -> 0 | J147: 0 | K147: 0 | L147: 0 | Q147: 0 | U147: 0
A148: ='Org structure'!E144 -> 0 | J148: 0 | K148: 0 | L148: 0 | Q148: 0 | U148: 0
A149: ='Org structure'!A15 -> Vote 14 - [NAME OF VOTE 14] | C149: =SUM(C150:C159) -> 0 | D149: 0 | E149: 0 | F149: 0 | G149: 0 | H149: 0 | I149: 0 | J149: 0 | K149: 0 | L149: 0 | N149: =SUM(N150:N159) -> 0 | O149: 0 | P149: 0 | Q149: 0 | R149: 0 | S149: 0 | T149: 0 | U149: 0 | V149: 0 | W149: 0 | X149: 0
A150: ='Org structure'!E146 -> 14.1 - [Name of sub-vote] | J150: =Q150+V150 -> 0 | K150: =U150+W150 -> 0 | L150: =X150 -> 0 | Q150: =SUM(N150:P150) -> 0 | U150: 0
A151: ='Org structure'!E147 -> 0 | J151: 0 | K151: 0 | L151: 0 | Q151: 0 | U151: 0
A152: ='Org structure'!E148 -> 0 | J152: 0 | K152: 0 | L152: 0 | Q152: 0 | U152: 0
A153: ='Org structure'!E149 -> 0 | J153: 0 | K153: 0 | L153: 0 | Q153: 0 | U153: 0
A154: ='Org structure'!E150 -> 0 | J154: 0 | K154: 0 | L154: 0 | Q154: 0 | U154: 0
A155: ='Org structure'!E151 -> 0 | J155: 0 | K155: 0 | L155: 0 | Q155: 0 | U155: 0
A156: ='Org structure'!E152 -> 0 | J156: 0 | K156: 0 | L156: 0 | Q156: 0 | U156: 0
A157: ='Org structure'!E153 -> 0 | J157: 0 | K157: 0 | L157: 0 | Q157: 0 | U157: 0
A158: ='Org structure'!E154 -> 0 | J158: 0 | K158: 0 | L158: 0 | Q158: 0 | U158: 0
A159: ='Org structure'!E155 -> 0 | J159: 0 | K159: 0 | L159: 0 | Q159: 0 | U159: 0
A160: ='Org structure'!A16 -> Vote 15 - [NAME OF VOTE 15] | C160: =SUM(C161:C170) -> 0 | D160: 0 | E160: 0 | F160: 0 | G160: 0 | H160: 0 | I160: 0 | J160: 0 | K160: 0 | L160: 0 | N160: =SUM(N161:N170) -> 0 | O160: 0 | P160: 0 | Q160: 0 | R160: 0 | S160: 0 | T160: 0 | U160: 0 | V160: 0 | W160: 0 | X160: 0
A161: ='Org structure'!E157 -> 15.1 - [Name of sub-vote] | J161: =Q161+V161 -> 0 | K161: =U161+W161 -> 0 | L161: =X161 -> 0 | Q161: =SUM(N161:P161) -> 0 | U161: 0
A162: ='Org structure'!E158 -> 0 | J162: 0 | K162: 0 | L162: 0 | Q162: 0 | U162: 0
A163: ='Org structure'!E159 -> 0 | J163: 0 | K163: 0 | L163: 0 | Q163: 0 | U163: 0
A164: ='Org structure'!E160 -> 0 | J164: 0 | K164: 0 | L164: 0 | Q164: 0 | U164: 0
A165: ='Org structure'!E161 -> 0 | J165: 0 | K165: 0 | L165: 0 | Q165: 0 | U165: 0
A166: ='Org structure'!E162 -> 0 | J166: 0 | K166: 0 | L166: 0 | Q166: 0 | U166: 0
A167: ='Org structure'!E163 -> 0 | J167: 0 | K167: 0 | L167: 0 | Q167: 0 | U167: 0
A168: ='Org structure'!E164 -> 0 | J168: 0 | K168: 0 | L168: 0 | Q168: 0 | U168: 0
A169: ='Org structure'!E165 -> 0 | J169: 0 | K169: 0 | L169: 0 | Q169: 0 | U169: 0
A170: ='Org structure'!E166 -> 0 | J170: 0 | K170: 0 | L170: 0 | Q170: 0 | U170: 0
A171: Capital multi-year expenditure sub-total | C171: =C6+C17+C28+C39+C50+C61+C72+C83+C94+C105+C116+C127+C138+C149+C160 -> 0 | D171: =D6+D17+D28+D39+D50+D61+D72+D83+D94+D105+D116+D127+D138+D149+D160 -> 0 | E171: 0 | F171: 0 | G171: 0 | H171: 0 | I171: 0 | J171: 0 | K171: 0 | L171: 0 | N171: =N6+N17+N28+N39+N50+N61+N72+N83+N94+N105+N116+N127+N138+N149+N160 -> 0 | O171: 0 | P171: 0 | Q171: 0 | R171: 0 | S171: 0 | U171: 0 | V171: =V6+V17+V28+V39+V50+V61+V72+V83+V94+V105+V116+V127+V138+V149+V160 -> 0 | W171: =W6+W17+W28+W39+W50+W61+W72+W83+W94+W105+W116+W127+W138+W149+W160 -> 0
A173: Capital expenditure - Municipal Vote
A174: Single-year expenditure appropriation | B174: 2
A175: =A6 -> Vote 1 - OFFICE OF THE MAYOR | C175: =SUM(C176:C185) -> 0 | D175: 0 | E175: 0 | F175: 0 | G175: 0 | H175: 0 | I175: 0 | J175: 0 | K175: 0 | L175: 0
A176: =A7 -> 1,1 - Office of the mayor
A177: 0
A178: 0
A179: 0
A180: 0
A181: 0
A182: 0
A183: 0
A184: 0
A185: 0
A186: Vote 2 - OFFICE OF THE SPEAKER | C186: =SUM(C187:C196) -> 0 | D186: 0 | E186: 0 | F186: 0 | G186: 0 | H186: 0 | I186: 0 | J186: 0 | K186: 0 | L186: 0
A187: 2,1 - Office of the speaker
A188: 0
A189: 0
A190: 0
A191: 0
A192: 0
A193: 0
A194: 0
A195: 0
A196: 0
A197: Vote 3 - OFFICE OF THE MUNICIPAL MANAGER | C197: =SUM(C198:C207) -> 0 | D197: 13293434 | E197: 8809515 | F197: 1700000 | G197: 3320000 | H197: 0 | I197: 0 | J197: 2000000 | K197: 2122000 | L197: 2251442
A198: 3,1 - Municipal Manager Administration | D198: 13293434 | E198: 8809515
A199: 3,2 - Internal Audit
A200: 3,3 - PMS/IDP
A201: 3,4 - Information Technology | F201: 1700000 | G201: 3320000 | J201: 2000000 | K201: 2122000 | L201: 2251442
... 140 more rows

Sheet A6-FinPos
A1: =muni&" - "&Approve6 -> FS205 Mafube - Table A6 Budgeted Financial Position
A2: =desc -> Description | B2: =head27 -> Ref | C2: =head1b -> 2013/14 | D2: =head1A -> 2014/15 | E2: =Head1 -> 2015/16 | F2: =Head2 -> Current Year 2016/17 | J2: =Head3 -> 2017/18 Medium Term Revenue & Expenditure Framework
A3: R thousand | C3: =Head5 -> Audited Outcome | D3: =Head5 -> Audited Outcome | E3: =Head5 -> Audited Outcome | F3: =Head6 -> Original Budget | G3: =Head7 -> Adjusted Budget | H3: =Head8 -> Full Year Forecast | I3: =Head5b -> Pre-audit outcome | J3: =Head9 -> Budget Year 2017/18 | K3: =Head10 -> Budget Year +1 2018/19 | L3: =Head11 -> Budget Year +2 2019/20
A4: ASSETS
A5: Current assets
A6: Cash | C6: 64367 | D6: 591083 | E6: 87055 | F6: 28845 | G6: 28845 | H6: 28845 | I6: 4506044 | J6: 28845 | K6: 28845 | L6: 28845
A7: Call investment deposits | B7: 1 | C7: ='SA3'!C9 -> 31415 | D7: ='SA3'!D9 -> 28845 | E7: ='SA3'!E9 -> 548289 | F7: ='SA3'!F9 -> 591083 | G7: ='SA3'!G9 -> 591083 | H7: ='SA3'!H9 -> 591083 | I7: ='SA3'!I9 -> 0 | J7: ='SA3'!J9 -> 591083 | K7: ='SA3'!K9 -> 591083 | L7: ='SA3'!L9 -> 591083
A8: Consumer debtors | B8: 1 | C8: ='SA3'!C14 -> 35926954 | D8: ='SA3'!D14 -> 63954782 | E8: ='SA3'!E14 -> 120617069 | F8: ='SA3'!F14 -> 63954782 | G8: ='SA3'!G14 -> 61921782 | H8: ='SA3'!H14 -> 61921782 | I8: ='SA3'!I14 -> 7017918 | J8: ='SA3'!J14 -> 63221782 | K8: ='SA3'!K14 -> 63221782 | L8: ='SA3'!L14 -> 63221782
A9: Other debtors | C9: 7354697 | D9: 11283210 | E9: 22713494 | F9: 11283210 | G9: 11283210 | H9: 11283210 | I9: -3000 | J9: 11283210 | K9: 11283210 | L9: 11283210
A10: Current portion of long-term receivables | D10: 40555 | E10: 73043 | F10: 40555 | G10: 40555 | H10: 40555 | I10: 0 | J10: 40555 | K10: 40555 | L10: 40555
A11: Inventory | B11: 2 | C11: 370635 | D11: 450155 | E11: 395369 | F11: 450155 | G11: 450155 | H11: 450155 | I11: -82276 | J11: 450155 | K11: 450155 | L11: 450155
A12: Total current assets | C12: =SUM(C6:C11) -> 43748068 | D12: 76348630 | E12: 144434319 | F12: 76348630 | G12: 74315630 | H12: 74315630 | I12: 11438686 | J12: 75615630 | K12: 75615630 | L12: 75615630
A14: Non current assets
A15: Long-term receivables
A16: Investments | E16: 0
A17: Investment property | C17: 53891030 | D17: 73290026 | E17: 72906699 | F17: 52836248 | G17: 52836248 | H17: 52836248 | I17: -50000 | J17: 52836248 | K17: 52836248 | L17: 52836248
A18: Investment in Associate
A19: Property, plant and equipment | B19: 3 | C19: ='SA3'!C26 -> 1153361203 | D19: ='SA3'!D26 -> 702109801 | E19: ='SA3'!E26 -> 673610998 | F19: ='SA3'!F26 -> 1044128007 | G19: ='SA3'!G26 -> 1044128007 | H19: ='SA3'!H26 -> 1044127738 | I19: ='SA3'!I26 -> 0 | J19: ='SA3'!J26 -> 1044127738 | K19: ='SA3'!K26 -> 1044127738 | L19: ='SA3'!L26 -> 1044127738
A20: Agricultural
A21: Biological
A22: Intangible | C22: -33202 | D22: 1062836 | E22: 697340 | F22: 1826143 | G22: 1826143 | H22: 1826143 | J22: 1826143 | K22: 1826143 | L22: 1826143
A23: Other non-current assets | C23: 323705 | D23: 364453 | E23: 383389 | F23: 328695 | G23: 328695 | H23: 328695 | J23: 328695 | K23: 328695 | L23: 328695
A24: Total non current assets | C24: =SUM(C15:C23) -> 1207542736 | D24: =SUM(D15:D23) -> 776827116 | E24: =SUM(E15:E23) -> 747598426 | F24: 1099119093 | G24: 1099119093 | H24: 1099118824 | I24: -50000 | J24: 1099118824 | K24: 1099118824 | L24: 1099118824
A25: TOTAL ASSETS | C25: =C12+C24 -> 1251290804 | D25: =D12+D24 -> 853175746 | E25: =E12+E24 -> 892032745 | F25: =F12+F24 -> 1175467723 | G25: 1173434723 | H25: 1173434454 | I25: 11388686 | J25: 1174734454 | K25: 1174734454 | L25: 1174734454
A27: LIABILITIES
A28: Current liabilities
A29: Bank overdraft | B29: 1 | C29: 0 | D29: 0 | E29: 0 | F29: 0 | G29: 0 | J29: 769786 | K29: 769786 | L29: 769786
A30: Borrowing | B30: 4 | C30: ='SA3'!C32 -> 1132167 | D30: ='SA3'!D32 -> 809536 | E30: ='SA3'!E32 -> 263581 | F30: ='SA3'!F32 -> 809536 | G30: ='SA3'!G32 -> 809536 | H30: ='SA3'!H32 -> 809536 | I30: ='SA3'!I32 -> 0 | J30: ='SA3'!J32 -> 809536 | K30: ='SA3'!K32 -> 809536 | L30: ='SA3'!L32 -> 809536
A31: Consumer deposits | C31: 786920 | D31: 819109 | E31: 846036 | F31: 769786 | G31: 769786 | H31: 769786
A32: Trade and other payables | B32: 4 | C32: ='SA3'!C38 -> 216593494 | D32: ='SA3'!D38 -> 293585456 | E32: ='SA3'!E38 -> 375354982 | F32: ='SA3'!F38 -> 58768059 | G32: ='SA3'!G38 -> 58768059 | H32: ='SA3'!H38 -> 58768059 | I32: ='SA3'!I38 -> -10640943 | J32: ='SA3'!J38 -> 58768059 | K32: ='SA3'!K38 -> 58768059 | L32: ='SA3'!L38 -> 58768059
A33: Provisions | I33: -71139
A34: Total current liabilities | C34: =SUM(C29:C33) -> 218512581 | D34: 295214101 | E34: 376464599 | F34: 60347381 | G34: 60347381 | H34: 60347381 | I34: -10712082 | J34: 60347381 | K34: 60347381 | L34: 60347381
A36: Non current liabilities
A37: Borrowing | C37: ='SA3'!C43 -> 2190411 | D37: ='SA3'!D43 -> 1316665 | E37: ='SA3'!E43 -> 764702 | F37: ='SA3'!F43 -> 2506575 | G37: ='SA3'!G43 -> 2506575 | H37: ='SA3'!H43 -> 2506575 | I37: ='SA3'!I43 -> 152986 | J37: ='SA3'!J43 -> 2506575 | K37: ='SA3'!K43 -> 2506575 | L37: ='SA3'!L43 -> 2506575
A38: Provisions | C38: ='SA3'!C50 -> 23645333 | D38: ='SA3'!D50 -> 24217687 | E38: ='SA3'!E50 -> 24132241 | F38: ='SA3'!F50 -> 13685857 | G38: ='SA3'!G50 -> 13685857 | H38: ='SA3'!H50 -> 13685857 | I38: ='SA3'!I50 -> 0 | J38: ='SA3'!J50 -> 13685857 | K38: ='SA3'!K50 -> 13685857 | L38: ='SA3'!L50 -> 13685857
A39: Total non current liabilities | C39: =SUM(C37:C38) -> 25835744 | D39: =SUM(D37:D38) -> 25534352 | E39: =SUM(E37:E38) -> 24896943 | F39: =SUM(F37:F38) -> 16192432 | G39: 16192432 | H39: 16192432 | I39: 152986 | J39: 16192432 | K39: =SUM(K37:K38) -> 16192432 | L39: 16192432
A40: TOTAL LIABILITIES | C40: =C34+C39 -> 244348325 | D40: =D34+D39 -> 320748453 | E40: =E34+E39 -> 401361542 | F40: =F34+F39 -> 76539813 | G40: 76539813 | H40: 76539813 | I40: -10559096 | J40: 76539813 | K40: =K34+K39 -> 76539813 | L40: 76539813
A42: NET ASSETS | B42: 5 | C42: =C25-C40 -> 1006942479 | D42: 532427293 | E42: 490671203 | F42: 1098927910 | G42: 1096894910 | H42: 1096894641 | I42: 21947782 | J42: 1098194641 | K42: 1098194641 | L42: 1098194641
A44: COMMUNITY WEALTH/EQUITY
A45: Accumulated Surplus/(Deficit) | C45: 1006942479 | D45: 532426863 | E45: 490671094 | F45: 1098927641 | I45: 21947782 | J45: 1098194641 | K45: 1098194641 | L45: 1098194641
A46: Reserves | B46: 4 | C46: ='SA3'!C69 -> 0 | D46: ='SA3'!D69 -> 0 | E46: ='SA3'!E69 -> 0 | F46: ='SA3'!F69 -> 0 | G46: ='SA3'!G69 -> 0 | H46: ='SA3'!H69 -> 0 | I46: ='SA3'!I69 -> 0 | J46: ='SA3'!J69 -> 0 | K46: ='SA3'!K69 -> 0 | L46: ='SA3'!L69 -> 0
G47: 1096894641 | H47: 1096894641
A48: TOTAL COMMUNITY WEALTH/EQUITY | B48: 5 | C48: =SUM(C45:C47) -> 1006942479 | D48: =SUM(D45:D47) -> 532426863 | E48: 490671094 | F48: 1098927641 | G48: 1096894641 | H48: 1096894641 | I48: 21947782 | J48: 1098194641 | K48: 1098194641 | L48: 1098194641
A49: =head27a -> References
A50: 1. Detail to be provided in Table SA3
A51: 2. Include completed low cost housing to be transferred to beneficiaries within 12 months
A52: 3. Include 'Construction-work-in-progress' (disclosed separately in annual financial statements)
A53: 4. Detail to be provided in Table SA3. Includes reserves to be funded by statute.
A54: 5. Net assets must balance with Total Community Wealth/Equity
A55: check balance | C55: =IF((C42-C48)=0,0,"Unbalanced") -> 0 | D55: =IF((D42-D48)=0,0,"Unbalanced") -> Unbalanced | E55: Unbalanced | F55: Unbalanced | G55: Unbalanced | H55: 0 | I55: 0 | J55: 0 | K55: 0 | L55: 0
A71: Test | C71: =IF(C25<>C40,"Unbalanced",0) -> Unbalanced | D71: =IF(D25<>D40,"Unbalanced",0) -> Unbalanced | E71: Unbalanced | F71: Unbalanced | G71: Unbalanced | H71: Unbalanced | I71: Unbalanced | J71: Unbalanced | K71: Unbalanced | L71: Unbalanced

Sheet A7-CFlow
A1: =muni&" - "&Approve7 -> FS205 Mafube - Table A7 Budgeted Cash Flows
A2: =desc -> Description | B2: =head27 -> Ref | C2: =head1b -> 2013/14 | D2: =head1A -> 2014/15 | E2: =Head1 -> 2015/16 | F2: =Head2 -> Current Year 2016/17 | J2: =Head3 -> 2017/18 Medium Term Revenue & Expenditure Framework
A3: R thousand | C3: =Head5 -> Audited Outcome | D3: =Head5 -> Audited Outcome | E3: =Head5 -> Audited Outcome | F3: =Head6 -> Original Budget | G3: =Head7 -> Adjusted Budget | H3: =Head8 -> Full Year Forecast | I3: =Head5b -> Pre-audit outcome | J3: =Head9 -> Budget Year 2017/18 | K3: =Head10 -> Budget Year +1 2018/19 | L3: =Head11 -> Budget Year +2 2019/20
A4: CASH FLOW FROM OPERATING ACTIVITIES
A5: Receipts
A6: Property rates, penalties & collection charges | D6: 21152561 | E6: 22693193 | F6: 27148891 | G6: 27148891 | H6: 27148891 | I6: 7483690 | J6: ='SA30'!N5+'SA30'!N6 -> 28804972.99 | K6: ='SA30'!O5+'SA30'!O6 -> 30562076.34 | L6: ='SA30'!P5+'SA30'!P6 -> 32426363
A7: Service charges | C7: 21155325 | D7: 6549242 | E7: 65138739 | F7: 24201783 | G7: 53781740 | H7: 53781740 | I7: 6925425 | J7: ='SA30'!N7+'SA30'!N8+'SA30'!N9+'SA30'!N10+'SA30'!N11 -> 13525063.95 | K7: ='SA30'!O7+'SA30'!O8+'SA30'!O9+'SA30'!O10+'SA30'!O11 -> 14350092.86 | L7: ='SA30'!P7+'SA30'!P8+'SA30'!P9+'SA30'!P10+'SA30'!P11 -> 15225448.52
A8: Other revenue | C8: 10440477 | D8: 14557142 | E8: 3169799 | F8: 3521420 | G8: 2921566 | H8: 2921566 | I8: 25687264 | J8: ='SA30'!N12+'SA30'!N16+'SA30'!N17+'SA30'!N18+'SA30'!N20 -> 2916606.514 | K8: ='SA30'!O12+'SA30'!O16+'SA30'!O17+'SA30'!O18+'SA30'!O20 -> 3014945.054 | L8: ='SA30'!P12+'SA30'!P16+'SA30'!P17+'SA30'!P18+'SA30'!P20 -> 3198857.172
A9: Government - operating | B9: 1 | C9: 76355000 | D9: 62602468 | E9: 96317704 | F9: 81524000 | G9: 87524000 | H9: 87524000 | I9: 67800000 | J9: ='SA30'!N19 -> 83172000 | K9: ='SA30'!O19 -> 90157000 | L9: ='SA30'!P19 -> 95121000
A10: Government - capital | B10: 1 | C10: 28387000 | D10: 27400000 | E10: 3266880 | F10: 32422000 | G10: 32422000 | H10: 32422000 | I10: 5572000 | J10: ='SA30'!N24 -> 32080000 | K10: ='SA30'!O24 -> 30874000 | L10: ='SA30'!P24 -> 37037000
A11: Interest | C11: 12998767 | D11: 19675097 | E11: 26053407 | F11: 26474501 | G11: 26474501 | H11: 26474501 | J11: ='SA30'!N13+'SA30'!N14 -> 27627121.24 | K11: ='SA30'!O13+'SA30'!O14 -> 29284962.76 | L11: ='SA30'!P13+'SA30'!P14 -> 31042287.84
A12: Dividends | F12: 3342298 | G12: 3342298 | H12: 3342298 | J12: ='SA30'!N15 -> 3546177.817 | K12: ='SA30'!O15 -> 3762494.664 | L12: ='SA30'!P15 -> 3992006.839
A13: Payments
A14: Suppliers and employees | C14: -107635768 | D14: -113340403 | E14: -196972524 | F14: -177795560 | G14: -183318020 | H14: -183318020 | I14: -209055010 | J14: =-('SA30'!N36+'SA30'!N37+'SA30'!N39+'SA30'!N40+'SA30'!N41+'SA30'!N42+'SA30'!N45+'SA30'!N51) -> -151704403.9 | K14: =-('SA30'!O36+'SA30'!O37+'SA30'!O39+'SA30'!O40+'SA30'!O41+'SA30'!O42+'SA30'!O45+'SA30'!O51) -> -159707485.2 | L14: =-('SA30'!P36+'SA30'!P37+'SA30'!P39+'SA30'!P40+'SA30'!P41+'SA30'!P42+'SA30'!P45+'SA30'!P51) -> -169449542.1
A15: Finance charges | C15: -5853682 | D15: -10159131 | E15: -19479001 | F15: -3211126 | G15: -3211126 | H15: -3211126 | J15: =-('SA30'!N38) -> -3298072 | K15: =-('SA30'!O38) -> -3499254.392 | L15: =-('SA30'!P38) -> -3712708.91
A16: Transfers and Grants | B16: 1 | F16: -5252545 | G16: -5252545 | H16: -5252545 | I16: -646308 | J16: =-('SA30'!N43+'SA30'!N44) -> -10000000 | K16: =-('SA30'!O43+'SA30'!O44) -> -10610000 | L16: =-('SA30'!P43+'SA30'!P44) -> -11257210
A17: NET CASH FROM/(USED) OPERATING ACTIVITIES | C17: =SUM(C6:C12)+SUM(C14:C16) -> 35847119 | D17: 28436976 | E17: 188197 | F17: 12375662 | G17: 41833305 | H17: 41833305 | I17: -96232939 | J17: 26669466.6 | K17: 28188832.06 | L17: 33623502.37
A19: CASH FLOWS FROM INVESTING ACTIVITIES
A20: Receipts
A21: Proceeds on disposal of PPE | D21: -23338 | E21: -51424 | J21: ='SA30'!N25+'SA30'!N26 -> 0 | K21: ='SA30'!O25+'SA30'!O26 -> 0 | L21: ='SA30'!P25+'SA30'!P26 -> 0
A22: Decrease (Increase) in non-current debtors | J22: ='SA30'!N30 -> 0 | K22: ='SA30'!O30 -> 0 | L22: ='SA30'!P30 -> 0
A23: Decrease (increase) other non-current receivables | J23: ='SA30'!N31 -> 0 | K23: ='SA30'!O31 -> 0 | L23: ='SA30'!P31 -> 0
A24: Decrease (increase) in non-current investments | C24: 62547 | I24: 96534307 | J24: ='SA30'!N32 -> 0 | K24: ='SA30'!O32 -> 0 | L24: ='SA30'!P32 -> 0
A25: Payments
A26: Capital assets | C26: -29459050 | D26: -23320089 | E26: -35758 | F26: -41931635 | G26: -41931635 | H26: -41931635 | J26: =-('SA30'!N49) -> -33091912.76 | K26: =-('SA30'!O49) -> -31995991.89 | L26: =-('SA30'!P49) -> -38276269.36
A27: NET CASH FROM/(USED) INVESTING ACTIVITIES | C27: =SUM(C21:C24)+C26 -> -29396503 | D27: =SUM(D21:D24)+D26 -> -23343427 | E27: -87182 | F27: -41931635 | G27: -41931635 | H27: -41931635 | I27: 96534307 | J27: -33091912.76 | K27: -31995991.89 | L27: -38276269.36
A29: CASH FLOWS FROM FINANCING ACTIVITIES
A30: Receipts
A31: Short term loans | J31: ='SA30'!N27 -> 0 | K31: ='SA30'!O27 -> 0 | L31: ='SA30'!P27 -> 0
A32: Borrowing long term/refinancing | J32: ='SA30'!N28 -> 0 | K32: ='SA30'!O28 -> 0 | L32: ='SA30'!P28 -> 0
A33: Increase (decrease) in consumer deposits | J33: ='SA30'!N29 -> 0 | K33: ='SA30'!O29 -> 0 | L33: ='SA30'!P29 -> 0
A34: Payments
A35: Repayment of borrowing | C35: -5569111 | D35: -3145152 | E35: -529097 | G35: 300000 | H35: 300000 | I35: -150000 | J35: =-('SA30'!N50) -> 0 | K35: =-('SA30'!O50) -> 0 | L35: =-('SA30'!P50) -> 0
A36: NET CASH FROM/(USED) FINANCING ACTIVITIES | C36: =SUM(C31:C33)+C35 -> -5569111 | D36: =SUM(D31:D33)+D35 -> -3145152 | E36: -529097 | F36: 0 | G36: 300000 | H36: 300000 | I36: -150000 | J36: 0 | K36: 0 | L36: 0
A38: NET INCREASE/ (DECREASE) IN CASH HELD | C38: =C17+C27+C36 -> 881505 | D38: =D17+D27+D36 -> 1948397 | E38: -428082 | F38: -29555973 | G38: 201670 | H38: 201670 | I38: 151368 | J38: -6422446.157 | K38: -3807159.829 | L38: -4652766.991
A39: Cash/cash equivalents at the year begin: | B39: 2 | C39: 2699097 | D39: 64367 | E39: 619928 | I39: 89077 | J39: ='SA30'!N55 -> 0 | K39: =J40 -> -6422446.157 | L39: =K40 -> -10229605.99
A40: Cash/cash equivalents at the year end: | B40: 2 | C40: =C38+C39 -> 3580602 | D40: =D38+D39 -> 2012764 | E40: =E38+E39 -> 191846 | F40: =F38+F39 -> -29555973 | G40: 201670 | H40: 201670 | I40: 240445 | J40: -6422446.157 | K40: -10229605.99 | L40: -14882372.98
A41: =head27a -> References
A42: 1. Local/District municipalities to include transfers from/to District/Local Municipalities
A43: 2. Cash equivalents includes investments with maturities of 3 months or less
A44: 3. The MTREF is populated directly from SA30.
A45: Total receipts | C45: =SUM(C6:C12)+SUM(C21:C23) -> 149336569 | D45: 151913172 | E45: 216588298 | F45: 198634893 | G45: 233614996 | H45: 233614996 | I45: 113468379 | J45: 191671942.5 | K45: 202005571.7 | L45: 218042963.4
A46: Total payments | C46: =SUM(C14:C16)+C26 -> -142948500 | D46: =SUM(D14:D16)+D26 -> -146819623 | E46: -216487283 | F46: -228190866 | G46: -233713326 | H46: -233713326 | I46: -209701318 | J46: -198094388.7 | K46: -205812731.5 | L46: -222695730.4
C47: =C45+C46 -> 6388069 | D47: =D45+D46 -> 5093549 | E47: 101015 | F47: -29555973 | G47: -98330 | H47: -98330 | I47: -96232939 | J47: -6422446.157 | K47: -3807159.829 | L47: -4652766.991
A48: Borrowings & investments & c.deposits | C48: =C24+C32+C33 -> 62547 | D48: =D24+D32+D33 -> 0 | E48: 0 | F48: 0 | G48: 0 | H48: 0 | I48: 96534307 | J48: 0 | K48: 0 | L48: 0
A49: =A35 -> Repayment of borrowing | C49: =C35 -> -5569111 | D49: =D35 -> -3145152 | E49: -529097 | F49: 0 | G49: 300000 | H49: 300000 | I49: =I35 -> -150000 | J49: 0 | K49: 0 | L49: 0
C50: =C47+C48+C49 -> 881505 | D50: =D47+D48+D49 -> 1948397 | E50: -428082 | F50: -29555973 | G50: 201670 | H50: 201670 | I50: 151368 | J50: -6422446.157 | K50: -3807159.829 | L50: -4652766.991
C51: =C38-C50 -> 0 | D51: 0 | E51: 0 | F51: 0 | G51: 0 | H51: 0 | I51: 0 | J51: 1.490116119e-08 | K51: 3.725290298e-09 | L51: 7.450580597e-09

Sheet A8-ResRecon
A1: =muni&" - "&Approve8 -> FS205 Mafube - Table A8 Cash backed reserves/accumulated surplus reconciliation
A2: =desc -> Description | B2: =head27 -> Ref | C2: =head1b -> 2013/14 | D2: =head1A -> 2014/15 | E2: =Head1 -> 2015/16 | F2: =Head2 -> Current Year 2016/17 | J2: =Head3 -> 2017/18 Medium Term Revenue & Expenditure Framework
A3: R thousand | C3: =Head5 -> Audited Outcome | D3: =Head5 -> Audited Outcome | E3: =Head5 -> Audited Outcome | F3: =Head6 -> Original Budget | G3: =Head7 -> Adjusted Budget | H3: =Head8 -> Full Year Forecast | I3: =Head5b -> Pre-audit outcome | J3: =Head9 -> Budget Year 2017/18 | K3: =Head10 -> Budget Year +1 2018/19 | L3: =Head11 -> Budget Year +2 2019/20
A4: Cash and investments available
A5: =LEFT('A7-CFlow'!A40,37) -> Cash/cash equivalents at the year end | B5: 1 | C5: ='A7-CFlow'!C40 -> 3580602 | D5: ='A7-CFlow'!D40 -> 2012764 | E5: ='A7-CFlow'!E40 -> 191846 | F5: ='A7-CFlow'!F40 -> -29555973 | G5: ='A7-CFlow'!G40 -> 201670 | H5: ='A7-CFlow'!H40 -> 201670 | I5: ='A7-CFlow'!I40 -> 240445 | J5: ='A7-CFlow'!J40 -> -6422446.157 | K5: ='A7-CFlow'!K40 -> -10229605.99 | L5: ='A7-CFlow'!L40 -> -14882372.98
A6: Other current investments > 90 days | C6: ='A6-FinPos'!C6+'A6-FinPos'!C7-'A6-FinPos'!C29-'A8-ResRecon'!C5 -> -3484820 | D6: ='A6-FinPos'!D6+'A6-FinPos'!D7-'A6-FinPos'!D29-'A8-ResRecon'!D5 -> -1392836 | E6: ='A6-FinPos'!E6+'A6-FinPos'!E7-'A6-FinPos'!E29-'A8-ResRecon'!E5 -> 443498 | F6: ='A6-FinPos'!F6+'A6-FinPos'!F7-'A6-FinPos'!F29-'A8-ResRecon'!F5 -> 30175901 | G6: ='A6-FinPos'!G6+'A6-FinPos'!G7-'A6-FinPos'!G29-'A8-ResRecon'!G5 -> 418258 | H6: ='A6-FinPos'!H6+'A6-FinPos'!H7-'A6-FinPos'!H29-'A8-ResRecon'!H5 -> 418258 | I6: ='A6-FinPos'!I6+'A6-FinPos'!I7-'A6-FinPos'!I29-'A8-ResRecon'!I5 -> 4265599 | J6: ='A6-FinPos'!J6+'A6-FinPos'!J7-'A6-FinPos'!J29-'A8-ResRecon'!J5 -> 6272588.157 | K6: ='A6-FinPos'!K6+'A6-FinPos'!K7-'A6-FinPos'!K29-'A8-ResRecon'!K5 -> 10079747.99 | L6: ='A6-FinPos'!L6+'A6-FinPos'!L7-'A6-FinPos'!L29-'A8-ResRecon'!L5 -> 14732514.98
A7: ='A6-FinPos'!A14&" - "&'A6-FinPos'!A16 -> Non current assets - Investments | B7: 1 | C7: ='A6-FinPos'!C16 -> 0 | D7: ='A6-FinPos'!D16 -> 0 | E7: ='A6-FinPos'!E16 -> 0 | F7: ='A6-FinPos'!F16 -> 0 | G7: ='A6-FinPos'!G16 -> 0 | H7: ='A6-FinPos'!H16 -> 0 | I7: ='A6-FinPos'!I16 -> 0 | J7: ='A6-FinPos'!J16 -> 0 | K7: ='A6-FinPos'!K16 -> 0 | L7: ='A6-FinPos'!L16 -> 0
A8: Cash and investments available: | C8: =SUM(C5:C7) -> 95782 | D8: =SUM(D5:D7) -> 619928 | E8: 635344 | F8: 619928 | G8: 619928 | H8: 619928 | I8: 4506044 | J8: -149858 | K8: -149858 | L8: -149858
A10: Application of cash and investments
A11: ='SA3'!A36 -> Unspent conditional transfers | C11: ='SA3'!C36 -> 0 | D11: ='SA3'!D36 -> 0 | E11: ='SA3'!E36 -> 0 | F11: ='SA3'!F36 -> 0 | G11: ='SA3'!G36 -> 0 | H11: ='SA3'!H36 -> 0 | I11: ='SA3'!I36 -> 0 | J11: ='SA3'!J36 -> 0 | K11: ='SA3'!K36 -> 0 | L11: ='SA3'!L36 -> 0
A12: Unspent borrowing | C12: ='SA17'!C67 -> 0 | D12: ='SA17'!D67 -> 0 | E12: ='SA17'!E67 -> 0 | F12: ='SA17'!F67 -> 0 | G12: ='SA17'!G67 -> 0 | H12: ='SA17'!H67 -> 0 | J12: ='SA17'!I67 -> 0 | K12: ='SA17'!J67 -> 0 | L12: ='SA17'!K67 -> 0
A13: Statutory requirements | B13: 2
A14: Other working capital requirements | B14: 3 | C14: =-C32 -> 199925494 | D14: =-D32 -> 263458456 | E14: 264827982 | F14: =-F32 -> 21343059 | G14: 2819059 | H14: 3123059 | I14: -10640943 | J14: 29756059 | K14: 29779059 | L14: 29773059
A15: Other provisions
A16: Long term investments committed | B16: 4 | C16: =C52 -> 0 | D16: =D52 -> 0 | E16: 0 | F16: 0 | G16: 0 | H16: 0 | I16: 0 | J16: 0 | K16: 0 | L16: 0
A17: Reserves to be backed by cash/investments | B17: 5
A18: ="Total "&A10&":" -> Total Application of cash and investments: | C18: =SUM(C11:C17) -> 199925494 | D18: =SUM(D11:D17) -> 263458456 | E18: 264827982 | F18: 21343059 | G18: 2819059 | H18: 3123059 | I18: -10640943 | J18: 29756059 | K18: 29779059 | L18: 29773059
A19: Surplus(shortfall) | C19: =C8-C18 -> -199829712 | D19: =D8-D18 -> -262838528 | E19: -264192638 | F19: -20723131 | G19: -2199131 | H19: -2503131 | I19: 15146987 | J19: -29905917 | K19: -29928917 | L19: -29922917
A20: =head27a -> References
A21: 1. Must reconcile with Budgeted Cash Flows
A22: 2. For example: VAT, taxation
A23: 3. Council approval for policy required - include sufficient working capital (e.g. allowing for a % of current debtors > 90 days as uncollectable)
A24: 4. For example: sinking fund requirements for borrowing
A25: 5. Council approval required for each reserve created and basis of cash backing of reserves
A28: Other working capital requirements
A29: Debtors | C29: =IF(ISERROR(ROUND(C35*C36,-3)),0,(ROUND(C35*C36,-3))) -> 16668000 | D29: =IF(ISERROR(ROUND(D35*D36,-3)),0,(ROUND(D35*D36,-3))) -> 30127000 | E29: 110527000 | F29: 37425000 | G29: 55949000 | H29: 55645000 | I29: 0 | J29: 29012000 | K29: 28989000 | L29: 28995000
A31: Creditors due | C31: ='SA3'!C35 -> 216593494 | D31: ='SA3'!D35 -> 293585456 | E31: ='SA3'!E35 -> 375354982 | F31: ='SA3'!F35 -> 58768059 | G31: ='SA3'!G35 -> 58768059 | H31: ='SA3'!H35 -> 58768059 | I31: ='SA3'!I35 -> -10640943 | J31: ='SA3'!J35 -> 58768059 | K31: ='SA3'!K35 -> 58768059 | L31: ='SA3'!L35 -> 58768059
A32: Total | C32: =C29-C31 -> -199925494 | D32: =D29-D31 -> -263458456 | E32: -264827982 | F32: -21343059 | G32: -2819059 | H32: -3123059 | I32: 10640943 | J32: -29756059 | K32: -29779059 | L32: -29773059
A34: Debtors collection assumptions
A35: Balance outstanding - debtors | C35: ='A6-FinPos'!C8+'A6-FinPos'!C9+'A6-FinPos'!C15 -> 43281651 | D35: ='A6-FinPos'!D8+'A6-FinPos'!D9+'A6-FinPos'!D15 -> 75237992 | E35: ='A6-FinPos'!E8+'A6-FinPos'!E9+'A6-FinPos'!E15 -> 143330563 | F35: ='A6-FinPos'!F8+'A6-FinPos'!F9+'A6-FinPos'!F15 -> 75237992 | G35: ='A6-FinPos'!G8+'A6-FinPos'!G9+'A6-FinPos'!G15 -> 73204992 | H35: ='A6-FinPos'!H8+'A6-FinPos'!H9+'A6-FinPos'!H15 -> 73204992 | I35: ='A6-FinPos'!I8+'A6-FinPos'!I9+'A6-FinPos'!I15 -> 7014918 | J35: ='A6-FinPos'!J8+'A6-FinPos'!J9+'A6-FinPos'!J15 -> 74504992 | K35: ='A6-FinPos'!K8+'A6-FinPos'!K9+'A6-FinPos'!K15 -> 74504992 | L35: ='A6-FinPos'!L8+'A6-FinPos'!L9+'A6-FinPos'!L15 -> 74504992
A36: Estimate of debtors collection rate | C36: =IF(ISERROR('SA10'!D10),0,('SA10'!D10)) -> 0.3851019508 | D36: =IF(ISERROR('SA10'!E10),0,('SA10'!E10)) -> 0.4004236049 | E36: =IF(ISERROR('SA10'!F10),0,('SA10'!F10)) -> 0.7711360799 | F36: =IF(ISERROR('SA10'!G10),0,('SA10'!G10)) -> 0.4974200098 | G36: =IF(ISERROR('SA10'!H10),0,('SA10'!H10)) -> 0.7642839863 | H36: =IF(ISERROR('SA10'!I10),0,('SA10'!I10)) -> 0.7601270083 | I36: =IF(ISERROR('SA10'!J10),0,('SA10'!J10)) -> 0 | J36: =IF(ISERROR('SA10'!K10),0,('SA10'!K10)) -> 0.3893963577 | K36: =IF(ISERROR('SA10'!L10),0,('SA10'!L10)) -> 0.3890885609 | L36: =IF(ISERROR('SA10'!M10),0,('SA10'!M10)) -> 0.3891750926
K39: `
A40: =A16 -> Long term investments committed
A41: Balance (Insert description; eg sinking fund)
C52: =SUM(C41:C51) -> 0 | D52: =SUM(D41:D51) -> 0 | E52: 0 | F52: 0 | G52: 0 | H52: 0 | I52: 0 | J52: 0 | K52: 0 | L52: 0
A53: =A17 -> Reserves to be backed by cash/investments
A54: ='SA3'!A64 -> Housing Development Fund | C54: ='SA3'!C64 -> 0 | D54: ='SA3'!D64 -> 0 | E54: ='SA3'!E64 -> 0 | F54: ='SA3'!F64 -> 0 | G54: ='SA3'!G64 -> 0 | H54: ='SA3'!H64 -> 0 | I54: ='SA3'!I64 -> 0 | J54: ='SA3'!J64 -> 0 | K54: ='SA3'!K64 -> 0 | L54: ='SA3'!L64 -> 0
A55: ='SA3'!A65 -> Capital replacement
A56: ='SA3'!A66 -> Self-insurance
A57: Other (list)
C67: =SUM(C54:C65) -> 0 | D67: 0 | E67: 0 | F67: 0 | G67: 0 | H67: 0 | I67: 0 | J67: 0 | K67: 0 | L67: 0

Sheet A9-Asset
A1: =muni&" - "&Approve9 -> FS205 Mafube - Table A9 Asset Management
A2: =desc -> Description | B2: =head27 -> Ref | C2: =head1b -> 2013/14 | D2: =head1A -> 2014/15 | E2: =Head1 -> 2015/16 | F2: =Head2 -> Current Year 2016/17 | I2: =Head3 -> 2017/18 Medium Term Revenue & Expenditure Framework
A3: R thousand | C3: =Head5 -> Audited Outcome | D3: =Head5 -> Audited Outcome | E3: =Head5 -> Audited Outcome | F3: =Head6 -> Original Budget | G3: =Head7 -> Adjusted Budget | H3: =Head8 -> Full Year Forecast | I3: =Head9 -> Budget Year 2017/18 | J3: =Head10 -> Budget Year +1 2018/19 | K3: =Head11 -> Budget Year +2 2019/20
A4: CAPITAL EXPENDITURE
A5: Total New Assets | B5: 1 | C5: =SUM(C11:C18) -> 25642024 | D5: =SUM(D11:D18) -> 14082654 | E5: =SUM(E11:E18) -> 9031915 | F5: 39604726 | G5: 39604726 | H5: 39604726 | I5: 25867842.04 | J5: 30921661.89 | K5: 37149604.36
A6: Infrastructure - Road transport | C6: =SA34a!C7 -> 0 | D6: =SA34a!D7 -> 0 | E6: =SA34a!E7 -> 0 | F6: =SA34a!F7 -> 0 | G6: =SA34a!G7 -> 0 | H6: =SA34a!H7 -> 0 | I6: =SA34a!I7 -> 0 | J6: =SA34a!J7 -> 2958082.85 | K6: =SA34a!K7 -> 1456380
A7: Infrastructure - Electricity | C7: =SA34a!C10 -> 0 | D7: =SA34a!D10 -> 0 | E7: =SA34a!E10 -> 0 | F7: =SA34a!F10 -> 14000000 | G7: =SA34a!G10 -> 14000000 | H7: =SA34a!H10 -> 14000000 | I7: =SA34a!I10 -> 5000000 | J7: =SA34a!J10 -> 7000000 | K7: =SA34a!K10 -> 12000000
A8: Infrastructure - Water | C8: =SA34a!C14 -> 0 | D8: =SA34a!D14 -> 0 | E8: =SA34a!E14 -> 0 | F8: =SA34a!F14 -> 2251238 | G8: =SA34a!G14 -> 2251238 | H8: =SA34a!H14 -> 2251238 | I8: =SA34a!I14 -> 992331.67 | J8: =SA34a!J14 -> 10353897.86 | K8: =SA34a!K14 -> 18580105
A9: Infrastructure - Sanitation | C9: =SA34a!C18 -> 0 | D9: =SA34a!D18 -> 0 | E9: =SA34a!E18 -> 0 | F9: =SA34a!F18 -> 16772753 | G9: =SA34a!G18 -> 16772753 | H9: =SA34a!H18 -> 16772753 | I9: =SA34a!I18 -> 17509597.61 | J9: =SA34a!J18 -> 8293989.29 | K9: =SA34a!K18 -> 2622000
A10: Infrastructure - Other | C10: =SA34a!C21 -> 24010930 | D10: =SA34a!D21 -> 12656687 | E10: =SA34a!E21 -> 7829391 | F10: =SA34a!F21 -> 90735 | G10: =SA34a!G21 -> 90735 | H10: =SA34a!H21 -> 90735 | I10: =SA34a!I21 -> 365912.7576 | J10: =SA34a!J21 -> 193691.8852 | K10: =SA34a!K21 -> 239677.364
A11: Infrastructure | C11: =SUM(C6:C10) -> 24010930 | D11: =SUM(D6:D10) -> 12656687 | E11: =SUM(E6:E10) -> 7829391 | F11: 33114726 | G11: 33114726 | H11: 33114726 | I11: 23867842.04 | J11: 28799661.89 | K11: 34898162.36
A12: =$A$42 -> Community | C12: =SA34a!C27 -> 1528209 | D12: =SA34a!D27 -> 789220 | E12: =SA34a!E27 -> 222400 | F12: =SA34a!F27 -> 1500000 | G12: =SA34a!G27 -> 1500000 | H12: =SA34a!H27 -> 1500000 | I12: =SA34a!I27 -> 0 | J12: =SA34a!J27 -> 0 | K12: =SA34a!K27 -> 0
A13: =$A$43 -> Heritage assets | C13: =SA34a!C43 -> 0 | D13: =SA34a!D43 -> 0 | E13: =SA34a!E43 -> 0 | F13: =SA34a!F43 -> 0 | G13: =SA34a!G43 -> 0 | H13: =SA34a!H43 -> 0 | I13: =SA34a!I43 -> 0 | J13: =SA34a!J43 -> 0 | K13: =SA34a!K43 -> 0
A14: =$A$44 -> Investment properties | C14: =SA34a!C47 -> 0 | D14: =SA34a!D47 -> 0 | E14: =SA34a!E47 -> 0 | F14: =SA34a!F47 -> 0 | G14: =SA34a!G47 -> 0 | H14: =SA34a!H47 -> 0 | I14: =SA34a!I47 -> 0 | J14: =SA34a!J47 -> 0 | K14: =SA34a!K47 -> 0
A15: =$A$45 -> Other assets | B15: 6 | C15: =SA34a!C51 -> 102885 | D15: =SA34a!D51 -> 636747 | E15: =SA34a!E51 -> 980124 | F15: =SA34a!F51 -> 3290000 | G15: =SA34a!G51 -> 3290000 | H15: =SA34a!H51 -> 3290000 | I15: =SA34a!I51 -> 0 | J15: =SA34a!J51 -> 0 | K15: =SA34a!K51 -> 0
A16: Agricultural Assets | C16: =SA34a!C65 -> 0 | D16: =SA34a!D65 -> 0 | E16: =SA34a!E65 -> 0 | F16: =SA34a!F65 -> 0 | G16: =SA34a!G65 -> 0 | H16: =SA34a!H65 -> 0 | I16: =SA34a!I65 -> 0 | J16: =SA34a!J65 -> 0 | K16: =SA34a!K65 -> 0
A17: =SA34a!A69 -> Biological assets | C17: =SA34a!C69 -> 0 | D17: =SA34a!D69 -> 0 | E17: =SA34a!E69 -> 0 | F17: =SA34a!F69 -> 0 | G17: =SA34a!G69 -> 0 | H17: =SA34a!H69 -> 0 | I17: =SA34a!I69 -> 0 | J17: =SA34a!J69 -> 0 | K17: =SA34a!K69 -> 0
A18: =SA34a!A73 -> Intangibles | C18: =SA34a!C73 -> 0 | D18: =SA34a!D73 -> 0 | E18: =SA34a!E73 -> 0 | F18: =SA34a!F73 -> 1700000 | G18: =SA34a!G73 -> 1700000 | H18: =SA34a!H73 -> 1700000 | I18: =SA34a!I73 -> 2000000 | J18: =SA34a!J73 -> 2122000 | K18: =SA34a!K73 -> 2251442
A20: Total Renewal of Existing Assets | B20: 2 | C20: =SUM(C26:C33) -> 0 | D20: =SUM(D26:D33) -> 0 | E20: =SUM(E26:E33) -> 0 | F20: 2326909 | G20: 2326909 | H20: 2326909 | I20: 7224070.72 | J20: 1074330 | K20: 1126665
A21: Infrastructure - Road transport | C21: =SA34b!C7 -> 0 | D21: =SA34b!D7 -> 0 | E21: =SA34b!E7 -> 0 | F21: =SA34b!F7 -> 0 | G21: =SA34b!G7 -> 0 | H21: =SA34b!H7 -> 0 | I21: =SA34b!I7 -> 0 | J21: =SA34b!J7 -> 0 | K21: =SA34b!K7 -> 0
A22: Infrastructure - Electricity | C22: =SA34b!C10 -> 0 | D22: =SA34b!D10 -> 0 | E22: =SA34b!E10 -> 0 | F22: =SA34b!F10 -> 0 | G22: =SA34b!G10 -> 0 | H22: =SA34b!H10 -> 0 | I22: =SA34b!I10 -> 0 | J22: =SA34b!J10 -> 0 | K22: =SA34b!K10 -> 0
A23: Infrastructure - Water | C23: =SA34b!C14 -> 0 | D23: =SA34b!D14 -> 0 | E23: =SA34b!E14 -> 0 | F23: =SA34b!F14 -> 0 | G23: =SA34b!G14 -> 0 | H23: =SA34b!H14 -> 0 | I23: =SA34b!I14 -> 0 | J23: =SA34b!J14 -> 0 | K23: =SA34b!K14 -> 0
A24: Infrastructure - Sanitation | C24: =SA34b!C18 -> 0 | D24: =SA34b!D18 -> 0 | E24: =SA34b!E18 -> 0 | F24: =SA34b!F18 -> 0 | G24: =SA34b!G18 -> 0 | H24: =SA34b!H18 -> 0 | I24: =SA34b!I18 -> 0 | J24: =SA34b!J18 -> 0 | K24: =SA34b!K18 -> 0
A25: Infrastructure - Other | C25: =SA34b!C21 -> 0 | D25: =SA34b!D21 -> 0 | E25: =SA34b!E21 -> 0 | F25: =SA34b!F21 -> 0 | G25: =SA34b!G21 -> 0 | H25: =SA34b!H21 -> 0 | I25: =SA34b!I21 -> 0 | J25: =SA34b!J21 -> 0 | K25: =SA34b!K21 -> 0
A26: =$A$11 -> Infrastructure | C26: =SUM(C21:C25) -> 0 | D26: =SUM(D21:D25) -> 0 | E26: =SUM(E21:E25) -> 0 | F26: 0 | G26: 0 | H26: 0 | I26: 0 | J26: 0 | K26: 0
A27: =A12 -> Community | C27: =SA34b!C27 -> 0 | D27: =SA34b!D27 -> 0 | E27: =SA34b!E27 -> 0 | F27: =SA34b!F27 -> 2326909 | G27: =SA34b!G27 -> 2326909 | H27: =SA34b!H27 -> 2326909 | I27: =SA34b!I27 -> 7224070.72 | J27: =SA34b!J27 -> 1074330 | K27: =SA34b!K27 -> 1126665
A28: =A13 -> Heritage assets | C28: =SA34b!C43 -> 0 | D28: =SA34b!D43 -> 0 | E28: =SA34b!E43 -> 0 | F28: =SA34b!F43 -> 0 | G28: =SA34b!G43 -> 0 | H28: =SA34b!H43 -> 0 | I28: =SA34b!I43 -> 0 | J28: =SA34b!J43 -> 0 | K28: =SA34b!K43 -> 0
A29: =A14 -> Investment properties | C29: =SA34b!C47 -> 0 | D29: =SA34b!D47 -> 0 | E29: =SA34b!E47 -> 0 | F29: =SA34b!F47 -> 0 | G29: =SA34b!G47 -> 0 | H29: =SA34b!H47 -> 0 | I29: =SA34b!I47 -> 0 | J29: =SA34b!J47 -> 0 | K29: =SA34b!K47 -> 0
A30: =A15 -> Other assets | B30: 6 | C30: =SA34b!C51 -> 0 | D30: =SA34b!D51 -> 0 | E30: =SA34b!E51 -> 0 | F30: =SA34b!F51 -> 0 | G30: =SA34b!G51 -> 0 | H30: =SA34b!H51 -> 0 | I30: =SA34b!I51 -> 0 | J30: =SA34b!J51 -> 0 | K30: =SA34b!K51 -> 0
A31: Agricultural Assets | C31: =SA34b!C65 -> 0 | D31: =SA34b!D65 -> 0 | E31: =SA34b!E65 -> 0 | F31: =SA34b!F65 -> 0 | G31: =SA34b!G65 -> 0 | H31: =SA34b!H65 -> 0 | I31: =SA34b!I65 -> 0 | J31: =SA34b!J65 -> 0 | K31: =SA34b!K65 -> 0
A32: =A17 -> Biological assets | C32: =SA34b!C69 -> 0 | D32: =SA34b!D69 -> 0 | E32: =SA34b!E69 -> 0 | F32: =SA34b!F69 -> 0 | G32: =SA34b!G69 -> 0 | H32: =SA34b!H69 -> 0 | I32: =SA34b!I69 -> 0 | J32: =SA34b!J69 -> 0 | K32: =SA34b!K69 -> 0
A33: =A18 -> Intangibles | C33: =SA34b!C73 -> 0 | D33: =SA34b!D73 -> 0 | E33: =SA34b!E73 -> 0 | F33: =SA34b!F73 -> 0 | G33: =SA34b!G73 -> 0 | H33: =SA34b!H73 -> 0 | I33: =SA34b!I73 -> 0 | J33: =SA34b!J73 -> 0 | K33: =SA34b!K73 -> 0
A35: Total Capital Expenditure | B35: 4
A36: Infrastructure - Road transport | C36: =C6+C21 -> 0 | D36: =D6+D21 -> 0 | E36: 0 | F36: 0 | G36: 0 | H36: 0 | I36: 0 | J36: 2958082.85 | K36: 1456380
A37: Infrastructure - Electricity | C37: =C7+C22 -> 0 | D37: =D7+D22 -> 0 | E37: 0 | F37: 14000000 | G37: 14000000 | H37: 14000000 | I37: 5000000 | J37: 7000000 | K37: 12000000
A38: Infrastructure - Water | C38: =C8+C23 -> 0 | D38: 0 | E38: 0 | F38: 2251238 | G38: 2251238 | H38: 2251238 | I38: 992331.67 | J38: 10353897.86 | K38: 18580105
A39: Infrastructure - Sanitation | C39: =C9+C24 -> 0 | D39: =D9+D24 -> 0 | E39: =E9+E24 -> 0 | F39: 16772753 | G39: 16772753 | H39: 16772753 | I39: 17509597.61 | J39: 8293989.29 | K39: 2622000
A40: Infrastructure - Other | C40: =C10+C25 -> 24010930 | D40: 12656687 | E40: 7829391 | F40: 90735 | G40: 90735 | H40: 90735 | I40: 365912.7576 | J40: 193691.8852 | K40: 239677.364
A41: =$A$11 -> Infrastructure | C41: =SUM(C36:C40) -> 24010930 | D41: =SUM(D36:D40) -> 12656687 | E41: 7829391 | F41: 33114726 | G41: 33114726 | H41: 33114726 | I41: 23867842.04 | J41: 28799661.89 | K41: 34898162.36
A42: =SA34a!A27 -> Community | C42: =C12+C27 -> 1528209 | D42: =D12+D27 -> 789220 | E42: 222400 | F42: 3826909 | G42: 3826909 | H42: 3826909 | I42: 7224070.72 | J42: 1074330 | K42: 1126665
A43: =SA34a!A43 -> Heritage assets | C43: 0 | D43: =D13+D28 -> 0 | E43: 0 | F43: 0 | G43: 0 | H43: 0 | I43: 0 | J43: 0 | K43: 0
A44: =SA34a!A47 -> Investment properties | C44: 0 | D44: =D14+D29 -> 0 | E44: 0 | F44: 0 | G44: 0 | H44: 0 | I44: 0 | J44: 0 | K44: 0
A45: =SA34a!A51 -> Other assets | C45: 102885 | D45: =D15+D30 -> 636747 | E45: 980124 | F45: 3290000 | G45: 3290000 | H45: 3290000 | I45: 0 | J45: 0 | K45: 0
A46: Agricultural Assets | C46: 0 | D46: =D16+D31 -> 0 | E46: 0 | F46: 0 | G46: 0 | H46: 0 | I46: 0 | J46: 0 | K46: 0
A47: =A32 -> Biological assets | C47: 0 | D47: =D17+D32 -> 0 | E47: 0 | F47: 0 | G47: 0 | H47: 0 | I47: 0 | J47: 0 | K47: 0
A48: =A33 -> Intangibles | C48: 0 | D48: =D18+D33 -> 0 | E48: 0 | F48: 1700000 | G48: 1700000 | H48: 1700000 | I48: 2000000 | J48: 2122000 | K48: 2251442
A49: TOTAL CAPITAL EXPENDITURE - Asset class | B49: 2 | C49: =SUM(C41:C48) -> 25642024 | D49: 14082654 | E49: 9031915 | F49: 41931635 | G49: 41931635 | H49: 41931635 | I49: 33091912.76 | J49: 31995991.89 | K49: 38276269.36
A51: ASSET REGISTER SUMMARY - PPE (WDV) | B51: 5
A52: Infrastructure - Road transport
A53: Infrastructure - Electricity
A54: Infrastructure - Water
A55: Infrastructure - Sanitation
A56: Infrastructure - Other | C56: 790092000 | D56: 12657000 | E56: 7829000 | F56: 696020000 | G56: 696019817 | I56: 696019817 | J56: 696019817 | K56: 696019817
A57: =A41 -> Infrastructure | C57: =SUM(C52:C56) -> 790092000 | D57: =SUM(D52:D56) -> 12657000 | E57: 7829000 | F57: 696020000 | G57: 696019817 | H57: 0 | I57: 696019817 | J57: 696019817 | K57: 696019817
A58: =A12 -> Community | C58: 1558000 | D58: 789000 | E58: 222000 | F58: 5979037 | G58: 5979037 | I58: 5979037 | J58: 5979037 | K58: 5979037
A59: =A13 -> Heritage assets
A60: =A14 -> Investment properties | C60: ='A6-FinPos'!C17 -> 53891030 | D60: ='A6-FinPos'!D17 -> 73290026 | E60: ='A6-FinPos'!E17 -> 72906699 | F60: ='A6-FinPos'!F17 -> 52836248 | G60: ='A6-FinPos'!G17 -> 52836248 | H60: ='A6-FinPos'!H17 -> 52836248 | I60: ='A6-FinPos'!J17 -> 52836248 | J60: ='A6-FinPos'!K17 -> 52836248 | K60: ='A6-FinPos'!L17 -> 52836248
A61: =A15 -> Other assets | C61: 356731000 | D61: 637000 | E61: 980000 | F61: 395293827 | G61: 395293827 | H61: 0 | I61: 395293827 | J61: 395293827 | K61: 395293827
A62: Agricultural Assets | C62: ='A6-FinPos'!C20 -> 0 | D62: ='A6-FinPos'!D20 -> 0 | E62: ='A6-FinPos'!E20 -> 0 | F62: ='A6-FinPos'!F20 -> 0 | G62: ='A6-FinPos'!G20 -> 0 | H62: ='A6-FinPos'!H20 -> 0 | I62: ='A6-FinPos'!J20 -> 0 | J62: ='A6-FinPos'!K20 -> 0 | K62: ='A6-FinPos'!L20 -> 0
A63: =A17 -> Biological assets | C63: ='A6-FinPos'!C21 -> 0 | D63: ='A6-FinPos'!D21 -> 0 | E63: ='A6-FinPos'!E21 -> 0 | F63: ='A6-FinPos'!F21 -> 0 | G63: ='A6-FinPos'!G21 -> 0 | H63: ='A6-FinPos'!H21 -> 0 | I63: ='A6-FinPos'!J21 -> 0 | J63: ='A6-FinPos'!K21 -> 0 | K63: ='A6-FinPos'!L21 -> 0
A64: =A18 -> Intangibles | C64: ='A6-FinPos'!C22 -> -33202 | D64: ='A6-FinPos'!D22 -> 1062836 | E64: ='A6-FinPos'!E22 -> 697340 | F64: ='A6-FinPos'!F22 -> 1826143 | G64: ='A6-FinPos'!G22 -> 1826143 | H64: ='A6-FinPos'!H22 -> 1826143 | I64: ='A6-FinPos'!J22 -> 1826143 | J64: ='A6-FinPos'!K22 -> 1826143 | K64: ='A6-FinPos'!L22 -> 1826143
A65: TOTAL ASSET REGISTER SUMMARY - PPE (WDV) | B65: 5 | C65: =SUM(C57:C64) -> 1202238828 | D65: 88435862 | E65: 82635039 | F65: 1151955255 | G65: 1151955072 | H65: 54662391 | I65: 1151955072 | J65: 1151955072 | K65: 1151955072
A67: EXPENDITURE OTHER ITEMS
A68: ='A4-FinPerf RE'!A28 -> Depreciation & asset impairment | C68: ='A4-FinPerf RE'!C28 -> 137283347 | D68: ='A4-FinPerf RE'!D28 -> 37286363 | E68: ='A4-FinPerf RE'!E28 -> 38259177 | F68: ='A4-FinPerf RE'!F28 -> 1500000 | G68: ='A4-FinPerf RE'!G28 -> 1500000 | H68: ='A4-FinPerf RE'!H28 -> 1500000 | I68: ='A4-FinPerf RE'!J28 -> 38259177 | J68: ='A4-FinPerf RE'!K28 -> 38259177 | K68: ='A4-FinPerf RE'!L28 -> 38259177
A69: Repairs and Maintenance by Asset Class | B69: 3 | C69: =SUM(C75:C79) -> 11206908 | D69: =SUM(D75:D79) -> 32876183 | E69: 0 | F69: 13885000 | G69: 13885000 | H69: 13885000 | I69: 18240509.91 | J69: 20718382.46 | K69: 23950789.12
A70: Infrastructure - Road transport | C70: =SA34c!C7 -> 0 | D70: =SA34c!D7 -> 0 | E70: =SA34c!E7 -> 0 | F70: =SA34c!F7 -> 0 | G70: =SA34c!G7 -> 0 | H70: =SA34c!H7 -> 0 | I70: =SA34c!I7 -> 500000 | J70: =SA34c!J7 -> 530500 | K70: =SA34c!K7 -> 562860.5
A71: Infrastructure - Electricity | C71: =SA34c!C10 -> 0 | D71: =SA34c!D10 -> 0 | E71: =SA34c!E10 -> 0 | F71: =SA34c!F10 -> 0 | G71: =SA34c!G10 -> 0 | H71: =SA34c!H10 -> 0 | I71: =SA34c!I10 -> 0 | J71: =SA34c!J10 -> 0 | K71: =SA34c!K10 -> 0
A72: Infrastructure - Water | C72: =SA34c!C14 -> 0 | D72: =SA34c!D14 -> 0 | E72: =SA34c!E14 -> 0 | F72: =SA34c!F14 -> 0 | G72: =SA34c!G14 -> 0 | H72: =SA34c!H14 -> 0 | I72: =SA34c!I14 -> 1425255 | J72: =SA34c!J14 -> 1512195 | K72: =SA34c!K14 -> 1604439
A73: Infrastructure - Sanitation | C73: =SA34c!C18 -> 0 | D73: =SA34c!D18 -> 0 | E73: =SA34c!E18 -> 0 | F73: =SA34c!F18 -> 0 | G73: =SA34c!G18 -> 0 | H73: =SA34c!H18 -> 0 | I73: =SA34c!I18 -> 5000000 | J73: =SA34c!J18 -> 7484000 | K73: =SA34c!K18 -> 9484000
A74: Infrastructure - Other | C74: =SA34c!C21 -> 0 | D74: =SA34c!D21 -> 32876183 | E74: =SA34c!E21 -> 0 | F74: =SA34c!F21 -> 0 | G74: =SA34c!G21 -> 0 | H74: =SA34c!H21 -> 0 | I74: =SA34c!I21 -> 0 | J74: =SA34c!J21 -> 0 | K74: =SA34c!K21 -> 0
A75: =$A$11 -> Infrastructure | C75: =SUM(C70:C74) -> 0 | D75: =SUM(D70:D74) -> 32876183 | E75: 0 | F75: 0 | G75: 0 | H75: 0 | I75: 6925255 | J75: 9526695 | K75: 11651299.5
A76: =A12 -> Community | C76: =SA34c!C27 -> 11206908 | D76: =SA34c!D27 -> 0 | E76: =SA34c!E27 -> 0 | F76: =SA34c!F27 -> 570000 | G76: =SA34c!G27 -> 570000 | H76: =SA34c!H27 -> 570000 | I76: =SA34c!I27 -> 200000 | J76: =SA34c!J27 -> 212200 | K76: =SA34c!K27 -> 225144.2
A77: =A13 -> Heritage assets | C77: =SA34c!C43 -> 0 | D77: =SA34c!D43 -> 0 | E77: =SA34c!E43 -> 0 | F77: =SA34c!F43 -> 0 | G77: =SA34c!G43 -> 0 | H77: =SA34c!H43 -> 0 | I77: =SA34c!I43 -> 0 | J77: =SA34c!J43 -> 0 | K77: =SA34c!K43 -> 0
A78: =A14 -> Investment properties | C78: =SA34c!C47 -> 0 | D78: =SA34c!D47 -> 0 | E78: =SA34c!E47 -> 0 | F78: =SA34c!F47 -> 0 | G78: =SA34c!G47 -> 0 | H78: =SA34c!H47 -> 0 | I78: =SA34c!I47 -> 0 | J78: =SA34c!J47 -> 0 | K78: =SA34c!K47 -> 0
A79: =A15 -> Other assets | B79: 6, 7 | C79: =SA34c!C51+SA34c!C65+SA34c!C69+SA34c!C73 -> 0 | D79: =SA34c!D51+SA34c!D65+SA34c!D69+SA34c!D73 -> 0 | E79: =SA34c!E51+SA34c!E65+SA34c!E69+SA34c!E73 -> 0 | F79: =SA34c!F51+SA34c!F65+SA34c!F69+SA34c!F73 -> 13315000 | G79: =SA34c!G51+SA34c!G65+SA34c!G69+SA34c!G73 -> 13315000 | H79: =SA34c!H51+SA34c!H65+SA34c!H69+SA34c!H73 -> 13315000 | I79: =SA34c!I51+SA34c!I65+SA34c!I69+SA34c!I73 -> 11115254.91 | J79: =SA34c!J51+SA34c!J65+SA34c!J69+SA34c!J73 -> 10979487.46 | K79: =SA34c!K51+SA34c!K65+SA34c!K69+SA34c!K73 -> 12074345.42
A80: TOTAL EXPENDITURE OTHER ITEMS | C80: =SUM(C68:C69) -> 148490255 | D80: 70162546 | E80: 38259177 | F80: 15385000 | G80: 15385000 | H80: 15385000 | I80: 56499686.91 | J80: 58977559.46 | K80: 62209966.12
A82: Renewal of Existing Assets as % of total capex | C82: =IF(ISERROR(C20/C49),0,(C20/C49)) -> 0 | D82: =IF(ISERROR(D20/D49),0,(D20/D49)) -> 0 | E82: 0 | F82: 0.05549292318 | G82: 0.05549292318 | H82: 0.05549292318 | I82: 0.2183032082 | J82: 0.03357701814 | K82: 0.02943507867
A83: Renewal of Existing Assets as % of deprecn" | C83: =IF(ISERROR(C20/C68),0,(C20/C68)) -> 0 | D83: =IF(ISERROR(D20/D68),0,(D20/D68)) -> 0 | E83: 0 | F83: 1.551272667 | G83: 1.551272667 | H83: 1.551272667 | I83: 0.1888192922 | J83: 0.02808032175 | K83: 0.02944822885
A84: R&M as a % of PPE | C84: =IF(ISERROR(ROUND(C69/'A6-FinPos'!C19,3)),0,(ROUND(C69/'A6-FinPos'!C19,3))) -> 0.01 | D84: =IF(ISERROR(ROUND(D69/'A6-FinPos'!D19,3)),0,(ROUND(D69/'A6-FinPos'!D19,3))) -> 0.047 | E84: =IF(ISERROR(ROUND(E69/'A6-FinPos'!E19,3)),0,(ROUND(E69/'A6-FinPos'!E19,3))) -> 0 | F84: =IF(ISERROR(ROUND(F69/'A6-FinPos'!F19,3)),0,(ROUND(F69/'A6-FinPos'!F19,3))) -> 0.013 | G84: =IF(ISERROR(ROUND(G69/'A6-FinPos'!G19,3)),0,(ROUND(G69/'A6-FinPos'!G19,3))) -> 0.013 | H84: =IF(ISERROR(ROUND(H69/'A6-FinPos'!H19,3)),0,(ROUND(H69/'A6-FinPos'!H19,3))) -> 0.013 | I84: =IF(ISERROR(ROUND(I69/'A6-FinPos'!J19,3)),0,(ROUND(I69/'A6-FinPos'!J19,3))) -> 0.017 | J84: =IF(ISERROR(ROUND(J69/'A6-FinPos'!K19,3)),0,(ROUND(J69/'A6-FinPos'!K19,3))) -> 0.02 | K84: =IF(ISERROR(ROUND(K69/'A6-FinPos'!L19,3)),0,(ROUND(K69/'A6-FinPos'!L19,3))) -> 0.023
A85: Renewal and R&M as a % of PPE | C85: =IF(ISERROR(ROUND((C20+C69)/C65,2)),0,(ROUND((C20+C69)/C65,2))) -> 0.01 | D85: =IF(ISERROR(ROUND((D20+D69)/D65,2)),0,(ROUND((D20+D69)/D65,2))) -> 0.37 | E85: 0 | F85: 0.01 | G85: 0.01 | H85: 0.3 | I85: 0.02 | J85: 0.02 | K85: 0.02
A87: =head27a -> References
A88: 1. Detail of new assets provided in Table SA34a
A89: 2. Detail of renewal of existing assets provided in Table SA34b
A90: 3. Detail of Repairs and Maintenance by Asset Class provided in Table SA34c
A91: 4. Must reconcile to total capital expenditure on Budgeted Capital Expenditure
A92: 5. Must reconcile to 'Budgeted Financial Position' (written down value)
A93: 6. Donated/contributed and assets funded by finance leases to be allocated to the respective category
A94: 7. Including repairs and maintenance to agricultural, biological and intangible assets
A95: Check balance to A6 | C95: =C65-'A6-FinPos'!C17-'A6-FinPos'!C19-'A6-FinPos'!C21-'A6-FinPos'!C22 -> -4980203 | D95: =D65-'A6-FinPos'!D17-'A6-FinPos'!D19-'A6-FinPos'!D21-'A6-FinPos'!D22 -> -688026801 | E95: =E65-'A6-FinPos'!E17-'A6-FinPos'!E19-'A6-FinPos'!E21-'A6-FinPos'!E22 -> -664579998 | F95: =F65-'A6-FinPos'!F17-'A6-FinPos'!F19-'A6-FinPos'!F21-'A6-FinPos'!F22 -> 53164857 | G95: =G65-'A6-FinPos'!G17-'A6-FinPos'!G19-'A6-FinPos'!G21-'A6-FinPos'!G22 -> 53164674 | H95: =H65-'A6-FinPos'!H17-'A6-FinPos'!H19-'A6-FinPos'!H21-'A6-FinPos'!H22 -> -1044127738 | I95: =I65-'A6-FinPos'!J17-'A6-FinPos'!J19-'A6-FinPos'!J21-'A6-FinPos'!J22 -> 53164943 | J95: =J65-'A6-FinPos'!K17-'A6-FinPos'!K19-'A6-FinPos'!K21-'A6-FinPos'!K22 -> 53164943 | K95: =K65-'A6-FinPos'!L17-'A6-FinPos'!L19-'A6-FinPos'!L21-'A6-FinPos'!L22 -> 53164943

Sheet A10-SerDel
A1: =muni&" - "&Approve10 -> FS205 Mafube - Table A10 Basic service delivery measurement
A2: =desc -> Description | B2: =head27 -> Ref | C2: =head1b -> 2013/14 | D2: =head1A -> 2014/15 | E2: =Head1 -> 2015/16 | F2: =Head2 -> Current Year 2016/17 | I2: =Head3 -> 2017/18 Medium Term Revenue & Expenditure Framework
C3: =Head5A -> Outcome | D3: =Head5A -> Outcome | E3: =Head5A -> Outcome | F3: =Head6 -> Original Budget | G3: =Head7 -> Adjusted Budget | H3: =Head8 -> Full Year Forecast | I3: =Head9 -> Budget Year 2017/18 | J3: =Head10 -> Budget Year +1 2018/19 | K3: =Head11 -> Budget Year +2 2019/20
A4: Household service targets | B4: 1
A5: Water:
A6: Piped water inside dwelling | C6: ='SA9'!E67 -> 0 | D6: ='SA9'!F67 -> 0 | E6: ='SA9'!G67 -> 14000 | F6: ='SA9'!H67 -> 15000 | G6: ='SA9'!I67 -> 14000 | H6: ='SA9'!J67 -> 14000 | I6: ='SA9'!K67 -> 15000 | J6: ='SA9'!L67 -> 15000 | K6: ='SA9'!M67 -> 15000
A7: Piped water inside yard (but not in dwelling) | C7: ='SA9'!E68 -> 0 | D7: ='SA9'!F68 -> 0 | E7: ='SA9'!G68 -> 0 | F7: ='SA9'!H68 -> 0 | G7: ='SA9'!I68 -> 0 | H7: ='SA9'!J68 -> 0 | I7: ='SA9'!K68 -> 0 | J7: ='SA9'!L68 -> 0 | K7: ='SA9'!M68 -> 0
A8: Using public tap (at least min.service level) | B8: 2 | C8: ='SA9'!E69 -> 0 | D8: ='SA9'!F69 -> 0 | E8: ='SA9'!G69 -> 0 | F8: ='SA9'!H69 -> 0 | G8: ='SA9'!I69 -> 0 | H8: ='SA9'!J69 -> 0 | I8: ='SA9'!K69 -> 0 | J8: ='SA9'!L69 -> 0 | K8: ='SA9'!M69 -> 0
A9: Other water supply (at least min.service level) | B9: 4 | C9: ='SA9'!E70 -> 0 | D9: ='SA9'!F70 -> 0 | E9: ='SA9'!G70 -> 0 | F9: ='SA9'!H70 -> 0 | G9: ='SA9'!I70 -> 0 | H9: ='SA9'!J70 -> 0 | I9: ='SA9'!K70 -> 0 | J9: ='SA9'!L70 -> 0 | K9: ='SA9'!M70 -> 0
A10: Minimum Service Level and Above sub-total | C10: =SUM(C6:C9) -> 0 | D10: =SUM(D6:D9) -> 0 | E10: 14000 | F10: 15000 | G10: 14000 | H10: 14000 | I10: 15000 | J10: 15000 | K10: 15000
A11: Using public tap (< min.service level) | B11: 3 | C11: ='SA9'!E72 -> 0 | D11: ='SA9'!F72 -> 0 | E11: ='SA9'!G72 -> 1300 | F11: ='SA9'!H72 -> 600 | G11: ='SA9'!I72 -> 1300 | H11: ='SA9'!J72 -> 1300 | I11: ='SA9'!K72 -> 600 | J11: ='SA9'!L72 -> 600 | K11: ='SA9'!M72 -> 600
A12: Other water supply (< min.service level) | B12: =B9 -> 4 | C12: ='SA9'!E73 -> 0 | D12: ='SA9'!F73 -> 0 | E12: ='SA9'!G73 -> 0 | F12: ='SA9'!H73 -> 0 | G12: ='SA9'!I73 -> 0 | H12: ='SA9'!J73 -> 0 | I12: ='SA9'!K73 -> 0 | J12: ='SA9'!L73 -> 0 | K12: ='SA9'!M73 -> 0
A13: No water supply | C13: ='SA9'!E74 -> 0 | D13: ='SA9'!F74 -> 0 | E13: ='SA9'!G74 -> 0 | F13: ='SA9'!H74 -> 0 | G13: ='SA9'!I74 -> 0 | H13: ='SA9'!J74 -> 0 | I13: ='SA9'!K74 -> 0 | J13: ='SA9'!L74 -> 0 | K13: ='SA9'!M74 -> 0
A14: Below Minimum Service Level sub-total | C14: =SUM(C11:C13) -> 0 | D14: =SUM(D11:D13) -> 0 | E14: 1300 | F14: 600 | G14: 1300 | H14: 1300 | I14: 600 | J14: 600 | K14: 600
A15: Total number of households | B15: 5 | C15: =C10+C14 -> 0 | D15: =D10+D14 -> 0 | E15: 15300 | F15: 15600 | G15: 15300 | H15: 15300 | I15: 15600 | J15: 15600 | K15: 15600
A16: Sanitation/sewerage:
A17: Flush toilet (connected to sewerage) | C17: ='SA9'!E78 -> 0 | D17: ='SA9'!F78 -> 0 | E17: ='SA9'!G78 -> 14000 | F17: ='SA9'!H78 -> 15000 | G17: ='SA9'!I78 -> 14000 | H17: ='SA9'!J78 -> 14000 | I17: ='SA9'!K78 -> 15000 | J17: ='SA9'!L78 -> 15000 | K17: ='SA9'!M78 -> 15000
A18: Flush toilet (with septic tank) | C18: ='SA9'!E79 -> 0 | D18: ='SA9'!F79 -> 0 | E18: ='SA9'!G79 -> 0 | F18: ='SA9'!H79 -> 0 | G18: ='SA9'!I79 -> 0 | H18: ='SA9'!J79 -> 0 | I18: ='SA9'!K79 -> 0 | J18: ='SA9'!L79 -> 0 | K18: ='SA9'!M79 -> 0
A19: Chemical toilet | C19: ='SA9'!E80 -> 0 | D19: ='SA9'!F80 -> 0 | E19: ='SA9'!G80 -> 0 | F19: ='SA9'!H80 -> 0 | G19: ='SA9'!I80 -> 0 | H19: ='SA9'!J80 -> 0 | I19: ='SA9'!K80 -> 0 | J19: ='SA9'!L80 -> 0 | K19: ='SA9'!M80 -> 0
A20: Pit toilet (ventilated) | C20: ='SA9'!E81 -> 0 | D20: ='SA9'!F81 -> 0 | E20: ='SA9'!G81 -> 0 | F20: ='SA9'!H81 -> 0 | G20: ='SA9'!I81 -> 0 | H20: ='SA9'!J81 -> 0 | I20: ='SA9'!K81 -> 0 | J20: ='SA9'!L81 -> 0 | K20: ='SA9'!M81 -> 0
A21: Other toilet provisions (> min.service level) | C21: ='SA9'!E82 -> 0 | D21: ='SA9'!F82 -> 0 | E21: ='SA9'!G82 -> 0 | F21: ='SA9'!H82 -> 0 | G21: ='SA9'!I82 -> 0 | H21: ='SA9'!J82 -> 0 | I21: ='SA9'!K82 -> 0 | J21: ='SA9'!L82 -> 0 | K21: ='SA9'!M82 -> 0
A22: =$A$10 -> Minimum Service Level and Above sub-total | C22: =SUM(C17:C21) -> 0 | D22: =SUM(D17:D21) -> 0 | E22: 14000 | F22: 15000 | G22: 14000 | H22: 14000 | I22: 15000 | J22: 15000 | K22: 15000
A23: Bucket toilet | C23: ='SA9'!E84 -> 0 | D23: ='SA9'!F84 -> 0 | E23: ='SA9'!G84 -> 0 | F23: ='SA9'!H84 -> 0 | G23: ='SA9'!I84 -> 0 | H23: ='SA9'!J84 -> 0 | I23: ='SA9'!K84 -> 0 | J23: ='SA9'!L84 -> 0 | K23: ='SA9'!M84 -> 0
A24: Other toilet provisions (< min.service level) | C24: ='SA9'!E85 -> 0 | D24: ='SA9'!F85 -> 0 | E24: ='SA9'!G85 -> 0 | F24: ='SA9'!H85 -> 0 | G24: ='SA9'!I85 -> 0 | H24: ='SA9'!J85 -> 0 | I24: ='SA9'!K85 -> 0 | J24: ='SA9'!L85 -> 0 | K24: ='SA9'!M85 -> 0
A25: No toilet provisions | C25: ='SA9'!E86 -> 0 | D25: ='SA9'!F86 -> 0 | E25: ='SA9'!G86 -> 0 | F25: ='SA9'!H86 -> 0 | G25: ='SA9'!I86 -> 0 | H25: ='SA9'!J86 -> 0 | I25: ='SA9'!K86 -> 0 | J25: ='SA9'!L86 -> 0 | K25: ='SA9'!M86 -> 0
A26: =$A$14 -> Below Minimum Service Level sub-total | C26: =SUM(C23:C25) -> 0 | D26: =SUM(D23:D25) -> 0 | E26: 0 | F26: 0 | G26: 0 | H26: 0 | I26: 0 | J26: 0 | K26: 0
A27: =$A$15 -> Total number of households | B27: =$B$15 -> 5 | C27: =C22+C26 -> 0 | D27: =D22+D26 -> 0 | E27: 14000 | F27: 15000 | G27: 14000 | H27: 14000 | I27: 15000 | J27: 15000 | K27: 15000
A28: Energy:
A29: Electricity (at least min.service level) | C29: ='SA9'!E90 -> 0 | D29: ='SA9'!F90 -> 0 | E29: ='SA9'!G90 -> 0 | F29: ='SA9'!H90 -> 15500 | G29: ='SA9'!I90 -> 15000 | H29: ='SA9'!J90 -> 15000 | I29: ='SA9'!K90 -> 16000 | J29: ='SA9'!L90 -> 16000 | K29: ='SA9'!M90 -> 16000
A30: Electricity - prepaid (min.service level) | C30: ='SA9'!E91 -> 0 | D30: ='SA9'!F91 -> 0 | E30: ='SA9'!G91 -> 0 | F30: ='SA9'!H91 -> 0 | G30: ='SA9'!I91 -> 0 | H30: ='SA9'!J91 -> 0 | I30: ='SA9'!K91 -> 0 | J30: ='SA9'!L91 -> 0 | K30: ='SA9'!M91 -> 0
A31: =$A$10 -> Minimum Service Level and Above sub-total | C31: =SUM(C29:C30) -> 0 | D31: =SUM(D29:D30) -> 0 | E31: 0 | F31: 15500 | G31: 15000 | H31: 15000 | I31: 16000 | J31: 16000 | K31: 16000
A32: Electricity (< min.service level) | C32: ='SA9'!E93 -> 0 | D32: ='SA9'!F93 -> 0 | E32: ='SA9'!G93 -> 1430 | F32: ='SA9'!H93 -> 0 | G32: ='SA9'!I93 -> 0 | H32: ='SA9'!J93 -> 0 | I32: ='SA9'!K93 -> 0 | J32: ='SA9'!L93 -> 0 | K32: ='SA9'!M93 -> 0
A33: Electricity - prepaid (< min. service level) | C33: ='SA9'!E94 -> 0 | D33: ='SA9'!F94 -> 0 | E33: ='SA9'!G94 -> 0 | F33: ='SA9'!H94 -> 0 | G33: ='SA9'!I94 -> 0 | H33: ='SA9'!J94 -> 0 | I33: ='SA9'!K94 -> 0 | J33: ='SA9'!L94 -> 0 | K33: ='SA9'!M94 -> 0
A34: Other energy sources | C34: ='SA9'!E95 -> 0 | D34: ='SA9'!F95 -> 0 | E34: ='SA9'!G95 -> 1430 | F34: ='SA9'!H95 -> 1430 | G34: ='SA9'!I95 -> 1430 | H34: ='SA9'!J95 -> 1430 | I34: ='SA9'!K95 -> 2000 | J34: ='SA9'!L95 -> 2000 | K34: ='SA9'!M95 -> 2000
A35: =$A$14 -> Below Minimum Service Level sub-total | C35: =SUM(C32:C34) -> 0 | D35: =SUM(D32:D34) -> 0 | E35: 2860 | F35: 1430 | G35: 1430 | H35: 1430 | I35: 2000 | J35: 2000 | K35: 2000
A36: =$A$15 -> Total number of households | B36: =$B$15 -> 5 | C36: =C31+C35 -> 0 | D36: =D31+D35 -> 0 | E36: 2860 | F36: 16930 | G36: 16430 | H36: 16430 | I36: 18000 | J36: 18000 | K36: 18000
A37: Refuse:
A38: Removed at least once a week | C38: ='SA9'!E99 -> 0 | D38: ='SA9'!F99 -> 0 | E38: ='SA9'!G99 -> 13500 | F38: ='SA9'!H99 -> 13500 | G38: ='SA9'!I99 -> 13500 | H38: ='SA9'!J99 -> 13500 | I38: ='SA9'!K99 -> 15500 | J38: ='SA9'!L99 -> 15500 | K38: ='SA9'!M99 -> 16000
A39: =$A$10 -> Minimum Service Level and Above sub-total | C39: =SUM(C38) -> 0 | D39: =SUM(D38) -> 0 | E39: 13500 | F39: 13500 | G39: 13500 | H39: 13500 | I39: 15500 | J39: 15500 | K39: 16000
A40: Removed less frequently than once a week | C40: ='SA9'!E101 -> 0 | D40: ='SA9'!F101 -> 0 | E40: ='SA9'!G101 -> 0 | F40: ='SA9'!H101 -> 0 | G40: ='SA9'!I101 -> 0 | H40: ='SA9'!J101 -> 0 | I40: ='SA9'!K101 -> 0 | J40: ='SA9'!L101 -> 0 | K40: ='SA9'!M101 -> 0
A41: Using communal refuse dump | C41: ='SA9'!E102 -> 0 | D41: ='SA9'!F102 -> 0 | E41: ='SA9'!G102 -> 0 | F41: ='SA9'!H102 -> 2000 | G41: ='SA9'!I102 -> 0 | H41: ='SA9'!J102 -> 0 | I41: ='SA9'!K102 -> 0 | J41: ='SA9'!L102 -> 0 | K41: ='SA9'!M102 -> 0
A42: Using own refuse dump | C42: ='SA9'!E103 -> 0 | D42: ='SA9'!F103 -> 0 | E42: ='SA9'!G103 -> 4000 | F42: ='SA9'!H103 -> 4000 | G42: ='SA9'!I103 -> 4000 | H42: ='SA9'!J103 -> 4000 | I42: ='SA9'!K103 -> 4500 | J42: ='SA9'!L103 -> 4500 | K42: ='SA9'!M103 -> 5000
A43: Other rubbish disposal | C43: ='SA9'!E104 -> 0 | D43: ='SA9'!F104 -> 0 | E43: ='SA9'!G104 -> 0 | F43: ='SA9'!H104 -> 0 | G43: ='SA9'!I104 -> 0 | H43: ='SA9'!J104 -> 0 | I43: ='SA9'!K104 -> 0 | J43: ='SA9'!L104 -> 0 | K43: ='SA9'!M104 -> 0
A44: No rubbish disposal | C44: ='SA9'!E105 -> 0 | D44: ='SA9'!F105 -> 0 | E44: ='SA9'!G105 -> 0 | F44: ='SA9'!H105 -> 0 | G44: ='SA9'!I105 -> 0 | H44: ='SA9'!J105 -> 0 | I44: ='SA9'!K105 -> 0 | J44: ='SA9'!L105 -> 0 | K44: ='SA9'!M105 -> 0
A45: =$A$14 -> Below Minimum Service Level sub-total | C45: =SUM(C40:C44) -> 0 | D45: 0 | E45: 4000 | F45: 6000 | G45: 4000 | H45: 4000 | I45: 4500 | J45: 4500 | K45: 5000
A46: =$A$15 -> Total number of households | B46: =$B$15 -> 5 | C46: =C39+C45 -> 0 | D46: =D39+D45 -> 0 | E46: 17500 | F46: 19500 | G46: 17500 | H46: 17500 | I46: 20000 | J46: 20000 | K46: 21000
A48: Households receiving Free Basic Service | B48: 7
A49: Water (6 kilolitres per household per month) | C49: ='SA9'!E263 -> 0 | D49: ='SA9'!F263 -> 0 | E49: ='SA9'!G263 -> 0 | F49: ='SA9'!H263 -> 0 | G49: ='SA9'!I263 -> 0 | H49: ='SA9'!J263 -> 0 | I49: ='SA9'!K263 -> 0 | J49: ='SA9'!L263 -> 0 | K49: ='SA9'!M263 -> 0
A50: Sanitation (free minimum level service) | C50: ='SA9'!E275 -> 0 | D50: ='SA9'!F275 -> 0 | E50: ='SA9'!G275 -> 0 | F50: ='SA9'!H275 -> 0 | G50: ='SA9'!I275 -> 0 | H50: ='SA9'!J275 -> 0 | I50: ='SA9'!K275 -> 0 | J50: ='SA9'!L275 -> 0 | K50: ='SA9'!M275 -> 0
A51: Electricity/other energy (50kwh per household per month) | C51: ='SA9'!E251 -> 0 | D51: ='SA9'!F251 -> 0 | E51: ='SA9'!G251 -> 0 | F51: ='SA9'!H251 -> 0 | G51: ='SA9'!I251 -> 0 | H51: ='SA9'!J251 -> 0 | I51: ='SA9'!K251 -> 0 | J51: ='SA9'!L251 -> 0 | K51: ='SA9'!M251 -> 0
A52: Refuse (removed at least once a week) | C52: ='SA9'!E287 -> 0 | D52: ='SA9'!F287 -> 0 | E52: ='SA9'!G287 -> 0 | F52: ='SA9'!H287 -> 0 | G52: ='SA9'!I287 -> 0 | H52: ='SA9'!J287 -> 0 | I52: ='SA9'!K287 -> 0 | J52: ='SA9'!L287 -> 0 | K52: ='SA9'!M287 -> 0
A54: Cost of Free Basic Services provided - Formal Settlements (R'000) | B54: 8
A55: Water (6 kilolitres per indigent household per month) | C55: ='SA1'!C20 -> 0 | D55: ='SA1'!D20 -> 0 | E55: ='SA1'!E20 -> 0 | F55: ='SA1'!F20 -> 0 | G55: ='SA1'!G20 -> 0 | H55: ='SA1'!H20 -> 0 | I55: ='SA1'!J20 -> 0 | J55: ='SA1'!K20 -> 0 | K55: ='SA1'!L20 -> 0
A56: Sanitation (free sanitation service to indigent households) | C56: ='SA1'!C26 -> 0 | D56: ='SA1'!D26 -> 0 | E56: ='SA1'!E26 -> 0 | F56: ='SA1'!F26 -> 0 | G56: ='SA1'!G26 -> 0 | H56: ='SA1'!H26 -> 0 | I56: ='SA1'!J26 -> 0 | J56: ='SA1'!K26 -> 0 | K56: ='SA1'!L26 -> 0
A57: Electricity/other energy (50kwh per indigent household per month) | C57: ='SA1'!C14 -> 0 | D57: ='SA1'!D14 -> 0 | E57: ='SA1'!E14 -> 0 | F57: ='SA1'!F14 -> 0 | G57: ='SA1'!G14 -> 0 | H57: ='SA1'!H14 -> 0 | I57: ='SA1'!J14 -> 0 | J57: ='SA1'!K14 -> 0 | K57: ='SA1'!L14 -> 0
A58: Refuse (removed once a week for indigent households) | C58: ='SA1'!C33 -> 0 | D58: ='SA1'!D33 -> 0 | E58: ='SA1'!E33 -> 0 | F58: ='SA1'!F33 -> 0 | G58: ='SA1'!G33 -> 0 | H58: ='SA1'!H33 -> 0 | I58: ='SA1'!J33 -> 0 | J58: ='SA1'!K33 -> 0 | K58: ='SA1'!L33 -> 0
A59: Cost of Free Basic Services provided - Informal Formal Settlements (R'000) | C59: ='SA9'!E260+'SA9'!E272+'SA9'!E284+'SA9'!E296 -> 0 | D59: ='SA9'!F260+'SA9'!F272+'SA9'!F284+'SA9'!F296 -> 0 | E59: ='SA9'!G260+'SA9'!G272+'SA9'!G284+'SA9'!G296 -> 0 | F59: ='SA9'!H260+'SA9'!H272+'SA9'!H284+'SA9'!H296 -> 17200 | G59: ='SA9'!I260+'SA9'!I272+'SA9'!I284+'SA9'!I296 -> 17200 | H59: ='SA9'!J260+'SA9'!J272+'SA9'!J284+'SA9'!J296 -> 17200 | I59: ='SA9'!K260+'SA9'!K272+'SA9'!K284+'SA9'!K296 -> 19200 | J59: ='SA9'!L260+'SA9'!L272+'SA9'!L284+'SA9'!L296 -> 19600 | K59: ='SA9'!M260+'SA9'!M272+'SA9'!M284+'SA9'!M296 -> 19600
A60: Total cost of FBS provided | C60: =SUM(C55:C59) -> 0 | D60: 0 | E60: 0 | F60: 17200 | G60: 17200 | H60: 17200 | I60: 19200 | J60: 19600 | K60: 19600
A62: Highest level of free service provided per household
A63: Property rates (R value threshold) | C63: 13000000
A64: Water (kilolitres per household per month)
A65: Sanitation (kilolitres per household per month)
A66: Sanitation (Rand per household per month)
A67: Electricity (kwh per household per month)
A68: Refuse (average litres per week)
A69: Revenue cost of subsidised services provided (R'000) | B69: 9
A70: Property rates (tariff adjustment) ( impermissable values per section 17 of MPRA)
A71: Property rates exemptions, reductions and rebates and impermissable values in excess of section 17 of MPRA) | C71: ='SA1'!C8 -> 0 | D71: ='SA1'!D8 -> 0 | E71: ='SA1'!E8 -> 0 | F71: ='SA1'!F8 -> 0 | G71: ='SA1'!G8 -> 0 | H71: ='SA1'!H8 -> 0 | I71: ='SA1'!J8 -> 0 | J71: ='SA1'!K8 -> 0 | K71: ='SA1'!L8 -> 0
A72: Water (in excess of 6 kilolitres per indigent household per month) | C72: ='SA1'!C19 -> 0 | D72: ='SA1'!D19 -> 0 | E72: ='SA1'!E19 -> 0 | F72: ='SA1'!F19 -> 0 | G72: ='SA1'!G19 -> 0 | H72: ='SA1'!H19 -> 0 | I72: ='SA1'!J19 -> 0 | J72: ='SA1'!K19 -> 0 | K72: ='SA1'!L19 -> 0
A73: Sanitation (in excess of free sanitation service to indigent households) | C73: ='SA1'!C25 -> 0 | D73: ='SA1'!D25 -> 0 | E73: ='SA1'!E25 -> 0 | F73: ='SA1'!F25 -> 0 | G73: ='SA1'!G25 -> 0 | H73: ='SA1'!H25 -> 0 | I73: ='SA1'!J25 -> 0 | J73: ='SA1'!K25 -> 0 | K73: ='SA1'!L25 -> 0
A74: Electricity/other energy (in excess of 50 kwh per indigent household per month) | C74: ='SA1'!C13 -> 0 | D74: ='SA1'!D13 -> 0 | E74: ='SA1'!E13 -> 0 | F74: ='SA1'!F13 -> 0 | G74: ='SA1'!G13 -> 0 | H74: ='SA1'!H13 -> 0 | I74: ='SA1'!J13 -> 0 | J74: ='SA1'!K13 -> 0 | K74: ='SA1'!L13 -> 0
A75: Refuse (in excess of one removal a week for indigent households) | C75: ='SA1'!C32 -> 0 | D75: ='SA1'!D32 -> 0 | E75: ='SA1'!E32 -> 0 | F75: ='SA1'!F32 -> 0 | G75: ='SA1'!G32 -> 0 | H75: ='SA1'!H32 -> 0 | I75: ='SA1'!J32 -> 0 | J75: ='SA1'!K32 -> 0 | K75: ='SA1'!L32 -> 0
A76: Municipal Housing - rental rebates
A77: Housing - top structure subsidies | B77: 6
A78: Other
A79: Total revenue cost of subsidised services provided | C79: =SUM(C70:C78) -> 0 | D79: =SUM(D70:D78) -> 0 | E79: 0 | F79: 0 | G79: 0 | H79: 0 | I79: 0 | J79: =SUM(J70:J78) -> 0 | K79: =SUM(K70:K78) -> 0
A80: =head27a -> References
A81: 1. Include services provided by another entity; e.g. Eskom
A82: 2. Stand distance <= 200m from dwelling
A83: 3. Stand distance > 200m from dwelling
A84: 4. Borehole, spring, rain-water tank etc.
A85: 5. Must agree to total number of households in municipal area (informal settlements receiving services must be included)
A86: 6. Include value of subsidy provided by municipality above provincial subsidy level
A87: 7. Show number of households receiving at least these levels of services completely free (informal settlements must be included)
A88: 8. Must reflect the cost to the municipality of providing the Free Basic Service
A89: 9. Reflect the cost to the municipality in terms of 'revenue foregone' of providing free services (note this will not equal 'Revenue Foregone' on SA1)

Sheet SA1
A1: =muni&" - "&TableA1 -> FS205 Mafube - Supporting Table SA1 Supportinging detail to 'Budgeted Financial Performance'
A2: =desc -> Description | B2: =head27 -> Ref | C2: =head1b -> 2013/14 | D2: =head1A -> 2014/15 | E2: =Head1 -> 2015/16 | F2: =Head2 -> Current Year 2016/17 | J2: =Head3 -> 2017/18 Medium Term Revenue & Expenditure Framework
C3: =Head5 -> Audited Outcome | D3: =Head5 -> Audited Outcome | E3: =Head5 -> Audited Outcome | F3: =Head6 -> Original Budget | G3: =Head7 -> Adjusted Budget | H3: =Head8 -> Full Year Forecast | I3: =Head5b -> Pre-audit outcome | J3: =Head9 -> Budget Year 2017/18 | K3: =Head10 -> Budget Year +1 2018/19 | L3: =Head11 -> Budget Year +2 2019/20
A4: R thousand
A5: REVENUE ITEMS:
A6: ='A4-FinPerf RE'!A5 -> Property rates | B6: 6
A7: Total Property Rates | C7: 19474278 | D7: 21152561 | E7: 22693193 | F7: 27148891 | G7: 27148891 | H7: 27148891 | J7: 28804972.99 | K7: 30562076.34 | L7: 32426363
A8: less Revenue Foregone (exemptions, reductions and rebates and impermissable values in excess of section 17 of MPRA)
A9: Net Property Rates | C9: =C7-C8 -> 19474278 | D9: =D7-D8 -> 21152561 | E9: 22693193 | F9: 27148891 | G9: 27148891 | H9: 27148891 | I9: 0 | J9: 28804972.99 | K9: 30562076.34 | L9: 32426363
A11: ='A4-FinPerf RE'!A7 -> Service charges - electricity revenue | B11: 6
A12: ="Total "&A11 -> Total Service charges - electricity revenue | C12: -102286 | D12: -414 | E12: -1376
A13: less Revenue Foregone (in excess of 50 kwh per indigent household per month)
A14: less Cost of Free Basis Services (50 kwh per indigent household per month) | C14: ='SA9'!E250 -> 0 | D14: ='SA9'!F250 -> 0 | E14: ='SA9'!G250 -> 0 | F14: ='SA9'!H250 -> 0 | G14: ='SA9'!I250 -> 0 | H14: ='SA9'!J250 -> 0 | J14: ='SA9'!K250 -> 0 | K14: ='SA9'!L250 -> 0 | L14: ='SA9'!M250 -> 0
A15: ="Net "& A11 -> Net Service charges - electricity revenue | C15: =C12-C13-C14 -> -102286 | D15: =D12-D13-D14 -> -414 | E15: -1376 | F15: 0 | G15: 0 | H15: 0 | I15: 0 | J15: 0 | K15: 0 | L15: 0
A17: ='A4-FinPerf RE'!A8 -> Service charges - water revenue | B17: 6
A18: ="Total "&A17 -> Total Service charges - water revenue | C18: 18518134 | D18: 31294060 | E18: 33858861 | F18: 23098760 | G18: 23098760 | H18: 23098760 | J18: 24507784.34 | K18: 26002759.18 | L18: 27588927.49
A19: less Revenue Foregone (in excess of 6 kilolitres per indigent household per month)
A20: less Cost of Free Basis Services (6 kilolitres per indigent household per month) | C20: ='SA9'!E262 -> 0 | D20: ='SA9'!F262 -> 0 | E20: ='SA9'!G262 -> 0 | F20: ='SA9'!H262 -> 0 | G20: ='SA9'!I262 -> 0 | H20: ='SA9'!J262 -> 0 | J20: ='SA9'!K262 -> 0 | K20: ='SA9'!L262 -> 0 | L20: ='SA9'!M262 -> 0
A21: ="Net "& A17 -> Net Service charges - water revenue | C21: =C18-C19-C20 -> 18518134 | D21: =D18-D19-D20 -> 31294060 | E21: 33858861 | F21: 23098760 | G21: 23098760 | H21: 23098760 | I21: 0 | J21: 24507784.34 | K21: 26002759.18 | L21: 27588927.49
A23: ='A4-FinPerf RE'!A9 -> Service charges - sanitation revenue
A24: ="Total "&A23 -> Total Service charges - sanitation revenue | C24: 15312749 | D24: 16696403 | E24: 17305717 | F24: 17776153 | G24: 17776153 | H24: 17776153 | J24: 18860498.71 | K24: 20010989.14 | L24: 21231659.47
A25: less Revenue Foregone (in excess of free sanitation service to indigent households)
A26: less Cost of Free Basis Services (free sanitation service to indigent households) | C26: ='SA9'!E274 -> 0 | D26: ='SA9'!F274 -> 0 | E26: ='SA9'!G274 -> 0 | F26: ='SA9'!H274 -> 0 | G26: ='SA9'!I274 -> 0 | H26: ='SA9'!J274 -> 0 | J26: ='SA9'!K274 -> 0 | K26: ='SA9'!L274 -> 0 | L26: ='SA9'!M274 -> 0
A27: ="Net "& A23 -> Net Service charges - sanitation revenue | C27: =C24-C25-C26 -> 15312749 | D27: =D24-D25-D26 -> 16696403 | E27: 17305717 | F27: 17776153 | G27: 17776153 | H27: 17776153 | I27: 0 | J27: 18860498.71 | K27: 20010989.14 | L27: 21231659.47
A29: ='A4-FinPerf RE'!A10 -> Service charges - refuse revenue | B29: 6
A30: Total refuse removal revenue | C30: 13862071 | D30: 12125447 | E30: 12583451 | F30: 12906827 | G30: 12906827 | H30: 12906827 | J30: 13694143.57 | K30: 14529486.33 | L30: 15415785
A31: Total landfill revenue
A32: less Revenue Foregone (in excess of one removal a week to indigent households)
A33: less Cost of Free Basis Services (removed once a week to indigent households) | C33: ='SA9'!E286 -> 0 | D33: ='SA9'!F286 -> 0 | E33: ='SA9'!G286 -> 0 | F33: ='SA9'!H286 -> 0 | G33: ='SA9'!I286 -> 0 | H33: ='SA9'!J286 -> 0 | J33: ='SA9'!K286 -> 0 | K33: ='SA9'!L286 -> 0 | L33: ='SA9'!M286 -> 0
A34: ="Net "& A29 -> Net Service charges - refuse revenue | C34: =SUM(C30:C31)-C32-C33 -> 13862071 | D34: =SUM(D30:D31)-D32-D33 -> 12125447 | E34: 12583451 | F34: 12906827 | G34: 12906827 | H34: 12906827 | I34: 0 | J34: 13694143.57 | K34: 14529486.33 | L34: 15415785
A36: Other Revenue by source
A37: Intrest earned outstading debtors
A38: Operatin g grants and subsidies
A39: Other Income | J39: 2532388.858 | K39: 2686864.578 | L39: 2850763.317
A40: Rent facilities and equipment
A41: Interest earned - external investments
A42: Dividends received | K42: 0 | L42: 0
A43: Fines
A44: cemetary fees
A45: clearance certificate
A46: Transfers recognised - operational
A47: Other own revenue | C47: 212565 | D47: 2782506 | E47: 4148411 | F47: 2480126 | G47: 2480126 | H47: 2480126
A48: Gains on disposal of PPE | B48: 3 | C48: 0 | D48: 0 | F48: 0 | G48: 0 | H48: 0
A49: Total 'Other' Revenue | B49: 1 | C49: =SUM(C37:C48) -> 212565 | D49: =SUM(D37:D48) -> 2782506 | E49: 4148411 | F49: 2480126 | G49: 2480126 | H49: 2480126 | I49: 0 | J49: 2532388.858 | K49: 2686864.578 | L49: 2850763.317
A51: EXPENDITURE ITEMS:
A52: ='A4-FinPerf RE'!A25 -> Employee related costs
A53: Basic Salaries and Wages | B53: 2 | C53: 67173281 | D53: 67116701 | E53: 76439724 | F53: 54506684 | G53: 54921000 | H53: 54506684 | J53: 53523965.16 | K53: 54059206.34 | L53: 54599798.79
A54: Pension and UIF Contributions | F54: 11955488.83 | G54: 11955488.83 | H54: 11955488.83 | J54: 11631056.19 | K54: 11747366.75 | L54: 11864840.42
A55: Medical Aid Contributions | F55: 5006747.098 | G55: 5006747.098 | H55: 5006747.098 | J55: 4870663.166 | K55: 4919369.798 | L55: 4968563.496
A56: Overtime | F56: 1729275.792 | G56: 1729275.792 | H56: 1729275.792 | J56: 1681346 | K56: 1698159.46 | L56: 1715141.055
A57: Performance Bonus | F57: 0 | G57: 0 | H57: 0 | J57: 0 | K57: 0 | L57: 0
A58: Motor Vehicle Allowance | C58: 1437442 | F58: 5522451.804 | G58: 5522451.804 | H58: 5522451.804 | J58: 5403582.809 | K58: 5457618.637 | L58: 5512194.823
A59: Cellphone Allowance | F59: 105235.3465 | G59: 105235.3465 | H59: 105235.3465 | J59: 102748.285 | K59: 103775.7678 | L59: 104813.5255
A60: Housing Allowances | F60: 42741.41134 | G60: 42741.41134 | H60: 42741.41134 | J60: 41556 | K60: 41971.56 | L60: 42391.2756
A61: Other benefits and allowances | C61: 9352048 | D61: 6194612 | E61: 662509 | F61: 8661256.1 | G61: 9443000 | H61: 8661256.1 | J61: 8535682.9 | K61: 8621039.729 | L61: 8707250.126
A62: Payments in lieu of leave | G62: 0
A63: Long service awards | G63: 0
A64: Post-retirement benefit obligations | B64: 4 | G64: 0
A65: sub-total | B65: 5 | C65: =SUM(C53:C64) -> 77962771 | D65: =SUM(D53:D64) -> 73311313 | E65: 77102233 | F65: 87529880.38 | G65: 88725940.28 | H65: 87529880.38 | I65: 0 | J65: 85790600.52 | K65: 86648508.04 | L65: 87514993.51
A66: Less: Employees costs capitalised to PPE
A67: ="Total "&A52 -> Total Employee related costs | B67: 1 | C67: =C65-C66 -> 77962771 | D67: =D65-D66 -> 73311313 | E67: 77102233 | F67: 87529880.38 | G67: 88725940.28 | H67: 87529880.38 | I67: 0 | J67: 85790600.52 | K67: 86648508.04 | L67: 87514993.51
A69: Contributions recognised - capital
A70: List contributions by contract
A76: ="Total "&A69 -> Total Contributions recognised - capital | C76: =SUM(C70:C75) -> 0 | D76: 0 | E76: 0 | F76: 0 | G76: 0 | H76: 0 | I76: 0 | J76: 0 | K76: 0 | L76: 0
A78: ='A4-FinPerf RE'!A28 -> Depreciation & asset impairment
A79: Depreciation of Property, Plant & Equipment | C79: 137283347 | D79: 37286363 | E79: 38259177 | F79: 1500000 | G79: 1500000 | H79: 1500000 | J79: 38259177 | K79: 38259177 | L79: 38259177
A80: Lease amortisation
A81: Capital asset impairment
A82: Depreciation resulting from revaluation of PPE | B82: 10
A83: ="Total "&LEFT(A78,35) -> Total Depreciation & asset impairment | B83: 1 | C83: =SUM(C79:C81)-C82 -> 137283347 | D83: =SUM(D79:D81)-D82 -> 37286363 | E83: 38259177 | F83: 1500000 | G83: 1500000 | H83: 1500000 | I83: 0 | J83: =SUM(J79:J81)-J82 -> 38259177 | K83: 38259177 | L83: 38259177
A85: ='A4-FinPerf RE'!A30 -> Bulk purchases
A86: Electricity Bulk Purchases | C86: 17199992 | D86: 6729008 | E86: 10962325 | F86: 4000000 | G86: 4000000 | H86: 4000000 | J86: 4000000 | K86: 6000000 | L86: 8000000
A87: Water Bulk Purchases | C87: 10514964 | D87: 17039629 | E87: 34983969 | F87: 2000000 | G87: 2000000 | H87: 2000000 | J87: 2000000 | K87: 2122000 | L87: 3416420
A88: Total bulk purchases | B88: 1 | C88: =SUM(C86:C87) -> 27714956 | D88: =SUM(D86:D87) -> 23768637 | E88: 45946294 | F88: 6000000 | G88: 6000000 | H88: 6000000 | I88: 0 | J88: 6000000 | K88: 8122000 | L88: 11416420
A90: Transfers and grants
A91: Cash transfers and grants | C91: ='SA21'!C32 -> 0 | D91: ='SA21'!D32 -> 0 | E91: ='SA21'!E32 -> 0 | F91: ='SA21'!F32 -> 0 | G91: ='SA21'!G32 -> 0 | H91: ='SA21'!H32 -> 0 | I91: ='SA21'!I32 -> 0 | J91: ='SA21'!J32 -> 0 | K91: ='SA21'!K32 -> 0 | L91: ='SA21'!L32 -> 0
A92: Non-cash transfers and grants | C92: ='SA21'!C63 -> 6746501 | D92: ='SA21'!D63 -> 3547907 | E92: ='SA21'!E63 -> 9595124 | F92: ='SA21'!F63 -> 5252545 | G92: ='SA21'!G63 -> 5252545 | H92: ='SA21'!H63 -> 5252545 | I92: ='SA21'!I63 -> 0 | J92: ='SA21'!J63 -> 10000000 | K92: ='SA21'!K63 -> 10610000 | L92: ='SA21'!L63 -> 11257210
A93: Total transfers and grants | B93: 1 | C93: =SUM(C91:C92) -> 6746501 | D93: =SUM(D91:D92) -> 3547907 | E93: 9595124 | F93: 5252545 | G93: 5252545 | H93: 5252545 | I93: 0 | J93: 10000000 | K93: 10610000 | L93: 11257210
A95: ='A4-FinPerf RE'!A32 -> Contracted services
A96: List services provided by contract
A121: sub-total | B121: 1 | C121: =SUM(C96:C120) -> 0 | D121: 0 | E121: 0 | F121: 0 | G121: 0 | H121: 0 | I121: 0 | J121: 0 | K121: 0 | L121: 0
A122: Allocations to organs of state:
A123: Electricity
A124: Water
A125: Sanitation
A126: Other
A127: Total contracted services | C127: =SUM(C121:C126) -> 0 | D127: =SUM(D121:D126) -> 0 | E127: 0 | F127: 0 | G127: 0 | H127: 0 | I127: 0 | J127: 0 | K127: 0 | L127: 0
A129: Other Expenditure By Type
A130: Collection costs
A131: Contributions to 'other' provisions
A132: Consultant fees | F132: 350000 | G132: 350000 | H132: 350000 | J132: 300000 | K132: 318300 | L132: 337716.3
A133: Audit fees | F133: 2190000 | G133: 1620000 | H133: 2190000 | J133: 500000 | K133: 530500 | L133: 562860.5
A134: General expenses | B134: 3 | C134: 25942871 | D134: 31472010 | E134: =39259800+20000 -> 39279800 | F134: 13390664 | G134: 8709000 | H134: 13390664 | J134: 5900771.887 | K134: 6048517.358 | L134: 6417476.504
A135: Postage,Telephone,Advertisement, Stationery | F135: 4200000 | G135: 4200000 | H135: 4200000 | J135: 2950000 | K135: 3129950 | L135: 3320876.95
A136: Affiliation,Bursaries,Workshop & Publication | C136: 11206908 | F136: 1590000 | G136: 1590000 | H136: 1590000 | J136: =50000+300000+300000+1500000+50000 -> 2200000 | K136: =53050+530500+318300+1591500+53050 -> 2546400 | L136: =56286.05+562860.5+337716.3+1688581.5+56286.05 -> 2701730.4
A137: Agri,LED,Policies,Skills,SMME,Tourism,IDP | F137: 1630000 | G137: 1630000 | H137: 1630000 | J137: 1010000 | K137: 1071610 | L137: 1136978.21
A138: Special Programmes, youth programmes, operation hlasela, public participation, ward committees | F138: 8150000 | G138: 8150000 | H138: 8150000 | J138: 4625000 | K138: 4907125 | L138: 5206459.625
A139: Entertainment,Refreshment,Donations | F139: 300000 | G139: 300000 | H139: 300000 | J139: 200000 | K139: 212200 | L139: 225144.2
A140: Mayoral projects & Imbizo | F140: 1500000 | G140: 1500000 | H140: 1500000 | J140: 1000000 | K140: 1061000 | L140: 1125721
A141: Repairs & Maintenance | D141: 32876637 | E141: 24254521 | F141: 13885000 | G141: 20273000 | H141: 13885000 | J141: 18240254.91 | K141: 20718100.46 | L141: 23950499.58
A142: FMG Expenditure
A143: security Services | F143: 250000 | G143: 250000 | H143: 250000 | J143: 250000 | K143: 265250 | L143: 281430.25
A144: travel & Subsistance | F144: 2660000 | G144: 2675000 | H144: 2660000 | J144: 2472500 | K144: 2912315 | L144: 3067969.005
A145: EPWP | F145: 500000 | G145: 1000000 | H145: 500000 | J145: 1000000 | K145: 1061000 | L145: 1125721
A146: Dustbins | F146: 1350000 | G146: 1350000 | H146: 1350000 | J146: 500000 | K146: 530500 | L146: 562860.5
A147: Water chemicals | F147: 3000000 | G147: 4000000 | H147: 3000000 | J147: 2500000 | K147: 2652500 | L147: 2814302.5
A148: Fuel | F148: 2500000 | G148: 3000000 | H148: 2500000 | J148: 2000000 | K148: 2122000 | L148: 2251442
A149: Protective Clothing & overalls | F149: 1500000 | G149: 1500000 | H149: 1500000 | J149: 1800000 | K149: 1909800 | L149: 2026297.8
A150: Youth Summit,programmes and talent search
A151: Planning & Surveying of ervens, land audit, housig sector plans and LUMS | F151: 1300000 | G151: 500000 | H151: 1300000 | J151: 150000 | K151: 159150 | L151: 168858.15
A152: Street Naming and Numbering | J152: 100000 | K152: 106100 | L152: 112572.1
A153: Insurance & legal costs | F153: 2700000 | G153: 3000000 | H153: 2700000 | J153: 2000000 | K153: 2122000 | L153: 2251442
A154: Bank charges | F154: 400000 | G154: 300000 | H154: 400000 | J154: 250000 | K154: 265250 | L154: 281430.25
A155: IT Expenses | F155: 2500000 | G155: 1750000 | H155: 2500000 | J155: 750000 | K155: 780500 | L155: 828110.5
A156: Office equipment / Plant/ Machinery/Vehicle rentals | F156: 9094000 | G156: 11320000 | H156: 9094000 | J156: 6930000 | K156: 7546630 | L156: 7988674.43
A157: Total 'Other' Expenditure | B157: 1 | C157: =SUM(C130:C156) -> 37149779 | D157: =SUM(D130:D156) -> 64348647 | E157: 63534321 | F157: 74939664 | G157: 78967000 | H157: 74939664 | I157: 0 | J157: 57628526.8 | K157: 62976697.82 | L157: 68746573.76
A159: Repairs and Maintenance by Expenditure Item | B159: 8
A160: Employee related costs
A161: Other materials
A162: Contracted Services
A163: Other Expenditure | D163: 32876637 | E163: 24254521 | F163: 13885000 | G163: 20272500 | J163: 18240254.91 | K163: 20718100.46 | L163: 23950499.58
A164: Total Repairs and Maintenance Expenditure | B164: 9 | C164: =SUM(C160:C163) -> 0 | D164: =SUM(D160:D163) -> 32876637 | E164: 24254521 | F164: 13885000 | G164: 20272500 | H164: 0 | I164: 0 | J164: 18240254.91 | K164: 20718100.46 | L164: 23950499.58
A166: check | C166: =C164-SA34c!C77 -> -11206908 | D166: =D164-SA34c!D77 -> 454 | E166: =E164-SA34c!E77 -> 24254521 | F166: =F164-SA34c!F77 -> 0 | G166: =G164-SA34c!G77 -> 6387500 | H166: =H164-SA34c!H77 -> -13885000 | J166: =J164-SA34c!I77 -> -255 | K166: =K164-SA34c!J77 -> -282.00049 | L166: =L164-SA34c!K77 -> -289.5374599
A169: =head27a -> References
A170: 1. Must reconcile with 'Budgeted Financial Performance (Revenue and Expenditure)
A171: 2. Must reconcile to supporting documentation on staff salaries
A172: 3. Insert other categories where revenue or expenditure is of a material nature (list separate items until 'General expenses' is not > 10% of Total Expenditure)
A173: 4. Expenditure to meet any 'unfunded obligations'
A174: 5 This sub-total must agree with the total on SA22, but excluding councillor and board member items
A175: 6. Include a note for each revenue item that is affected by 'revenue foregone'
A176: 7. Special consideration may have to be given to including 'goodwill arising' or 'joint venture' budgets where circumstances require this (include separately under relevant notes)
A177: 8. Repairs and Maintenance is not a GRAP item. However to facilitate transparency, municipalities must provide a breakdown of the amounts included in the relevant GRAP items that will be spent on Repairs and Maintenance.
A178: 9. Must reconcile with Repairs and Maintenance by Asset Class (Total Repairs and Maintenance) on Table SA34c.
A179: 10. Only applicable to municipalities that have adopted the 'revaluation method' in GRAP 17. The aim is to prevent overstating 'depreciation and asset impairment'

Sheet SA2
A1: =muni&" - "&TableA2 -> FS205 Mafube - Supporting Table SA2 Matrix Financial Performance Budget (revenue source/expenditure type and dept.)
A2: =desc -> Description | B2: =head27 -> Ref | C2: ='A3-FinPerf V'!A5 -> Vote 1 - OFFICE OF THE MAYOR | D2: ='A3-FinPerf V'!A6 -> Vote 2 - OFFICE OF THE SPEAKER | E2: ='A3-FinPerf V'!A7 -> Vote 3 - OFFICE OF THE MUNICIPAL MANAGER | F2: ='A3-FinPerf V'!A8 -> Vote 4 - COMMUNITY SERVICES | G2: ='A3-FinPerf V'!A9 -> Vote 5 - CORPORATE SERVICES | H2: ='A3-FinPerf V'!A10 -> Vote 6 - FINANCIAL SERVICES | I2: ='A3-FinPerf V'!A11 -> Vote 7 - INFRASTRUCTURE SERVICES | J2: ='A3-FinPerf V'!A12 -> Vote 8 - SERVICE DELIVERY AND PUBLIC SAFETY | K2: ='A3-FinPerf V'!A13 -> Vote 9 - [NAME OF VOTE 9] | L2: ='A3-FinPerf V'!A14 -> Vote 10 - [NAME OF VOTE 10] | M2: ='A3-FinPerf V'!A15 -> Vote 11 - [NAME OF VOTE 11] | N2: ='A3-FinPerf V'!A16 -> Vote 12 - [NAME OF VOTE 12] | O2: ='A3-FinPerf V'!A17 -> Vote 13 - [NAME OF VOTE 13] | P2: ='A3-FinPerf V'!A18 -> Vote 14 - [NAME OF VOTE 14] | Q2: ='A3-FinPerf V'!A19 -> Vote 15 - [NAME OF VOTE 15] | R2: Total
A3: R thousand | B3: 1 | C3: R'000 | D3: R'000 | E3: R'000 | F3: R'000 | G3: R'000 | H3: R'000 | Q3: R'000 | R3: R'000
A4: ='A4-FinPerf RE'!A4 -> Revenue By Source
A5: ='A4-FinPerf RE'!A5 -> Property rates | H5: 27251401 | R5: =SUM(C5:Q5) -> 27251401
A6: ='A4-FinPerf RE'!A6 -> Property rates - penalties & collection charges | R6: =SUM(C6:Q6) -> 0
A7: ='A4-FinPerf RE'!A7 -> Service charges - electricity revenue | R7: 0
A8: ='A4-FinPerf RE'!A8 -> Service charges - water revenue | I8: 24507784.34 | R8: 24507784.34
A9: ='A4-FinPerf RE'!A9 -> Service charges - sanitation revenue | F9: 18860498.71 | R9: 18860498.71
A10: ='A4-FinPerf RE'!A10 -> Service charges - refuse revenue | F10: 13694143.57 | R10: 13694143.57
A11: ='A4-FinPerf RE'!A11 -> Service charges - other | R11: 0
A12: ='A4-FinPerf RE'!A12 -> Rental of facilities and equipment | H12: 309217.37 | R12: 309217.37
A13: ='A4-FinPerf RE'!A13 -> Interest earned - external investments | H13: 214242.96 | R13: 214242.96
A14: ='A4-FinPerf RE'!A14 -> Interest earned - outstanding debtors | H14: 27412878.28 | R14: 27412878.28
A15: ='A4-FinPerf RE'!A15 -> Dividends received | H15: 0 | R15: 0
A16: ='A4-FinPerf RE'!A16 -> Fines | H16: 75000 | R16: 75000
A17: ='A4-FinPerf RE'!A17 -> Licences and permits | R17: 0
A18: ='A4-FinPerf RE'!A18 -> Agency services | H18: 0 | R18: 0
A19: ='A4-FinPerf RE'!A20 -> Other revenue | H19: 7632138.678 | R19: 7632138.678
A20: ='A4-FinPerf RE'!A19 -> Transfers recognised - operational | H20: 83172000 | R20: 83172000
A21: ='A4-FinPerf RE'!A21 -> Gains on disposal of PPE | R21: 0
A22: ='A4-FinPerf RE'!A22 -> Total Revenue (excluding capital transfers and contributions) | C22: =SUM(C5:C21) -> 0 | D22: 0 | E22: 0 | F22: 32554642.28 | G22: 0 | H22: 146066878.3 | I22: 24507784.34 | J22: 0 | K22: 0 | L22: 0 | M22: 0 | N22: 0 | O22: 0 | P22: 0 | Q22: 0 | R22: 203129304.9
A24: ='A4-FinPerf RE'!A24 -> Expenditure By Type
A25: ='A4-FinPerf RE'!A25 -> Employee related costs | C25: 1984762 | D25: 2659136 | E25: 39301142.42 | F25: 8127600 | G25: 10813167 | H25: 8244846 | I25: 14659950 | R25: =SUM(C25:Q25) -> 85790603.42
A26: ='A4-FinPerf RE'!A26 -> Remuneration of councillors | D26: 5985277 | R26: =SUM(C26:Q26) -> 5985277
A27: ='A4-FinPerf RE'!A27 -> Debt impairment | H27: 6569356 | R27: 6569356
A28: ='A4-FinPerf RE'!A28 -> Depreciation & asset impairment | H28: 38259177 | R28: 38259177
A29: ='A4-FinPerf RE'!A29 -> Finance charges | H29: 3298072 | R29: 3298072
A30: ='A4-FinPerf RE'!A30 -> Bulk purchases | I30: 6000000 | R30: 6000000
A31: ='A4-FinPerf RE'!A31 -> Other materials | R31: 0
A32: ='A4-FinPerf RE'!A32 -> Contracted services | R32: 0
A33: ='A4-FinPerf RE'!A33 -> Transfers and grants | H33: 10000000 | R33: 10000000
A34: ='A4-FinPerf RE'!A34 -> Other expenditure | C34: 5149999.716 | D34: 1374998.826 | E34: 6300000 | F34: 3105000.148 | G34: 20294999.7 | H34: 4105769.988 | I34: 17297755.12 | R34: 57628523.5
A35: ='A4-FinPerf RE'!A35 -> Loss on disposal of PPE | R35: 0
A36: Total Expenditure | C36: =SUM(C25:C35) -> 7134761.716 | D36: 10019411.83 | E36: 45601142.42 | F36: 11232600.15 | G36: 31108166.7 | H36: 70477220.99 | I36: 37957705.12 | J36: 0 | K36: 0 | L36: 0 | M36: 0 | N36: 0 | O36: 0 | P36: 0 | Q36: 0 | R36: 213531008.9
A38: ='A4-FinPerf RE'!A38 -> Surplus/(Deficit) | C38: =C22-C36 -> -7134761.716 | D38: -10019411.83 | E38: -45601142.42 | F38: 21322042.13 | G38: -31108166.7 | H38: 75589657.3 | I38: =I22-I36 -> -13449920.78 | J38: 0 | K38: 0 | L38: 0 | M38: 0 | N38: 0 | O38: 0 | P38: 0 | Q38: 0 | R38: =R22-R36 -> -10401704.01
A39: ='A4-FinPerf RE'!A39 -> Transfers recognised - capital | I39: 32080000 | R39: =SUM(C39:Q39) -> 32080000
A40: ='A4-FinPerf RE'!A40 -> Contributions recognised - capital | R40: =SUM(C40:Q40) -> 0
A41: ='A4-FinPerf RE'!A41 -> Contributed assets | R41: =SUM(C41:Q41) -> 0
A42: ='A4-FinPerf RE'!A42 -> Surplus/(Deficit) after capital transfers & contributions | C42: =SUM(C38:C41) -> -7134761.716 | D42: -10019411.83 | E42: -45601142.42 | F42: 21322042.13 | G42: -31108166.7 | H42: 75589657.3 | I42: 18630079.22 | J42: 0 | K42: 0 | L42: 0 | M42: 0 | N42: 0 | O42: 0 | P42: 0 | Q42: =SUM(Q38:Q41) -> 0 | R42: =SUM(R38:R41) -> 21678295.99
A43: =head27a -> References
A44: 1. Departmental columns to be based on municipal organisation structure
A45: check balance | R45: ='A4-FinPerf RE'!J42-'SA2'!R42 -> -2.086162567e-07

Sheet SA3
A1: =muni&" - "&TableA3 -> FS205 Mafube - Supporting Table SA3 Supportinging detail to 'Budgeted Financial Position'
A2: =desc -> Description | B2: =head27 -> Ref | C2: =head1b -> 2013/14 | D2: =head1A -> 2014/15 | E2: =Head1 -> 2015/16 | F2: =Head2 -> Current Year 2016/17 | J2: =Head3 -> 2017/18 Medium Term Revenue & Expenditure Framework
C3: =Head5 -> Audited Outcome | D3: =Head5 -> Audited Outcome | E3: =Head5 -> Audited Outcome | F3: =Head6 -> Original Budget | G3: =Head7 -> Adjusted Budget | H3: =Head8 -> Full Year Forecast | I3: =Head5b -> Pre-audit outcome | J3: =Head9 -> Budget Year 2017/18 | K3: =Head10 -> Budget Year +1 2018/19 | L3: =Head11 -> Budget Year +2 2019/20
A4: R thousand
A5: ASSETS
A6: ='A6-FinPos'!A7 -> Call investment deposits
A7: Call deposits < 90 days | C7: 31415 | D7: 28845 | E7: 548289 | F7: 591083 | G7: 591083 | H7: 591083 | I7: 0 | J7: 591083 | K7: 591083 | L7: 591083
A8: Other current investments > 90 days
A9: ="Total "&A6 -> Total Call investment deposits | B9: 2 | C9: =SUM(C7:C8) -> 31415 | D9: =SUM(D7:D8) -> 28845 | E9: 548289 | F9: 591083 | G9: 591083 | H9: 591083 | I9: 0 | J9: 591083 | K9: 591083 | L9: 591083
A11: ='A6-FinPos'!A8 -> Consumer debtors
A12: =A11 -> Consumer debtors | C12: 35926954 | D12: 63954782 | E12: 120617069 | F12: 63954782 | G12: 61921782 | H12: 61921782 | I12: 7017918 | J12: 63954782 | K12: 63954782 | L12: 63954782
A13: Less: Provision for debt impairment | G13: 0 | J13: -733000 | K13: -733000 | L13: -733000
A14: ="Total "&A11 -> Total Consumer debtors | B14: 2 | C14: =SUM(C12:C13) -> 35926954 | D14: =SUM(D12:D13) -> 63954782 | E14: 120617069 | F14: =SUM(F12:F13) -> 63954782 | G14: 61921782 | H14: 61921782 | I14: 7017918 | J14: 63221782 | K14: 63221782 | L14: 63221782
A16: Debt impairment provision
A17: Balance at the beginning of the year | C17: 1153361203 | D17: 1305983570 | E17: 1314727780 | F17: 1962536469 | G17: 1962536469 | J17: 1962536469 | K17: 1962536469 | L17: 1962536469
A18: Contributions to the provision | G18: 0 | J18: 0 | K18: 0 | L18: 0
A19: Bad debts written off | D19: 603874570 | E19: 641116891 | F19: 918408731 | G19: 918408731 | J19: 918408731 | K19: 918408731 | L19: 918408731
A20: Balance at end of year | C20: =SUM(C17:C19) -> 1153361203 | D20: =SUM(D17:D19) -> 1909858140 | E20: 1955844671 | F20: 2880945200 | G20: 2880945200 | H20: 0 | I20: 0 | J20: 2880945200 | K20: 2880945200 | L20: 2880945200
A22: ='A6-FinPos'!A19&" (PPE)" -> Property, plant and equipment (PPE)
A23: PPE at cost/valuation (excl. finance leases) | C23: 1153361203 | D23: =702109371+603875000 -> 1305984371 | E23: =673610889+641117000 -> 1314727889 | F23: =1044127738+918409000 -> 1962536738 | G23: =1044127738+918409000 -> 1962536738 | H23: 1044127738 | J23: 1962536469 | K23: 1962536469 | L23: 1962536469
A24: Leases recognised as PPE | B24: 3 | G24: 0 | J24: 0 | K24: 0 | L24: 0
A25: Less: Accumulated depreciation | D25: 603874570 | E25: 641116891 | F25: 918408731 | G25: 918408731 | J25: 918408731 | K25: 918408731 | L25: 918408731
A26: ="Total "&A22 -> Total Property, plant and equipment (PPE) | B26: 2 | C26: =SUM(C23:C24)-C25 -> 1153361203 | D26: =SUM(D23:D24)-D25 -> 702109801 | E26: 673610998 | F26: 1044128007 | G26: 1044128007 | H26: 1044127738 | I26: 0 | J26: 1044127738 | K26: 1044127738 | L26: 1044127738
A28: LIABILITIES
A29: ='A6-FinPos'!A28&" - "&'A6-FinPos'!A30 -> Current liabilities - Borrowing
A30: Short term loans (other than bank overdraft) | J30: 809536 | K30: 809536 | L30: 809536
A31: Current portion of long-term liabilities | C31: 1132167 | D31: 809536 | E31: 263581 | F31: 809536 | G31: 809536 | H31: 809536
A32: ="Total "&A29 -> Total Current liabilities - Borrowing | C32: =SUM(C30:C31) -> 1132167 | D32: =SUM(D30:D31) -> 809536 | E32: 263581 | F32: 809536 | G32: 809536 | H32: 809536 | I32: 0 | J32: 809536 | K32: 809536 | L32: 809536
A34: ='A6-FinPos'!A32 -> Trade and other payables
A35: Trade and other creditors | C35: 216593494 | D35: 293585456 | E35: 375354982 | F35: 58768059 | G35: 58768059 | H35: 58768059 | I35: -10640943 | J35: 58768059 | K35: 58768059 | L35: 58768059
A36: Unspent conditional transfers
A37: VAT
A38: ="Total "&A34 -> Total Trade and other payables | B38: 2 | C38: =SUM(C35:C37) -> 216593494 | D38: 293585456 | E38: 375354982 | F38: 58768059 | G38: 58768059 | H38: 58768059 | I38: -10640943 | J38: 58768059 | K38: 58768059 | L38: =SUM(L35:L37) -> 58768059
A40: ='A6-FinPos'!A36&" - "&'A6-FinPos'!A37 -> Non current liabilities - Borrowing
A41: Borrowing | B41: 4 | C41: 2190411 | D41: 1316665 | E41: 764702 | F41: 2506575 | G41: 2506575 | H41: 2506575 | I41: 152986 | J41: 1608706 | K41: 1608706 | L41: 1608706
A42: Finance leases (including PPP asset element) | F42: 0 | G42: 0 | J42: 897869 | K42: 897869 | L42: 897869
A43: ="Total "&A40 -> Total Non current liabilities - Borrowing | C43: =SUM(C41:C42) -> 2190411 | D43: =SUM(D41:D42) -> 1316665 | E43: 764702 | F43: 2506575 | G43: 2506575 | H43: 2506575 | I43: 152986 | J43: 2506575 | K43: 2506575 | L43: 2506575
A45: ='A6-FinPos'!A38&" - non-current" -> Provisions - non-current
A46: Retirement benefits | C46: 23645333 | D46: 24217687 | E46: 24132241 | F46: 13685857 | G46: 13685857 | H46: 13685857 | J46: 13685857 | K46: 13685857 | L46: 13685857
A47: List other major provision items
A48: Refuse landfill site rehabilitation
A49: Other
A50: ="Total "&A45 -> Total Provisions - non-current | C50: =SUM(C46:C49) -> 23645333 | D50: 24217687 | E50: 24132241 | F50: 13685857 | G50: 13685857 | H50: 13685857 | I50: 0 | J50: 13685857 | K50: 13685857 | L50: 13685857
A52: CHANGES IN NET ASSETS
A53: ='A6-FinPos'!A45 -> Accumulated Surplus/(Deficit)
A54: =A53&" - opening balance" -> Accumulated Surplus/(Deficit) - opening balance
A55: GRAP adjustments
A56: Restated balance | C56: =SUM(C54:C55) -> 0 | D56: =SUM(D54:D55) -> 0 | E56: =SUM(E54:E55) -> 0 | F56: =SUM(F54:F55) -> 0 | G56: 0 | H56: 0 | I56: 0 | J56: 0 | K56: 0 | L56: 0
A57: ='A4-FinPerf RE'!A38 -> Surplus/(Deficit) | C57: ='A4-FinPerf RE'!C46 -> -158841689 | D57: ='A4-FinPerf RE'!D46 -> -54960990 | E57: ='A4-FinPerf RE'!E46 -> -50080351 | F57: ='A4-FinPerf RE'!F46 -> 41955764.62 | G57: ='A4-FinPerf RE'!G46 -> 42132368.72 | H57: ='A4-FinPerf RE'!H46 -> 41955764.62 | I57: ='A4-FinPerf RE'!I46 -> 0 | J57: ='A4-FinPerf RE'!J46 -> 21678295.99 | K57: ='A4-FinPerf RE'!K46 -> 25067859.29 | L57: ='A4-FinPerf RE'!L46 -> 32645959.6
A58: Appropriations to Reserves
A59: Transfers from Reserves
A60: Depreciation offsets
A61: Other adjustments
A62: Accumulated Surplus/(Deficit) | B62: 1 | C62: =SUM(C56:C61) -> -158841689 | D62: =SUM(D56:D61) -> -54960990 | E62: =SUM(E56:E61) -> -50080351 | F62: 41955764.62 | G62: 42132368.72 | H62: 41955764.62 | I62: 0 | J62: 21678295.99 | K62: 25067859.29 | L62: 32645959.6
A63: Reserves
A64: Housing Development Fund
A65: Capital replacement
A66: Self-insurance
A67: Other reserves
A68: Revaluation
A69: Total Reserves | B69: 2 | C69: =SUM(C64:C68) -> 0 | D69: 0 | E69: 0 | F69: 0 | G69: 0 | H69: 0 | I69: 0 | J69: 0 | K69: 0 | L69: 0
A70: ='A6-FinPos'!A48 -> TOTAL COMMUNITY WEALTH/EQUITY | B70: 2 | C70: =C62+C69 -> -158841689 | D70: -54960990 | E70: -50080351 | F70: 41955764.62 | G70: 42132368.72 | H70: 41955764.62 | I70: 0 | J70: 21678295.99 | K70: 25067859.29 | L70: 32645959.6
A72: Total capital expenditure includes expenditure on nationally significant priorities:
A73: Provision of basic services
A76: =head27a -> References
A77: ="1. Must reconcile with "&'Template names'!F103 -> 1. Must reconcile with Table A4 Budgeted Financial Performance (revenue and expenditure)
A78: ="2. Must reconcile with "&'Template names'!F105 -> 2. Must reconcile with Table A6 Budgeted Financial Position
A79: 3. Leases treated as assets to be depreciated as the same as purchased/constructed assets. Includes PPP asset element accounted for as finance leases
A80: 4. Borrowing must reconcile to Table A17
A81: check | C81: =C70-'A6-FinPos'!C48 -> -1165784168 | D81: =D70-'A6-FinPos'!D48 -> -587387853 | E81: =E70-'A6-FinPos'!E48 -> -540751445 | F81: =F70-'A6-FinPos'!F48 -> -1056971876 | G81: =G70-'A6-FinPos'!G48 -> -1054762272 | H81: =H70-'A6-FinPos'!H48 -> -1054938876 | I81: =I70-'A6-FinPos'!I48 -> -21947782 | J81: =J70-'A6-FinPos'!J48 -> -1076516345 | K81: =K70-'A6-FinPos'!K48 -> -1073126782 | L81: =L70-'A6-FinPos'!L48 -> -1065548681
C82: =TREND(D82:H82) -> 0 | D82: =TREND(E82:H82) -> 0 | E82: =E73 -> 0 | F82: =H73 -> 0 | G82: =J73 -> 0 | H82: =K73 -> 0 | I82: =L73 -> 0

Sheet SA4
A1: =muni&" - "&TableA4 -> FS205 Mafube - Supporting Table SA4 Reconciliation of IDP strategic objectives and budget (revenue)
A2: Strategic Objective | B2: Goal | C2: Goal Code | D2: =head27 -> Ref | E2: =head1b -> 2013/14 | F2: =head1A -> 2014/15 | G2: =Head1 -> 2015/16 | H2: =Head2 -> Current Year 2016/17 | K2: =Head3 -> 2017/18 Medium Term Revenue & Expenditure Framework
A3: R thousand | E3: =Head5 -> Audited Outcome | F3: =Head5 -> Audited Outcome | G3: =Head5 -> Audited Outcome | H3: =Head6 -> Original Budget | I3: =Head7 -> Adjusted Budget | J3: =Head8 -> Full Year Forecast | K3: =Head9 -> Budget Year 2017/18 | L3: =Head10 -> Budget Year +1 2018/19 | M3: =Head11 -> Budget Year +2 2019/20
A4: Supply of water and sanitation | B4: number of households have access to water and sanitation, this also enhances municipal revenue | E4: 32082500 | F4: 47990463 | G4: 51164578 | H4: 40874913.34 | I4: 40874913.34 | K4: 43368283.05 | L4: 46013748.32 | M4: 48820586.97
A6: Refuse removal | B6: Refuse regularly collected, revenue enhancement | E6: 13862071 | F6: 12814098 | G6: 12583451 | H6: 12906827.12 | I6: 12906827.12 | K6: 13694143.57 | L6: 3063745.122 | M6: 3250633.574
A8: Property rates | B8: optimum revenue collected | E8: 19474278 | F8: 21152561 | G8: 22693193 | H8: 27148890.66 | I8: 27148890.66 | K8: 28804972.99 | L8: 30562076.34 | M8: 32426363
A10: protection services | B10: regulation of traffic and law enforcement around all mafube towns, additional sources of revenue | E10: 73870
A12: Debt and revenue management | B12: accurate recovery of revenue owining to municipality and optimum revenue collected
A13: Municipal operations and indigent registration | B13: subsidisation of basic services for indigent residents and support of municipal operations for sustainable service delivery | E13: 67799171 | F13: 87144662 | G13: 92467750 | H13: 114862363.5 | I13: 120262363.5 | K13: 78462000 | L13: 86124000 | M13: 92261000
A15: Capacity Building | B15: Development and improvement of municipal systems as well as personnel training and skills development | E15: 8555459 | K15: 3710000 | L15: 4033000 | M15: 2860000
A17: Electricity Supply | B17: Number of households have access to electricity, this also enhances municipal revenue | E17: -102286
A19: Revenue enhancement | B19: Revenue generation throughmeans other than provision of services | E19: 37566473 | F19: 20230010 | G19: 26265795 | K19: 35089905.29 | L19: 47528142.84 | M19: 50398301.91
A20: Infrastructural Management | B20: Infrastructure development
A21: Allocations to other priorities | D21: 2
A22: ='A4-FinPerf RE'!A22 -> Total Revenue (excluding capital transfers and contributions) | D22: 1 | E22: =SUM(E4:E21) -> 179311536 | F22: 189331794 | G22: 205174767 | H22: 195792994.6 | I22: 201192994.6 | J22: 0 | K22: 203129304.9 | L22: 217324712.6 | M22: 230016885.4
A23: =head27a -> References
A24: ="1. Total revenue must reconcile to "&'Template names'!F103 -> 1. Total revenue must reconcile to Table A4 Budgeted Financial Performance (revenue and expenditure)
A25: 2. Balance of allocations not directly linked to an IDP strategic objective
A26: check op revenue balance | E26: =E22-'A4-FinPerf RE'!C60 -> 234621 | F26: =F22-'A4-FinPerf RE'!D60 -> -19909416 | G26: =G22-'A4-FinPerf RE'!E60 -> -12635910 | H26: =H22-'A4-FinPerf RE'!F60 -> -32422001.39 | I26: =I22-'A4-FinPerf RE'!G60 -> -32422001.39 | J26: =J22-'A4-FinPerf RE'!H60 -> -228214996 | K26: =K22-'A4-FinPerf RE'!J60 -> -32080000 | L26: =L22-'A4-FinPerf RE'!K60 -> -30874000 | M26: =M22-'A4-FinPerf RE'!L60 -> -37037000

Sheet SA5
A1: =muni&" - "&TableA5 -> FS205 Mafube - Supporting Table SA5 Reconciliation of IDP strategic objectives and budget (operating expenditure)
A2: Strategic Objective | B2: Goal | C2: Goal Code | D2: =head27 -> Ref | E2: =head1b -> 2013/14 | F2: =head1A -> 2014/15 | G2: =Head1 -> 2015/16 | H2: =Head2 -> Current Year 2016/17 | K2: =Head3 -> 2017/18 Medium Term Revenue & Expenditure Framework
A3: R thousand | E3: =Head5 -> Audited Outcome | F3: =Head5 -> Audited Outcome | G3: =Head5 -> Audited Outcome | H3: =Head6 -> Original Budget | I3: =Head7 -> Adjusted Budget | J3: =Head8 -> Full Year Forecast | K3: =Head9 -> Budget Year 2017/18 | L3: =Head10 -> Budget Year +1 2018/19 | M3: =Head11 -> Budget Year +2 2019/20
A4: Integrated Development Planning and Local Economic Development | B4: Creation of a conducive environment for job creation and Economic development. | E4: 646377
A5: Legislative compliance | B5: Coordination and development of policies and by-laws
A6: Capacity building | B6: Development and improvement of municipal systems as well as personnel training and skills development | E6: 740157 | H6: 1590000 | I6: 1350637 | K6: 1800000 | L6: 2122000 | M6: 2251442
A7: Povision of free basic services | B7: Subsidisation of basic services for indigent residents | E7: 6746501 | F7: 3547907 | G7: 9595124 | H7: 5252545 | I7: 5252545 | K7: 10000000 | L7: 10610000 | M7: 11257210
A8: Acquisition, repairs and maintenance of municipal assets | B8: Acquire, upgrade and maintain municipal property and infrastructure to ensure sustainable service delivery | E8: 134293960 | F8: 70162546 | G8: 62513698 | H8: 13885000 | I8: 20272500 | K8: 18240254.91 | L8: 20718100.46 | M8: 23950499.58
A9: Community Based Planning | B9: Training of municipal internal and external stakeholders as well as conducting social awareness campaigns and special programmes | E9: 1018374 | H9: 9650000 | I9: 8050000 | K9: 5200000 | L9: 5517200 | M9: 5853749.2
A10: Financial reporting and compliance | B10: Compilation of GRAP compliant financial statements and regulatory reporting | E10: 3281396 | H10: 2190000 | I10: 1620000 | K10: 1700000 | L10: 1803700 | M10: 1913725.7
A11: communication, corporate and financial administration | B11: Enhancement of communication with internal and external stakeholders as well as facilitation of municipal finance and corporate administration | E11: 55886511 | F11: 13006204 | G11: 22172992 | H11: 9800000 | I11: 9350000 | J11: 0 | K11: 4250000 | L11: 4509250 | M11: 4784314.25
A12: Protection Services | B12: Ensure public safety and protection | E12: 64476 | I12: 250000 | K12: 250000 | L12: 265250 | M12: 281430.25
A13: Spatial development and town planning | B13: Planning and surveying of ervens | K13: 500000 | L13: 530500 | M13: 562860.5
A14: Access to municipal services | B14: Provision of municipal services to all households | E14: 27714956
A15: Servicel delivery | B15: Funding municipal day-to-day operations to ensure sustained service delivery | E15: 82103808 | F15: 146908193 | G15: 135231405 | H15: 143891686.4 | I15: 145336008.9 | K15: 171590754 | L15: 177054852.9 | M15: 183552694.4
A22: Allocations to other priorities
A23: ='A4-FinPerf RE'!A36 -> Total Expenditure | D23: 1 | E23: =SUM(E4:E22) -> 312496516 | F23: 233624850 | G23: 229513219 | H23: 186259231.4 | I23: 191481690.9 | J23: 0 | K23: 213531008.9 | L23: 223130853.3 | M23: 234407925.8
A24: =head27a -> References
A25: ="1. Total expenditure must reconcile to "&'Template names'!F103 -> 1. Total expenditure must reconcile to Table A4 Budgeted Financial Performance (revenue and expenditure)
A26: 2. Balance of allocations not directly linked to an IDP strategic objective
A27: check op expenditure balance | E27: =E23-'A4-FinPerf RE'!C36 -> -25422088 | F27: =F23-'A4-FinPerf RE'!D36 -> -30577350 | G27: =G23-'A4-FinPerf RE'!E36 -> -38377809 | H27: =H23-'A4-FinPerf RE'!F36 -> 3.87430191e-07 | I27: =I23-'A4-FinPerf RE'!G36 -> -936.4192596 | J27: =J23-'A4-FinPerf RE'!H36 -> -186259231.4 | K27: =K23-'A4-FinPerf RE'!J36 -> 0 | L27: =L23-'A4-FinPerf RE'!K36 -> 0 | M27: =M23-'A4-FinPerf RE'!L36 -> 0

Sheet SA6
A1: =muni&" - "&TableA6 -> FS205 Mafube - Supporting Table SA6 Reconciliation of IDP strategic objectives and budget (capital expenditure)
A2: Strategic Objective | B2: Goal | C2: Goal Code | D2: =head27 -> Ref | E2: =head1b -> 2013/14 | F2: =head1A -> 2014/15 | G2: =Head1 -> 2015/16 | H2: =Head2 -> Current Year 2016/17 | K2: =Head3 -> 2017/18 Medium Term Revenue & Expenditure Framework
A3: R thousand | E3: =Head5 -> Audited Outcome | F3: =Head5 -> Audited Outcome | G3: =Head5 -> Audited Outcome | H3: =Head6 -> Original Budget | I3: =Head7 -> Adjusted Budget | J3: =Head8 -> Full Year Forecast | K3: =Head9 -> Budget Year 2017/18 | L3: =Head10 -> Budget Year +1 2018/19 | M3: =Head11 -> Budget Year +2 2019/20
A4: Electrification | B4: Upgrading of bulk infrastructure | C4: A | H4: 4000000 | I4: 4000000 | K4: 5000000 | L4: 7000000 | M4: 12000000
A5: Electrification | B5: Provision of street lighting and ensuring community safety as well as energy efficiency | C5: B
A6: Upgrading of sports facilities | B6: Upgrading and rehabilitation of sports facilities for social development | C6: C | H6: 3297255.05 | I6: 3566816.05 | K6: 7224070.72 | L6: 1074330 | M6: 1126665
A7: Landfill Site Management | B7: Rehabilitation of landfill sites | C7: D
A8: Road infrastructure development | B8: Upgrading of gravel to paved roads | C8: E
A9: Institutional development | B9: Construction of municipal offices | C9: F | H9: 3000000 | I9: 2300000
A10: High mast lights | B10: Provision and maintenance of migh mast lights around the streets for safety | C10: G
A11: Provision of access to clean water | B11: Construction of a new water reservoir in Villiers to address backlogs | C11: H | H11: 10027686.96 | I11: 1526876.96 | K11: 992331.67 | L11: 10353897.86 | M11: 18580105
A12: Fencing of parks and cemetries | B12: To ensure safeguarding of community resources | C12: I | H12: 200000 | I12: 211000
A13: Provision of sanitation services | B13: Construction of a Waste Water Treatment Plant in Villiers | C13: J | K13: 17509597.61 | L13: 8293989.29 | M13: 2622000
A14: Expanded Public works programme | B14: Creation of temporary jobs and skills development | C14: K
A15: Other municipal assets | B15: Acquisition of new municipal assets and systems for improved service delivery and capacity building | C15: L | E15: 2318560 | F15: 1425967 | G15: 1202524 | H15: 21578439 | I15: 23296306 | K15: 2731825.52 | L15: 2509383.78 | M15: 2730796.728
A16: Other Infrastructure assets | B16: To build/clean the weir in the Vaal river for facilitation of water purification | C16: M | E16: 23323464 | F16: 12656687 | G16: 7829391
A17: Project management and creation of jobs | B17: Management and overseeing of infrastructural projects as well as creation of interim infrastructure jobs and training through EPWP initiative | C17: N
C18: O
C19: P
A20: Allocations to other priorities | D20: 3
A21: Total Capital Expenditure | D21: 1 | E21: =SUM(E4:E20) -> 25642024 | F21: 14082654 | G21: 9031915 | H21: 42103381.01 | I21: 34900999.01 | J21: 0 | K21: 33457825.52 | L21: 29231600.93 | M21: 37059566.73
A22: =head27a -> References
A23: 1. Total capital expenditure must reconcile to Budgeted Capital Expenditure
A24: 2. Goal code must be used on Table SA36
A25: 3. Balance of allocations not directly linked to an IDP strategic objective
A26: check capital balance | E26: =E21-'A5-Capex'!C40 -> 0 | F26: =F21-'A5-Capex'!D40 -> 0 | G26: =G21-'A5-Capex'!E40 -> 0 | H26: =H21-'A5-Capex'!F40 -> 171746.01 | I26: =I21-'A5-Capex'!G40 -> -7210635.99 | J26: =J21-'A5-Capex'!H40 -> 0 | K26: =K21-'A5-Capex'!J40 -> 365912.7624 | L26: =L21-'A5-Capex'!K40 -> -2764390.955 | M26: =M21-'A5-Capex'!L40 -> -1216702.636

Sheet SA7
A1: =muni&" - "&TableA7 -> FS205 Mafube - Supporting Table SA7 Measureable performance objectives
A2: Description | B2: Unit of measurement | C2: =head1b -> 2013/14 | D2: =head1A -> 2014/15 | E2: =Head1 -> 2015/16 | F2: =Head2 -> Current Year 2016/17 | I2: =Head3 -> 2017/18 Medium Term Revenue & Expenditure Framework
C3: =Head5 -> Audited Outcome | D3: =Head5 -> Audited Outcome | E3: =Head5 -> Audited Outcome | F3: =Head6 -> Original Budget | G3: =Head7 -> Adjusted Budget | H3: =Head8 -> Full Year Forecast | I3: =Head9 -> Budget Year 2017/18 | J3: =Head10 -> Budget Year +1 2018/19 | K3: =Head11 -> Budget Year +2 2019/20
A4: Vote 1 - vote name
A5: Function 1 - (name)
A6: Sub-function 1 - (name)
A7: Insert measure/s description
A9: Sub-function 2 - (name)
A10: Insert measure/s description
A12: Sub-function 3 - (name)
A13: Insert measure/s description
A15: Function 2 - (name)
A16: Sub-function 1 - (name)
A17: Insert measure/s description
A19: Sub-function 2 - (name)
A20: Insert measure/s description
A22: Sub-function 3 - (name)
A23: Insert measure/s description
A25: Vote 2 - vote name
A26: Function 1 - (name)
A27: Sub-function 1 - (name)
A28: Insert measure/s description
A30: Sub-function 2 - (name)
A31: Insert measure/s description
A33: Sub-function 3 - (name)
A34: Insert measure/s description
A36: Function 2 - (name)
A37: Sub-function 1 - (name)
A38: Insert measure/s description
A40: Sub-function 2 - (name)
A41: Insert measure/s description
A43: Sub-function 3 - (name)
A44: Insert measure/s description
A46: Vote 3 - vote name
A47: Function 1 - (name)
A48: Sub-function 1 - (name)
A49: Insert measure/s description
A51: Sub-function 2 - (name)
A52: Insert measure/s description
A54: Sub-function 3 - (name)
A55: Insert measure/s description
A57: Function 2 - (name)
A58: Sub-function 1 - (name)
A59: Insert measure/s description
A61: Sub-function 2 - (name)
A62: Insert measure/s description
A64: Sub-function 3 - (name)
A65: Insert measure/s description
A67: And so on for the rest of the Votes
A68: 1. Include a measurable performance objective for each revenue source (within a relevant function) and each vote (MFMA s17(3)(b))
A69: 2. Include all Basic Services performance targets from 'Basic Service Delivery' to ensure Table SA7 represents all strategic responsibilities
A70: 3. Only include prior year comparative information for individual measures where relevant activity occurred in that year/s
A72: =muni&" - "&"Entities measureable performance objectives" -> FS205 Mafube - Entities measureable performance objectives
A73: =A2 -> Description | B73: Unit of measurement | C73: =head1b -> 2013/14 | D73: =head1A -> 2014/15 | E73: =Head1 -> 2015/16 | F73: =Head2 -> Current Year 2016/17 | I73: =Head3 -> 2017/18 Medium Term Revenue & Expenditure Framework
C74: =Head5 -> Audited Outcome | D74: =Head5 -> Audited Outcome | E74: =Head5 -> Audited Outcome | F74: =Head6 -> Original Budget | G74: =Head7 -> Adjusted Budget | H74: =Head8 -> Full Year Forecast | I74: =Head9 -> Budget Year 2017/18 | J74: =Head10 -> Budget Year +1 2018/19 | K74: =Head11 -> Budget Year +2 2019/20
A75: Entity 1 - (name of entity)
A76: Insert measure/s description
A79: Entity 2 - (name of entity)
A80: =$A$10 -> Insert measure/s description
A83: Entity 3 - (name of entity)
A84: =$A$10 -> Insert measure/s description
A87: And so on for the rest of the Entities
A88: 1. Include a measurable performance objective as agreed with the parent municipality (MFMA s87(5)(d))
A89: 2. Only include prior year comparative information for individual measures where relevant activity occurred in that year/s

Sheet SA8
A1: =muni&" - "&TableA8 -> FS205 Mafube - Supporting Table SA8 Performance indicators and benchmarks
A2: Description of financial indicator | B2: Basis of calculation | C2: =head1b -> 2013/14 | D2: =head1A -> 2014/15 | E2: =Head1 -> 2015/16 | F2: =Head2 -> Current Year 2016/17 | J2: =Head3 -> 2017/18 Medium Term Revenue & Expenditure Framework
C3: =Head5 -> Audited Outcome | D3: =Head5 -> Audited Outcome | E3: =Head5 -> Audited Outcome | F3: =Head6 -> Original Budget | G3: =Head7 -> Adjusted Budget | H3: =Head8 -> Full Year Forecast | I3: =Head5b -> Pre-audit outcome | J3: =Head9 -> Budget Year 2017/18 | K3: =Head10 -> Budget Year +1 2018/19 | L3: =Head11 -> Budget Year +2 2019/20
A4: Borrowing Management
A6: Credit Rating
A7: Capital Charges to Operating Expenditure | B7: Interest & Principal Paid /Operating Expenditure | C7: =IF(ISERROR(('A4-FinPerf RE'!C29-'A7-CFlow'!C35)/'A4-FinPerf RE'!C36),0,(('A4-FinPerf RE'!C29-'A7-CFlow'!C35)/'A4-FinPerf RE'!C36)) -> 0.03971001549 | D7: =IF(ISERROR(('A4-FinPerf RE'!D29-'A7-CFlow'!D35)/'A4-FinPerf RE'!D36),0,(('A4-FinPerf RE'!D29-'A7-CFlow'!D35)/'A4-FinPerf RE'!D36)) -> 0.05770971627 | E7: =IF(ISERROR(('A4-FinPerf RE'!E29-'A7-CFlow'!E35)/'A4-FinPerf RE'!E36),0,(('A4-FinPerf RE'!E29-'A7-CFlow'!E35)/'A4-FinPerf RE'!E36)) -> 0.08137673801 | F7: =IF(ISERROR(('A4-FinPerf RE'!F29-'A7-CFlow'!F35)/'A4-FinPerf RE'!F36),0,(('A4-FinPerf RE'!F29-'A7-CFlow'!F35)/'A4-FinPerf RE'!F36)) -> 0.01724009047 | G7: =IF(ISERROR(('A4-FinPerf RE'!G29-'A7-CFlow'!G35)/'A4-FinPerf RE'!G36),0,(('A4-FinPerf RE'!G29-'A7-CFlow'!G35)/'A4-FinPerf RE'!G36)) -> 0.01520308156 | H7: =IF(ISERROR(('A4-FinPerf RE'!H29-'A7-CFlow'!H35)/'A4-FinPerf RE'!H36),0,(('A4-FinPerf RE'!H29-'A7-CFlow'!H35)/'A4-FinPerf RE'!H36)) -> 0.01562943205 | I7: =IF(ISERROR(('A4-FinPerf RE'!I29-'A7-CFlow'!I35)/'A4-FinPerf RE'!I36),0,(('A4-FinPerf RE'!I29-'A7-CFlow'!I35)/'A4-FinPerf RE'!I36)) -> 0 | J7: =IF(ISERROR(('A4-FinPerf RE'!J29-'A7-CFlow'!J35)/'A4-FinPerf RE'!J36),0,(('A4-FinPerf RE'!J29-'A7-CFlow'!J35)/'A4-FinPerf RE'!J36)) -> 0.01544540073 | K7: =IF(ISERROR(('A4-FinPerf RE'!K29-'A7-CFlow'!K35)/'A4-FinPerf RE'!K36),0,(('A4-FinPerf RE'!K29-'A7-CFlow'!K35)/'A4-FinPerf RE'!K36)) -> 0.01568252143 | L7: =IF(ISERROR(('A4-FinPerf RE'!L29-'A7-CFlow'!L35)/'A4-FinPerf RE'!L36),0,(('A4-FinPerf RE'!L29-'A7-CFlow'!L35)/'A4-FinPerf RE'!L36)) -> 0.01583866628
A8: Capital Charges to Own Revenue | B8: Finance charges & Repayment of borrowing /Own Revenue | C8: =IF(ISERROR(('A4-FinPerf RE'!C29-'A7-CFlow'!C35)/('A4-FinPerf RE'!C22-'A4-FinPerf RE'!C19)),0,(('A4-FinPerf RE'!C29-'A7-CFlow'!C35)/('A4-FinPerf RE'!C22-'A4-FinPerf RE'!C19))) -> 0.1631794697 | D8: =IF(ISERROR(('A4-FinPerf RE'!D29-'A7-CFlow'!D35)/('A4-FinPerf RE'!D22-'A4-FinPerf RE'!D19)),0,(('A4-FinPerf RE'!D29-'A7-CFlow'!D35)/('A4-FinPerf RE'!D22-'A4-FinPerf RE'!D19))) -> 0.1424587094 | E8: =IF(ISERROR(('A4-FinPerf RE'!E29-'A7-CFlow'!E35)/('A4-FinPerf RE'!E22-'A4-FinPerf RE'!E19)),0,(('A4-FinPerf RE'!E29-'A7-CFlow'!E35)/('A4-FinPerf RE'!E22-'A4-FinPerf RE'!E19))) -> 0.1843932879 | F8: =IF(ISERROR(('A4-FinPerf RE'!F29-'A7-CFlow'!F35)/('A4-FinPerf RE'!F22-'A4-FinPerf RE'!F19)),0,(('A4-FinPerf RE'!F29-'A7-CFlow'!F35)/('A4-FinPerf RE'!F22-'A4-FinPerf RE'!F19))) -> 0.02810146332 | G8: =IF(ISERROR(('A4-FinPerf RE'!G29-'A7-CFlow'!G35)/('A4-FinPerf RE'!G22-'A4-FinPerf RE'!G19)),0,(('A4-FinPerf RE'!G29-'A7-CFlow'!G35)/('A4-FinPerf RE'!G22-'A4-FinPerf RE'!G19))) -> 0.02561055435 | H8: =IF(ISERROR(('A4-FinPerf RE'!H29-'A7-CFlow'!H35)/('A4-FinPerf RE'!H22-'A4-FinPerf RE'!H19)),0,(('A4-FinPerf RE'!H29-'A7-CFlow'!H35)/('A4-FinPerf RE'!H22-'A4-FinPerf RE'!H19))) -> 0.02547607927 | I8: =IF(ISERROR(('A4-FinPerf RE'!I29-'A7-CFlow'!I35)/('A4-FinPerf RE'!I22-'A4-FinPerf RE'!I19)),0,(('A4-FinPerf RE'!I29-'A7-CFlow'!I35)/('A4-FinPerf RE'!I22-'A4-FinPerf RE'!I19))) -> 0 | J8: =IF(ISERROR(('A4-FinPerf RE'!J29-'A7-CFlow'!J35)/('A4-FinPerf RE'!J22-'A4-FinPerf RE'!J19)),0,(('A4-FinPerf RE'!J29-'A7-CFlow'!J35)/('A4-FinPerf RE'!J22-'A4-FinPerf RE'!J19))) -> 0.02749371539 | K8: =IF(ISERROR(('A4-FinPerf RE'!K29-'A7-CFlow'!K35)/('A4-FinPerf RE'!K22-'A4-FinPerf RE'!K19)),0,(('A4-FinPerf RE'!K29-'A7-CFlow'!K35)/('A4-FinPerf RE'!K22-'A4-FinPerf RE'!K19))) -> 0.0275168462 | L8: =IF(ISERROR(('A4-FinPerf RE'!L29-'A7-CFlow'!L35)/('A4-FinPerf RE'!L22-'A4-FinPerf RE'!L19)),0,(('A4-FinPerf RE'!L29-'A7-CFlow'!L35)/('A4-FinPerf RE'!L22-'A4-FinPerf RE'!L19))) -> 0.02752277356
A9: Borrowed funding of 'own' capital expenditure | B9: Borrowing/Capital expenditure excl. transfers and grants and contributions | C9: =IF(ISERROR(C49/C48),0,(C49/C48)) -> 0 | D9: =IF(ISERROR(D49/D48),0,(D49/D48)) -> 0 | E9: =IF(ISERROR(E49/E48),0,(E49/E48)) -> 0 | F9: 0 | G9: 0 | H9: 0 | I9: 0 | J9: 0 | K9: 0 | L9: 0
A10: Safety of Capital
A11: Gearing | B11: Long Term Borrowing/ Funds & Reserves | C11: =IF(ISERROR(('A6-FinPos'!C37/'A6-FinPos'!C46)),0,(('A6-FinPos'!C37/'A6-FinPos'!C46))) -> 0 | D11: =IF(ISERROR(('A6-FinPos'!D37/'A6-FinPos'!D46)),0,(('A6-FinPos'!D37/'A6-FinPos'!D46))) -> 0 | E11: =IF(ISERROR(('A6-FinPos'!E37/'A6-FinPos'!E46)),0,(('A6-FinPos'!E37/'A6-FinPos'!E46))) -> 0 | F11: =IF(ISERROR(('A6-FinPos'!F37/'A6-FinPos'!F46)),0,(('A6-FinPos'!F37/'A6-FinPos'!F46))) -> 0 | G11: =IF(ISERROR(('A6-FinPos'!G37/'A6-FinPos'!G46)),0,(('A6-FinPos'!G37/'A6-FinPos'!G46))) -> 0 | H11: =IF(ISERROR(('A6-FinPos'!H37/'A6-FinPos'!H46)),0,(('A6-FinPos'!H37/'A6-FinPos'!H46))) -> 0 | I11: =IF(ISERROR(('A6-FinPos'!I37/'A6-FinPos'!I46)),0,(('A6-FinPos'!I37/'A6-FinPos'!I46))) -> 0 | J11: =IF(ISERROR(('A6-FinPos'!J37/'A6-FinPos'!J46)),0,(('A6-FinPos'!J37/'A6-FinPos'!J46))) -> 0 | K11: =IF(ISERROR(('A6-FinPos'!K37/'A6-FinPos'!K46)),0,(('A6-FinPos'!K37/'A6-FinPos'!K46))) -> 0 | L11: =IF(ISERROR(('A6-FinPos'!L37/'A6-FinPos'!L46)),0,(('A6-FinPos'!L37/'A6-FinPos'!L46))) -> 0
A12: Liquidity
A13: Current Ratio | B13: Current assets/current liabilities | C13: =IF(ISERROR('A6-FinPos'!C12/'A6-FinPos'!C34),0,('A6-FinPos'!C12/'A6-FinPos'!C34)) -> 0.2002084631 | D13: =IF(ISERROR('A6-FinPos'!D12/'A6-FinPos'!D34),0,('A6-FinPos'!D12/'A6-FinPos'!D34)) -> 0.2586212167 | E13: =IF(ISERROR('A6-FinPos'!E12/'A6-FinPos'!E34),0,('A6-FinPos'!E12/'A6-FinPos'!E34)) -> 0.3836597635 | F13: =IF(ISERROR('A6-FinPos'!F12/'A6-FinPos'!F34),0,('A6-FinPos'!F12/'A6-FinPos'!F34)) -> 1.265152335 | G13: =IF(ISERROR('A6-FinPos'!G12/'A6-FinPos'!G34),0,('A6-FinPos'!G12/'A6-FinPos'!G34)) -> 1.231464046 | H13: =IF(ISERROR('A6-FinPos'!H12/'A6-FinPos'!H34),0,('A6-FinPos'!H12/'A6-FinPos'!H34)) -> 1.231464046 | I13: =IF(ISERROR('A6-FinPos'!I12/'A6-FinPos'!I34),0,('A6-FinPos'!I12/'A6-FinPos'!I34)) -> -1.067830325 | J13: =IF(ISERROR('A6-FinPos'!J12/'A6-FinPos'!J34),0,('A6-FinPos'!J12/'A6-FinPos'!J34)) -> 1.253005992 | K13: =IF(ISERROR('A6-FinPos'!K12/'A6-FinPos'!K34),0,('A6-FinPos'!K12/'A6-FinPos'!K34)) -> 1.253005992 | L13: =IF(ISERROR('A6-FinPos'!L12/'A6-FinPos'!L34),0,('A6-FinPos'!L12/'A6-FinPos'!L34)) -> 1.253005992
A14: Current Ratio adjusted for aged debtors | B14: Current assets less debtors > 90 days/current liabilities | C14: =IF(ISERROR(('A6-FinPos'!C12-'SA8'!C45)/'A6-FinPos'!C34),0,(('A6-FinPos'!C12-'SA8'!C45)/'A6-FinPos'!C34)) -> 0.2002084631 | D14: =IF(ISERROR(('A6-FinPos'!D12-'SA8'!D45)/'A6-FinPos'!D34),0,(('A6-FinPos'!D12-'SA8'!D45)/'A6-FinPos'!D34)) -> 0.2586212167 | E14: =IF(ISERROR(('A6-FinPos'!E12-'SA8'!E45)/'A6-FinPos'!E34),0,(('A6-FinPos'!E12-'SA8'!E45)/'A6-FinPos'!E34)) -> 0.3836597635 | F14: =IF(ISERROR(('A6-FinPos'!F12-'SA8'!F45)/'A6-FinPos'!F34),0,(('A6-FinPos'!F12-'SA8'!F45)/'A6-FinPos'!F34)) -> 1.265152335 | G14: =IF(ISERROR(('A6-FinPos'!G12-'SA8'!G45)/'A6-FinPos'!G34),0,(('A6-FinPos'!G12-'SA8'!G45)/'A6-FinPos'!G34)) -> 1.231464046 | H14: =IF(ISERROR(('A6-FinPos'!H12-'SA8'!H45)/'A6-FinPos'!H34),0,(('A6-FinPos'!H12-'SA8'!H45)/'A6-FinPos'!H34)) -> 1.231464046 | I14: =IF(ISERROR(('A6-FinPos'!I12-'SA8'!I45)/'A6-FinPos'!I34),0,(('A6-FinPos'!I12-'SA8'!I45)/'A6-FinPos'!I34)) -> -1.067830325 | J14: =IF(ISERROR(('A6-FinPos'!J12-'SA8'!J45)/'A6-FinPos'!J34),0,(('A6-FinPos'!J12-'SA8'!J45)/'A6-FinPos'!J34)) -> 1.253005992 | K14: =IF(ISERROR(('A6-FinPos'!K12-'SA8'!K45)/'A6-FinPos'!K34),0,(('A6-FinPos'!K12-'SA8'!K45)/'A6-FinPos'!K34)) -> 1.253005992 | L14: =IF(ISERROR(('A6-FinPos'!L12-'SA8'!L45)/'A6-FinPos'!L34),0,(('A6-FinPos'!L12-'SA8'!L45)/'A6-FinPos'!L34)) -> 1.253005992
A15: Liquidity Ratio | B15: Monetary Assets/Current Liabilities | C15: =IF(ISERROR(('A6-FinPos'!C6+'A6-FinPos'!C7)/'A6-FinPos'!C34),0,(('A6-FinPos'!C6+'A6-FinPos'!C7)/'A6-FinPos'!C34)) -> 0.0004383363171 | D15: =IF(ISERROR(('A6-FinPos'!D6+'A6-FinPos'!D7)/'A6-FinPos'!D34),0,(('A6-FinPos'!D6+'A6-FinPos'!D7)/'A6-FinPos'!D34)) -> 0.002099926792 | E15: =IF(ISERROR(('A6-FinPos'!E6+'A6-FinPos'!E7)/'A6-FinPos'!E34),0,(('A6-FinPos'!E6+'A6-FinPos'!E7)/'A6-FinPos'!E34)) -> 0.001687659349 | F15: =IF(ISERROR(('A6-FinPos'!F6+'A6-FinPos'!F7)/'A6-FinPos'!F34),0,(('A6-FinPos'!F6+'A6-FinPos'!F7)/'A6-FinPos'!F34)) -> 0.0102726579 | G15: =IF(ISERROR(('A6-FinPos'!G6+'A6-FinPos'!G7)/'A6-FinPos'!G34),0,(('A6-FinPos'!G6+'A6-FinPos'!G7)/'A6-FinPos'!G34)) -> 0.0102726579 | H15: =IF(ISERROR(('A6-FinPos'!H6+'A6-FinPos'!H7)/'A6-FinPos'!H34),0,(('A6-FinPos'!H6+'A6-FinPos'!H7)/'A6-FinPos'!H34)) -> 0.0102726579 | I15: =IF(ISERROR(('A6-FinPos'!I6+'A6-FinPos'!I7)/'A6-FinPos'!I34),0,(('A6-FinPos'!I6+'A6-FinPos'!I7)/'A6-FinPos'!I34)) -> -0.4206506261 | J15: =IF(ISERROR(('A6-FinPos'!J6+'A6-FinPos'!J7)/'A6-FinPos'!J34),0,(('A6-FinPos'!J6+'A6-FinPos'!J7)/'A6-FinPos'!J34)) -> 0.0102726579 | K15: =IF(ISERROR(('A6-FinPos'!K6+'A6-FinPos'!K7)/'A6-FinPos'!K34),0,(('A6-FinPos'!K6+'A6-FinPos'!K7)/'A6-FinPos'!K34)) -> 0.0102726579 | L15: =IF(ISERROR(('A6-FinPos'!L6+'A6-FinPos'!L7)/'A6-FinPos'!L34),0,(('A6-FinPos'!L6+'A6-FinPos'!L7)/'A6-FinPos'!L34)) -> 0.0102726579
A16: Revenue Management
A17: Annual Debtors Collection Rate (Payment Level %) | B17: Last 12 Mths Receipts/Last 12 Mths Billing | D17: =IF(ISERROR(('A7-CFlow'!C6+'A7-CFlow'!C7+'A7-CFlow'!C22+'A7-CFlow'!C23)/SUM('A4-FinPerf RE'!C5:C11)),0,('A7-CFlow'!C6+'A7-CFlow'!C7+'A7-CFlow'!C22+'A7-CFlow'!C23)/(SUM('A4-FinPerf RE'!C5:C11))) -> 0.3095593865 | E17: =IF(ISERROR(('A7-CFlow'!D6+'A7-CFlow'!D7+'A7-CFlow'!D22+'A7-CFlow'!D23)/SUM('A4-FinPerf RE'!D5:D11)),0,('A7-CFlow'!D6+'A7-CFlow'!D7+'A7-CFlow'!D22+'A7-CFlow'!D23)/(SUM('A4-FinPerf RE'!D5:D11))) -> 0.3353151671 | F17: =IF(ISERROR(('A7-CFlow'!E6+'A7-CFlow'!E7+'A7-CFlow'!E22+'A7-CFlow'!E23)/SUM('A4-FinPerf RE'!E5:E11)),0,('A7-CFlow'!E6+'A7-CFlow'!E7+'A7-CFlow'!E22+'A7-CFlow'!E23)/(SUM('A4-FinPerf RE'!E5:E11))) -> 1 | G17: =IF(ISERROR(('A7-CFlow'!F6+'A7-CFlow'!F7+'A7-CFlow'!F22+'A7-CFlow'!F23)/SUM('A4-FinPerf RE'!F5:F11)),0,('A7-CFlow'!F6+'A7-CFlow'!F7+'A7-CFlow'!F22+'A7-CFlow'!F23)/(SUM('A4-FinPerf RE'!F5:F11))) -> 0.6345023308 | H17: =IF(ISERROR(('A7-CFlow'!G6+'A7-CFlow'!G7+'A7-CFlow'!G22+'A7-CFlow'!G23)/SUM('A4-FinPerf RE'!G5:G11)),0,('A7-CFlow'!G6+'A7-CFlow'!G7+'A7-CFlow'!G22+'A7-CFlow'!G23)/(SUM('A4-FinPerf RE'!G5:G11))) -> 1 | I17: =IF(ISERROR(('A7-CFlow'!H6+'A7-CFlow'!H7+'A7-CFlow'!H22+'A7-CFlow'!H23)/SUM('A4-FinPerf RE'!H5:H11)),0,('A7-CFlow'!H6+'A7-CFlow'!H7+'A7-CFlow'!H22+'A7-CFlow'!H23)/(SUM('A4-FinPerf RE'!H5:H11))) -> 1 | J17: =IF(ISERROR(('A7-CFlow'!I6+'A7-CFlow'!I7+'A7-CFlow'!I22+'A7-CFlow'!I23)/SUM('A4-FinPerf RE'!I5:I11)),0,('A7-CFlow'!I6+'A7-CFlow'!I7+'A7-CFlow'!I22+'A7-CFlow'!I23)/(SUM('A4-FinPerf RE'!I5:I11))) -> 0 | K17: =IF(ISERROR(('A7-CFlow'!J6+'A7-CFlow'!J7+'A7-CFlow'!J22+'A7-CFlow'!J23)/SUM('A4-FinPerf RE'!J5:J11)),0,('A7-CFlow'!J6+'A7-CFlow'!J7+'A7-CFlow'!J22+'A7-CFlow'!J23)/(SUM('A4-FinPerf RE'!J5:J11))) -> 0.4929698248 | L17: =IF(ISERROR(('A7-CFlow'!K6+'A7-CFlow'!K7+'A7-CFlow'!K22+'A7-CFlow'!K23)/SUM('A4-FinPerf RE'!K5:K11)),0,('A7-CFlow'!K6+'A7-CFlow'!K7+'A7-CFlow'!K22+'A7-CFlow'!K23)/(SUM('A4-FinPerf RE'!K5:K11))) -> 0.4929698248
A18: Current Debtors Collection Rate (Cash receipts % of Ratepayer & Other revenue) | C18: =IF(ISERROR(('A7-CFlow'!C6+'A7-CFlow'!C7)/SUM('A4-FinPerf RE'!C5:C11)),0,(('A7-CFlow'!C6+'A7-CFlow'!C7)/SUM('A4-FinPerf RE'!C5:C11))) -> 0.3095593865 | D18: =IF(ISERROR(('A7-CFlow'!D6+'A7-CFlow'!D7)/SUM('A4-FinPerf RE'!D5:D11)),0,(('A7-CFlow'!D6+'A7-CFlow'!D7)/SUM('A4-FinPerf RE'!D5:D11))) -> 0.3353151671 | E18: =IF(ISERROR(('A7-CFlow'!E6+'A7-CFlow'!E7)/SUM('A4-FinPerf RE'!E5:E11)),0,(('A7-CFlow'!E6+'A7-CFlow'!E7)/SUM('A4-FinPerf RE'!E5:E11))) -> 1 | F18: =IF(ISERROR(('A7-CFlow'!F6+'A7-CFlow'!F7)/SUM('A4-FinPerf RE'!F5:F11)),0,(('A7-CFlow'!F6+'A7-CFlow'!F7)/SUM('A4-FinPerf RE'!F5:F11))) -> 0.6345023308 | G18: =IF(ISERROR(('A7-CFlow'!G6+'A7-CFlow'!G7)/SUM('A4-FinPerf RE'!G5:G11)),0,(('A7-CFlow'!G6+'A7-CFlow'!G7)/SUM('A4-FinPerf RE'!G5:G11))) -> 1 | H18: =IF(ISERROR(('A7-CFlow'!H6+'A7-CFlow'!H7)/SUM('A4-FinPerf RE'!H5:H11)),0,(('A7-CFlow'!H6+'A7-CFlow'!H7)/SUM('A4-FinPerf RE'!H5:H11))) -> 1 | I18: =IF(ISERROR(('A7-CFlow'!I6+'A7-CFlow'!I7)/SUM('A4-FinPerf RE'!I5:I11)),0,(('A7-CFlow'!I6+'A7-CFlow'!I7)/SUM('A4-FinPerf RE'!I5:I11))) -> 0 | J18: =IF(ISERROR(('A7-CFlow'!J6+'A7-CFlow'!J7)/SUM('A4-FinPerf RE'!J5:J11)),0,(('A7-CFlow'!J6+'A7-CFlow'!J7)/SUM('A4-FinPerf RE'!J5:J11))) -> 0.4929698248 | K18: =IF(ISERROR(('A7-CFlow'!K6+'A7-CFlow'!K7)/SUM('A4-FinPerf RE'!K5:K11)),0,(('A7-CFlow'!K6+'A7-CFlow'!K7)/SUM('A4-FinPerf RE'!K5:K11))) -> 0.4929698248 | L18: =IF(ISERROR(('A7-CFlow'!L6+'A7-CFlow'!L7)/SUM('A4-FinPerf RE'!L5:L11)),0,(('A7-CFlow'!L6+'A7-CFlow'!L7)/SUM('A4-FinPerf RE'!L5:L11))) -> 0.4929698248
A19: Outstanding Debtors to Revenue | B19: Total Outstanding Debtors to Annual Revenue | C19: =IF(ISERROR(('A6-FinPos'!C8+'A6-FinPos'!C9+'A6-FinPos'!C10+'A6-FinPos'!C15)/'A4-FinPerf RE'!C22),0,(('A6-FinPos'!C8+'A6-FinPos'!C9+'A6-FinPos'!C10+'A6-FinPos'!C15)/'A4-FinPerf RE'!C22)) -> 0.2743554881 | D19: =IF(ISERROR(('A6-FinPos'!D8+'A6-FinPos'!D9+'A6-FinPos'!D10+'A6-FinPos'!D15)/'A4-FinPerf RE'!D22),0,(('A6-FinPos'!D8+'A6-FinPos'!D9+'A6-FinPos'!D10+'A6-FinPos'!D15)/'A4-FinPerf RE'!D22)) -> 0.3946806704 | E19: =IF(ISERROR(('A6-FinPos'!E8+'A6-FinPos'!E9+'A6-FinPos'!E10+'A6-FinPos'!E15)/'A4-FinPerf RE'!E22),0,(('A6-FinPos'!E8+'A6-FinPos'!E9+'A6-FinPos'!E10+'A6-FinPos'!E15)/'A4-FinPerf RE'!E22)) -> 0.6989339288 | F19: =IF(ISERROR(('A6-FinPos'!F8+'A6-FinPos'!F9+'A6-FinPos'!F10+'A6-FinPos'!F15)/'A4-FinPerf RE'!F22),0,(('A6-FinPos'!F8+'A6-FinPos'!F9+'A6-FinPos'!F10+'A6-FinPos'!F15)/'A4-FinPerf RE'!F22)) -> 0.3844802855 | G19: =IF(ISERROR(('A6-FinPos'!G8+'A6-FinPos'!G9+'A6-FinPos'!G10+'A6-FinPos'!G15)/'A4-FinPerf RE'!G22),0,(('A6-FinPos'!G8+'A6-FinPos'!G9+'A6-FinPos'!G10+'A6-FinPos'!G15)/'A4-FinPerf RE'!G22)) -> 0.3640561474 | H19: =IF(ISERROR(('A6-FinPos'!H8+'A6-FinPos'!H9+'A6-FinPos'!H10+'A6-FinPos'!H15)/'A4-FinPerf RE'!H22),0,(('A6-FinPos'!H8+'A6-FinPos'!H9+'A6-FinPos'!H10+'A6-FinPos'!H15)/'A4-FinPerf RE'!H22)) -> 0.3740968701 | I19: =IF(ISERROR(('A6-FinPos'!I8+'A6-FinPos'!I9+'A6-FinPos'!I10+'A6-FinPos'!I15)/'A4-FinPerf RE'!I22),0,(('A6-FinPos'!I8+'A6-FinPos'!I9+'A6-FinPos'!I10+'A6-FinPos'!I15)/'A4-FinPerf RE'!I22)) -> 0 | J19: =IF(ISERROR(('A6-FinPos'!J8+'A6-FinPos'!J9+'A6-FinPos'!J10+'A6-FinPos'!J15)/'A4-FinPerf RE'!J22),0,(('A6-FinPos'!J8+'A6-FinPos'!J9+'A6-FinPos'!J10+'A6-FinPos'!J15)/'A4-FinPerf RE'!J22)) -> 0.3669856845 | K19: =IF(ISERROR(('A6-FinPos'!K8+'A6-FinPos'!K9+'A6-FinPos'!K10+'A6-FinPos'!K15)/'A4-FinPerf RE'!K22),0,(('A6-FinPos'!K8+'A6-FinPos'!K9+'A6-FinPos'!K10+'A6-FinPos'!K15)/'A4-FinPerf RE'!K22)) -> 0.3430145891 | L19: =IF(ISERROR(('A6-FinPos'!L8+'A6-FinPos'!L9+'A6-FinPos'!L10+'A6-FinPos'!L15)/'A4-FinPerf RE'!L22),0,(('A6-FinPos'!L8+'A6-FinPos'!L9+'A6-FinPos'!L10+'A6-FinPos'!L15)/'A4-FinPerf RE'!L22)) -> 0.324087281
A20: Longstanding Debtors Recovered | B20: Debtors > 12 Mths Recovered/Total Debtors > 12 Months Old
A21: Creditors Management
A22: Creditors System Efficiency | B22: % of Creditors Paid Within Terms (within`MFMA' s 65(e))
